Workbook

Sheet Welcome
Z1: ImpactNow
B7: Version 2.0 - September 30, 2018
Z28: 0
Z29: 1
Z30: 1

Sheet Configuration
DP1: Women ages 15-19 S
J9: y
D10: Country | F10: Afghanistan | I10: Local Currency | Y10: =MATCH(ConCountry,List_Countries,0)+5 -> 8 | Z10: Afghanistan
D12: Start Year | F12: 2017 | I12: Conversion Rate | Z12: 2017
D14: End Year | F14: 2023 | Z14: 2023
K17: 1
E18: Select which women you want to include in your analysis | J18: Select a policy goal to configure your outputs
Z19: 1 | AA19: 1 | AB19: 1 | AC19: 1
F30: =Z19 -> 1

Sheet Input_Usual_Health
A1: =HID22Label -> 
D5: Health Indicators:
D6: =CONCATENATE("D5",inUsualName) -> D5Usual
D11: Scenario Name | F11: Usual
Q12: 0
M13: Inputs | O13: Comments/Source
D14: % of women that are in union | M14: 0.679 | O14: 2015 DHS
D15: Abortion Ratio (per 100 live births) | M15: 40.539703 | O15: 2017 data, computed using Darroch, J.E. et al. 2017. Adding It Up: Investing in Contraception and Maternal and Newborn Health, 2017—Supplementary Tables. New York: Guttmacher Institute.
D16: Stillbirth Rate (per 1000 live births) | M16: 26.7 | O16: Blencowe, H., S. Cousens, F.B. Jassir, L. Say, D. Chou et al. 2016. "National, regional, and worldwide estimates of stillbirth rates in 2015, with trends from 2000: a systematic analysis." Lancet Global Health 4:e98-108.
D17: Unsafe abortion ratio (per 100 live births) | M17: 23.429581 | O17: 2017 data, computed using Darroch, J.E. et al. 2017. Adding It Up: Investing in Contraception and Maternal and Newborn Health, 2017—Supplementary Tables. New York: Guttmacher Institute.
D18: % of unsafe abortions needing PAC | M18: 0.42 | O18: Darroch, J.E. 2018. Adding It Up: Investing in Contraception and Maternal and Newborn Health, 2017—Estimation Methodology. New York: Guttmacher Institute.
D19: % of unintended pregnancies that end in abortion | M19: 0.60801018 | O19: Computed using Darroch, J.E., E. Sully, and A. Biddlecom. 2017. Adding It Up: Investing in Contraception and Maternal and Newborn Health, 2017—Supplementary Tables. New York: Guttmacher Institute. (2017 data)
AD20: 1
D21: Parameter | H21: =Configuration!$F$12 -> 2017 | J21: =Configuration!$F$14 -> 2023 | L21: Comments/Source
D22: Women ages 15-49 | H22: 8188361 | J22: 10067631.2 | L22: United Nations, Department of Economic and Social Affairs, Population Division. 2017. "World Population Prospects: The 2017 Revision." DVD Edition.
D23: MMR | H23: 320.8 | J23: 95.2 | L23: Interpolation using World Health Organization (WHO), United Nations Children’s Fund, United Nations Population Fund, World Bank Group, and the United Nations Population Division. 2015. Trends in Maternal Mortality: 1990 to 2015. Geneva: WHO. | Y23: Parameter | AD23: =inUsualName -> Usual
Y24: Parameter | Z24: Default Y1 | AA24: Default End | AB24: Comment | AD24: =ConStartYr -> 2017 | AE24: =IFERROR(IF(AD24+1<=ConEndYr,AD24+1,""),"") -> 2018 | AF24: 2019 | AG24: 2020 | AH24: 2021 | AI24: 2022 | AJ24: 2023 | AO24: Slope | AP24: Intercept
Y25: Women ages 15-49 | Z25: =INDEX(srcAllData,ConCountryRow,MATCH("WRA"&ConStartYr,srcParam1,0)+3) -> 8188361 | AA25: =INDEX(srcAllData,ConCountryRow,MATCH("WRA"&ConEndYr,srcParam1,0)+3) -> 10067631.2 | AB25: =IF(conZ1 < 3,INDEX(default_database!2:5,4,MATCH("TFR"&ConStartYr,srcParam1,0)),INDEX(default_database_youth!2:5,4,MATCH("TFR"&ConStartYr,ysrcParam1,0))) -> United Nations, Department of Economic and Social Affairs, Population Division. 2017. "World Population Prospects: The 2017 Revision." DVD Edition. | AD25: =inUsualS15 -> 8188361 | AE25: =IFERROR(inUsualYr2*inUsualSlope1+inUsualInter1,"") -> 8501572.7 | AF25: =IFERROR(inUsualYr3*inUsualSlope1+inUsualInter1,"") -> 8814784.4 | AG25: =IFERROR(inUsualYr4*inUsualSlope1+inUsualInter1,"") -> 9127996.1 | AH25: =IFERROR(inUsualYr5*inUsualSlope1+inUsualInter1,"") -> 9441207.8 | AI25: =IFERROR(inUsualYr6*inUsualSlope1+inUsualInter1,"") -> 9754419.5 | AJ25: =IFERROR(inUsualYr7*inUsualSlope1+inUsualInter1,"") -> 10067631.2 | AK25: =IFERROR(inUsualYr8*inUsualSlope1+inUsualInter1,"") ->  | AL25: =IFERROR(inUsualYr9*inUsualSlope1+inUsualInter1,"") ->  | AM25: =IFERROR(inUsualYr10*inUsualSlope1+inUsualInter1,"") ->  | AO25: =(inUsualS19-inUsualS15)/(ConEndYr-ConStartYr) -> 313211.7 | AP25: =inUsualS15-(inUsualSlope1*ConStartYr) -> -623559637.9
Y26: MMR | Z26: =INDEX(srcAllData,ConCountryRow,MATCH("MMR"&ConStartYr,srcParam1,0)+3) -> 320.8 | AA26: =INDEX(srcAllData,ConCountryRow,MATCH("MMR"&ConEndYr,srcParam1,0)+3) -> 95.2 | AB26: =IF(conZ1 < 3,INDEX(default_database!2:5,4,MATCH("MMR"&ConStartYr,srcParam1,0)),INDEX(default_database_youth!2:5,4,MATCH("MMR"&ConStartYr,ysrcParam1,0))) -> Interpolation using World Health Organization (WHO), United Nations Children’s Fund, United Nations Population Fund, World Bank Group, and the United Nations Population Division. 2015. Trends in Maternal Mortality: 1990 to 2015. Geneva: WHO. | AD26: =IFERROR(inUsualYr1*inUsualSlope2+inUsualInter2,"") -> 320.8 | AE26: =IFERROR(inUsualYr2*inUsualSlope2+inUsualInter2,"") -> 283.2 | AF26: =IFERROR(inUsualYr3*inUsualSlope2+inUsualInter2,"") -> 245.6 | AG26: =IFERROR(inUsualYr4*inUsualSlope2+inUsualInter2,"") -> 208 | AH26: =IFERROR(inUsualYr5*inUsualSlope2+inUsualInter2,"") -> 170.4 | AI26: =IFERROR(inUsualYr6*inUsualSlope2+inUsualInter2,"") -> 132.8 | AJ26: =IFERROR(inUsualYr7*inUsualSlope2+inUsualInter2,"") -> 95.2 | AK26: =IFERROR(inUsualYr8*inUsualSlope2+inUsualInter2,"") ->  | AL26: =IFERROR(inUsualYr9*inUsualSlope2+inUsualInter2,"") ->  | AM26: =IFERROR(inUsualYr10*inUsualSlope2+inUsualInter2,"") ->  | AO26: =(inUsualS20-inUsualS16)/(ConEndYr-ConStartYr) -> -37.6 | AP26: =inUsualS16-(inUsualSlope2*ConStartYr) -> 76160
M38: 15 | N38: 1
M39: 16 | N39: =N38 -> 1
M40: 17 | N40: =N39 -> 1
M41: 18 | N41: =N40 -> 1
M42: 19 | N42: =N41 -> 1
M43: 20 | N43: 1.5
M44: 21 | N44: =N43 -> 1.5
M45: 22 | N45: =N44 -> 1.5
M46: 23 | N46: =N45 -> 1.5
M47: 24 | N47: =N46 -> 1.5
M48: 25 | N48: 1.3
M49: 26 | N49: =N48 -> 1.3
M50: 27 | N50: =N49 -> 1.3
M51: 28 | N51: =N50 -> 1.3
M52: 29 | N52: =N51 -> 1.3
M53: 30 | N53: 1.1
M54: 31 | N54: =N53 -> 1.1
M55: 32 | N55: =N54 -> 1.1
M56: 33 | N56: =N55 -> 1.1
M57: 34 | N57: =N56 -> 1.1
M58: 35 | N58: 1
M59: 36 | N59: =N58 -> 1
M60: 37 | N60: =N59 -> 1
M61: 38 | N61: =N60 -> 1
M62: 39 | N62: =N61 -> 1
M63: 40 | N63: 0.6
M64: 41 | N64: =N63 -> 0.6
M65: 42 | N65: =N64 -> 0.6
M66: 43 | N66: =N65 -> 0.6
M67: 44 | N67: =N66 -> 0.6
M68: 45 | N68: 0.1
M69: 46 | N69: =N68 -> 0.1
M70: 47 | N70: =N69 -> 0.1
M71: 48 | N71: =N70 -> 0.1
M72: 49 | N72: =N71 -> 0.1

Sheet Input_Usual_Con
D5: Effectiveness of Contraceptives:
D6: =CONCATENATE(D5,inUsualName) -> Effectiveness of Contraceptives:Usual
D12: Effectiveness of Contraceptives for:
E13: Male condom | L13: 0.914 | O13: Bradley, S., C. Polis, A. Bankole, and T. Croft. 2017. "Global Contraceptive Failure Rates: Who is Most at Risk?" Presented at 2017 Population Association of America Annual Meeting, Chicago, Illinois.
E14: Injectable | L14: 0.98 | O14: Bradley, S., C. Polis, A. Bankole, and T. Croft. 2017. "Global Contraceptive Failure Rates: Who is Most at Risk?" Presented at 2017 Population Association of America Annual Meeting, Chicago, Illinois.
E15: Pill | L15: 0.937 | O15: Bradley, S., C. Polis, A. Bankole, and T. Croft. 2017. "Global Contraceptive Failure Rates: Who is Most at Risk?" Presented at 2017 Population Association of America Annual Meeting, Chicago, Illinois.
E16: Male sterilization | L16: 0.9985 | O16: Trussell, J. 2011. "Contraceptive Efficacy." Table 3-2 in Contraceptive Technology, 20th edition, edited by Hatcher, R. A, Trussell, J., Nelson, A. L., Cates, W., Kowal, D., Policar, M. S. New York: Ardent Media.
E17: Female sterilization | L17: 0.995 | O17: Trussell, J. 2011. "Contraceptive Efficacy." Table 3-2 in Contraceptive Technology, 20th edition, edited by Hatcher, R. A, Trussell, J., Nelson, A. L., Cates, W., Kowal, D., Policar, M. S. New York: Ardent Media.
E18: IUD | L18: 0.988 | O18: Bradley, S., C. Polis, A. Bankole, and T. Croft. 2017. "Global Contraceptive Failure Rates: Who is Most at Risk?" Presented at 2017 Population Association of America Annual Meeting, Chicago, Illinois.
E19: Implant | L19: 0.997 | O19: Bradley, S., C. Polis, A. Bankole, and T. Croft. 2017. "Global Contraceptive Failure Rates: Who is Most at Risk?" Presented at 2017 Population Association of America Annual Meeting, Chicago, Illinois.
E20: Standard Days Method (SDM) | L20: 0.88 | O20: Arévalo, M., V. Jennings, and I. Sinai. 2002. "Efficacy of a New Method of Family Planning: The Standard Days Method." Contraceptio 65(3): 333-338.
E21: Other modern | L21: 0.937 | O21: Bradley, S., C. Polis, A. Bankole, and T. Croft. 2017. "Global Contraceptive Failure Rates: Who is Most at Risk?" Presented at 2017 Population Association of America Annual Meeting, Chicago, Illinois.
E22: All Traditional | L22: 0.8185 | O22: Bradley, S., C. Polis, A. Bankole, and T. Croft. 2017. "Global Contraceptive Failure Rates: Who is Most at Risk?" Presented at 2017 Population Association of America Annual Meeting, Chicago, Illinois.
E23: Other country-specific

Sheet Input_Usual_Age
A1: =AppName -> ImpactNow
D5: Median Age of Use for Contraceptives:
D6: =CONCATENATE(D5,inUsualName) -> Median Age of Use for Contraceptives:Usual
D16: Median age of use for:
E17: Female sterilization | L17: 33.8 | O17: DHS 2015
E18: IUD | L18: 30 | O18: Assumption
E19: Implant | L19: 30 | O19: Assumption
E20: Standard Days Method (SDM) | L20: 30 | O20: Assumption

Sheet Input_Usual_UtlPreg
D5: Healthcare Utilization per Pregnancy:
D6: =CONCATENATE(D5,inUsualName) -> Healthcare Utilization per Pregnancy: Usual
P12: 2 | Z12: 2
D14: Treatment | J14: % of pregnant women needing attention for: | M14: Of the women who need care, the % that are able to receive: | P14: Associated costs for treatment of:
J15: % | K15: Comment | M15: % | N15: Comment | P15: USD | Q15: Comment | Z15: Costs
D16: Antenatal Care (ANC) | J16: 1 | K16: UNFPA. 2008. Reproductive Health Costing Tool/Model | M16: 0.47354954 | N16: Darroch, J.E., E. Sully, and A. Biddlecom. 2017. Adding It Up: Investing in Contraception and Maternal and Newborn Health, 2017—Supplementary Tables. New York: Guttmacher Institute. | P16: 13.5 | Q16: UNFPA. 2008. Reproductive Health Costing Tool/Model. | Z16: =J16*M16*P16 -> 6.39291879
D17: Treatment of Severe Anaemia | J17: 0.5 | K17: Assumption | M17: 0.5 | N17: Assumption | P17: 0.06 | Q17: UNFPA. 2008. Reproductive Health Costing Tool/Model. | Z17: 0.015
D18: Hypertensive Disorders of Pregnancy | J18: 0.0765 | K18: Darroch, J. E. 2018. Adding It Up: Investing in Contraception and Maternal and Newborn Health, 2017--Estimation Methodology. New York: Guttmacher Institute. | M18: 0.5 | N18: Assumption | P18: 5.32 | Q18: UNFPA. 2008. Reproductive Health Costing Tool/Model. | Z18: 0.20349
D19: Malaria Prevention within ANC | J19: 0.5 | K19: (1) Darroch, J.E., E. Sully, and A. Biddlecom. 2017. Adding It Up: Investing in Contraception and Maternal and Newborn Health, 2017—Supplementary Tables. New York: Guttmacher Institute.; (2) Assumption | M19: 0.5 | N19: Assumption | P19: 7.06 | Q19: UNFPA. 2008. Reproductive Health Costing Tool/Model. | Z19: 1.765
D20: Malaria Treatment within ANC (0 if all women recieve ANC) | J20: 0.010953168 | K20: (1) Darroch, J.E., E. Sully, and A. Biddlecom. 2017. Adding It Up: Investing in Contraception and Maternal and Newborn Health, 2017—Supplementary Tables. New York: Guttmacher Institute.; (2) Assumption | M20: 0.48007172 | N20: Darroch, J.E., E. Sully, and A. Biddlecom. 2017. Adding It Up: Investing in Contraception and Maternal and Newborn Health, 2017—Supplementary Tables. New York: Guttmacher Institute. | P20: 21.06 | Q20: UNFPA. 2008. Reproductive Health Costing Tool/Model. | Z20: 0.1107399286
D21: Urinary Tract Infection (UTI) | J21: 0.25 | K21: Darroch, J. E. 2018. Adding It Up: Investing in Contraception and Maternal and Newborn Health, 2017--Estimation Methodology. New York: Guttmacher Institute. | M21: 0.5 | N21: Assumption | P21: 0.52 | Q21: UNFPA. 2008. Reproductive Health Costing Tool/Model. | Z21: 0.065
Y22: AvgTreatment costs per pregnancy | Z22: =SUM(Z16:Z21) -> 8.552148719

Sheet Input_Usual_UtlBirth
D5: Healthcare Utilization per Live Birth:
D6: =CONCATENATE(D5,inUsualName) -> Healthcare Utilization per Live Birth: Usual
Z12: 2
D14: Treatment | J14: % of births requiring attention for: | M14: Of the births that require attention, the % that are able to receive: | P14: Associated costs for treatment of:
J15: % | K15: Comment | M15: % | N15: Comment | P15: USD | Q15: Comment | Z15: Costs
D16: Delivery Care | J16: 1 | K16: Darroch, J. E. 2018. Adding It Up: Investing in Contraception and Maternal and Newborn Health, 2017--Estimation Methodology. New York: Guttmacher Institute. | M16: 0.505 | N16: DHS 2015 | P16: 7.32 | Q16: UNFPA. 2008. Reproductive Health Costing Tool/Model. | Z16: =J16*M16*P16 -> 3.6966
D17: Postpartum Care | J17: 1 | K17: Darroch, J. E. 2018. Adding It Up: Investing in Contraception and Maternal and Newborn Health, 2017--Estimation Methodology. New York: Guttmacher Institute. | M17: 0.399 | N17: DHS 2015 | P17: 0.75 | Q17: UNFPA. 2008. Reproductive Health Costing Tool/Model. | Z17: =J17*M17*P17 -> 0.29925
D18: Emergency Pre-Referral Care | J18: 0.2 | K18: Darroch, J. E. 2018. Adding It Up: Investing in Contraception and Maternal and Newborn Health, 2017--Estimation Methodology. New York: Guttmacher Institute. | M18: 0.5 | N18: Assumption | P18: 66.67 | Q18: UNFPA. 2008. Reproductive Health Costing Tool/Model. | Z18: 6.667
D19: Prelabour Rupture of Membranes (PROM) | J19: 0.089466476 | K19: Darroch, J.E., E. Sully, and A. Biddlecom. 2017. Adding It Up: Investing in Contraception and Maternal and Newborn Health, 2017—Supplementary Tables. New York: Guttmacher Institute. | M19: 0.33781666 | N19: Darroch, J.E., E. Sully, and A. Biddlecom. 2017. Adding It Up: Investing in Contraception and Maternal and Newborn Health, 2017—Supplementary Tables. New York: Guttmacher Institute. | P19: 44.63 | Q19: UNFPA. 2008. Reproductive Health Costing Tool/Model. | Z19: 1.348864366
D20: Prolonged Labour (>18 hours) | J20: 0.1 | K20: Darroch, J. E. 2018. Adding It Up: Investing in Contraception and Maternal and Newborn Health, 2017--Estimation Methodology. New York: Guttmacher Institute. | M20: 0.3555965 | N20: Darroch, J.E., E. Sully, and A. Biddlecom. 2017. Adding It Up: Investing in Contraception and Maternal and Newborn Health, 2017—Supplementary Tables. New York: Guttmacher Institute. | P20: 5.73 | Q20: UNFPA. 2008. Reproductive Health Costing Tool/Model. | Z20: 0.2037567945
D21: Forceps or Vacuum-Assisted Delivery (AVD) | J21: 0.006 | K21: Darroch, J. E. 2018. Adding It Up: Investing in Contraception and Maternal and Newborn Health, 2017--Estimation Methodology. New York: Guttmacher Institute. | M21: 0.3555965 | N21: Darroch, J.E., E. Sully, and A. Biddlecom. 2017. Adding It Up: Investing in Contraception and Maternal and Newborn Health, 2017—Supplementary Tables. New York: Guttmacher Institute. | P21: 7.24 | Q21: UNFPA. 2008. Reproductive Health Costing Tool/Model. | Z21: 0.01544711196
D22: Cesarean Section (C-Section) | J22: 0.1 | K22: Darroch, J. E. 2018. Adding It Up: Investing in Contraception and Maternal and Newborn Health, 2017--Estimation Methodology. New York: Guttmacher Institute. | M22: 0.3555965 | N22: Darroch, J.E., E. Sully, and A. Biddlecom. 2017. Adding It Up: Investing in Contraception and Maternal and Newborn Health, 2017—Supplementary Tables. New York: Guttmacher Institute. | P22: 50.33 | Q22: UNFPA. 2008. Reproductive Health Costing Tool/Model. | Z22: 1.789717184
D23: Antepartum Haemorrhage | J23: 0.04 | K23: Darroch, J. E. 2018. Adding It Up: Investing in Contraception and Maternal and Newborn Health, 2017--Estimation Methodology. New York: Guttmacher Institute. | M23: 0.3555965 | N23: Darroch, J.E., E. Sully, and A. Biddlecom. 2017. Adding It Up: Investing in Contraception and Maternal and Newborn Health, 2017—Supplementary Tables. New York: Guttmacher Institute. | P23: 40.66 | Q23: UNFPA. 2008. Reproductive Health Costing Tool/Model. | Z23: 0.5783421476
D24: Postpartum Haemorrhage | J24: 0.065131083 | K24: Darroch, J.E., E. Sully, and A. Biddlecom. 2017. Adding It Up: Investing in Contraception and Maternal and Newborn Health, 2017—Supplementary Tables. New York: Guttmacher Institute. | M24: 0.34138508 | N24: Darroch, J.E., E. Sully, and A. Biddlecom. 2017. Adding It Up: Investing in Contraception and Maternal and Newborn Health, 2017—Supplementary Tables. New York: Guttmacher Institute. | P24: 59.22 | Q24: UNFPA. 2008. Reproductive Health Costing Tool/Model. | Z24: 1.31674367
D25: Puerperal Sepsis | J25: 0.037302952 | K25: Darroch, J.E., E. Sully, and A. Biddlecom. 2017. Adding It Up: Investing in Contraception and Maternal and Newborn Health, 2017—Supplementary Tables. New York: Guttmacher Institute. | M25: 0.34843937 | N25: Darroch, J.E., E. Sully, and A. Biddlecom. 2017. Adding It Up: Investing in Contraception and Maternal and Newborn Health, 2017—Supplementary Tables. New York: Guttmacher Institute. | P25: 69.57 | Q25: UNFPA. 2008. Reproductive Health Costing Tool/Model. | Z25: 0.9042581352
D26: Eclampsia / Severe Pre-eclampsia | J26: 0.0013 | K26: Darroch, J. E. 2018. Adding It Up: Investing in Contraception and Maternal and Newborn Health, 2017--Estimation Methodology. New York: Guttmacher Institute. | M26: 0.18406017 | N26: Darroch, J.E., E. Sully, and A. Biddlecom. 2017. Adding It Up: Investing in Contraception and Maternal and Newborn Health, 2017—Supplementary Tables. New York: Guttmacher Institute. | P26: 21.28 | Q26: UNFPA. 2008. Reproductive Health Costing Tool/Model. | Z26: 0.005091840543
D27: Management of post Abortion Complications (PAC) | J27: 0.08 | K27: Assumption | M27: 0.5 | N27: Assumption | P27: 29.25 | Q27: UNFPA. 2008. Reproductive Health Costing Tool/Model. | Z27: 1.17
D28: Obstetric Fistula (OF) | J28: 0.0005 | K28: Assumption | M28: 0.5 | N28: Assumption | P28: 50.56 | Q28: UNFPA. 2008. Reproductive Health Costing Tool/Model. | Z28: 0.01264
D29: Mastitis | J29: 0.15 | K29: Darroch, J. E. 2018. Adding It Up: Investing in Contraception and Maternal and Newborn Health, 2017--Estimation Methodology. New York: Guttmacher Institute. | M29: 0.5 | N29: Assumption | P29: 1.63 | Q29: UNFPA. 2008. Reproductive Health Costing Tool/Model. | Z29: 0.12225
D30: Routine Newborn Care | J30: 1 | K30: Darroch, J. E. 2018. Adding It Up: Investing in Contraception and Maternal and Newborn Health, 2017--Estimation Methodology. New York: Guttmacher Institute. | M30: 0.093 | N30: DHS 2015 | P30: 1.95 | Q30: UNFPA. 2008. Reproductive Health Costing Tool/Model. | Z30: 0.18135
D31: Newborn Sepsis / Infections | J31: 0.1 | K31: Darroch, J. E. 2018. Adding It Up: Investing in Contraception and Maternal and Newborn Health, 2017--Estimation Methodology. New York: Guttmacher Institute. | M31: 0.36297932 | N31: Darroch, J.E., E. Sully, and A. Biddlecom. 2017. Adding It Up: Investing in Contraception and Maternal and Newborn Health, 2017—Supplementary Tables. New York: Guttmacher Institute. | P31: 27.47 | Q31: UNFPA. 2008. Reproductive Health Costing Tool/Model. | Z31: 0.997104192
D32: Birth Asphyxia / Breathing Difficulties | J32: 0.03 | K32: Darroch, J. E. 2018. Adding It Up: Investing in Contraception and Maternal and Newborn Health, 2017--Estimation Methodology. New York: Guttmacher Institute. | M32: 0.24891754 | N32: Darroch, J.E., E. Sully, and A. Biddlecom. 2017. Adding It Up: Investing in Contraception and Maternal and Newborn Health, 2017—Supplementary Tables. New York: Guttmacher Institute. | P32: 6.86 | Q32: UNFPA. 2008. Reproductive Health Costing Tool/Model. | Z32: 0.05122722973
D33: Low-Birth Weight (LBW) | J33: 0.27111055 | K33: Darroch, J.E., E. Sully, and A. Biddlecom. 2017. Adding It Up: Investing in Contraception and Maternal and Newborn Health, 2017—Supplementary Tables. New York: Guttmacher Institute. | M33: 0.35152706 | N33: Darroch, J.E., E. Sully, and A. Biddlecom. 2017. Adding It Up: Investing in Contraception and Maternal and Newborn Health, 2017—Supplementary Tables. New York: Guttmacher Institute. | P33: 7.17 | Q33: UNFPA. 2008. Reproductive Health Costing Tool/Model. | Z33: 0.6833203201
D34: BCG Immunization | J34: 1 | K34: Assumption | M34: 0.74 | N34: WHO and UNICEF. 2018. Estimates of national routine immunization coverage, 2017 revision. Available at: https://data.unicef.org/resources/dataset/immunization-coverage-antigen-including-trends/ | P34: 0.005483 | Q34: Computed average cost per dose using 20 dose presentation costs (only available) for the period 2013 - 2018, all available suppliers. Source: UNICEF. "Vaccine Price Data: BCG." Retrieved June 2018 from https://www.unicef.org/supply/index_57476.html | Z34: 0.00405742
D35: Hepatitis B3 | J35: 1 | K35: Assumption | M35: 0.65 | N35: WHO and UNICEF. 2018. Estimates of national routine immunization coverage, 2017 revision. Available at: https://data.unicef.org/resources/dataset/immunization-coverage-antigen-including-trends/ | P35: 1.29 | Q35: Price per dose is taken as one-third of the DTP-HepB-Hib vaccine. Computed average cost per dose using 10 dose liquid presentation costs for the period 2013 - 2018, all available suppliers. Source: UNICEF. "Vaccine Price Data: DTP-HepB-Hib (Penta)." Retrieved June 2018 from https://www.unicef.org/supply/files/Penta_Price_Update_17_10_06.pdf | Z35: 0.8385
D36: Polio 3 | J36: 1 | K36: Assumption | M36: 0.6 | N36: WHO and UNICEF. 2018. Estimates of national routine immunization coverage, 2017 revision. Available at: https://data.unicef.org/resources/dataset/immunization-coverage-antigen-including-trends/ | P36: 3.48 | Q36: Computed for Gavi and non-Gavi countries as average cost per dose using single dose presentation costs for the period 2013 - 2018, all available suppliers. Source: UNICEF. "Vaccine Price Data: IPV." Retrieved June 2018 from https://www.unicef.org/supply/files/2018_05_28_IPV.pdf | Z36: 2.088
D37: DPT 3 | J37: 1 | K37: Assumption | M37: 0.65 | N37: WHO and UNICEF. 2018. Estimates of national routine immunization coverage, 2017 revision. Available at: https://data.unicef.org/resources/dataset/immunization-coverage-antigen-including-trends/ | P37: 1.29 | Q37: Price per dose is taken as one-third of the DTP-HepB-Hib vaccine. Computed average cost per dose using 10 dose liquid presentation costs for the period 2013 - 2018, all available suppliers. Source: UNICEF. "Vaccine Price Data: DTP-HepB-Hib (Penta)." Retrieved June 2018 from https://www.unicef.org/supply/files/Penta_Price_Update_17_10_06.pdf | Z37: 0.8385
D38: Haemophilus influenzae type B3 | J38: 1 | K38: Assumption | M38: 0.65 | N38: WHO and UNICEF. 2018. Estimates of national routine immunization coverage, 2017 revision. Available at: https://data.unicef.org/resources/dataset/immunization-coverage-antigen-including-trends/ | P38: 1.29 | Q38: Price per dose is taken as one-third of the DTP-HepB-Hib vaccine. Computed average cost per dose using 10 dose liquid presentation costs for the period 2013 - 2018, all available suppliers. Source: UNICEF. "Vaccine Price Data: DTP-HepB-Hib (Penta)." Retrieved June 2018 from https://www.unicef.org/supply/files/Penta_Price_Update_17_10_06.pdf | Z38: 0.8385
D39: Pneumococcal | J39: 1 | K39: Assumption | M39: 0.65 | N39: WHO and UNICEF. 2018. Estimates of national routine immunization coverage, 2017 revision. Available at: https://data.unicef.org/resources/dataset/immunization-coverage-antigen-including-trends/ | P39: 9.99 | Q39: Computed average cost per dose using single dose presentation costs (13-val) for the period 2013 - 2018, all available suppliers. Source: UNICEF. "Vaccine Price Data: PCV." Retrieved June 2018 from https://www.unicef.org/supply/files/18_01_08_PCV_Price_web_updates.pdf | Z39: 6.4935
D40: Rotavirus | J40: 1 | K40: Assumption | P40: 11.325 | Q40: Computed for Gavi and non-Gavi countries as average cost per dose using single dose presentation costs for the period 2013 - 2018, all available suppliers. Source: UNICEF. "Vaccine Price Data: Rota." Retrieved June 2018 from https://www.unicef.org/supply/files/180705_Rota.pdf | Z40: 0
D41: Measles | J41: 1 | K41: Assumption | M41: 0.62 | N41: WHO and UNICEF. 2018. Estimates of national routine immunization coverage, 2017 revision. Available at: https://data.unicef.org/resources/dataset/immunization-coverage-antigen-including-trends/ | P41: 0.29 | Q41: Price per dose is taken as one-half of the Measles Rubella (MR) vaccine. Computed average cost per dose using 10 dose presentation costs for the period 2013 - 2018, all available suppliers. Source: UNICEF. "Vaccine Price Data: MR." Retrieved June 2018 from https://www.unicef.org/supply/files/2018_04_17_MR.pdf | Z41: 0.1798
D42: Rubella | J42: 1 | K42: Assumption | P42: 0.29 | Q42: Price per dose is taken as one-half of the Measles Rubella (MR) vaccine. Computed average cost per dose using 10 dose presentation costs for the period 2013 - 2018, all available suppliers. Source: UNICEF. "Vaccine Price Data: MR." Retrieved June 2018 from https://www.unicef.org/supply/files/2018_04_17_MR.pdf | Z42: 0
Y43: AvgTreatment costs per live birth | Z43: =SUM(Z16:Z42) -> 31.32382041
P50: 1

Sheet Input_Scen1_Health
A1: Scen1
E5: Load
D6: =CONCATENATE("Health Indicators: ",inScen1Name) -> Health Indicators: Scen2 | E6: =CONCATENATE(E5,inUsualName) -> Load Usual
D11: Scenario Name | F11: Scen2
Q12: 2
M13: Input | O13: Comments/Source
D14: % of women that are in union | M14: 0.679 | O14: 2015 DHS
D15: Abortion Ratio (per 100 live births) | M15: 40.539703 | O15: 2017 data, computed using Darroch, J.E. et al. 2017. Adding It Up: Investing in Contraception and Maternal and Newborn Health, 2017—Supplementary Tables. New York: Guttmacher Institute.
D16: Stillbirth Rate (per 1000 live births) | M16: 26.7 | O16: Blencowe, H., S. Cousens, F.B. Jassir, L. Say, D. Chou et al. 2016. "National, regional, and worldwide estimates of stillbirth rates in 2015, with trends from 2000: a systematic analysis." Lancet Global Health 4:e98-108.
D17: Unsafe abortion ratio (per 100 live births) | M17: 23.429581 | O17: 2017 data, computed using Darroch, J.E. et al. 2017. Adding It Up: Investing in Contraception and Maternal and Newborn Health, 2017—Supplementary Tables. New York: Guttmacher Institute.
D18: % of unsafe abortions needing PAC | M18: 0.42 | O18: Darroch, J.E. 2018. Adding It Up: Investing in Contraception and Maternal and Newborn Health, 2017—Estimation Methodology. New York: Guttmacher Institute.
D19: % of unintended pregnancies that end in abortion | M19: 0.60801018 | O19: Computed using Darroch, J.E., E. Sully, and A. Biddlecom. 2017. Adding It Up: Investing in Contraception and Maternal and Newborn Health, 2017—Supplementary Tables. New York: Guttmacher Institute. (2017 data)
D21: Parameter | H21: =Configuration!$F$12 -> 2017 | J21: =Configuration!$F$14 -> 2023 | L21: Comments/Source
D22: Women ages 15-49 | H22: 8188361 | J22: 10067631.2 | L22: United Nations, Department of Economic and Social Affairs, Population Division. 2017. "World Population Prospects: The 2017 Revision." DVD Edition.
D23: MMR | H23: 320.8 | J23: 95.2 | L23: Interpolation using World Health Organization (WHO), United Nations Children’s Fund, United Nations Population Fund, World Bank Group, and the United Nations Population Division. 2015. Trends in Maternal Mortality: 1990 to 2015. Geneva: WHO. | AD23: =inScen1Name -> Scen2
AD24: =ConStartYr -> 2017 | AE24: =IFERROR(IF(AD24+1<=ConEndYr,AD24+1,""),"") -> 2018 | AF24: 2019 | AG24: 2020 | AH24: 2021 | AI24: 2022 | AJ24: 2023 | AO24: Slope | AP24: Intercept
AD25: =inScen1S15 -> 8188361 | AE25: =IFERROR(inScen1Yr2*inScen1Slope1+inScen1Inter1,"") -> 8501572.7 | AF25: =IFERROR(inScen1Yr3*inScen1Slope1+inScen1Inter1,"") -> 8814784.4 | AG25: =IFERROR(inScen1Yr4*inScen1Slope1+inScen1Inter1,"") -> 9127996.1 | AH25: =IFERROR(inScen1Yr5*inScen1Slope1+inScen1Inter1,"") -> 9441207.8 | AI25: =IFERROR(inScen1Yr6*inScen1Slope1+inScen1Inter1,"") -> 9754419.5 | AJ25: =IFERROR(inScen1Yr7*inScen1Slope1+inScen1Inter1,"") -> 10067631.2 | AK25: =IFERROR(inScen1Yr8*inScen1Slope1+inScen1Inter1,"") ->  | AL25: =IFERROR(inScen1Yr9*inScen1Slope1+inScen1Inter1,"") ->  | AM25: =IFERROR(inScen1Yr10*inScen1Slope1+inScen1Inter1,"") ->  | AO25: =(inScen1S19-inScen1S15)/(ConEndYr-ConStartYr) -> 313211.7 | AP25: =inScen1S15-(AO25*ConStartYr) -> -623559637.9
AD26: =inScen1S16 -> 320.8 | AE26: =IFERROR(inScen1Yr2*inScen1Slope2+inScen1Inter2,"") -> 283.2 | AF26: =IFERROR(inScen1Yr3*inScen1Slope2+inScen1Inter2,"") -> 245.6 | AG26: =IFERROR(inScen1Yr4*inScen1Slope2+inScen1Inter2,"") -> 208 | AH26: =IFERROR(inScen1Yr5*inScen1Slope2+inScen1Inter2,"") -> 170.4 | AI26: =IFERROR(inScen1Yr6*inScen1Slope2+inScen1Inter2,"") -> 132.8 | AJ26: =IFERROR(inScen1Yr7*inScen1Slope2+inScen1Inter2,"") -> 95.2 | AK26: =IFERROR(inScen1Yr8*inScen1Slope2+inScen1Inter2,"") ->  | AL26: =IFERROR(inScen1Yr9*inScen1Slope2+inScen1Inter2,"") ->  | AM26: =IFERROR(inScen1Yr10*inScen1Slope2+inScen1Inter2,"") ->  | AO26: =(inScen1S20-inScen1S16)/(ConEndYr-ConStartYr) -> -37.6 | AP26: =inScen1S16-(AO26*ConStartYr) -> 76160

Sheet Input_Scen1_Con
D5: Effectiveness of Contraceptives:
D6: =CONCATENATE(D5,Input_Scen1_Health!F11) -> Effectiveness of Contraceptives:Scen2
D12: Effectiveness of Contraceptives for:
E13: Male condom | L13: 0.914 | O13: Bradley, S., C. Polis, A. Bankole, and T. Croft. 2017. "Global Contraceptive Failure Rates: Who is Most at Risk?" Presented at 2017 Population Association of America Annual Meeting, Chicago, Illinois.
E14: Injectable | L14: 0.98 | O14: Bradley, S., C. Polis, A. Bankole, and T. Croft. 2017. "Global Contraceptive Failure Rates: Who is Most at Risk?" Presented at 2017 Population Association of America Annual Meeting, Chicago, Illinois.
E15: Pill | L15: 0.937 | O15: Bradley, S., C. Polis, A. Bankole, and T. Croft. 2017. "Global Contraceptive Failure Rates: Who is Most at Risk?" Presented at 2017 Population Association of America Annual Meeting, Chicago, Illinois.
E16: Male sterilization | L16: 0.9985 | O16: Trussell, J. 2011. "Contraceptive Efficacy." Table 3-2 in Contraceptive Technology, 20th edition, edited by Hatcher, R. A, Trussell, J., Nelson, A. L., Cates, W., Kowal, D., Policar, M. S. New York: Ardent Media.
E17: Female sterilization | L17: 0.995 | O17: Trussell, J. 2011. "Contraceptive Efficacy." Table 3-2 in Contraceptive Technology, 20th edition, edited by Hatcher, R. A, Trussell, J., Nelson, A. L., Cates, W., Kowal, D., Policar, M. S. New York: Ardent Media.
E18: IUD | L18: 0.988 | O18: Bradley, S., C. Polis, A. Bankole, and T. Croft. 2017. "Global Contraceptive Failure Rates: Who is Most at Risk?" Presented at 2017 Population Association of America Annual Meeting, Chicago, Illinois.
E19: Implant | L19: 0.997 | O19: Bradley, S., C. Polis, A. Bankole, and T. Croft. 2017. "Global Contraceptive Failure Rates: Who is Most at Risk?" Presented at 2017 Population Association of America Annual Meeting, Chicago, Illinois.
E20: Standard Days Method (SDM) | L20: 0.88 | O20: Arévalo, M., V. Jennings, and I. Sinai. 2002. "Efficacy of a New Method of Family Planning: The Standard Days Method." Contraceptio 65(3): 333-338.
E21: Other modern | L21: 0.937 | O21: Bradley, S., C. Polis, A. Bankole, and T. Croft. 2017. "Global Contraceptive Failure Rates: Who is Most at Risk?" Presented at 2017 Population Association of America Annual Meeting, Chicago, Illinois.
E22: All Traditional | L22: 0.8185 | O22: Bradley, S., C. Polis, A. Bankole, and T. Croft. 2017. "Global Contraceptive Failure Rates: Who is Most at Risk?" Presented at 2017 Population Association of America Annual Meeting, Chicago, Illinois.
E23: Other country-specific

Sheet Input_Scen1_Age
D5: Median Age of Use for Contraceptives:
D6: =CONCATENATE(D5,inScen1Name) -> Median Age of Use for Contraceptives:Scen2
D16: Median age of use for:
E17: Female sterilization | L17: 33.8 | O17: DHS 2015
E18: IUD | L18: 30 | O18: Assumption
E19: Implant | L19: 30 | O19: Assumption
E20: Standard Days Method (SDM) | L20: 30 | O20: Assumption

Sheet Input_Scen1_UtlPreg
D6: =CONCATENATE("Health Care Utlization per Pregnancy: ",Input_Scen1_Health!F11) -> Health Care Utlization per Pregnancy: Scen2
Z12: 2
D14: Treatment | J14: % of pregnant women needing attention for: | M14: Of the women who need care, the % that are able to receive: | P14: Associated costs for treatment of:
J15: % | K15: Comment | M15: % | N15: Comment | P15: USD | Q15: Comment | Z15: Costs
D16: Antenatal Care (ANC) | J16: 1 | K16: UNFPA. 2008. Reproductive Health Costing Tool/Model | M16: 0.47354954 | N16: Darroch, J.E., E. Sully, and A. Biddlecom. 2017. Adding It Up: Investing in Contraception and Maternal and Newborn Health, 2017—Supplementary Tables. New York: Guttmacher Institute. | P16: 13.5 | Q16: UNFPA. 2008. Reproductive Health Costing Tool/Model. | Z16: =J16*M16*P16 -> 6.39291879
D17: Treatment of Severe Anaemia | J17: 0.5 | K17: Assumption | M17: 0.5 | N17: Assumption | P17: 0.06 | Q17: UNFPA. 2008. Reproductive Health Costing Tool/Model. | Z17: =J17*M17*P17 -> 0.015
D18: Hypertensive Disorders of Pregnancy | J18: 0.0765 | K18: Darroch, J. E. 2018. Adding It Up: Investing in Contraception and Maternal and Newborn Health, 2017--Estimation Methodology. New York: Guttmacher Institute. | M18: 0.5 | N18: Assumption | P18: 5.32 | Q18: UNFPA. 2008. Reproductive Health Costing Tool/Model. | Z18: 0.20349
D19: Malaria Prevention within ANC | J19: 0.5 | K19: (1) Darroch, J.E., E. Sully, and A. Biddlecom. 2017. Adding It Up: Investing in Contraception and Maternal and Newborn Health, 2017—Supplementary Tables. New York: Guttmacher Institute.; (2) Assumption | M19: 0.5 | N19: Assumption | P19: 7.06 | Q19: UNFPA. 2008. Reproductive Health Costing Tool/Model. | Z19: 1.765
D20: Malaria Treatment within ANC (0 if all women recieve ANC) | J20: 0.010953168 | K20: (1) Darroch, J.E., E. Sully, and A. Biddlecom. 2017. Adding It Up: Investing in Contraception and Maternal and Newborn Health, 2017—Supplementary Tables. New York: Guttmacher Institute.; (2) Assumption | M20: 0.48007172 | N20: Darroch, J.E., E. Sully, and A. Biddlecom. 2017. Adding It Up: Investing in Contraception and Maternal and Newborn Health, 2017—Supplementary Tables. New York: Guttmacher Institute. | P20: 21.06 | Q20: UNFPA. 2008. Reproductive Health Costing Tool/Model. | Z20: 0.1107399286
D21: Urinary Tract Infection (UTI) | J21: 0.25 | K21: Darroch, J. E. 2018. Adding It Up: Investing in Contraception and Maternal and Newborn Health, 2017--Estimation Methodology. New York: Guttmacher Institute. | M21: 0.5 | N21: Assumption | P21: 0.52 | Q21: UNFPA. 2008. Reproductive Health Costing Tool/Model. | Z21: 0.065
Y22: AvgTreatment costs per pregnancy | Z22: =SUM(Z16:Z21) -> 8.552148719

Sheet Input_Scen1_UtlBirth
D5: Healthcare Utilization per Live Birth:
D6: =CONCATENATE(D5,Input_Scen1_Health!F11) -> Healthcare Utilization per Live Birth: Scen2
Z12: 2
D14: Treatment | J14: % of births requiring attention for: | M14: Of the births that require attention, the % that are able to receive: | P14: Associated costs for treatment of:
J15: % | K15: Comment | M15: % | N15: Comment | P15: USD | Q15: Comment | Z15: Costs
D16: Delivery Care | J16: 1 | K16: Darroch, J. E. 2018. Adding It Up: Investing in Contraception and Maternal and Newborn Health, 2017--Estimation Methodology. New York: Guttmacher Institute. | M16: 0.505 | N16: DHS 2015 | P16: 7.32 | Q16: UNFPA. 2008. Reproductive Health Costing Tool/Model. | Z16: =J16*M16*P16 -> 3.6966
D17: Postpartum Care | J17: 1 | K17: Darroch, J. E. 2018. Adding It Up: Investing in Contraception and Maternal and Newborn Health, 2017--Estimation Methodology. New York: Guttmacher Institute. | M17: 0.399 | N17: DHS 2015 | P17: 0.75 | Q17: UNFPA. 2008. Reproductive Health Costing Tool/Model. | Z17: =J17*M17*P17 -> 0.29925
D18: Emergency Pre-Referral Care | J18: 0.2 | K18: Darroch, J. E. 2018. Adding It Up: Investing in Contraception and Maternal and Newborn Health, 2017--Estimation Methodology. New York: Guttmacher Institute. | M18: 0.5 | N18: Assumption | P18: 66.67 | Q18: UNFPA. 2008. Reproductive Health Costing Tool/Model. | Z18: 6.667
D19: Prelabour Rupture of Membranes (PROM) | J19: 0.089466476 | K19: Darroch, J.E., E. Sully, and A. Biddlecom. 2017. Adding It Up: Investing in Contraception and Maternal and Newborn Health, 2017—Supplementary Tables. New York: Guttmacher Institute. | M19: 0.33781666 | N19: Darroch, J.E., E. Sully, and A. Biddlecom. 2017. Adding It Up: Investing in Contraception and Maternal and Newborn Health, 2017—Supplementary Tables. New York: Guttmacher Institute. | P19: 44.63 | Q19: UNFPA. 2008. Reproductive Health Costing Tool/Model. | Z19: 1.348864366
D20: Prolonged Labour (>18 hours) | J20: 0.1 | K20: Darroch, J. E. 2018. Adding It Up: Investing in Contraception and Maternal and Newborn Health, 2017--Estimation Methodology. New York: Guttmacher Institute. | M20: 0.3555965 | N20: Darroch, J.E., E. Sully, and A. Biddlecom. 2017. Adding It Up: Investing in Contraception and Maternal and Newborn Health, 2017—Supplementary Tables. New York: Guttmacher Institute. | P20: 5.73 | Q20: UNFPA. 2008. Reproductive Health Costing Tool/Model. | Z20: 0.2037567945
D21: Forceps or Vacuum-Assisted Delivery (AVD) | J21: 0.006 | K21: Darroch, J. E. 2018. Adding It Up: Investing in Contraception and Maternal and Newborn Health, 2017--Estimation Methodology. New York: Guttmacher Institute. | M21: 0.3555965 | N21: Darroch, J.E., E. Sully, and A. Biddlecom. 2017. Adding It Up: Investing in Contraception and Maternal and Newborn Health, 2017—Supplementary Tables. New York: Guttmacher Institute. | P21: 7.24 | Q21: UNFPA. 2008. Reproductive Health Costing Tool/Model. | Z21: 0.01544711196
D22: Cesarean Section (C-Section) | J22: 0.1 | K22: Darroch, J. E. 2018. Adding It Up: Investing in Contraception and Maternal and Newborn Health, 2017--Estimation Methodology. New York: Guttmacher Institute. | M22: 0.3555965 | N22: Darroch, J.E., E. Sully, and A. Biddlecom. 2017. Adding It Up: Investing in Contraception and Maternal and Newborn Health, 2017—Supplementary Tables. New York: Guttmacher Institute. | P22: 50.33 | Q22: UNFPA. 2008. Reproductive Health Costing Tool/Model. | Z22: 1.789717184
D23: Antepartum Haemorrhage | J23: 0.04 | K23: Darroch, J. E. 2018. Adding It Up: Investing in Contraception and Maternal and Newborn Health, 2017--Estimation Methodology. New York: Guttmacher Institute. | M23: 0.3555965 | N23: Darroch, J.E., E. Sully, and A. Biddlecom. 2017. Adding It Up: Investing in Contraception and Maternal and Newborn Health, 2017—Supplementary Tables. New York: Guttmacher Institute. | P23: 40.66 | Q23: UNFPA. 2008. Reproductive Health Costing Tool/Model. | Z23: 0.5783421476
D24: Postpartum Haemorrhage | J24: 0.065131083 | K24: Darroch, J.E., E. Sully, and A. Biddlecom. 2017. Adding It Up: Investing in Contraception and Maternal and Newborn Health, 2017—Supplementary Tables. New York: Guttmacher Institute. | M24: 0.34138508 | N24: Darroch, J.E., E. Sully, and A. Biddlecom. 2017. Adding It Up: Investing in Contraception and Maternal and Newborn Health, 2017—Supplementary Tables. New York: Guttmacher Institute. | P24: 59.22 | Q24: UNFPA. 2008. Reproductive Health Costing Tool/Model. | Z24: 1.31674367
D25: Puerperal Sepsis | J25: 0.037302952 | K25: Darroch, J.E., E. Sully, and A. Biddlecom. 2017. Adding It Up: Investing in Contraception and Maternal and Newborn Health, 2017—Supplementary Tables. New York: Guttmacher Institute. | M25: 0.34843937 | N25: Darroch, J.E., E. Sully, and A. Biddlecom. 2017. Adding It Up: Investing in Contraception and Maternal and Newborn Health, 2017—Supplementary Tables. New York: Guttmacher Institute. | P25: 69.57 | Q25: UNFPA. 2008. Reproductive Health Costing Tool/Model. | Z25: 0.9042581352
D26: Eclampsia / Severe Pre-eclampsia | J26: 0.0013 | K26: Darroch, J. E. 2018. Adding It Up: Investing in Contraception and Maternal and Newborn Health, 2017--Estimation Methodology. New York: Guttmacher Institute. | M26: 0.18406017 | N26: Darroch, J.E., E. Sully, and A. Biddlecom. 2017. Adding It Up: Investing in Contraception and Maternal and Newborn Health, 2017—Supplementary Tables. New York: Guttmacher Institute. | P26: 21.28 | Q26: UNFPA. 2008. Reproductive Health Costing Tool/Model. | Z26: 0.005091840543
D27: Management of post Abortion Complications (PAC) | J27: 0.08 | K27: Assumption | M27: 0.5 | N27: Assumption | P27: 29.25 | Q27: UNFPA. 2008. Reproductive Health Costing Tool/Model. | Z27: 1.17
D28: Obstetric Fistula (OF) | J28: 0.0005 | K28: Assumption | M28: 0.5 | N28: Assumption | P28: 50.56 | Q28: UNFPA. 2008. Reproductive Health Costing Tool/Model. | Z28: 0.01264
D29: Mastitis | J29: 0.15 | K29: Darroch, J. E. 2018. Adding It Up: Investing in Contraception and Maternal and Newborn Health, 2017--Estimation Methodology. New York: Guttmacher Institute. | M29: 0.5 | N29: Assumption | P29: 1.63 | Q29: UNFPA. 2008. Reproductive Health Costing Tool/Model. | Z29: 0.12225
D30: Routine Newborn Care | J30: 1 | K30: Darroch, J. E. 2018. Adding It Up: Investing in Contraception and Maternal and Newborn Health, 2017--Estimation Methodology. New York: Guttmacher Institute. | M30: 0.093 | N30: DHS 2015 | P30: 1.95 | Q30: UNFPA. 2008. Reproductive Health Costing Tool/Model. | Z30: 0.18135
D31: Newborn Sepsis / Infections | J31: 0.1 | K31: Darroch, J. E. 2018. Adding It Up: Investing in Contraception and Maternal and Newborn Health, 2017--Estimation Methodology. New York: Guttmacher Institute. | M31: 0.36297932 | N31: Darroch, J.E., E. Sully, and A. Biddlecom. 2017. Adding It Up: Investing in Contraception and Maternal and Newborn Health, 2017—Supplementary Tables. New York: Guttmacher Institute. | P31: 27.47 | Q31: UNFPA. 2008. Reproductive Health Costing Tool/Model. | Z31: 0.997104192
D32: Birth Asphyxia / Breathing Difficulties | J32: 0.03 | K32: Darroch, J. E. 2018. Adding It Up: Investing in Contraception and Maternal and Newborn Health, 2017--Estimation Methodology. New York: Guttmacher Institute. | M32: 0.24891754 | N32: Darroch, J.E., E. Sully, and A. Biddlecom. 2017. Adding It Up: Investing in Contraception and Maternal and Newborn Health, 2017—Supplementary Tables. New York: Guttmacher Institute. | P32: 6.86 | Q32: UNFPA. 2008. Reproductive Health Costing Tool/Model. | Z32: 0.05122722973
D33: Low-Birth Weight (LBW) | J33: 0.27111055 | K33: Darroch, J.E., E. Sully, and A. Biddlecom. 2017. Adding It Up: Investing in Contraception and Maternal and Newborn Health, 2017—Supplementary Tables. New York: Guttmacher Institute. | M33: 0.35152706 | N33: Darroch, J.E., E. Sully, and A. Biddlecom. 2017. Adding It Up: Investing in Contraception and Maternal and Newborn Health, 2017—Supplementary Tables. New York: Guttmacher Institute. | P33: 7.17 | Q33: UNFPA. 2008. Reproductive Health Costing Tool/Model. | Z33: 0.6833203201
D34: BCG Immunization | J34: 1 | K34: Assumption | M34: 0.74 | N34: WHO and UNICEF. 2018. Estimates of national routine immunization coverage, 2017 revision. Available at: https://data.unicef.org/resources/dataset/immunization-coverage-antigen-including-trends/ | P34: 0.005483 | Q34: Computed average cost per dose using 20 dose presentation costs (only available) for the period 2013 - 2018, all available suppliers. Source: UNICEF. "Vaccine Price Data: BCG." Retrieved June 2018 from https://www.unicef.org/supply/index_57476.html | Z34: 0.00405742
D35: Hepatitis B3 | J35: 1 | K35: Assumption | M35: 0.65 | N35: WHO and UNICEF. 2018. Estimates of national routine immunization coverage, 2017 revision. Available at: https://data.unicef.org/resources/dataset/immunization-coverage-antigen-including-trends/ | P35: 1.29 | Q35: Price per dose is taken as one-third of the DTP-HepB-Hib vaccine. Computed average cost per dose using 10 dose liquid presentation costs for the period 2013 - 2018, all available suppliers. Source: UNICEF. "Vaccine Price Data: DTP-HepB-Hib (Penta)." Retrieved June 2018 from https://www.unicef.org/supply/files/Penta_Price_Update_17_10_06.pdf | Z35: 0.8385
D36: Polio 3 | J36: 1 | K36: Assumption | M36: 0.6 | N36: WHO and UNICEF. 2018. Estimates of national routine immunization coverage, 2017 revision. Available at: https://data.unicef.org/resources/dataset/immunization-coverage-antigen-including-trends/ | P36: 3.48 | Q36: Computed for Gavi and non-Gavi countries as average cost per dose using single dose presentation costs for the period 2013 - 2018, all available suppliers. Source: UNICEF. "Vaccine Price Data: IPV." Retrieved June 2018 from https://www.unicef.org/supply/files/2018_05_28_IPV.pdf | Z36: 2.088
D37: DPT 3 | J37: 1 | K37: Assumption | M37: 0.65 | N37: WHO and UNICEF. 2018. Estimates of national routine immunization coverage, 2017 revision. Available at: https://data.unicef.org/resources/dataset/immunization-coverage-antigen-including-trends/ | P37: 1.29 | Q37: Price per dose is taken as one-third of the DTP-HepB-Hib vaccine. Computed average cost per dose using 10 dose liquid presentation costs for the period 2013 - 2018, all available suppliers. Source: UNICEF. "Vaccine Price Data: DTP-HepB-Hib (Penta)." Retrieved June 2018 from https://www.unicef.org/supply/files/Penta_Price_Update_17_10_06.pdf | Z37: 0.8385
D38: Haemophilus influenzae type B3 | J38: 1 | K38: Assumption | M38: 0.65 | N38: WHO and UNICEF. 2018. Estimates of national routine immunization coverage, 2017 revision. Available at: https://data.unicef.org/resources/dataset/immunization-coverage-antigen-including-trends/ | P38: 1.29 | Q38: Price per dose is taken as one-third of the DTP-HepB-Hib vaccine. Computed average cost per dose using 10 dose liquid presentation costs for the period 2013 - 2018, all available suppliers. Source: UNICEF. "Vaccine Price Data: DTP-HepB-Hib (Penta)." Retrieved June 2018 from https://www.unicef.org/supply/files/Penta_Price_Update_17_10_06.pdf | Z38: 0.8385
D39: Pneumococcal | J39: 1 | K39: Assumption | M39: 0.65 | N39: WHO and UNICEF. 2018. Estimates of national routine immunization coverage, 2017 revision. Available at: https://data.unicef.org/resources/dataset/immunization-coverage-antigen-including-trends/ | P39: 9.99 | Q39: Computed average cost per dose using single dose presentation costs (13-val) for the period 2013 - 2018, all available suppliers. Source: UNICEF. "Vaccine Price Data: PCV." Retrieved June 2018 from https://www.unicef.org/supply/files/18_01_08_PCV_Price_web_updates.pdf | Z39: 6.4935
D40: Rotavirus | J40: 1 | K40: Assumption | P40: 11.325 | Q40: Computed for Gavi and non-Gavi countries as average cost per dose using single dose presentation costs for the period 2013 - 2018, all available suppliers. Source: UNICEF. "Vaccine Price Data: Rota." Retrieved June 2018 from https://www.unicef.org/supply/files/180705_Rota.pdf | Z40: 0
D41: Measles | J41: 1 | K41: Assumption | M41: 0.62 | N41: WHO and UNICEF. 2018. Estimates of national routine immunization coverage, 2017 revision. Available at: https://data.unicef.org/resources/dataset/immunization-coverage-antigen-including-trends/ | P41: 0.29 | Q41: Price per dose is taken as one-half of the Measles Rubella (MR) vaccine. Computed average cost per dose using 10 dose presentation costs for the period 2013 - 2018, all available suppliers. Source: UNICEF. "Vaccine Price Data: MR." Retrieved June 2018 from https://www.unicef.org/supply/files/2018_04_17_MR.pdf | Z41: 0.1798
D42: Rubella | J42: 1 | K42: Assumption | P42: 0.29 | Q42: Price per dose is taken as one-half of the Measles Rubella (MR) vaccine. Computed average cost per dose using 10 dose presentation costs for the period 2013 - 2018, all available suppliers. Source: UNICEF. "Vaccine Price Data: MR." Retrieved June 2018 from https://www.unicef.org/supply/files/2018_04_17_MR.pdf | Z42: 0
Y43: AvgTreatment costs per live birth | Z43: =SUM(Z16:Z42) -> 31.32382041
P50: 1

Sheet Input_Scen2_Health
D5: Health Indicators: | E5: Load
D6: =CONCATENATE(D5,inScen2Name) -> Health Indicators: Scen3 | E6: =CONCATENATE(E5,inUsualName) -> Load Usual | F6: =CONCATENATE(E5,inScen1Name) -> Load Scen2
D11: Scenario Name | F11: Scen3
Q12: 2
M13: Input | O13: Comments/Source
D14: % of women that are in union | M14: 0.679 | O14: 2015 DHS
D15: Abortion Ratio (per 100 live births) | M15: 40.539703 | O15: 2017 data, computed using Darroch, J.E. et al. 2017. Adding It Up: Investing in Contraception and Maternal and Newborn Health, 2017—Supplementary Tables. New York: Guttmacher Institute.
D16: Stillbirth Rate (per 1000 live births) | M16: 26.7 | O16: Blencowe, H., S. Cousens, F.B. Jassir, L. Say, D. Chou et al. 2016. "National, regional, and worldwide estimates of stillbirth rates in 2015, with trends from 2000: a systematic analysis." Lancet Global Health 4:e98-108.
D17: Unsafe abortion ratio (per 100 live births) | M17: 23.429581 | O17: 2017 data, computed using Darroch, J.E. et al. 2017. Adding It Up: Investing in Contraception and Maternal and Newborn Health, 2017—Supplementary Tables. New York: Guttmacher Institute.
D18: % of unsafe abortions needing PAC | M18: 0.42 | O18: Darroch, J.E. 2018. Adding It Up: Investing in Contraception and Maternal and Newborn Health, 2017—Estimation Methodology. New York: Guttmacher Institute.
D19: % of unintended pregnancies that end in abortion | M19: 0.60801018 | O19: Computed using Darroch, J.E., E. Sully, and A. Biddlecom. 2017. Adding It Up: Investing in Contraception and Maternal and Newborn Health, 2017—Supplementary Tables. New York: Guttmacher Institute. (2017 data)
D21: Parameter | H21: =Configuration!$F$12 -> 2017 | J21: =Configuration!$F$14 -> 2023 | L21: Comments/Source
D22: Women ages 15-49 | H22: 8188361 | J22: 10067631.2 | L22: United Nations, Department of Economic and Social Affairs, Population Division. 2017. "World Population Prospects: The 2017 Revision." DVD Edition.
D23: MMR | H23: 320.8 | J23: 95.2 | L23: Interpolation using World Health Organization (WHO), United Nations Children’s Fund, United Nations Population Fund, World Bank Group, and the United Nations Population Division. 2015. Trends in Maternal Mortality: 1990 to 2015. Geneva: WHO. | AD23: =inScen2Name -> Scen3
AD24: =ConStartYr -> 2017 | AE24: =IFERROR(IF(AD24+1<=ConEndYr,AD24+1,""),"") -> 2018 | AF24: 2019 | AG24: 2020 | AH24: 2021 | AI24: 2022 | AJ24: 2023 | AO24: Slope | AP24: Intercept
AD25: =inScen2S15 -> 8188361 | AE25: =IFERROR(AE$24*$AO25+$AP25,"") -> 8501572.7 | AF25: 8814784.4 | AG25: 9127996.1 | AH25: 9441207.8 | AI25: 9754419.5 | AJ25: 10067631.2 | AO25: =(inScen2S19-inScen2S15)/(ConEndYr-ConStartYr) -> 313211.7 | AP25: =inScen2S15-(AO25*ConStartYr) -> -623559637.9
AD26: =inScen2S16 -> 320.8 | AE26: =IFERROR(AE$24*$AO26+$AP26,"") -> 283.2 | AF26: 245.6 | AG26: 208 | AH26: 170.4 | AI26: 132.8 | AJ26: 95.2 | AL26: =IFERROR(AL$24*$AO26+$AP26,"") ->  | AM26: =IFERROR(AM$24*$AO26+$AP26,"") ->  | AO26: =(inScen2S20-inScen2S16)/(ConEndYr-ConStartYr) -> -37.6 | AP26: =inScen2S16-(AO26*ConStartYr) -> 76160

Sheet Input_Scen2_Con
D5: Effectiveness of Contraceptives:
D6: =CONCATENATE(D5,inScen2Name) -> Effectiveness of Contraceptives:Scen3
D12: Effectiveness of Contraceptives for:
E13: Male condom | L13: 0.914 | O13: Bradley, S., C. Polis, A. Bankole, and T. Croft. 2017. "Global Contraceptive Failure Rates: Who is Most at Risk?" Presented at 2017 Population Association of America Annual Meeting, Chicago, Illinois.
E14: Injectable | L14: 0.98 | O14: Bradley, S., C. Polis, A. Bankole, and T. Croft. 2017. "Global Contraceptive Failure Rates: Who is Most at Risk?" Presented at 2017 Population Association of America Annual Meeting, Chicago, Illinois.
E15: Pill | L15: 0.937 | O15: Bradley, S., C. Polis, A. Bankole, and T. Croft. 2017. "Global Contraceptive Failure Rates: Who is Most at Risk?" Presented at 2017 Population Association of America Annual Meeting, Chicago, Illinois.
E16: Male sterilization | L16: 0.9985 | O16: Trussell, J. 2011. "Contraceptive Efficacy." Table 3-2 in Contraceptive Technology, 20th edition, edited by Hatcher, R. A, Trussell, J., Nelson, A. L., Cates, W., Kowal, D., Policar, M. S. New York: Ardent Media.
E17: Female sterilization | L17: 0.995 | O17: Trussell, J. 2011. "Contraceptive Efficacy." Table 3-2 in Contraceptive Technology, 20th edition, edited by Hatcher, R. A, Trussell, J., Nelson, A. L., Cates, W., Kowal, D., Policar, M. S. New York: Ardent Media.
E18: IUD | L18: 0.988 | O18: Bradley, S., C. Polis, A. Bankole, and T. Croft. 2017. "Global Contraceptive Failure Rates: Who is Most at Risk?" Presented at 2017 Population Association of America Annual Meeting, Chicago, Illinois.
E19: Implant | L19: 0.997 | O19: Bradley, S., C. Polis, A. Bankole, and T. Croft. 2017. "Global Contraceptive Failure Rates: Who is Most at Risk?" Presented at 2017 Population Association of America Annual Meeting, Chicago, Illinois.
E20: Standard Days Method (SDM) | L20: 0.88 | O20: Arévalo, M., V. Jennings, and I. Sinai. 2002. "Efficacy of a New Method of Family Planning: The Standard Days Method." Contraceptio 65(3): 333-338.
E21: Other modern | L21: 0.937 | O21: Bradley, S., C. Polis, A. Bankole, and T. Croft. 2017. "Global Contraceptive Failure Rates: Who is Most at Risk?" Presented at 2017 Population Association of America Annual Meeting, Chicago, Illinois.
E22: All Traditional | L22: 0.8185 | O22: Bradley, S., C. Polis, A. Bankole, and T. Croft. 2017. "Global Contraceptive Failure Rates: Who is Most at Risk?" Presented at 2017 Population Association of America Annual Meeting, Chicago, Illinois.
E23: Other country-specific

Sheet Input_Scen2_Age
D5: Median Age of Use for Contraceptives:
D6: =CONCATENATE(D5,inScen2Name) -> Median Age of Use for Contraceptives:Scen3
D16: Median age of use for:
E17: Female sterilization | L17: 33.8 | O17: DHS 2015
E18: IUD | L18: 30 | O18: Assumption
E19: Implant | L19: 30 | O19: Assumption
E20: Standard Days Method (SDM) | L20: 30 | O20: Assumption

Sheet Input_Scen2_UtlPreg
D5: Healthcare Utilization per Pregnancy:
D6: =CONCATENATE(D5,inScen2Name) -> Healthcare Utilization per Pregnancy: Scen3
Z12: 1
D14: Treatment | J14: % of pregnant women needing attention for: | M14: Of the women who need care, the % that are able to receive: | P14: Associated costs for treatment of:
J15: % | K15: Comment | M15: % | N15: Comment | P15: USD | Q15: Comment | Z15: Costs
D16: Antenatal Care (ANC) | J16: 1 | K16: UNFPA. 2008. Reproductive Health Costing Tool/Model | M16: 0.47354954 | N16: Darroch, J.E., E. Sully, and A. Biddlecom. 2017. Adding It Up: Investing in Contraception and Maternal and Newborn Health, 2017—Supplementary Tables. New York: Guttmacher Institute. | P16: 13.5 | Q16: UNFPA. 2008. Reproductive Health Costing Tool/Model. | Z16: =J16*M16*P16 -> 6.39291879
D17: Treatment of Severe Anaemia | J17: 0.5 | K17: Assumption | M17: 0.5 | N17: Assumption | P17: 0.06 | Q17: UNFPA. 2008. Reproductive Health Costing Tool/Model. | Z17: 0.015
D18: Hypertensive Disorders of Pregnancy | J18: 0.0765 | K18: Darroch, J. E. 2018. Adding It Up: Investing in Contraception and Maternal and Newborn Health, 2017--Estimation Methodology. New York: Guttmacher Institute. | M18: 0.5 | N18: Assumption | P18: 5.32 | Q18: UNFPA. 2008. Reproductive Health Costing Tool/Model. | Z18: 0.20349
D19: Malaria Prevention within ANC | J19: 0.5 | K19: (1) Darroch, J.E., E. Sully, and A. Biddlecom. 2017. Adding It Up: Investing in Contraception and Maternal and Newborn Health, 2017—Supplementary Tables. New York: Guttmacher Institute.; (2) Assumption | M19: 0.5 | N19: Assumption | P19: 7.06 | Q19: UNFPA. 2008. Reproductive Health Costing Tool/Model. | Z19: 1.765
D20: Malaria Treatment within ANC (0 if all women recieve ANC) | J20: 0.010953168 | K20: (1) Darroch, J.E., E. Sully, and A. Biddlecom. 2017. Adding It Up: Investing in Contraception and Maternal and Newborn Health, 2017—Supplementary Tables. New York: Guttmacher Institute.; (2) Assumption | M20: 0.48007172 | N20: Darroch, J.E., E. Sully, and A. Biddlecom. 2017. Adding It Up: Investing in Contraception and Maternal and Newborn Health, 2017—Supplementary Tables. New York: Guttmacher Institute. | P20: 21.06 | Q20: UNFPA. 2008. Reproductive Health Costing Tool/Model. | Z20: 0.1107399286
D21: Urinary Tract Infection (UTI) | J21: 0.25 | K21: Darroch, J. E. 2018. Adding It Up: Investing in Contraception and Maternal and Newborn Health, 2017--Estimation Methodology. New York: Guttmacher Institute. | M21: 0.5 | N21: Assumption | P21: 0.52 | Q21: UNFPA. 2008. Reproductive Health Costing Tool/Model. | Z21: 0.065
Y22: AvgTreatment costs per pregnancy | Z22: =SUM(Z16:Z21) -> 8.552148719

Sheet Input_Scen2_UtlBirth
D5: Healthcare Utilization per Live Birth:
D6: =CONCATENATE(D5,inScen2Name) -> Healthcare Utilization per Live Birth: Scen3
Z12: 1
D14: Treatment | J14: % of births requiring attention for: | M14: Of the births that require attention, the % that are able to receive: | P14: Associated costs for treatment of:
J15: % | K15: Comment | M15: % | N15: Comment | P15: USD | Q15: Comment | Z15: Costs
D16: Delivery Care | J16: 1 | K16: Darroch, J. E. 2018. Adding It Up: Investing in Contraception and Maternal and Newborn Health, 2017--Estimation Methodology. New York: Guttmacher Institute. | M16: 0.505 | N16: DHS 2015 | P16: 7.32 | Q16: UNFPA. 2008. Reproductive Health Costing Tool/Model. | Z16: =J16*M16*P16 -> 3.6966
D17: Postpartum Care | J17: 1 | K17: Darroch, J. E. 2018. Adding It Up: Investing in Contraception and Maternal and Newborn Health, 2017--Estimation Methodology. New York: Guttmacher Institute. | M17: 0.399 | N17: DHS 2015 | P17: 0.75 | Q17: UNFPA. 2008. Reproductive Health Costing Tool/Model. | Z17: =J17*M17*P17 -> 0.29925
D18: Emergency Pre-Referral Care | J18: 0.2 | K18: Darroch, J. E. 2018. Adding It Up: Investing in Contraception and Maternal and Newborn Health, 2017--Estimation Methodology. New York: Guttmacher Institute. | M18: 0.5 | N18: Assumption | P18: 66.67 | Q18: UNFPA. 2008. Reproductive Health Costing Tool/Model. | Z18: 6.667
D19: Prelabour Rupture of Membranes (PROM) | J19: 0.089466476 | K19: Darroch, J.E., E. Sully, and A. Biddlecom. 2017. Adding It Up: Investing in Contraception and Maternal and Newborn Health, 2017—Supplementary Tables. New York: Guttmacher Institute. | M19: 0.33781666 | N19: Darroch, J.E., E. Sully, and A. Biddlecom. 2017. Adding It Up: Investing in Contraception and Maternal and Newborn Health, 2017—Supplementary Tables. New York: Guttmacher Institute. | P19: 44.63 | Q19: UNFPA. 2008. Reproductive Health Costing Tool/Model. | Z19: 1.348864366
D20: Prolonged Labour (>18 hours) | J20: 0.1 | K20: Darroch, J. E. 2018. Adding It Up: Investing in Contraception and Maternal and Newborn Health, 2017--Estimation Methodology. New York: Guttmacher Institute. | M20: 0.3555965 | N20: Darroch, J.E., E. Sully, and A. Biddlecom. 2017. Adding It Up: Investing in Contraception and Maternal and Newborn Health, 2017—Supplementary Tables. New York: Guttmacher Institute. | P20: 5.73 | Q20: UNFPA. 2008. Reproductive Health Costing Tool/Model. | Z20: 0.2037567945
D21: Forceps or Vacuum-Assisted Delivery (AVD) | J21: 0.006 | K21: Darroch, J. E. 2018. Adding It Up: Investing in Contraception and Maternal and Newborn Health, 2017--Estimation Methodology. New York: Guttmacher Institute. | M21: 0.3555965 | N21: Darroch, J.E., E. Sully, and A. Biddlecom. 2017. Adding It Up: Investing in Contraception and Maternal and Newborn Health, 2017—Supplementary Tables. New York: Guttmacher Institute. | P21: 7.24 | Q21: UNFPA. 2008. Reproductive Health Costing Tool/Model. | Z21: 0.01544711196
D22: Cesarean Section (C-Section) | J22: 0.1 | K22: Darroch, J. E. 2018. Adding It Up: Investing in Contraception and Maternal and Newborn Health, 2017--Estimation Methodology. New York: Guttmacher Institute. | M22: 0.3555965 | N22: Darroch, J.E., E. Sully, and A. Biddlecom. 2017. Adding It Up: Investing in Contraception and Maternal and Newborn Health, 2017—Supplementary Tables. New York: Guttmacher Institute. | P22: 50.33 | Q22: UNFPA. 2008. Reproductive Health Costing Tool/Model. | Z22: 1.789717184
D23: Antepartum Haemorrhage | J23: 0.04 | K23: Darroch, J. E. 2018. Adding It Up: Investing in Contraception and Maternal and Newborn Health, 2017--Estimation Methodology. New York: Guttmacher Institute. | M23: 0.3555965 | N23: Darroch, J.E., E. Sully, and A. Biddlecom. 2017. Adding It Up: Investing in Contraception and Maternal and Newborn Health, 2017—Supplementary Tables. New York: Guttmacher Institute. | P23: 40.66 | Q23: UNFPA. 2008. Reproductive Health Costing Tool/Model. | Z23: 0.5783421476
D24: Postpartum Haemorrhage | J24: 0.065131083 | K24: Darroch, J.E., E. Sully, and A. Biddlecom. 2017. Adding It Up: Investing in Contraception and Maternal and Newborn Health, 2017—Supplementary Tables. New York: Guttmacher Institute. | M24: 0.34138508 | N24: Darroch, J.E., E. Sully, and A. Biddlecom. 2017. Adding It Up: Investing in Contraception and Maternal and Newborn Health, 2017—Supplementary Tables. New York: Guttmacher Institute. | P24: 59.22 | Q24: UNFPA. 2008. Reproductive Health Costing Tool/Model. | Z24: 1.31674367
D25: Puerperal Sepsis | J25: 0.037302952 | K25: Darroch, J.E., E. Sully, and A. Biddlecom. 2017. Adding It Up: Investing in Contraception and Maternal and Newborn Health, 2017—Supplementary Tables. New York: Guttmacher Institute. | M25: 0.34843937 | N25: Darroch, J.E., E. Sully, and A. Biddlecom. 2017. Adding It Up: Investing in Contraception and Maternal and Newborn Health, 2017—Supplementary Tables. New York: Guttmacher Institute. | P25: 69.57 | Q25: UNFPA. 2008. Reproductive Health Costing Tool/Model. | Z25: 0.9042581352
D26: Eclampsia / Severe Pre-eclampsia | J26: 0.0013 | K26: Darroch, J. E. 2018. Adding It Up: Investing in Contraception and Maternal and Newborn Health, 2017--Estimation Methodology. New York: Guttmacher Institute. | M26: 0.18406017 | N26: Darroch, J.E., E. Sully, and A. Biddlecom. 2017. Adding It Up: Investing in Contraception and Maternal and Newborn Health, 2017—Supplementary Tables. New York: Guttmacher Institute. | P26: 21.28 | Q26: UNFPA. 2008. Reproductive Health Costing Tool/Model. | Z26: 0.005091840543
D27: Management of post Abortion Complications (PAC) | J27: 0.08 | K27: Assumption | M27: 0.5 | N27: Assumption | P27: 29.25 | Q27: UNFPA. 2008. Reproductive Health Costing Tool/Model. | Z27: 1.17
D28: Obstetric Fistula (OF) | J28: 0.0005 | K28: Assumption | M28: 0.5 | N28: Assumption | P28: 50.56 | Q28: UNFPA. 2008. Reproductive Health Costing Tool/Model. | Z28: 0.01264
D29: Mastitis | J29: 0.15 | K29: Darroch, J. E. 2018. Adding It Up: Investing in Contraception and Maternal and Newborn Health, 2017--Estimation Methodology. New York: Guttmacher Institute. | M29: 0.5 | N29: Assumption | P29: 1.63 | Q29: UNFPA. 2008. Reproductive Health Costing Tool/Model. | Z29: 0.12225
D30: Routine Newborn Care | J30: 1 | K30: Darroch, J. E. 2018. Adding It Up: Investing in Contraception and Maternal and Newborn Health, 2017--Estimation Methodology. New York: Guttmacher Institute. | M30: 0.093 | N30: DHS 2015 | P30: 1.95 | Q30: UNFPA. 2008. Reproductive Health Costing Tool/Model. | Z30: 0.18135
D31: Newborn Sepsis / Infections | J31: 0.1 | K31: Darroch, J. E. 2018. Adding It Up: Investing in Contraception and Maternal and Newborn Health, 2017--Estimation Methodology. New York: Guttmacher Institute. | M31: 0.36297932 | N31: Darroch, J.E., E. Sully, and A. Biddlecom. 2017. Adding It Up: Investing in Contraception and Maternal and Newborn Health, 2017—Supplementary Tables. New York: Guttmacher Institute. | P31: 27.47 | Q31: UNFPA. 2008. Reproductive Health Costing Tool/Model. | Z31: 0.997104192
D32: Birth Asphyxia / Breathing Difficulties | J32: 0.03 | K32: Darroch, J. E. 2018. Adding It Up: Investing in Contraception and Maternal and Newborn Health, 2017--Estimation Methodology. New York: Guttmacher Institute. | M32: 0.24891754 | N32: Darroch, J.E., E. Sully, and A. Biddlecom. 2017. Adding It Up: Investing in Contraception and Maternal and Newborn Health, 2017—Supplementary Tables. New York: Guttmacher Institute. | P32: 6.86 | Q32: UNFPA. 2008. Reproductive Health Costing Tool/Model. | Z32: 0.05122722973
D33: Low-Birth Weight (LBW) | J33: 0.27111055 | K33: Darroch, J.E., E. Sully, and A. Biddlecom. 2017. Adding It Up: Investing in Contraception and Maternal and Newborn Health, 2017—Supplementary Tables. New York: Guttmacher Institute. | M33: 0.35152706 | N33: Darroch, J.E., E. Sully, and A. Biddlecom. 2017. Adding It Up: Investing in Contraception and Maternal and Newborn Health, 2017—Supplementary Tables. New York: Guttmacher Institute. | P33: 7.17 | Q33: UNFPA. 2008. Reproductive Health Costing Tool/Model. | Z33: 0.6833203201
D34: BCG Immunization | J34: 1 | K34: Assumption | M34: 0.74 | N34: WHO and UNICEF. 2018. Estimates of national routine immunization coverage, 2017 revision. Available at: https://data.unicef.org/resources/dataset/immunization-coverage-antigen-including-trends/ | P34: 0.005483 | Q34: Computed average cost per dose using 20 dose presentation costs (only available) for the period 2013 - 2018, all available suppliers. Source: UNICEF. "Vaccine Price Data: BCG." Retrieved June 2018 from https://www.unicef.org/supply/index_57476.html | Z34: 0.00405742
D35: Hepatitis B3 | J35: 1 | K35: Assumption | M35: 0.65 | N35: WHO and UNICEF. 2018. Estimates of national routine immunization coverage, 2017 revision. Available at: https://data.unicef.org/resources/dataset/immunization-coverage-antigen-including-trends/ | P35: 1.29 | Q35: Price per dose is taken as one-third of the DTP-HepB-Hib vaccine. Computed average cost per dose using 10 dose liquid presentation costs for the period 2013 - 2018, all available suppliers. Source: UNICEF. "Vaccine Price Data: DTP-HepB-Hib (Penta)." Retrieved June 2018 from https://www.unicef.org/supply/files/Penta_Price_Update_17_10_06.pdf | Z35: 0.8385
D36: Polio 3 | J36: 1 | K36: Assumption | M36: 0.6 | N36: WHO and UNICEF. 2018. Estimates of national routine immunization coverage, 2017 revision. Available at: https://data.unicef.org/resources/dataset/immunization-coverage-antigen-including-trends/ | P36: 3.48 | Q36: Computed for Gavi and non-Gavi countries as average cost per dose using single dose presentation costs for the period 2013 - 2018, all available suppliers. Source: UNICEF. "Vaccine Price Data: IPV." Retrieved June 2018 from https://www.unicef.org/supply/files/2018_05_28_IPV.pdf | Z36: 2.088
D37: DPT 3 | J37: 1 | K37: Assumption | M37: 0.65 | N37: WHO and UNICEF. 2018. Estimates of national routine immunization coverage, 2017 revision. Available at: https://data.unicef.org/resources/dataset/immunization-coverage-antigen-including-trends/ | P37: 1.29 | Q37: Price per dose is taken as one-third of the DTP-HepB-Hib vaccine. Computed average cost per dose using 10 dose liquid presentation costs for the period 2013 - 2018, all available suppliers. Source: UNICEF. "Vaccine Price Data: DTP-HepB-Hib (Penta)." Retrieved June 2018 from https://www.unicef.org/supply/files/Penta_Price_Update_17_10_06.pdf | Z37: 0.8385
D38: Haemophilus influenzae type B3 | J38: 1 | K38: Assumption | M38: 0.65 | N38: WHO and UNICEF. 2018. Estimates of national routine immunization coverage, 2017 revision. Available at: https://data.unicef.org/resources/dataset/immunization-coverage-antigen-including-trends/ | P38: 1.29 | Q38: Price per dose is taken as one-third of the DTP-HepB-Hib vaccine. Computed average cost per dose using 10 dose liquid presentation costs for the period 2013 - 2018, all available suppliers. Source: UNICEF. "Vaccine Price Data: DTP-HepB-Hib (Penta)." Retrieved June 2018 from https://www.unicef.org/supply/files/Penta_Price_Update_17_10_06.pdf | Z38: 0.8385
D39: Pneumococcal | J39: 1 | K39: Assumption | M39: 0.65 | N39: WHO and UNICEF. 2018. Estimates of national routine immunization coverage, 2017 revision. Available at: https://data.unicef.org/resources/dataset/immunization-coverage-antigen-including-trends/ | P39: 9.99 | Q39: Computed average cost per dose using single dose presentation costs (13-val) for the period 2013 - 2018, all available suppliers. Source: UNICEF. "Vaccine Price Data: PCV." Retrieved June 2018 from https://www.unicef.org/supply/files/18_01_08_PCV_Price_web_updates.pdf | Z39: 6.4935
D40: Rotavirus | J40: 1 | K40: Assumption | P40: 11.325 | Q40: Computed for Gavi and non-Gavi countries as average cost per dose using single dose presentation costs for the period 2013 - 2018, all available suppliers. Source: UNICEF. "Vaccine Price Data: Rota." Retrieved June 2018 from https://www.unicef.org/supply/files/180705_Rota.pdf | Z40: 0
D41: Measles | J41: 1 | K41: Assumption | M41: 0.62 | N41: WHO and UNICEF. 2018. Estimates of national routine immunization coverage, 2017 revision. Available at: https://data.unicef.org/resources/dataset/immunization-coverage-antigen-including-trends/ | P41: 0.29 | Q41: Price per dose is taken as one-half of the Measles Rubella (MR) vaccine. Computed average cost per dose using 10 dose presentation costs for the period 2013 - 2018, all available suppliers. Source: UNICEF. "Vaccine Price Data: MR." Retrieved June 2018 from https://www.unicef.org/supply/files/2018_04_17_MR.pdf | Z41: 0.1798
D42: Rubella | J42: 1 | K42: Assumption | P42: 0.29 | Q42: Price per dose is taken as one-half of the Measles Rubella (MR) vaccine. Computed average cost per dose using 10 dose presentation costs for the period 2013 - 2018, all available suppliers. Source: UNICEF. "Vaccine Price Data: MR." Retrieved June 2018 from https://www.unicef.org/supply/files/2018_04_17_MR.pdf | Z42: 0
Y43: AvgTreatment costs per live birth | Z43: =SUM(Z16:Z42) -> 31.32382041
P50: 2

Sheet PolicyGoals_Main
E4: CPR Policy Goal - Unmet Need Yr1 and CPR
E5: Unmet Need Policy Goal - CPR Yr1 and Unmet Need
D6: =IF(conZ2=1,E4,IF(conZ2=2,E5,E6)) -> CPR Policy Goal - Unmet Need Yr1 and CPR | E6: Budget Policy Goal - Budget
F11: Unmet Need | H11: CPR
F12: Base | H12: Base | J12: =inUsualName -> Usual | K12: =inScen1Name -> Scen2 | L12: =inScen2Name -> Scen3
F13: =Configuration!$F$12 -> 2017 | G13: Comments/Source | H13: =Configuration!$F$12 -> 2017 | I13: Comments/Source | J13: =Configuration!$F$14 -> 2023 | K13: =Configuration!$F$14 -> 2023 | L13: =Configuration!$F$14 -> 2023 | Y13: 0 | Z13: 0
F14: 0.2424 | G14: Extrapolated using latest survey | H14: 0.2276 | I14: Extrapolated using the two most recent surveys | J14: 0.2432 | K14: 0.2432 | L14: 0.2432
F16: CPR | H16: Base | J16: Unmet Need
F17: 2011 | H17: Unmet Need | J17: =inUsualName -> Usual | K17: =inScen1Name -> Scen2 | L17: =inScen2Name -> Scen3
F18: =Configuration!$F$12 -> 2017 | G18: Source / Comment | H18: =Configuration!$F$12 -> 2017 | I18: Source / Comment | J18: =Configuration!$F$14 -> 2023 | K18: =Configuration!$F$14 -> 2023 | L18: =Configuration!$F$14 -> 2023
F19: 0.2276 | G19: Extrapolated using the two most recent surveys | H19: 0.2424 | I19: Extrapolated using latest survey | J19: 0.2268 | K19: 0.2268 | L19: 0.2268
I21: Budget
I22: Base | J22: =inUsualName -> Usual | K22: =inScen1Name -> Scen2 | L22: =inScen2Name -> Scen3
I23: =ConStartYr -> 2017 | J23: =ConEndYr -> 2023 | K23: =ConEndYr -> 2023 | L23: =ConEndYr -> 2023
I24: 2000000 | J24: 3000000 | K24: 4000000 | L24: 5000000
O46: 0

Sheet PolicyGoals_MethodMix
E4: CPR Policy Goal - Method Mix
E5: Unmet Need Policy Goal - Method Mix
D6: =IF(conZ2=1,E4,IF(conZ2=2,E5,E6)) -> CPR Policy Goal - Method Mix | E6: Budget Policy Goal - Method Mix
I11: Base | K11: =inUsualName -> Usual | L11: =inScen1Name -> Scen2 | M11: =inScen2Name -> Scen3 | O11: Comments/Source
I12: =ConStartYr -> 2017 | K12: =ConEndYr -> 2023 | L12: =ConEndYr -> 2023 | M12: =ConEndYr -> 2023
D13: Male condom | I13: 0.1473214286 | K13: 0.1473214286 | L13: 0.1473214286 | M13: 0.1473214286 | O13: Afghanistan 2015 Demographic and Health Survey
D14: Injectable | I14: 0.21875 | K14: 0.21875 | L14: 0.21875 | M14: 0.21875 | O14: Afghanistan 2015 Demographic and Health Survey
D15: Pill | I15: 0.3035714286 | K15: 0.3035714286 | L15: 0.3035714286 | M15: 0.3035714286 | O15: Afghanistan 2015 Demographic and Health Survey
D16: Male sterilization | I16: 0 | K16: 0 | L16: 0 | M16: 0 | O16: Afghanistan 2015 Demographic and Health Survey
D17: Female sterilization | I17: 0.08035714286 | K17: 0.08035714286 | L17: 0.08035714286 | M17: 0.08035714286 | O17: Afghanistan 2015 Demographic and Health Survey
D18: IUD | I18: 0.0625 | K18: 0.0625 | L18: 0.0625 | M18: 0.0625 | O18: Afghanistan 2015 Demographic and Health Survey
D19: Implant | I19: 0.008928571429 | K19: 0.008928571429 | L19: 0.008928571429 | M19: 0.008928571429 | O19: Afghanistan 2015 Demographic and Health Survey
D20: Standard Days Method (SDM) | O20: Afghanistan 2015 Demographic and Health Survey
D21: Other modern | I21: 0 | K21: 0 | L21: 0 | M21: 0 | O21: Afghanistan 2015 Demographic and Health Survey
D22: All Traditional | I22: 0.1205357143 | K22: 0.1205357143 | L22: 0.1205357143 | M22: 0.1205357143 | O22: Afghanistan 2015 Demographic and Health Survey
D23: Other country-specific | I23: 0.05803571429 | K23: 0.05803571429 | L23: 0.05803571429 | M23: 0.05803571429 | O23: Afghanistan 2015 Demographic and Health Survey
D24: Total | I24: =SUM(I13:I23) -> 1 | K24: =SUM(K13:K23) -> 1 | L24: =SUM(L13:L23) -> 1 | M24: =SUM(M13:M23) -> 1

Sheet PolicyGoals_FPCosts
E4: CPR Policy Goal - FP Costs (Average Annual Direct Costs per User)
E5: Unmet Need Policy Goal - FP Costs (Average Annual Direct Costs per User)
D6: =IF(conZ2=1,E4,IF(conZ2=2,E5,E6)) -> CPR Policy Goal - FP Costs (Average Annual Direct Costs per User) | E6: Budget Policy Goal - FP Costs (Average Annual Direct Costs per User)
I11: USD | J11: Comments/Source
D13: Male condom | I13: 6.4481001 | J13: Darroch, J.E., E. Sully, and A. Biddlecom. 2017. Adding It Up: Investing in Contraception and Maternal and Newborn Health, 2017—Supplementary Tables. New York: Guttmacher Institute.
D14: Injectable | I14: 8.5394058 | J14: Darroch, J.E., E. Sully, and A. Biddlecom. 2017. Adding It Up: Investing in Contraception and Maternal and Newborn Health, 2017—Supplementary Tables. New York: Guttmacher Institute.
D15: Pill | I15: 9.740653 | J15: Darroch, J.E., E. Sully, and A. Biddlecom. 2017. Adding It Up: Investing in Contraception and Maternal and Newborn Health, 2017—Supplementary Tables. New York: Guttmacher Institute.
D16: Male sterilization | I16: 1.290719 | J16: Darroch, J.E., E. Sully, and A. Biddlecom. 2017. Adding It Up: Investing in Contraception and Maternal and Newborn Health, 2017—Supplementary Tables. New York: Guttmacher Institute.
D17: Female sterilization | I17: 2.5735917 | J17: Darroch, J.E., E. Sully, and A. Biddlecom. 2017. Adding It Up: Investing in Contraception and Maternal and Newborn Health, 2017—Supplementary Tables. New York: Guttmacher Institute.
D18: IUD | I18: 0.86629754 | J18: Darroch, J.E., E. Sully, and A. Biddlecom. 2017. Adding It Up: Investing in Contraception and Maternal and Newborn Health, 2017—Supplementary Tables. New York: Guttmacher Institute.
D19: Implant | I19: 4.1826811 | J19: Darroch, J.E., E. Sully, and A. Biddlecom. 2017. Adding It Up: Investing in Contraception and Maternal and Newborn Health, 2017—Supplementary Tables. New York: Guttmacher Institute.
D20: Standard Days Method (SDM) | I20: 0 | J20: Darroch, J.E., E. Sully, and A. Biddlecom. 2017. Adding It Up: Investing in Contraception and Maternal and Newborn Health, 2017—Supplementary Tables. New York: Guttmacher Institute.
D21: Other modern | I21: 4.805921177 | J21: Darroch, J.E., E. Sully, and A. Biddlecom. 2017. Adding It Up: Investing in Contraception and Maternal and Newborn Health, 2017—Supplementary Tables. New York: Guttmacher Institute.
D22: All Traditional | I22: 0 | J22: Darroch, J.E., E. Sully, and A. Biddlecom. 2017. Adding It Up: Investing in Contraception and Maternal and Newborn Health, 2017—Supplementary Tables. New York: Guttmacher Institute.
D23: Other country-specific | J23: Darroch, J.E., E. Sully, and A. Biddlecom. 2017. Adding It Up: Investing in Contraception and Maternal and Newborn Health, 2017—Supplementary Tables. New York: Guttmacher Institute.

Sheet CPR_Indicator
J7: =F8&" by Scenario" -> Unintended pregnancies averted by Scenario
D8: Choose Output | F8: Unintended pregnancies averted
P10: CPR by Year | S10: 1
Q12: =ConStartYr -> 2017 | R12: =ConEndYr -> 2023
P13: =inUsualName -> Usual | Q13: =inCPR1 -> 0.2276 | R13: =inUsual400 -> 0.2432
P14: =inScen1Name -> Scen2 | Q14: =inCPR1 -> 0.2276 | R14: =inScen1400 -> 0.2432
P15: =inScen2Name -> Scen3 | Q15: =inCPR1 -> 0.2276 | R15: =inScen2400 -> 0.2432
F22: =Configuration!F12 -> 2017 | G22: =IFERROR(IF(F22+1<=Configuration!$F$14,F22+1,""),"") -> 2018 | H22: =IFERROR(IF(G22+1<=Configuration!$F$14,G22+1,""),"") -> 2019 | I22: =IFERROR(IF(H22+1<=Configuration!$F$14,H22+1,""),"") -> 2020 | J22: =IFERROR(IF(I22+1<=Configuration!$F$14,I22+1,""),"") -> 2021 | K22: =IFERROR(IF(J22+1<=Configuration!$F$14,J22+1,""),"") -> 2022 | L22: =IFERROR(IF(K22+1<=Configuration!$F$14,K22+1,""),"") -> 2023 | M22: =IFERROR(IF(L22+1<=Configuration!$F$14,L22+1,""),"") ->  | N22: =IFERROR(IF(M22+1<=Configuration!$F$14,M22+1,""),"") ->  | O22: =IFERROR(IF(N22+1<=Configuration!$F$14,N22+1,""),"") -> 
C23: Usual | D23: =inUsualName -> Usual | F23: =IF(F$22="","",INDIRECT("'Calculations'!" & ADDRESS(ROW(CPR_List)-1 + MATCH($F$8,CPR_List,0),COLUMN(INDIRECT("calc"&$C23&"Yr1"))))) -> 357470.5819 | G23: =IF(G$22="","",INDIRECT("'Calculations'!" & ADDRESS(ROW(CPR_List)-1 + MATCH($F$8,CPR_List,0),COLUMN(INDIRECT("calc"&$C23&"Yr2"))))) -> 375383.9161 | H23: =IF(H$22="","",INDIRECT("'Calculations'!" & ADDRESS(ROW(CPR_List)-1 + MATCH($F$8,CPR_List,0),COLUMN(INDIRECT("calc"&$C23&"Yr3"))))) -> 393609.6513 | I23: =IF(I$22="","",INDIRECT("'Calculations'!" & ADDRESS(ROW(CPR_List)-1 + MATCH($F$8,CPR_List,0),COLUMN(INDIRECT("calc"&$C23&"Yr4"))))) -> 412147.7875 | J23: =IF(J$22="","",INDIRECT("'Calculations'!" & ADDRESS(ROW(CPR_List)-1 + MATCH($F$8,CPR_List,0),COLUMN(INDIRECT("calc"&$C23&"Yr5"))))) -> 430998.3247 | K23: =IF(K$22="","",INDIRECT("'Calculations'!" & ADDRESS(ROW(CPR_List)-1 + MATCH($F$8,CPR_List,0),COLUMN(INDIRECT("calc"&$C23&"Yr6"))))) -> 450161.2628 | L23: =IF(L$22="","",INDIRECT("'Calculations'!" & ADDRESS(ROW(CPR_List)-1 + MATCH($F$8,CPR_List,0),COLUMN(INDIRECT("calc"&$C23&"Yr7"))))) -> 469636.6019 | M23: =IF(M$22="","",INDIRECT("'Calculations'!" & ADDRESS(ROW(CPR_List)-1 + MATCH($F$8,CPR_List,0),COLUMN(INDIRECT("calc"&$C23&"Yr8"))))) ->  | N23: =IF(N$22="","",INDIRECT("'Calculations'!" & ADDRESS(ROW(CPR_List)-1 + MATCH($F$8,CPR_List,0),COLUMN(INDIRECT("calc"&$C23&"Yr9"))))) ->  | O23: =IF(O$22="","",INDIRECT("'Calculations'!" & ADDRESS(ROW(CPR_List)-1 + MATCH($F$8,CPR_List,0),COLUMN(INDIRECT("calc"&$C23&"Yr10"))))) -> 
C24: Scen1 | D24: =inScen1Name -> Scen2 | F24: =IF(F$22="","",INDIRECT("'Calculations'!" & ADDRESS(ROW(CPR_List)-1 + MATCH($F$8,CPR_List,0),COLUMN(INDIRECT("calc"&$C24&"Yr1"))))) -> 357470.5819 | G24: =IF(G$22="","",INDIRECT("'Calculations'!" & ADDRESS(ROW(CPR_List)-1 + MATCH($F$8,CPR_List,0),COLUMN(INDIRECT("calc"&$C24&"Yr2"))))) -> 375383.9161 | H24: =IF(H$22="","",INDIRECT("'Calculations'!" & ADDRESS(ROW(CPR_List)-1 + MATCH($F$8,CPR_List,0),COLUMN(INDIRECT("calc"&$C24&"Yr3"))))) -> 393609.6513 | I24: =IF(I$22="","",INDIRECT("'Calculations'!" & ADDRESS(ROW(CPR_List)-1 + MATCH($F$8,CPR_List,0),COLUMN(INDIRECT("calc"&$C24&"Yr4"))))) -> 412147.7875 | J24: =IF(J$22="","",INDIRECT("'Calculations'!" & ADDRESS(ROW(CPR_List)-1 + MATCH($F$8,CPR_List,0),COLUMN(INDIRECT("calc"&$C24&"Yr5"))))) -> 430998.3247 | K24: =IF(K$22="","",INDIRECT("'Calculations'!" & ADDRESS(ROW(CPR_List)-1 + MATCH($F$8,CPR_List,0),COLUMN(INDIRECT("calc"&$C24&"Yr6"))))) -> 450161.2628 | L24: =IF(L$22="","",INDIRECT("'Calculations'!" & ADDRESS(ROW(CPR_List)-1 + MATCH($F$8,CPR_List,0),COLUMN(INDIRECT("calc"&$C24&"Yr7"))))) -> 469636.6019 | M24: =IF(M$22="","",INDIRECT("'Calculations'!" & ADDRESS(ROW(CPR_List)-1 + MATCH($F$8,CPR_List,0),COLUMN(INDIRECT("calc"&$C24&"Yr8"))))) ->  | N24: =IF(N$22="","",INDIRECT("'Calculations'!" & ADDRESS(ROW(CPR_List)-1 + MATCH($F$8,CPR_List,0),COLUMN(INDIRECT("calc"&$C24&"Yr9"))))) ->  | O24: =IF(O$22="","",INDIRECT("'Calculations'!" & ADDRESS(ROW(CPR_List)-1 + MATCH($F$8,CPR_List,0),COLUMN(INDIRECT("calc"&$C24&"Yr10"))))) -> 
C25: Scen2 | D25: =inScen2Name -> Scen3 | F25: =IF(F$22="","",INDIRECT("'Calculations'!" & ADDRESS(ROW(CPR_List)-1 + MATCH($F$8,CPR_List,0),COLUMN(INDIRECT("calc"&$C25&"Yr1"))))) -> 357470.5819 | G25: =IF(G$22="","",INDIRECT("'Calculations'!" & ADDRESS(ROW(CPR_List)-1 + MATCH($F$8,CPR_List,0),COLUMN(INDIRECT("calc"&$C25&"Yr2"))))) -> 375383.9161 | H25: =IF(H$22="","",INDIRECT("'Calculations'!" & ADDRESS(ROW(CPR_List)-1 + MATCH($F$8,CPR_List,0),COLUMN(INDIRECT("calc"&$C25&"Yr3"))))) -> 393609.6513 | I25: =IF(I$22="","",INDIRECT("'Calculations'!" & ADDRESS(ROW(CPR_List)-1 + MATCH($F$8,CPR_List,0),COLUMN(INDIRECT("calc"&$C25&"Yr4"))))) -> 412147.7875 | J25: =IF(J$22="","",INDIRECT("'Calculations'!" & ADDRESS(ROW(CPR_List)-1 + MATCH($F$8,CPR_List,0),COLUMN(INDIRECT("calc"&$C25&"Yr5"))))) -> 430998.3247 | K25: =IF(K$22="","",INDIRECT("'Calculations'!" & ADDRESS(ROW(CPR_List)-1 + MATCH($F$8,CPR_List,0),COLUMN(INDIRECT("calc"&$C25&"Yr6"))))) -> 450161.2628 | L25: =IF(L$22="","",INDIRECT("'Calculations'!" & ADDRESS(ROW(CPR_List)-1 + MATCH($F$8,CPR_List,0),COLUMN(INDIRECT("calc"&$C25&"Yr7"))))) -> 469636.6019 | M25: =IF(M$22="","",INDIRECT("'Calculations'!" & ADDRESS(ROW(CPR_List)-1 + MATCH($F$8,CPR_List,0),COLUMN(INDIRECT("calc"&$C25&"Yr8"))))) ->  | N25: =IF(N$22="","",INDIRECT("'Calculations'!" & ADDRESS(ROW(CPR_List)-1 + MATCH($F$8,CPR_List,0),COLUMN(INDIRECT("calc"&$C25&"Yr9"))))) ->  | O25: =IF(O$22="","",INDIRECT("'Calculations'!" & ADDRESS(ROW(CPR_List)-1 + MATCH($F$8,CPR_List,0),COLUMN(INDIRECT("calc"&$C25&"Yr10"))))) -> 
D26: * Acceptor results are expressed as the average annual number of acceptors over the course of the period of analysis.
H31: =Q12 -> 2017 | I31: =IFERROR(IF(H31+1<=Configuration!$F$14,H31+1,""),"") -> 2018 | J31: =IFERROR(IF(I31+1<=Configuration!$F$14,I31+1,""),"") -> 2019 | K31: =IFERROR(IF(J31+1<=Configuration!$F$14,J31+1,""),"") -> 2020 | L31: =IFERROR(IF(K31+1<=Configuration!$F$14,K31+1,""),"") -> 2021 | M31: =IFERROR(IF(L31+1<=Configuration!$F$14,L31+1,""),"") -> 2022 | N31: =IFERROR(IF(M31+1<=Configuration!$F$14,M31+1,""),"") -> 2023 | O31: =IFERROR(IF(N31+1<=Configuration!$F$14,N31+1,""),"") ->  | P31: =IFERROR(IF(O31+1<=Configuration!$F$14,O31+1,""),"") ->  | Q31: =IFERROR(IF(P31+1<=Configuration!$F$14,P31+1,""),"") -> 
G32: Usual | H32: =inCPR1 -> 0.2276 | I32: =IF(I31="","",$H$42*I31+$H$43) -> 0.2302 | J32: =IF(J31="","",$H$42*J31+$H$43) -> 0.2328 | K32: 0.2354 | L32: 0.238 | M32: 0.2406 | N32: 0.2432
G33: Scen1 | H33: =inCPR1 -> 0.2276 | I33: =IF(I31="","",$H$45*I31+$H$46) -> 0.2302 | J33: =IF(J31="","",$H$45*J31+$H$46) -> 0.2328 | K33: 0.2354 | L33: 0.238 | M33: 0.2406 | N33: 0.2432
G34: Scen2 | H34: =inCPR1 -> 0.2276 | I34: =IF(I31="","",$H$48*I31+$H$49) -> 0.2302 | J34: =IF(J31="","",$H$48*J31+$H$49) -> 0.2328 | K34: 0.2354 | L34: 0.238 | M34: 0.2406 | N34: 0.2432
H36: =Q12 -> 2017 | I36: 2023
G37: =G32 -> Usual | H37: 0.2276 | I37: 0.2432
G38: =G33 -> Scen1 | H38: 0.2276 | I38: 0.2432
G39: =G34 -> Scen2 | H39: 0.2276 | I39: 0.2432
G42: Slope | H42: =(I37-H37)/(I36-H36) -> 0.0026
G43: Intercept | H43: =H37-H42*H36 -> -5.0166
G45: Slope | H45: =(I38-H38)/(I36-H36) -> 0.0026
G46: Intercept | H46: =H38-H45*H36 -> -5.0166
G48: Slope | H48: =(I39-H39)/(I36-H36) -> 0.0026
G49: Intercept | H49: =H39-H48*H36 -> -5.0166

Sheet CPR_Summary
C2: 0
G9: Usual | H9: =inUsualName -> Usual | I9: ="usual"&I10 -> usual2017 | J9: ="usual"&J10 -> usual2018 | K9: usual2019 | L9: usual2020 | M9: usual2021 | N9: usual2022 | O9: usual2023 | P9: usual | Q9: usual | R9: usual
H10: Indicator | I10: =ConStartYr -> 2017 | J10: =IFERROR(IF(I10+1<=ConEndYr,I10+1,""),"") -> 2018 | K10: 2019 | L10: 2020 | M10: 2021 | N10: 2022 | O10: 2023
H11: Unintended pregnancies averted | I11: =IF(I$10="","",INDIRECT("'Calculations'!" & ADDRESS(ROW(CPR_List)-1 + MATCH($H11,CPR_List,0),COLUMN(INDIRECT("calc"&$G$9&"Yr1"))))) -> 357470.5819 | J11: =IF(J$10="","",INDIRECT("'Calculations'!" & ADDRESS(ROW(CPR_List)-1 + MATCH($H11,CPR_List,0),COLUMN(INDIRECT("calc"&$G$9&"Yr2"))))) -> 375383.9161 | K11: =IF(K$10="","",INDIRECT("'Calculations'!" & ADDRESS(ROW(CPR_List)-1 + MATCH($H11,CPR_List,0),COLUMN(INDIRECT("calc"&$G$9&"Yr3"))))) -> 393609.6513 | L11: =IF(L$10="","",INDIRECT("'Calculations'!" & ADDRESS(ROW(CPR_List)-1 + MATCH($H11,CPR_List,0),COLUMN(INDIRECT("calc"&$G$9&"Yr4"))))) -> 412147.7875 | M11: =IF(M$10="","",INDIRECT("'Calculations'!" & ADDRESS(ROW(CPR_List)-1 + MATCH($H11,CPR_List,0),COLUMN(INDIRECT("calc"&$G$9&"Yr5"))))) -> 430998.3247 | N11: =IF(N$10="","",INDIRECT("'Calculations'!" & ADDRESS(ROW(CPR_List)-1 + MATCH($H11,CPR_List,0),COLUMN(INDIRECT("calc"&$G$9&"Yr6"))))) -> 450161.2628 | O11: =IF(O$10="","",INDIRECT("'Calculations'!" & ADDRESS(ROW(CPR_List)-1 + MATCH($H11,CPR_List,0),COLUMN(INDIRECT("calc"&$G$9&"Yr7"))))) -> 469636.6019 | P11: =IF(P$10="","",INDIRECT("'Calculations'!" & ADDRESS(ROW(CPR_List)-1 + MATCH($H11,CPR_List,0),COLUMN(INDIRECT("calc"&$G$9&"Yr8"))))) ->  | Q11: =IF(Q$10="","",INDIRECT("'Calculations'!" & ADDRESS(ROW(CPR_List)-1 + MATCH($H11,CPR_List,0),COLUMN(INDIRECT("calc"&$G$9&"Yr9"))))) ->  | R11: =IF(R$10="","",INDIRECT("'Calculations'!" & ADDRESS(ROW(CPR_List)-1 + MATCH($H11,CPR_List,0),COLUMN(INDIRECT("calc"&$G$9&"Yr10"))))) ->  | S11: =SUM(I11:R11) -> 2889408.126
H12: Births averted | I12: 101918.3717 | J12: 107025.6391 | K12: 112221.9751 | L12: 117507.3797 | M12: 122881.8529 | N12: 128345.3946 | O12: 133898.005 | S12: =SUM(I12:R12) -> 823798.618
H13: Abortions Averted | I13: 217345.7529 | J13: 228237.2424 | K13: 239318.675 | L13: 250590.0505 | M13: 262051.369 | N13: 273702.6304 | O13: 285543.8349 | S13: 1756789.555
H14: Unsafe Abortions Averted | I14: 125613.1532 | J14: 131907.7981 | K14: 138312.219 | L14: 144826.4159 | M14: 151450.3887 | N14: 158184.1374 | O14: 165027.6621 | S14: 1015321.774
H15: Maternal deaths averted | I15: 629.1731165 | J15: 583.4458472 | K15: 530.7665211 | L15: 470.9422568 | M15: 403.780173 | N15: 329.0873884 | O15: 246.6710218 | S15: 3193.866325
H16: Child deaths averted | I16: 4482.414831 | J16: 4707.034699 | K16: 4935.571843 | L16: 5168.026262 | M16: 5404.397957 | N16: 5644.686927 | O16: 5888.893173 | S16: 36231.02569
H17: DALYs averted | I17: 416580.5949 | J17: 432840.0493 | K17: 449015.3314 | L17: 465094.9167 | M17: 481067.2808 | N17: 496920.8992 | O17: 512644.2476 | S17: 3254163.32
H18: Maternal & infant healthcare costs averted | I18: 6249614.351 | J18: 6562790.976 | K18: 6881429.27 | L18: 7205529.231 | M18: 7535090.861 | N18: 7870114.159 | O18: 8210599.124 | S18: 50515167.97
H19: Unmet Need | I19: 0.2424 | J19: 0.2398 | K19: 0.2372 | L19: 0.2346 | M19: 0.232 | N19: 0.2294 | O19: =IF(O$10="","",INDIRECT("'Calculations'!" & ADDRESS(ROW(CPR_List)-1 + MATCH($H19,CPR_List,0),COLUMN(INDIRECT("calc"&$G$9&"Yr7"))))) -> 0.2268 | S19: =IFERROR(AVERAGE(I19:R19),"") -> 0.2346
H20: Total FP costs | I20: 7685247.598 | J20: 8070365.746 | K20: 8462200.193 | L20: 8860750.937 | M20: 9266017.979 | N20: 9678001.319 | O20: 10096700.96 | S20: 62119284.73
H21: Cost-benefit ratio | I21: 0.8131962271 | J21: 0.8131962271 | K21: 0.8131962271 | L21: 0.8131962271 | M21: 0.8131962271 | N21: 0.8131962271 | O21: 0.8131962271 | S21: =IFERROR(AVERAGE(I21:R21),"") -> 0.8131962271
H22: Total users | I22: 1265432.584 | J22: 1328845.122 | K22: 1393363.548 | L22: 1458987.861 | M22: 1525718.063 | N22: 1593554.152 | O22: 1662496.129 | S22: 10228397.46
H23: Condom users | I23: 186425.3361 | J23: 195767.3617 | K23: 205272.3084 | L23: 214940.176 | M23: 224770.9646 | N23: 234764.6742 | O23: 244921.3048 | S23: 1506862.126
H24: Injectable users | I24: 276813.3778 | J24: 290684.8705 | K24: 304798.2761 | L24: 319153.5947 | M24: 333750.8263 | N24: 348589.9708 | O24: 363671.0283 | S24: 2237461.944
H25: Pill users | I25: 384149.1774 | J25: 403399.4121 | K25: 422985.3627 | L25: 442907.0294 | M25: 463164.412 | N25: 483757.5105 | O25: 504686.325 | S25: 3105049.229
H26: Male sterilization users | I26: 0 | J26: 0 | K26: 0 | L26: 0 | M26: 0 | N26: 0 | O26: 0 | S26: 0
H27: Female sterilization users | I27: 101686.547 | J27: 106782.1973 | K27: 111966.7137 | L27: 117240.096 | M27: 122602.3443 | N27: 128053.4587 | O27: 133593.439 | S27: 821924.7959
H28: IUD users | I28: 79089.53652 | J28: 83052.82013 | K28: 87085.22174 | L28: 91186.74134 | M28: 95357.37893 | N28: 99597.13451 | O28: 103906.0081 | S28: 639274.8413
H29: Implant users | I29: 11298.50522 | J29: 11864.68859 | K29: 12440.74596 | L29: 13026.67733 | M29: 13622.4827 | N29: 14228.16207 | O29: 14843.71544 | S29: 91324.97732
H30: Standard Days Method (SDM) users | I30: 0 | J30: 0 | K30: 0 | L30: 0 | M30: 0 | N30: 0 | O30: 0 | S30: 0
H31: Other modern users | I31: 0 | J31: 0 | K31: 0 | L31: 0 | M31: 0 | N31: 0 | O31: 0 | S31: 0
H32: All traditional users | I32: 152529.8204 | J32: 160173.296 | K32: 167950.0705 | L32: 175860.144 | M32: 183903.5165 | N32: 192080.188 | O32: 200390.1585 | S32: 1232887.194
H33: Male sterilization acceptors * | I33: 0 | J33: 0 | K33: 0 | L33: 0 | M33: 0 | N33: 0 | O33: 0 | S33: 0
H34: Female sterilization acceptors * | I34: 27991.3794 | J34: 27991.3794 | K34: 27991.3794 | L34: 27991.3794 | M34: 27991.3794 | N34: 27991.3794 | O34: 27991.3794 | S34: 195939.6558
H35: IUD acceptors * | I35: 21172.00511 | J35: 21172.00511 | K35: 21172.00511 | L35: 21172.00511 | M35: 21172.00511 | N35: 21172.00511 | O35: 21172.00511 | S35: 148204.0358
H36: Implant acceptors * | I36: 3793.381533 | J36: 3793.381533 | K36: 3793.381533 | L36: 3793.381533 | M36: 3793.381533 | N36: 3793.381533 | O36: 3793.381533 | S36: 26553.67073
H37: SDM acceptors * | I37: 0 | J37: 0 | K37: 0 | L37: 0 | M37: 0 | N37: 0 | O37: 0 | S37: 0
G38: Scen1 | H38: =inScen1Name -> Scen2 | I38: ="scen1"&I39 -> scen12017 | J38: ="scen1"&J39 -> scen12018 | K38: scen12019 | L38: scen12020 | M38: scen12021 | N38: scen12022 | O38: scen12023 | P38: scen1 | Q38: scen1 | R38: scen1
H39: Indicator | I39: =Configuration!$F$12 -> 2017 | J39: =IFERROR(IF(I39+1<=Configuration!$F$14,I39+1,""),"") -> 2018 | K39: =IFERROR(IF(J39+1<=Configuration!$F$14,J39+1,""),"") -> 2019 | L39: =IFERROR(IF(K39+1<=Configuration!$F$14,K39+1,""),"") -> 2020 | M39: =IFERROR(IF(L39+1<=Configuration!$F$14,L39+1,""),"") -> 2021 | N39: =IFERROR(IF(M39+1<=Configuration!$F$14,M39+1,""),"") -> 2022 | O39: =IFERROR(IF(N39+1<=Configuration!$F$14,N39+1,""),"") -> 2023 | P39: =IFERROR(IF(O39+1<=Configuration!$F$14,O39+1,""),"") ->  | Q39: =IFERROR(IF(P39+1<=Configuration!$F$14,P39+1,""),"") ->  | R39: =IFERROR(IF(Q39+1<=Configuration!$F$14,Q39+1,""),"") -> 
H40: Unintended pregnancies averted | I40: =IF(I$10="","",INDIRECT("'Calculations'!" & ADDRESS(ROW(CPR_List)-1 + MATCH($H40,CPR_List,0),COLUMN(INDIRECT("calc"&$G$38&"Yr1"))))) -> 357470.5819 | J40: =IF(J$10="","",INDIRECT("'Calculations'!" & ADDRESS(ROW(CPR_List)-1 + MATCH($H40,CPR_List,0),COLUMN(INDIRECT("calc"&$G$38&"Yr2"))))) -> 375383.9161 | K40: =IF(K$10="","",INDIRECT("'Calculations'!" & ADDRESS(ROW(CPR_List)-1 + MATCH($H40,CPR_List,0),COLUMN(INDIRECT("calc"&$G$38&"Yr3"))))) -> 393609.6513 | L40: =IF(L$10="","",INDIRECT("'Calculations'!" & ADDRESS(ROW(CPR_List)-1 + MATCH($H40,CPR_List,0),COLUMN(INDIRECT("calc"&$G$38&"Yr4"))))) -> 412147.7875 | M40: =IF(M$10="","",INDIRECT("'Calculations'!" & ADDRESS(ROW(CPR_List)-1 + MATCH($H40,CPR_List,0),COLUMN(INDIRECT("calc"&$G$38&"Yr5"))))) -> 430998.3247 | N40: =IF(N$10="","",INDIRECT("'Calculations'!" & ADDRESS(ROW(CPR_List)-1 + MATCH($H40,CPR_List,0),COLUMN(INDIRECT("calc"&$G$38&"Yr6"))))) -> 450161.2628 | O40: =IF(O$10="","",INDIRECT("'Calculations'!" & ADDRESS(ROW(CPR_List)-1 + MATCH($H40,CPR_List,0),COLUMN(INDIRECT("calc"&$G$38&"Yr7"))))) -> 469636.6019 | P40: =IF(P$10="","",INDIRECT("'Calculations'!" & ADDRESS(ROW(CPR_List)-1 + MATCH($H40,CPR_List,0),COLUMN(INDIRECT("calc"&$G$38&"Yr8"))))) ->  | Q40: =IF(Q$10="","",INDIRECT("'Calculations'!" & ADDRESS(ROW(CPR_List)-1 + MATCH($H40,CPR_List,0),COLUMN(INDIRECT("calc"&$G$38&"Yr9"))))) ->  | R40: =IF(R$10="","",INDIRECT("'Calculations'!" & ADDRESS(ROW(CPR_List)-1 + MATCH($H40,CPR_List,0),COLUMN(INDIRECT("calc"&$G$38&"Yr10"))))) ->  | S40: =SUM(I40:R40) -> 2889408.126
H41: Births averted | I41: 101918.3717 | J41: 107025.6391 | K41: 112221.9751 | L41: 117507.3797 | M41: 122881.8529 | N41: 128345.3946 | O41: 133898.005 | S41: =SUM(I41:R41) -> 823798.618
H42: Abortions Averted | I42: 217345.7529 | J42: 228237.2424 | K42: 239318.675 | L42: 250590.0505 | M42: 262051.369 | N42: 273702.6304 | O42: 285543.8349 | S42: 1756789.555
H43: Unsafe Abortions Averted | I43: 125613.1532 | J43: 131907.7981 | K43: 138312.219 | L43: 144826.4159 | M43: 151450.3887 | N43: 158184.1374 | O43: 165027.6621 | S43: 1015321.774
H44: Maternal deaths averted | I44: 629.1731165 | J44: 583.4458472 | K44: 530.7665211 | L44: 470.9422568 | M44: 403.780173 | N44: 329.0873884 | O44: 246.6710218 | S44: 3193.866325
H45: Child deaths averted | I45: 4482.414831 | J45: 4707.034699 | K45: 4935.571843 | L45: 5168.026262 | M45: 5404.397957 | N45: 5644.686927 | O45: 5888.893173 | S45: 36231.02569
H46: DALYs averted | I46: 416580.5949 | J46: 432840.0493 | K46: 449015.3314 | L46: 465094.9167 | M46: 481067.2808 | N46: 496920.8992 | O46: 512644.2476 | S46: 3254163.32
H47: Maternal & infant healthcare costs averted | I47: 6249614.351 | J47: 6562790.976 | K47: 6881429.27 | L47: 7205529.231 | M47: 7535090.861 | N47: 7870114.159 | O47: 8210599.124 | S47: =SUM(I47:R47) -> 50515167.97
H48: Unmet Need | I48: 0.2424 | J48: 0.2398 | K48: 0.2372 | L48: 0.2346 | M48: 0.232 | N48: 0.2294 | O48: 0.2268 | S48: =IFERROR(AVERAGE(I48:R48),"") -> 0.2346
H49: Total FP costs | I49: 7685247.598 | J49: 8070365.746 | K49: 8462200.193 | L49: 8860750.937 | M49: 9266017.979 | N49: 9678001.319 | O49: 10096700.96 | S49: 62119284.73
H50: Cost-benefit ratio | I50: 0.8131962271 | J50: 0.8131962271 | K50: 0.8131962271 | L50: 0.8131962271 | M50: 0.8131962271 | N50: 0.8131962271 | O50: 0.8131962271 | S50: =IFERROR(AVERAGE(I50:R50),"") -> 0.8131962271
H51: Total users | I51: 1265432.584 | J51: 1328845.122 | K51: 1393363.548 | L51: 1458987.861 | M51: 1525718.063 | N51: 1593554.152 | O51: 1662496.129 | S51: 10228397.46
H52: Condom users | I52: 186425.3361 | J52: 195767.3617 | K52: 205272.3084 | L52: 214940.176 | M52: 224770.9646 | N52: 234764.6742 | O52: 244921.3048 | S52: 1506862.126
H53: Injectable users | I53: 276813.3778 | J53: 290684.8705 | K53: 304798.2761 | L53: 319153.5947 | M53: 333750.8263 | N53: 348589.9708 | O53: 363671.0283 | S53: 2237461.944
H54: Pill users | I54: 384149.1774 | J54: 403399.4121 | K54: 422985.3627 | L54: 442907.0294 | M54: 463164.412 | N54: 483757.5105 | O54: 504686.325 | S54: 3105049.229
H55: Male sterilization users | I55: 0 | J55: 0 | K55: 0 | L55: 0 | M55: 0 | N55: 0 | O55: 0 | S55: 0
H56: Female sterilization users | I56: 101686.547 | J56: 106782.1973 | K56: 111966.7137 | L56: 117240.096 | M56: 122602.3443 | N56: 128053.4587 | O56: 133593.439 | S56: 821924.7959
H57: IUD users | I57: 79089.53652 | J57: 83052.82013 | K57: 87085.22174 | L57: 91186.74134 | M57: 95357.37893 | N57: 99597.13451 | O57: 103906.0081 | S57: 639274.8413
H58: Implant users | I58: 11298.50522 | J58: 11864.68859 | K58: 12440.74596 | L58: 13026.67733 | M58: 13622.4827 | N58: 14228.16207 | O58: 14843.71544 | S58: 91324.97732
H59: Standard Days Method (SDM) users | I59: 0 | J59: 0 | K59: 0 | L59: 0 | M59: 0 | N59: 0 | O59: 0 | S59: 0
H60: Other modern users | I60: 0 | J60: 0 | K60: 0 | L60: 0 | M60: 0 | N60: 0 | O60: 0 | S60: 0
H61: All traditional users | I61: 152529.8204 | J61: 160173.296 | K61: 167950.0705 | L61: 175860.144 | M61: 183903.5165 | N61: 192080.188 | O61: 200390.1585 | S61: 1232887.194
H62: Male sterilization acceptors * | I62: 0 | J62: 0 | K62: 0 | L62: 0 | M62: 0 | N62: 0 | O62: 0 | S62: 0
H63: Female sterilization acceptors * | I63: 27991.3794 | J63: 27991.3794 | K63: 27991.3794 | L63: 27991.3794 | M63: 27991.3794 | N63: 27991.3794 | O63: 27991.3794 | S63: 195939.6558
H64: IUD acceptors * | I64: 21172.00511 | J64: 21172.00511 | K64: 21172.00511 | L64: 21172.00511 | M64: 21172.00511 | N64: 21172.00511 | O64: 21172.00511 | S64: 148204.0358
H65: Implant acceptors * | I65: 3793.381533 | J65: 3793.381533 | K65: 3793.381533 | L65: 3793.381533 | M65: 3793.381533 | N65: 3793.381533 | O65: 3793.381533 | S65: 26553.67073
H66: SDM acceptors * | I66: 0 | J66: 0 | K66: 0 | L66: 0 | M66: 0 | N66: 0 | O66: 0 | S66: 0
G67: Scen2 | H67: =inScen2Name -> Scen3 | I67: ="scen2"&I68 -> scen22017 | J67: ="scen2"&J68 -> scen22018 | K67: scen22019 | L67: scen22020 | M67: scen22021 | N67: scen22022 | O67: scen22023 | P67: scen2 | Q67: scen2 | R67: scen2
H68: Indicator | I68: =Configuration!$F$12 -> 2017 | J68: =IFERROR(IF(I68+1<=Configuration!$F$14,I68+1,""),"") -> 2018 | K68: =IFERROR(IF(J68+1<=Configuration!$F$14,J68+1,""),"") -> 2019 | L68: =IFERROR(IF(K68+1<=Configuration!$F$14,K68+1,""),"") -> 2020 | M68: =IFERROR(IF(L68+1<=Configuration!$F$14,L68+1,""),"") -> 2021 | N68: =IFERROR(IF(M68+1<=Configuration!$F$14,M68+1,""),"") -> 2022 | O68: =IFERROR(IF(N68+1<=Configuration!$F$14,N68+1,""),"") -> 2023 | P68: =IFERROR(IF(O68+1<=Configuration!$F$14,O68+1,""),"") ->  | Q68: =IFERROR(IF(P68+1<=Configuration!$F$14,P68+1,""),"") ->  | R68: =IFERROR(IF(Q68+1<=Configuration!$F$14,Q68+1,""),"") -> 
H69: Unintended pregnancies averted | I69: =IF(I$10="","",INDIRECT("'Calculations'!" & ADDRESS(ROW(CPR_List)-1 + MATCH($H69,CPR_List,0),COLUMN(INDIRECT("calc"&$G$67&"Yr1"))))) -> 357470.5819 | J69: =IF(J$10="","",INDIRECT("'Calculations'!" & ADDRESS(ROW(CPR_List)-1 + MATCH($H69,CPR_List,0),COLUMN(INDIRECT("calc"&$G$67&"Yr2"))))) -> 375383.9161 | K69: =IF(K$10="","",INDIRECT("'Calculations'!" & ADDRESS(ROW(CPR_List)-1 + MATCH($H69,CPR_List,0),COLUMN(INDIRECT("calc"&$G$67&"Yr3"))))) -> 393609.6513 | L69: =IF(L$10="","",INDIRECT("'Calculations'!" & ADDRESS(ROW(CPR_List)-1 + MATCH($H69,CPR_List,0),COLUMN(INDIRECT("calc"&$G$67&"Yr4"))))) -> 412147.7875 | M69: =IF(M$10="","",INDIRECT("'Calculations'!" & ADDRESS(ROW(CPR_List)-1 + MATCH($H69,CPR_List,0),COLUMN(INDIRECT("calc"&$G$67&"Yr5"))))) -> 430998.3247 | N69: =IF(N$10="","",INDIRECT("'Calculations'!" & ADDRESS(ROW(CPR_List)-1 + MATCH($H69,CPR_List,0),COLUMN(INDIRECT("calc"&$G$67&"Yr6"))))) -> 450161.2628 | O69: =IF(O$10="","",INDIRECT("'Calculations'!" & ADDRESS(ROW(CPR_List)-1 + MATCH($H69,CPR_List,0),COLUMN(INDIRECT("calc"&$G$67&"Yr7"))))) -> 469636.6019 | P69: =IF(P$10="","",INDIRECT("'Calculations'!" & ADDRESS(ROW(CPR_List)-1 + MATCH($H69,CPR_List,0),COLUMN(INDIRECT("calc"&$G$67&"Yr8"))))) ->  | Q69: =IF(Q$10="","",INDIRECT("'Calculations'!" & ADDRESS(ROW(CPR_List)-1 + MATCH($H69,CPR_List,0),COLUMN(INDIRECT("calc"&$G$67&"Yr9"))))) ->  | R69: =IF(R$10="","",INDIRECT("'Calculations'!" & ADDRESS(ROW(CPR_List)-1 + MATCH($H69,CPR_List,0),COLUMN(INDIRECT("calc"&$G$67&"Yr10"))))) ->  | S69: =SUM(I69:R69) -> 2889408.126
H70: Births averted | I70: 101918.3717 | J70: 107025.6391 | K70: 112221.9751 | L70: 117507.3797 | M70: 122881.8529 | N70: 128345.3946 | O70: 133898.005 | S70: 823798.618
H71: Abortions Averted | I71: 217345.7529 | J71: 228237.2424 | K71: 239318.675 | L71: 250590.0505 | M71: 262051.369 | N71: 273702.6304 | O71: 285543.8349 | S71: 1756789.555
H72: Unsafe Abortions Averted | I72: 125613.1532 | J72: 131907.7981 | K72: 138312.219 | L72: 144826.4159 | M72: 151450.3887 | N72: 158184.1374 | O72: 165027.6621 | S72: 1015321.774
H73: Maternal deaths averted | I73: 629.1731165 | J73: 583.4458472 | K73: 530.7665211 | L73: 470.9422568 | M73: 403.780173 | N73: 329.0873884 | O73: 246.6710218 | S73: 3193.866325
H74: Child deaths averted | I74: 4482.414831 | J74: 4707.034699 | K74: 4935.571843 | L74: 5168.026262 | M74: 5404.397957 | N74: 5644.686927 | O74: 5888.893173 | S74: 36231.02569
H75: DALYs averted | I75: 416580.5949 | J75: 432840.0493 | K75: 449015.3314 | L75: 465094.9167 | M75: 481067.2808 | N75: 496920.8992 | O75: 512644.2476 | S75: 3254163.32
H76: Maternal & infant healthcare costs averted | I76: 6249614.351 | J76: 6562790.976 | K76: 6881429.27 | L76: 7205529.231 | M76: 7535090.861 | N76: 7870114.159 | O76: 8210599.124 | S76: 50515167.97
H77: Unmet Need | I77: 0.2424 | J77: 0.2398 | K77: 0.2372 | L77: 0.2346 | M77: 0.232 | N77: 0.2294 | O77: 0.2268 | S77: =IFERROR(AVERAGE(I77:R77),"") -> 0.2346
H78: Total FP costs | I78: 7685247.598 | J78: 8070365.746 | K78: 8462200.193 | L78: 8860750.937 | M78: 9266017.979 | N78: 9678001.319 | O78: 10096700.96 | S78: =SUM(I78:R78) -> 62119284.73
H79: Cost-benefit ratio | I79: 0.8131962271 | J79: 0.8131962271 | K79: 0.8131962271 | L79: 0.8131962271 | M79: 0.8131962271 | N79: 0.8131962271 | O79: 0.8131962271 | S79: =IFERROR(AVERAGE(I79:R79),"") -> 0.8131962271
H80: Total users | I80: 1265432.584 | J80: 1328845.122 | K80: 1393363.548 | L80: 1458987.861 | M80: 1525718.063 | N80: 1593554.152 | O80: 1662496.129 | S80: 10228397.46
H81: Condom users | I81: 186425.3361 | J81: 195767.3617 | K81: 205272.3084 | L81: 214940.176 | M81: 224770.9646 | N81: 234764.6742 | O81: 244921.3048 | S81: 1506862.126
H82: Injectable users | I82: 276813.3778 | J82: 290684.8705 | K82: 304798.2761 | L82: 319153.5947 | M82: 333750.8263 | N82: 348589.9708 | O82: 363671.0283 | S82: 2237461.944
H83: Pill users | I83: 384149.1774 | J83: 403399.4121 | K83: 422985.3627 | L83: 442907.0294 | M83: 463164.412 | N83: 483757.5105 | O83: 504686.325 | S83: 3105049.229
H84: Male sterilization users | I84: 0 | J84: 0 | K84: 0 | L84: 0 | M84: 0 | N84: 0 | O84: 0 | S84: 0
H85: Female sterilization users | I85: 101686.547 | J85: 106782.1973 | K85: 111966.7137 | L85: 117240.096 | M85: 122602.3443 | N85: 128053.4587 | O85: 133593.439 | S85: 821924.7959
H86: IUD users | I86: 79089.53652 | J86: 83052.82013 | K86: 87085.22174 | L86: 91186.74134 | M86: 95357.37893 | N86: 99597.13451 | O86: 103906.0081 | S86: 639274.8413
H87: Implant users | I87: 11298.50522 | J87: 11864.68859 | K87: 12440.74596 | L87: 13026.67733 | M87: 13622.4827 | N87: 14228.16207 | O87: 14843.71544 | S87: 91324.97732
H88: Standard Days Method (SDM) users | I88: 0 | J88: 0 | K88: 0 | L88: 0 | M88: 0 | N88: 0 | O88: 0 | S88: 0
H89: Other modern users | I89: 0 | J89: 0 | K89: 0 | L89: 0 | M89: 0 | N89: 0 | O89: 0 | S89: 0
H90: All traditional users | I90: 152529.8204 | J90: 160173.296 | K90: 167950.0705 | L90: 175860.144 | M90: 183903.5165 | N90: 192080.188 | O90: 200390.1585 | S90: 1232887.194
H91: Male sterilization acceptors * | I91: 0 | J91: 0 | K91: 0 | L91: 0 | M91: 0 | N91: 0 | O91: 0 | S91: 0
H92: Female sterilization acceptors * | I92: 27991.3794 | J92: 27991.3794 | K92: 27991.3794 | L92: 27991.3794 | M92: 27991.3794 | N92: 27991.3794 | O92: 27991.3794 | S92: 195939.6558
H93: IUD acceptors * | I93: 21172.00511 | J93: 21172.00511 | K93: 21172.00511 | L93: 21172.00511 | M93: 21172.00511 | N93: 21172.00511 | O93: 21172.00511 | S93: 148204.0358
H94: Implant acceptors * | I94: 3793.381533 | J94: 3793.381533 | K94: 3793.381533 | L94: 3793.381533 | M94: 3793.381533 | N94: 3793.381533 | O94: 3793.381533 | S94: 26553.67073
H95: SDM acceptors * | I95: 0 | J95: 0 | K95: 0 | L95: 0 | M95: 0 | N95: 0 | O95: 0 | S95: 0
H96: * Acceptor results are expressed as the average annual number of acceptors over the course of the period of analysis.

Sheet CPR_Comparison
C2: 0
D3: Incremental difference compared to
D4: Percentage difference compared to
K9: =D3 & inUsualName -> Incremental difference compared toUsual | O9: =D4 & inUsualName -> Percentage difference compared toUsual
D10: Indicator | E10: =inUsualName -> Usual | G10: =inScen1Name -> Scen2 | I10: =inScen2Name -> Scen3 | K10: =inScen1Name -> Scen2 | M10: =inScen2Name -> Scen3 | O10: =inScen1Name -> Scen2 | Q10: =inScen2Name -> Scen3
D11: Unintended pregnancies averted | E11: =CPR_Summary!S11 -> 2889408.126 | G11: =CPR_Summary!S40 -> 2889408.126 | I11: =CPR_Summary!S69 -> 2889408.126 | K11: =IFERROR(G11-E11,"") -> 0 | M11: =IFERROR(I11-E11,"") -> 0 | O11: =IFERROR(K11/E11,"") -> 0 | Q11: =IFERROR(M11/E11,"") -> 0
D12: Births averted | E12: =CPR_Summary!S12 -> 823798.618 | G12: =CPR_Summary!S41 -> 823798.618 | I12: =CPR_Summary!S70 -> 823798.618 | K12: =IFERROR(G12-E12,"") -> 0 | M12: =IFERROR(I12-E12,"") -> 0 | O12: =IFERROR(K12/E12,"") -> 0 | Q12: 0
D13: Abortions Averted | E13: =CPR_Summary!S13 -> 1756789.555 | G13: =CPR_Summary!S42 -> 1756789.555 | I13: =CPR_Summary!S71 -> 1756789.555 | K13: 0 | M13: 0 | O13: 0 | Q13: 0
D14: Unsafe Abortions Averted | E14: =CPR_Summary!S14 -> 1015321.774 | G14: =CPR_Summary!S43 -> 1015321.774 | I14: =CPR_Summary!S72 -> 1015321.774 | K14: 0 | M14: 0 | O14: 0 | Q14: 0
D15: Maternal deaths averted | E15: =CPR_Summary!S15 -> 3193.866325 | G15: =CPR_Summary!S44 -> 3193.866325 | I15: =CPR_Summary!S73 -> 3193.866325 | K15: -5.911715562e-12 | M15: -5.911715562e-12 | O15: -1.850958982e-15 | Q15: -1.850958982e-15
D16: Child deaths averted | E16: =CPR_Summary!S16 -> 36231.02569 | G16: =CPR_Summary!S45 -> 36231.02569 | I16: =CPR_Summary!S74 -> 36231.02569 | K16: 0 | M16: 0 | O16: 0 | Q16: 0
D17: DALYs averted | E17: =CPR_Summary!S17 -> 3254163.32 | G17: =CPR_Summary!S46 -> 3254163.32 | I17: =CPR_Summary!S75 -> 3254163.32 | K17: -4.656612873e-10 | M17: -4.656612873e-10 | O17: -1.430970857e-16 | Q17: -1.430970857e-16
D18: Maternal & infant healthcare costs averted | E18: =CPR_Summary!S18 -> 50515167.97 | G18: =CPR_Summary!S47 -> 50515167.97 | I18: =CPR_Summary!S76 -> 50515167.97 | K18: 0 | M18: 0 | O18: =IFERROR(K18/E18,"") -> 0 | Q18: =IFERROR(M18/E18,"") -> 0
D19: Unmet Need | E19: =CPR_Summary!S19 -> 0.2346 | G19: =CPR_Summary!S48 -> 0.2346 | I19: =CPR_Summary!S77 -> 0.2346 | K19: 0 | M19: 0 | O19: 0 | Q19: 0
D20: Total FP costs | E20: =CPR_Summary!S20 -> 62119284.73 | G20: =CPR_Summary!S49 -> 62119284.73 | I20: =CPR_Summary!S78 -> 62119284.73 | K20: =IFERROR(G20-E20,"") -> 0 | M20: =IFERROR(I20-E20,"") -> 0 | O20: 0 | Q20: 0
D21: Cost-benefit ratio | E21: =CPR_Summary!S21 -> 0.8131962271 | G21: =CPR_Summary!S50 -> 0.8131962271 | I21: =CPR_Summary!S79 -> 0.8131962271 | K21: =IFERROR(G21-E21,"") -> 0 | M21: =IFERROR(I21-E21,"") -> 0 | O21: 0 | Q21: 0
D22: Total user-years | E22: =CPR_Summary!S22 -> 10228397.46 | G22: =CPR_Summary!S51 -> 10228397.46 | I22: =CPR_Summary!S80 -> 10228397.46 | K22: 0 | M22: 0 | O22: 0 | Q22: 0
D23: Condom user-years | E23: =CPR_Summary!S23 -> 1506862.126 | G23: =CPR_Summary!S52 -> 1506862.126 | I23: =CPR_Summary!S81 -> 1506862.126 | K23: 0 | M23: 0 | O23: 0 | Q23: 0
D24: Injectable user-years | E24: =CPR_Summary!S24 -> 2237461.944 | G24: =CPR_Summary!S53 -> 2237461.944 | I24: =CPR_Summary!S82 -> 2237461.944 | K24: 0 | M24: 0 | O24: 0 | Q24: 0
D25: Pill user-years | E25: =CPR_Summary!S25 -> 3105049.229 | G25: =CPR_Summary!S54 -> 3105049.229 | I25: =CPR_Summary!S83 -> 3105049.229 | K25: 0 | M25: 0 | O25: 0 | Q25: 0
D26: Male sterilization user-years | E26: =CPR_Summary!S26 -> 0 | G26: =CPR_Summary!S55 -> 0 | I26: =CPR_Summary!S84 -> 0 | K26: 0 | M26: 0
D27: Female sterilization user-years | E27: =CPR_Summary!S27 -> 821924.7959 | G27: =CPR_Summary!S56 -> 821924.7959 | I27: =CPR_Summary!S85 -> 821924.7959 | K27: 0 | M27: 0 | O27: 0 | Q27: 0
D28: IUD user-years | E28: =CPR_Summary!S28 -> 639274.8413 | G28: =CPR_Summary!S57 -> 639274.8413 | I28: =CPR_Summary!S86 -> 639274.8413 | K28: 0 | M28: 0 | O28: 0 | Q28: 0
D29: Implant user-years | E29: =CPR_Summary!S29 -> 91324.97732 | G29: =CPR_Summary!S58 -> 91324.97732 | I29: =CPR_Summary!S87 -> 91324.97732 | K29: 0 | M29: 0 | O29: 0 | Q29: 0
D30: Standard Days Method (SDM) user-years | E30: =CPR_Summary!S30 -> 0 | G30: =CPR_Summary!S59 -> 0 | I30: =CPR_Summary!S88 -> 0 | K30: 0 | M30: 0
D31: Other modern user-years | E31: =CPR_Summary!S31 -> 0 | G31: =CPR_Summary!S60 -> 0 | I31: =CPR_Summary!S89 -> 0 | K31: 0 | M31: 0
D32: All traditional user-years | E32: =CPR_Summary!S32 -> 1232887.194 | G32: =CPR_Summary!S61 -> 1232887.194 | I32: =CPR_Summary!S90 -> 1232887.194 | K32: 0 | M32: 0 | O32: 0 | Q32: 0
D33: Male sterilization acceptors * | E33: =CPR_Summary!S33 -> 0 | G33: =CPR_Summary!S62 -> 0 | I33: =CPR_Summary!S91 -> 0 | K33: 0 | M33: 0
D34: Female sterilization acceptors * | E34: =CPR_Summary!S34 -> 195939.6558 | G34: =CPR_Summary!S63 -> 195939.6558 | I34: =CPR_Summary!S92 -> 195939.6558 | K34: 0 | M34: 0 | O34: 0 | Q34: 0
D35: IUD acceptors * | E35: =CPR_Summary!S35 -> 148204.0358 | G35: =CPR_Summary!S64 -> 148204.0358 | I35: =CPR_Summary!S93 -> 148204.0358 | K35: 0 | M35: 0 | O35: 0 | Q35: 0
D36: Implant acceptors * | E36: =SUM(CPR_Summary!S36) -> 26553.67073 | G36: =SUM(CPR_Summary!S65) -> 26553.67073 | I36: =SUM(CPR_Summary!S94) -> 26553.67073 | K36: 0 | M36: 0 | O36: 0 | Q36: 0
D37: SDM acceptors * | E37: =CPR_Summary!S37 -> 0 | G37: =CPR_Summary!S66 -> 0 | I37: =CPR_Summary!S95 -> 0 | K37: =IFERROR(G37-E37,"") -> 0 | M37: =IFERROR(I37-E37,"") -> 0
D38: * Acceptor results are expressed as the average annual number of acceptors over the course of the period of analysis.

Sheet CPR_ICER
C2: 0
D20: Outcome | E20: Other modern user-years
E21: Program | G21: FP Costs | H21: Outcomes | I21: Incremental FP Costs | K21: Difference in X outcome | N21: ICER
E22: =inUsualName -> Usual | G22: =CPR_Comparison!E20 -> 62119284.73 | H22: =INDEX(CPRCompOut,MATCH(CPR_ICER!$E$20,CPRCompList,0),1) -> 0
E23: =inScen1Name -> Scen2 | G23: =CPR_Comparison!G20 -> 62119284.73 | H23: =INDEX(CPRCompOut,MATCH(CPR_ICER!$E$20,CPRCompList,0),3) -> 0 | I23: =G23-G22 -> 0 | K23: =H23-H22 -> 0 | N23: =IFERROR(I23/K23,"") -> 
E24: =inScen2Name -> Scen3 | G24: =CPR_Comparison!I20 -> 62119284.73 | H24: =INDEX(CPRCompOut,MATCH(CPR_ICER!$E$20,CPRCompList,0),5) -> 0 | I24: =G24-G22 -> 0 | K24: =H24-H22 -> 0 | N24: =IFERROR(I24/K24,"") -> 
E25: * Acceptor results are expressed as the average annual number of acceptors over the course of the period of analysis.

Sheet Unmet_Indicator
C2: 0
J7: =F8&" by scenario" -> Unintended pregnancies averted by scenario
D8: Choose Output | F8: Unintended pregnancies averted | Z8: Unintended pregnancies averted
Z9: Births averted
P10: Unmet Need by Year | S10: 1 | Z10: Maternal deaths averted
Q11: =Configuration!F12 -> 2017 | R11: =Configuration!F14 -> 2023 | Z11: Child deaths averted
P12: =D23 -> Usual | Q12: =inUnmet1 -> 0.2424 | R12: =inUsual412 -> 0.2268 | Z12: DALYs averted
P13: =D24 -> Scen2 | Q13: =inUnmet1 -> 0.2424 | R13: =inScen1412 -> 0.2268 | Z13: Maternal & infant healthcare costs averted
P14: =D25 -> Scen3 | Q14: =inUnmet1 -> 0.2424 | R14: =inScen2412 -> 0.2268 | Z14: CPR
Z15: Total FP costs
Z16: Cost-benefit ratio
Q17: Baseline CPR | R17: =inCPR2 -> 0.2276 | T17: =R17 -> 0.2276 | U17: =$R$17+($Q$12-R12) -> 0.2432 | Z17: Total users
T18: =R17 -> 0.2276 | U18: =$R$17+($Q$13-R13) -> 0.2432 | Z18: Condom users
T19: =R17 -> 0.2276 | U19: =$R$17+($Q$14-R14) -> 0.2432 | Z19: Injectable users
X20: Therefore increase increase a CPR by a % each year. | Z20: Pill users
Z21: Male sterilization users
F22: =Configuration!F12 -> 2017 | G22: =IFERROR(IF(F22+1<=Configuration!$F$14,F22+1,""),"") -> 2018 | H22: =IFERROR(IF(G22+1<=Configuration!$F$14,G22+1,""),"") -> 2019 | I22: =IFERROR(IF(H22+1<=Configuration!$F$14,H22+1,""),"") -> 2020 | J22: =IFERROR(IF(I22+1<=Configuration!$F$14,I22+1,""),"") -> 2021 | K22: =IFERROR(IF(J22+1<=Configuration!$F$14,J22+1,""),"") -> 2022 | L22: =IFERROR(IF(K22+1<=Configuration!$F$14,K22+1,""),"") -> 2023 | M22: =IFERROR(IF(L22+1<=Configuration!$F$14,L22+1,""),"") ->  | N22: =IFERROR(IF(M22+1<=Configuration!$F$14,M22+1,""),"") ->  | O22: =IFERROR(IF(N22+1<=Configuration!$F$14,N22+1,""),"") ->  | Z22: Female sterilization users
C23: Usual | D23: =inUsualName -> Usual | F23: =IF(F$22="","",INDIRECT("'Calculations'!" & ADDRESS(ROW(Unmet_List)-1 + MATCH($F$8,Unmet_List,0),COLUMN(INDIRECT("calc"&$C23&"Yr1"))))) -> 357470.5819 | G23: =IF(G$22="","",INDIRECT("'Calculations'!" & ADDRESS(ROW(Unmet_List)-1 + MATCH($F$8,Unmet_List,0),COLUMN(INDIRECT("calc"&$C23&"Yr2"))))) -> 375383.9161 | H23: =IF(H$22="","",INDIRECT("'Calculations'!" & ADDRESS(ROW(Unmet_List)-1 + MATCH($F$8,Unmet_List,0),COLUMN(INDIRECT("calc"&$C23&"Yr3"))))) -> 393609.6513 | I23: =IF(I$22="","",INDIRECT("'Calculations'!"&ADDRESS(ROW(Unmet_List)-1+MATCH($F$8,Unmet_List,0),COLUMN(INDIRECT("calc"&$C23&"Yr4"))))) -> 412147.7875 | J23: =IF(J$22="","",INDIRECT("'Calculations'!" & ADDRESS(ROW(Unmet_List)-1 + MATCH($F$8,Unmet_List,0),COLUMN(INDIRECT("calc"&$C23&"Yr5"))))) -> 430998.3247 | K23: =IF(K$22="","",INDIRECT("'Calculations'!" & ADDRESS(ROW(Unmet_List)-1 + MATCH($F$8,Unmet_List,0),COLUMN(INDIRECT("calc"&$C23&"Yr6"))))) -> 450161.2628 | L23: =IF(L$22="","",INDIRECT("'Calculations'!" & ADDRESS(ROW(Unmet_List)-1 + MATCH($F$8,Unmet_List,0),COLUMN(INDIRECT("calc"&$C23&"Yr7"))))) -> 469636.6019 | M23: =IF(M$22="","",INDIRECT("'Calculations'!" & ADDRESS(ROW(Unmet_List)-1 + MATCH($F$8,Unmet_List,0),COLUMN(INDIRECT("calc"&$C23&"Yr8"))))) ->  | N23: =IF(N$22="","",INDIRECT("'Calculations'!" & ADDRESS(ROW(Unmet_List)-1 + MATCH($F$8,Unmet_List,0),COLUMN(INDIRECT("calc"&$C23&"Yr9"))))) ->  | O23: =IF(O$22="","",INDIRECT("'Calculations'!" & ADDRESS(ROW(Unmet_List)-1 + MATCH($F$8,Unmet_List,0),COLUMN(INDIRECT("calc"&$C23&"Yr10"))))) ->  | W23: 23 | Z23: IUD users
C24: Scen1 | D24: =inScen1Name -> Scen2 | F24: =IF(F$22="","",INDIRECT("'Calculations'!" & ADDRESS(ROW(Unmet_List)-1 + MATCH($F$8,Unmet_List,0),COLUMN(INDIRECT("calc"&$C24&"Yr1"))))) -> 357470.5819 | G24: =IF(G$22="","",INDIRECT("'Calculations'!" & ADDRESS(ROW(Unmet_List)-1 + MATCH($F$8,Unmet_List,0),COLUMN(INDIRECT("calc"&$C24&"Yr2"))))) -> 375383.9161 | H24: =IF(H$22="","",INDIRECT("'Calculations'!" & ADDRESS(ROW(Unmet_List)-1 + MATCH($F$8,Unmet_List,0),COLUMN(INDIRECT("calc"&$C24&"Yr3"))))) -> 393609.6513 | I24: =IF(I$22="","",INDIRECT("'Calculations'!"&ADDRESS(ROW(Unmet_List)-1+MATCH($F$8,Unmet_List,0),COLUMN(INDIRECT("calc"&$C24&"Yr4"))))) -> 412147.7875 | J24: =IF(J$22="","",INDIRECT("'Calculations'!" & ADDRESS(ROW(Unmet_List)-1 + MATCH($F$8,Unmet_List,0),COLUMN(INDIRECT("calc"&$C24&"Yr5"))))) -> 430998.3247 | K24: =IF(K$22="","",INDIRECT("'Calculations'!" & ADDRESS(ROW(Unmet_List)-1 + MATCH($F$8,Unmet_List,0),COLUMN(INDIRECT("calc"&$C24&"Yr6"))))) -> 450161.2628 | L24: =IF(L$22="","",INDIRECT("'Calculations'!" & ADDRESS(ROW(Unmet_List)-1 + MATCH($F$8,Unmet_List,0),COLUMN(INDIRECT("calc"&$C24&"Yr7"))))) -> 469636.6019 | M24: =IF(M$22="","",INDIRECT("'Calculations'!" & ADDRESS(ROW(Unmet_List)-1 + MATCH($F$8,Unmet_List,0),COLUMN(INDIRECT("calc"&$C24&"Yr8"))))) ->  | N24: =IF(N$22="","",INDIRECT("'Calculations'!" & ADDRESS(ROW(Unmet_List)-1 + MATCH($F$8,Unmet_List,0),COLUMN(INDIRECT("calc"&$C24&"Yr9"))))) ->  | O24: =IF(O$22="","",INDIRECT("'Calculations'!" & ADDRESS(ROW(Unmet_List)-1 + MATCH($F$8,Unmet_List,0),COLUMN(INDIRECT("calc"&$C24&"Yr10"))))) ->  | W24: 22 | Z24: Implant users
C25: Scen2 | D25: =inScen2Name -> Scen3 | F25: =IF(F$22="","",INDIRECT("'Calculations'!" & ADDRESS(ROW(Unmet_List)-1 + MATCH($F$8,Unmet_List,0),COLUMN(INDIRECT("calc"&$C25&"Yr1"))))) -> 357470.5819 | G25: =IF(G$22="","",INDIRECT("'Calculations'!" & ADDRESS(ROW(Unmet_List)-1 + MATCH($F$8,Unmet_List,0),COLUMN(INDIRECT("calc"&$C25&"Yr2"))))) -> 375383.9161 | H25: =IF(H$22="","",INDIRECT("'Calculations'!" & ADDRESS(ROW(Unmet_List)-1 + MATCH($F$8,Unmet_List,0),COLUMN(INDIRECT("calc"&$C25&"Yr3"))))) -> 393609.6513 | I25: =IF(I$22="","",INDIRECT("'Calculations'!"&ADDRESS(ROW(Unmet_List)-1+MATCH($F$8,Unmet_List,0),COLUMN(INDIRECT("calc"&$C25&"Yr4"))))) -> 412147.7875 | J25: =IF(J$22="","",INDIRECT("'Calculations'!" & ADDRESS(ROW(Unmet_List)-1 + MATCH($F$8,Unmet_List,0),COLUMN(INDIRECT("calc"&$C25&"Yr5"))))) -> 430998.3247 | K25: =IF(K$22="","",INDIRECT("'Calculations'!" & ADDRESS(ROW(Unmet_List)-1 + MATCH($F$8,Unmet_List,0),COLUMN(INDIRECT("calc"&$C25&"Yr6"))))) -> 450161.2628 | L25: =IF(L$22="","",INDIRECT("'Calculations'!" & ADDRESS(ROW(Unmet_List)-1 + MATCH($F$8,Unmet_List,0),COLUMN(INDIRECT("calc"&$C25&"Yr7"))))) -> 469636.6019 | M25: =IF(M$22="","",INDIRECT("'Calculations'!" & ADDRESS(ROW(Unmet_List)-1 + MATCH($F$8,Unmet_List,0),COLUMN(INDIRECT("calc"&$C25&"Yr8"))))) ->  | N25: =IF(N$22="","",INDIRECT("'Calculations'!" & ADDRESS(ROW(Unmet_List)-1 + MATCH($F$8,Unmet_List,0),COLUMN(INDIRECT("calc"&$C25&"Yr9"))))) ->  | O25: =IF(O$22="","",INDIRECT("'Calculations'!" & ADDRESS(ROW(Unmet_List)-1 + MATCH($F$8,Unmet_List,0),COLUMN(INDIRECT("calc"&$C25&"Yr10"))))) ->  | Z25: Standard Days Method (SDM) users
D26: * Acceptor results are expressed as the average annual number of acceptors over the course of the period of analysis. | Z26: Other modern users
Z27: All traditional users
Z28: Male sterilization acceptors *
Z29: Female sterilization acceptors *
Z30: IUD acceptors *
H31: =ConStartYr -> 2017 | I31: =IFERROR(IF(H31+1<=Configuration!$F$14,H31+1,""),"") -> 2018 | J31: =IFERROR(IF(I31+1<=Configuration!$F$14,I31+1,""),"") -> 2019 | K31: =IFERROR(IF(J31+1<=Configuration!$F$14,J31+1,""),"") -> 2020 | L31: =IFERROR(IF(K31+1<=Configuration!$F$14,K31+1,""),"") -> 2021 | M31: =IFERROR(IF(L31+1<=Configuration!$F$14,L31+1,""),"") -> 2022 | N31: =IFERROR(IF(M31+1<=Configuration!$F$14,M31+1,""),"") -> 2023 | O31: =IFERROR(IF(N31+1<=Configuration!$F$14,N31+1,""),"") ->  | P31: =IFERROR(IF(O31+1<=Configuration!$F$14,O31+1,""),"") ->  | Q31: =IFERROR(IF(P31+1<=Configuration!$F$14,P31+1,""),"") ->  | Z31: Implant acceptors *
G32: Usual | H32: =inUnmet1 -> 0.2424 | I32: =IF(I31="","",$H$42*I31+$H$43) -> 0.2398 | J32: =IF(J31="","",$H$42*J31+$H$43) -> 0.2372 | K32: 0.2346 | L32: 0.232 | M32: 0.2294 | N32: 0.2268 | Z32: SDM acceptors *
G33: Scen1 | H33: =inUnmet1 -> 0.2424 | I33: =IF(I31="","",$H$45*I31+$H$46) -> 0.2398 | J33: =IF(J31="","",$H$45*J31+$H$46) -> 0.2372 | K33: 0.2346 | L33: 0.232 | M33: 0.2294 | N33: 0.2268
G34: Scen2 | H34: =inUnmet1 -> 0.2424 | I34: =IF(I31="","",$H$48*I31+$H$49) -> 0.2398 | J34: =IF(J31="","",$H$48*J31+$H$49) -> 0.2372 | K34: 0.2346 | L34: 0.232 | M34: 0.2294 | N34: 0.2268
H36: =ConStartYr -> 2017 | I36: =ConEndYr -> 2023
G37: =G32 -> Usual | H37: =Q12 -> 0.2424 | I37: 0.2268
G38: =G33 -> Scen1 | H38: 0.2424 | I38: 0.2268
G39: =G34 -> Scen2 | H39: 0.2424 | I39: 0.2268
G42: Slope | H42: =(I37-H37)/(I36-H36) -> -0.0026
G43: Intercept | H43: =H37-H42*H36 -> 5.4866
G45: Slope | H45: =(I38-H38)/(I36-H36) -> -0.0026
G46: Intercept | H46: =H38-H45*H36 -> 5.4866
G48: Slope | H48: =(I39-H39)/(I36-H36) -> -0.0026
G49: Intercept | H49: =H39-H48*H36 -> 5.4866

Sheet Unmet_Summary
C2: 0
G9: Usual | H9: =inUsualName -> Usual | I9: ="usual"&I10 -> usual2017 | J9: ="usual"&J10 -> usual2018 | K9: usual2019 | L9: usual2020 | M9: usual2021 | N9: usual2022 | O9: usual2023 | P9: usual | Q9: usual | R9: usual
H10: Indicator | I10: =ConStartYr -> 2017 | J10: =IFERROR(IF(I10+1<=ConEndYr,I10+1,""),"") -> 2018 | K10: 2019 | L10: 2020 | M10: 2021 | N10: 2022 | O10: 2023
H11: Unintended pregnancies averted | I11: =IF(I$10="","",INDIRECT("'Calculations'!" & ADDRESS(ROW(Unmet_List)-1 + MATCH($H11,Unmet_List,0),COLUMN(INDIRECT("calc"&$G$9&"Yr1"))))) -> 357470.5819 | J11: =IF(J$10="","",INDIRECT("'Calculations'!" & ADDRESS(ROW(Unmet_List)-1 + MATCH($H11,Unmet_List,0),COLUMN(INDIRECT("calc"&$G$9&"Yr2"))))) -> 375383.9161 | K11: =IF(K$10="","",INDIRECT("'Calculations'!" & ADDRESS(ROW(Unmet_List)-1 + MATCH($H11,Unmet_List,0),COLUMN(INDIRECT("calc"&$G$9&"Yr3"))))) -> 393609.6513 | L11: =IF(L$10="","",INDIRECT("'Calculations'!" & ADDRESS(ROW(Unmet_List)-1 + MATCH($H11,Unmet_List,0),COLUMN(INDIRECT("calc"&$G$9&"Yr4"))))) -> 412147.7875 | M11: =IF(M$10="","",INDIRECT("'Calculations'!" & ADDRESS(ROW(Unmet_List)-1 + MATCH($H11,Unmet_List,0),COLUMN(INDIRECT("calc"&$G$9&"Yr5"))))) -> 430998.3247 | N11: =IF(N$10="","",INDIRECT("'Calculations'!" & ADDRESS(ROW(Unmet_List)-1 + MATCH($H11,Unmet_List,0),COLUMN(INDIRECT("calc"&$G$9&"Yr6"))))) -> 450161.2628 | O11: =IF(O$10="","",INDIRECT("'Calculations'!" & ADDRESS(ROW(Unmet_List)-1 + MATCH($H11,Unmet_List,0),COLUMN(INDIRECT("calc"&$G$9&"Yr7"))))) -> 469636.6019 | P11: =IF(P$10="","",INDIRECT("'Calculations'!" & ADDRESS(ROW(Unmet_List)-1 + MATCH($H11,Unmet_List,0),COLUMN(INDIRECT("calc"&$G$9&"Yr8"))))) ->  | Q11: =IF(Q$10="","",INDIRECT("'Calculations'!" & ADDRESS(ROW(Unmet_List)-1 + MATCH($H11,Unmet_List,0),COLUMN(INDIRECT("calc"&$G$9&"Yr9"))))) ->  | R11: =IF(R$10="","",INDIRECT("'Calculations'!" & ADDRESS(ROW(Unmet_List)-1 + MATCH($H11,Unmet_List,0),COLUMN(INDIRECT("calc"&$G$9&"Yr10"))))) ->  | S11: =SUM(I11:R11) -> 2889408.126
H12: Births averted | I12: 101918.3717 | J12: 107025.6391 | K12: 112221.9751 | L12: 117507.3797 | M12: 122881.8529 | N12: 128345.3946 | O12: 133898.005 | P12: =IF(P$10="","",INDIRECT("'Calculations'!" & ADDRESS(ROW(Unmet_List)-1 + MATCH($H12,Unmet_List,0),COLUMN(INDIRECT("calc"&$G$9&"Yr8"))))) ->  | S12: 823798.618
H13: Abortions Averted | I13: 217345.7529 | J13: 228237.2424 | K13: 239318.675 | L13: 250590.0505 | M13: 262051.369 | N13: 273702.6304 | O13: 285543.8349 | S13: 1756789.555
H14: Unsafe Abortions Averted | I14: 125613.1532 | J14: 131907.7981 | K14: 138312.219 | L14: 144826.4159 | M14: 151450.3887 | N14: 158184.1374 | O14: 165027.6621 | S14: 1015321.774
H15: Maternal deaths averted | I15: 629.1731165 | J15: 583.4458472 | K15: 530.7665211 | L15: 470.9422568 | M15: 403.780173 | N15: 329.0873884 | O15: 246.6710218 | S15: 3193.866325
H16: Child deaths averted | I16: 4482.414831 | J16: 4707.034699 | K16: 4935.571843 | L16: 5168.026262 | M16: 5404.397957 | N16: 5644.686927 | O16: 5888.893173 | S16: 36231.02569
H17: DALYs averted | I17: 416580.5949 | J17: 432840.0493 | K17: 449015.3314 | L17: 465094.9167 | M17: 481067.2808 | N17: 496920.8992 | O17: 512644.2476 | S17: 3254163.32
H18: Maternal & infant healthcare costs averted | I18: 6249614.351 | J18: 6562790.976 | K18: 6881429.27 | L18: 7205529.231 | M18: 7535090.861 | N18: 7870114.159 | O18: 8210599.124 | S18: 50515167.97
H19: CPR | I19: 0.2276 | J19: 0.2302 | K19: 0.2328 | L19: 0.2354 | M19: 0.238 | N19: 0.2406 | O19: 0.2432 | S19: =IFERROR(AVERAGE(I19:R19),"") -> 0.2354
H20: Total FP costs | I20: 7685247.598 | J20: 8070365.746 | K20: 8462200.193 | L20: 8860750.937 | M20: 9266017.979 | N20: 9678001.319 | O20: 10096700.96 | S20: 62119284.73
H21: Cost-benefit ratio | I21: 0.8131962271 | J21: 0.8131962271 | K21: 0.8131962271 | L21: 0.8131962271 | M21: 0.8131962271 | N21: 0.8131962271 | O21: 0.8131962271 | S21: =IFERROR(AVERAGE(I21:R21),"") -> 0.8131962271
H22: Total users | I22: 1265432.584 | J22: 1328845.122 | K22: 1393363.548 | L22: 1458987.861 | M22: 1525718.063 | N22: 1593554.152 | O22: 1662496.129 | S22: 10228397.46
H23: Condom users | I23: 186425.3361 | J23: 195767.3617 | K23: 205272.3084 | L23: 214940.176 | M23: 224770.9646 | N23: 234764.6742 | O23: 244921.3048 | S23: 1506862.126
H24: Injectable users | I24: 276813.3778 | J24: 290684.8705 | K24: 304798.2761 | L24: 319153.5947 | M24: 333750.8263 | N24: 348589.9708 | O24: 363671.0283 | S24: 2237461.944
H25: Pill users | I25: 384149.1774 | J25: 403399.4121 | K25: 422985.3627 | L25: 442907.0294 | M25: 463164.412 | N25: 483757.5105 | O25: 504686.325 | S25: 3105049.229
H26: Male sterilization users | I26: 0 | J26: 0 | K26: 0 | L26: 0 | M26: 0 | N26: 0 | O26: 0 | S26: 0
H27: Female sterilization users | I27: 101686.547 | J27: 106782.1973 | K27: 111966.7137 | L27: 117240.096 | M27: 122602.3443 | N27: 128053.4587 | O27: 133593.439 | S27: 821924.7959
H28: IUD users | I28: 79089.53652 | J28: 83052.82013 | K28: 87085.22174 | L28: 91186.74134 | M28: 95357.37893 | N28: 99597.13451 | O28: 103906.0081 | S28: 639274.8413
H29: Implant users | I29: 11298.50522 | J29: 11864.68859 | K29: 12440.74596 | L29: 13026.67733 | M29: 13622.4827 | N29: 14228.16207 | O29: 14843.71544 | S29: 91324.97732
H30: Standard Days Method (SDM) users | I30: 0 | J30: 0 | K30: 0 | L30: 0 | M30: 0 | N30: 0 | O30: 0 | S30: 0
H31: Other modern users | I31: 0 | J31: 0 | K31: 0 | L31: 0 | M31: 0 | N31: 0 | O31: 0 | S31: 0
H32: All traditional users | I32: 152529.8204 | J32: 160173.296 | K32: 167950.0705 | L32: 175860.144 | M32: 183903.5165 | N32: 192080.188 | O32: 200390.1585 | S32: 1232887.194
H33: Male sterilization acceptors * | I33: 0 | J33: 0 | K33: 0 | L33: 0 | M33: 0 | N33: 0 | O33: 0 | S33: 0
H34: Female sterilization acceptors * | I34: 27991.3794 | J34: 27991.3794 | K34: 27991.3794 | L34: 27991.3794 | M34: 27991.3794 | N34: 27991.3794 | O34: 27991.3794 | S34: 195939.6558
H35: IUD acceptors * | I35: 21172.00511 | J35: 21172.00511 | K35: 21172.00511 | L35: 21172.00511 | M35: 21172.00511 | N35: 21172.00511 | O35: 21172.00511 | S35: 148204.0358
H36: Implant acceptors * | I36: 3793.381533 | J36: 3793.381533 | K36: 3793.381533 | L36: 3793.381533 | M36: 3793.381533 | N36: 3793.381533 | O36: 3793.381533 | S36: 26553.67073
H37: SDM acceptors * | I37: 0 | J37: 0 | K37: 0 | L37: 0 | M37: 0 | N37: 0 | O37: 0 | S37: 0
G38: Scen1 | H38: =inScen1Name -> Scen2 | I38: ="scen1"&I39 -> scen12017 | J38: ="scen1"&J39 -> scen12018 | K38: scen12019 | L38: scen12020 | M38: scen12021 | N38: scen12022 | O38: scen12023 | P38: scen1 | Q38: scen1 | R38: scen1
H39: Indicator | I39: =ConStartYr -> 2017 | J39: =IFERROR(IF(I39+1<=ConEndYr,I39+1,""),"") -> 2018 | K39: 2019 | L39: 2020 | M39: 2021 | N39: 2022 | O39: 2023
H40: Unintended pregnancies averted | I40: =IF(I$10="","",INDIRECT("'Calculations'!" & ADDRESS(ROW(Unmet_List)-1 + MATCH($H40,Unmet_List,0),COLUMN(INDIRECT("calc"&$G$38&"Yr1"))))) -> 357470.5819 | J40: =IF(J$10="","",INDIRECT("'Calculations'!" & ADDRESS(ROW(Unmet_List)-1 + MATCH($H40,Unmet_List,0),COLUMN(INDIRECT("calc"&$G$38&"Yr2"))))) -> 375383.9161 | K40: =IF(K$10="","",INDIRECT("'Calculations'!" & ADDRESS(ROW(Unmet_List)-1 + MATCH($H40,Unmet_List,0),COLUMN(INDIRECT("calc"&$G$38&"Yr3"))))) -> 393609.6513 | L40: =IF(L$10="","",INDIRECT("'Calculations'!" & ADDRESS(ROW(Unmet_List)-1 + MATCH($H40,Unmet_List,0),COLUMN(INDIRECT("calc"&$G$38&"Yr4"))))) -> 412147.7875 | M40: =IF(M$10="","",INDIRECT("'Calculations'!" & ADDRESS(ROW(Unmet_List)-1 + MATCH($H40,Unmet_List,0),COLUMN(INDIRECT("calc"&$G$38&"Yr5"))))) -> 430998.3247 | N40: =IF(N$10="","",INDIRECT("'Calculations'!" & ADDRESS(ROW(Unmet_List)-1 + MATCH($H40,Unmet_List,0),COLUMN(INDIRECT("calc"&$G$38&"Yr6"))))) -> 450161.2628 | O40: =IF(O$10="","",INDIRECT("'Calculations'!" & ADDRESS(ROW(Unmet_List)-1 + MATCH($H40,Unmet_List,0),COLUMN(INDIRECT("calc"&$G$38&"Yr7"))))) -> 469636.6019 | P40: =IF(P$10="","",INDIRECT("'Calculations'!" & ADDRESS(ROW(Unmet_List)-1 + MATCH($H40,Unmet_List,0),COLUMN(INDIRECT("calc"&$G$38&"Yr8"))))) ->  | Q40: =IF(Q$10="","",INDIRECT("'Calculations'!" & ADDRESS(ROW(Unmet_List)-1 + MATCH($H40,Unmet_List,0),COLUMN(INDIRECT("calc"&$G$38&"Yr9"))))) ->  | R40: =IF(R$10="","",INDIRECT("'Calculations'!" & ADDRESS(ROW(Unmet_List)-1 + MATCH($H40,Unmet_List,0),COLUMN(INDIRECT("calc"&$G$38&"Yr10"))))) ->  | S40: =SUM(I40:R40) -> 2889408.126
H41: Births averted | I41: 101918.3717 | J41: 107025.6391 | K41: 112221.9751 | L41: 117507.3797 | M41: 122881.8529 | N41: 128345.3946 | O41: 133898.005 | S41: =SUM(I41:R41) -> 823798.618
H42: Abortions Averted | I42: 217345.7529 | J42: 228237.2424 | K42: 239318.675 | L42: 250590.0505 | M42: 262051.369 | N42: 273702.6304 | O42: 285543.8349 | S42: 1756789.555
H43: Unsafe Abortions Averted | I43: 125613.1532 | J43: 131907.7981 | K43: 138312.219 | L43: 144826.4159 | M43: 151450.3887 | N43: 158184.1374 | O43: 165027.6621 | S43: 1015321.774
H44: Maternal deaths averted | I44: 629.1731165 | J44: 583.4458472 | K44: 530.7665211 | L44: 470.9422568 | M44: 403.780173 | N44: 329.0873884 | O44: 246.6710218 | S44: 3193.866325
H45: Child deaths averted | I45: 4482.414831 | J45: 4707.034699 | K45: 4935.571843 | L45: 5168.026262 | M45: 5404.397957 | N45: 5644.686927 | O45: 5888.893173 | S45: 36231.02569
H46: DALYs averted | I46: 416580.5949 | J46: 432840.0493 | K46: 449015.3314 | L46: 465094.9167 | M46: 481067.2808 | N46: 496920.8992 | O46: 512644.2476 | S46: 3254163.32
H47: Maternal & infant healthcare costs averted | I47: 6249614.351 | J47: 6562790.976 | K47: 6881429.27 | L47: 7205529.231 | M47: 7535090.861 | N47: 7870114.159 | O47: 8210599.124 | S47: 50515167.97
H48: CPR | I48: 0.2276 | J48: 0.2302 | K48: 0.2328 | L48: 0.2354 | M48: 0.238 | N48: 0.2406 | O48: 0.2432 | S48: =IFERROR(AVERAGE(I48:R48),"") -> 0.2354
H49: Total FP costs | I49: 7685247.598 | J49: 8070365.746 | K49: 8462200.193 | L49: 8860750.937 | M49: 9266017.979 | N49: 9678001.319 | O49: 10096700.96 | S49: 62119284.73
H50: Cost-benefit ratio | I50: 0.8131962271 | J50: 0.8131962271 | K50: 0.8131962271 | L50: 0.8131962271 | M50: 0.8131962271 | N50: 0.8131962271 | O50: 0.8131962271 | S50: =IFERROR(AVERAGE(I50:R50),"") -> 0.8131962271
H51: Total users | I51: 1265432.584 | J51: 1328845.122 | K51: 1393363.548 | L51: 1458987.861 | M51: 1525718.063 | N51: 1593554.152 | O51: 1662496.129 | S51: 10228397.46
H52: Condom users | I52: 186425.3361 | J52: 195767.3617 | K52: 205272.3084 | L52: 214940.176 | M52: 224770.9646 | N52: 234764.6742 | O52: 244921.3048 | S52: 1506862.126
H53: Injectable users | I53: 276813.3778 | J53: 290684.8705 | K53: 304798.2761 | L53: 319153.5947 | M53: 333750.8263 | N53: 348589.9708 | O53: 363671.0283 | S53: 2237461.944
H54: Pill users | I54: 384149.1774 | J54: 403399.4121 | K54: 422985.3627 | L54: 442907.0294 | M54: 463164.412 | N54: 483757.5105 | O54: 504686.325 | S54: 3105049.229
H55: Male sterilization users | I55: 0 | J55: 0 | K55: 0 | L55: 0 | M55: 0 | N55: 0 | O55: 0 | S55: 0
H56: Female sterilization users | I56: 101686.547 | J56: 106782.1973 | K56: 111966.7137 | L56: 117240.096 | M56: 122602.3443 | N56: 128053.4587 | O56: 133593.439 | S56: 821924.7959
H57: IUD users | I57: 79089.53652 | J57: 83052.82013 | K57: 87085.22174 | L57: 91186.74134 | M57: 95357.37893 | N57: 99597.13451 | O57: 103906.0081 | S57: 639274.8413
H58: Implant users | I58: 11298.50522 | J58: 11864.68859 | K58: 12440.74596 | L58: 13026.67733 | M58: 13622.4827 | N58: 14228.16207 | O58: 14843.71544 | S58: 91324.97732
H59: Standard Days Method (SDM) users | I59: 0 | J59: 0 | K59: 0 | L59: 0 | M59: 0 | N59: 0 | O59: 0 | S59: 0
H60: Other modern users | I60: 0 | J60: 0 | K60: 0 | L60: 0 | M60: 0 | N60: 0 | O60: 0 | S60: 0
H61: All traditional users | I61: 152529.8204 | J61: 160173.296 | K61: 167950.0705 | L61: 175860.144 | M61: 183903.5165 | N61: 192080.188 | O61: 200390.1585 | S61: 1232887.194
H62: Male sterilization acceptors * | I62: 0 | J62: 0 | K62: 0 | L62: 0 | M62: 0 | N62: 0 | O62: 0 | S62: 0
H63: Female sterilization acceptors * | I63: 27991.3794 | J63: 27991.3794 | K63: 27991.3794 | L63: 27991.3794 | M63: 27991.3794 | N63: 27991.3794 | O63: 27991.3794 | S63: 195939.6558
H64: IUD acceptors * | I64: 21172.00511 | J64: 21172.00511 | K64: 21172.00511 | L64: 21172.00511 | M64: 21172.00511 | N64: 21172.00511 | O64: 21172.00511 | S64: 148204.0358
H65: Implant acceptors * | I65: 3793.381533 | J65: 3793.381533 | K65: 3793.381533 | L65: 3793.381533 | M65: 3793.381533 | N65: 3793.381533 | O65: 3793.381533 | S65: 26553.67073
H66: SDM acceptors * | I66: 0 | J66: 0 | K66: 0 | L66: 0 | M66: 0 | N66: 0 | O66: 0 | S66: 0
G67: Scen2 | H67: =inScen1Name -> Scen2 | I67: ="scen2"&I68 -> scen22017 | J67: ="scen2"&J68 -> scen22018 | K67: scen22019 | L67: scen22020 | M67: scen22021 | N67: scen22022 | O67: scen22023 | P67: scen2 | Q67: scen2 | R67: scen2
H68: Indicator | I68: =ConStartYr -> 2017 | J68: =IFERROR(IF(I68+1<=ConEndYr,I68+1,""),"") -> 2018 | K68: 2019 | L68: 2020 | M68: 2021 | N68: 2022 | O68: 2023
H69: Unintended pregnancies averted | I69: =IF(I$10="","",INDIRECT("'Calculations'!" & ADDRESS(ROW(Unmet_List)-1 + MATCH($H69,Unmet_List,0),COLUMN(INDIRECT("calc"&$G$67&"Yr1"))))) -> 357470.5819 | J69: =IF(J$10="","",INDIRECT("'Calculations'!" & ADDRESS(ROW(Unmet_List)-1 + MATCH($H69,Unmet_List,0),COLUMN(INDIRECT("calc"&$G$67&"Yr2"))))) -> 375383.9161 | K69: =IF(K$10="","",INDIRECT("'Calculations'!" & ADDRESS(ROW(Unmet_List)-1 + MATCH($H69,Unmet_List,0),COLUMN(INDIRECT("calc"&$G$67&"Yr3"))))) -> 393609.6513 | L69: =IF(L$10="","",INDIRECT("'Calculations'!" & ADDRESS(ROW(Unmet_List)-1 + MATCH($H69,Unmet_List,0),COLUMN(INDIRECT("calc"&$G$67&"Yr4"))))) -> 412147.7875 | M69: =IF(M$10="","",INDIRECT("'Calculations'!" & ADDRESS(ROW(Unmet_List)-1 + MATCH($H69,Unmet_List,0),COLUMN(INDIRECT("calc"&$G$67&"Yr5"))))) -> 430998.3247 | N69: =IF(N$10="","",INDIRECT("'Calculations'!" & ADDRESS(ROW(Unmet_List)-1 + MATCH($H69,Unmet_List,0),COLUMN(INDIRECT("calc"&$G$67&"Yr6"))))) -> 450161.2628 | O69: =IF(O$10="","",INDIRECT("'Calculations'!" & ADDRESS(ROW(Unmet_List)-1 + MATCH($H69,Unmet_List,0),COLUMN(INDIRECT("calc"&$G$67&"Yr7"))))) -> 469636.6019 | P69: =IF(P$10="","",INDIRECT("'Calculations'!" & ADDRESS(ROW(Unmet_List)-1 + MATCH($H69,Unmet_List,0),COLUMN(INDIRECT("calc"&$G$67&"Yr8"))))) ->  | Q69: =IF(Q$10="","",INDIRECT("'Calculations'!" & ADDRESS(ROW(Unmet_List)-1 + MATCH($H69,Unmet_List,0),COLUMN(INDIRECT("calc"&$G$67&"Yr9"))))) ->  | R69: =IF(R$10="","",INDIRECT("'Calculations'!" & ADDRESS(ROW(Unmet_List)-1 + MATCH($H69,Unmet_List,0),COLUMN(INDIRECT("calc"&$G$67&"Yr10"))))) ->  | S69: =SUM(I69:R69) -> 2889408.126
H70: Births averted | I70: 101918.3717 | J70: 107025.6391 | K70: 112221.9751 | L70: 117507.3797 | M70: 122881.8529 | N70: 128345.3946 | O70: 133898.005 | S70: 823798.618
H71: Abortions Averted | I71: 217345.7529 | J71: 228237.2424 | K71: 239318.675 | L71: 250590.0505 | M71: 262051.369 | N71: 273702.6304 | O71: 285543.8349 | S71: 1756789.555
H72: Unsafe Abortions Averted | I72: 125613.1532 | J72: 131907.7981 | K72: 138312.219 | L72: 144826.4159 | M72: 151450.3887 | N72: 158184.1374 | O72: 165027.6621 | S72: 1015321.774
H73: Maternal deaths averted | I73: 629.1731165 | J73: 583.4458472 | K73: 530.7665211 | L73: 470.9422568 | M73: 403.780173 | N73: 329.0873884 | O73: 246.6710218 | S73: 3193.866325
H74: Child deaths averted | I74: 4482.414831 | J74: 4707.034699 | K74: 4935.571843 | L74: 5168.026262 | M74: 5404.397957 | N74: 5644.686927 | O74: 5888.893173 | S74: 36231.02569
H75: DALYs averted | I75: 416580.5949 | J75: 432840.0493 | K75: 449015.3314 | L75: 465094.9167 | M75: 481067.2808 | N75: 496920.8992 | O75: 512644.2476 | S75: 3254163.32
H76: Maternal & infant healthcare costs averted | I76: 6249614.351 | J76: 6562790.976 | K76: 6881429.27 | L76: 7205529.231 | M76: 7535090.861 | N76: 7870114.159 | O76: 8210599.124 | S76: 50515167.97
H77: CPR | I77: 0.2276 | J77: 0.2302 | K77: 0.2328 | L77: 0.2354 | M77: 0.238 | N77: 0.2406 | O77: 0.2432 | S77: =IFERROR(AVERAGE(I77:R77),"") -> 0.2354
H78: Total FP costs | I78: 7685247.598 | J78: 8070365.746 | K78: 8462200.193 | L78: 8860750.937 | M78: 9266017.979 | N78: 9678001.319 | O78: 10096700.96 | S78: 62119284.73
H79: Cost-benefit ratio | I79: 0.8131962271 | J79: 0.8131962271 | K79: 0.8131962271 | L79: 0.8131962271 | M79: 0.8131962271 | N79: 0.8131962271 | O79: 0.8131962271 | S79: =IFERROR(AVERAGE(I79:R79),"") -> 0.8131962271
H80: Total users | I80: 1265432.584 | J80: 1328845.122 | K80: 1393363.548 | L80: 1458987.861 | M80: 1525718.063 | N80: 1593554.152 | O80: 1662496.129 | S80: 10228397.46
H81: Condom users | I81: 186425.3361 | J81: 195767.3617 | K81: 205272.3084 | L81: 214940.176 | M81: 224770.9646 | N81: 234764.6742 | O81: 244921.3048 | S81: 1506862.126
H82: Injectable users | I82: 276813.3778 | J82: 290684.8705 | K82: 304798.2761 | L82: 319153.5947 | M82: 333750.8263 | N82: 348589.9708 | O82: 363671.0283 | S82: 2237461.944
H83: Pill users | I83: 384149.1774 | J83: 403399.4121 | K83: 422985.3627 | L83: 442907.0294 | M83: 463164.412 | N83: 483757.5105 | O83: 504686.325 | S83: 3105049.229
H84: Male sterilization users | I84: 0 | J84: 0 | K84: 0 | L84: 0 | M84: 0 | N84: 0 | O84: 0 | S84: 0
H85: Female sterilization users | I85: 101686.547 | J85: 106782.1973 | K85: 111966.7137 | L85: 117240.096 | M85: 122602.3443 | N85: 128053.4587 | O85: 133593.439 | S85: 821924.7959
H86: IUD users | I86: 79089.53652 | J86: 83052.82013 | K86: 87085.22174 | L86: 91186.74134 | M86: 95357.37893 | N86: 99597.13451 | O86: 103906.0081 | S86: 639274.8413
H87: Implant users | I87: 11298.50522 | J87: 11864.68859 | K87: 12440.74596 | L87: 13026.67733 | M87: 13622.4827 | N87: 14228.16207 | O87: 14843.71544 | S87: 91324.97732
H88: Standard Days Method (SDM) users | I88: 0 | J88: 0 | K88: 0 | L88: 0 | M88: 0 | N88: 0 | O88: 0 | S88: 0
H89: Other modern users | I89: 0 | J89: 0 | K89: 0 | L89: 0 | M89: 0 | N89: 0 | O89: 0 | S89: 0
H90: All traditional users | I90: 152529.8204 | J90: 160173.296 | K90: 167950.0705 | L90: 175860.144 | M90: 183903.5165 | N90: 192080.188 | O90: 200390.1585 | S90: 1232887.194
H91: Male sterilization acceptors * | I91: 0 | J91: 0 | K91: 0 | L91: 0 | M91: 0 | N91: 0 | O91: 0 | S91: 0
H92: Female sterilization acceptors * | I92: 27991.3794 | J92: 27991.3794 | K92: 27991.3794 | L92: 27991.3794 | M92: 27991.3794 | N92: 27991.3794 | O92: 27991.3794 | S92: 195939.6558
H93: IUD acceptors * | I93: 21172.00511 | J93: 21172.00511 | K93: 21172.00511 | L93: 21172.00511 | M93: 21172.00511 | N93: 21172.00511 | O93: 21172.00511 | S93: 148204.0358
H94: Implant acceptors * | I94: 3793.381533 | J94: 3793.381533 | K94: 3793.381533 | L94: 3793.381533 | M94: 3793.381533 | N94: 3793.381533 | O94: 3793.381533 | S94: 26553.67073
H95: SDM acceptors * | I95: 0 | J95: 0 | K95: 0 | L95: 0 | M95: 0 | N95: 0 | O95: 0 | S95: 0
H96: * Acceptor results are expressed as the average annual number of acceptors over the course of the period of analysis.

Sheet Unmet_Comparison
C2: 0
D3: Incremental difference compared to
D4: Percentage difference compared to
K9: =D3 & inUsualName -> Incremental difference compared toUsual | O9: =D4 & inUsualName -> Percentage difference compared toUsual
E10: =inUsualName -> Usual | G10: =inScen1Name -> Scen2 | I10: =inScen2Name -> Scen3 | K10: =inScen1Name -> Scen2 | M10: =inScen2Name -> Scen3 | O10: =inScen1Name -> Scen2 | Q10: =inScen2Name -> Scen3
D11: =Unmet_Summary!H11 -> Unintended pregnancies averted | E11: =Unmet_Summary!S11 -> 2889408.126 | G11: =Unmet_Summary!S40 -> 2889408.126 | I11: =Unmet_Summary!S69 -> 2889408.126 | K11: =IFERROR(G11-E11,"") -> 0 | M11: =IFERROR(I11-E11,"") -> 0 | O11: =IFERROR(K11/E11,"") -> 0 | Q11: =IFERROR(M11/E11,"") -> 0
D12: =Unmet_Summary!H12 -> Births averted | E12: =Unmet_Summary!S12 -> 823798.618 | G12: =Unmet_Summary!S41 -> 823798.618 | I12: =Unmet_Summary!S70 -> 823798.618 | K12: 0 | M12: 0 | O12: =IFERROR(K12/E12,"") -> 0 | Q12: =IFERROR(M12/E12,"") -> 0
D13: =Unmet_Summary!H13 -> Abortions Averted | E13: =Unmet_Summary!S13 -> 1756789.555 | G13: =Unmet_Summary!S42 -> 1756789.555 | I13: =Unmet_Summary!S71 -> 1756789.555 | K13: 0 | M13: 0 | O13: 0 | Q13: 0
D14: =Unmet_Summary!H14 -> Unsafe Abortions Averted | E14: =Unmet_Summary!S14 -> 1015321.774 | G14: =Unmet_Summary!S43 -> 1015321.774 | I14: =Unmet_Summary!S72 -> 1015321.774 | K14: 0 | M14: 0 | O14: 0 | Q14: 0
D15: =Unmet_Summary!H15 -> Maternal deaths averted | E15: =Unmet_Summary!S15 -> 3193.866325 | G15: =Unmet_Summary!S44 -> 3193.866325 | I15: =Unmet_Summary!S73 -> 3193.866325 | K15: -5.911715562e-12 | M15: -5.911715562e-12 | O15: -1.850958982e-15 | Q15: -1.850958982e-15
D16: =Unmet_Summary!H16 -> Child deaths averted | E16: =Unmet_Summary!S16 -> 36231.02569 | G16: =Unmet_Summary!S45 -> 36231.02569 | I16: =Unmet_Summary!S74 -> 36231.02569 | K16: 0 | M16: 0 | O16: 0 | Q16: 0
D17: =Unmet_Summary!H17 -> DALYs averted | E17: =Unmet_Summary!S17 -> 3254163.32 | G17: =Unmet_Summary!S46 -> 3254163.32 | I17: =Unmet_Summary!S75 -> 3254163.32 | K17: -4.656612873e-10 | M17: -4.656612873e-10 | O17: -1.430970857e-16 | Q17: -1.430970857e-16
D18: =Unmet_Summary!H18 -> Maternal & infant healthcare costs averted | E18: =Unmet_Summary!S18 -> 50515167.97 | G18: =Unmet_Summary!S47 -> 50515167.97 | I18: =Unmet_Summary!S76 -> 50515167.97 | K18: 0 | M18: 0 | O18: 0 | Q18: 0
D19: =Unmet_Summary!H19 -> CPR | E19: =Unmet_Summary!S19 -> 0.2354 | G19: =Unmet_Summary!S48 -> 0.2354 | I19: =Unmet_Summary!S77 -> 0.2354 | K19: 0 | M19: 0 | O19: 0 | Q19: 0
D20: =Unmet_Summary!H20 -> Total FP costs | E20: =Unmet_Summary!S20 -> 62119284.73 | G20: =Unmet_Summary!S49 -> 62119284.73 | I20: =Unmet_Summary!S78 -> 62119284.73 | K20: 0 | M20: 0 | O20: 0 | Q20: 0
D21: =Unmet_Summary!H21 -> Cost-benefit ratio | E21: =Unmet_Summary!S21 -> 0.8131962271 | G21: =Unmet_Summary!S50 -> 0.8131962271 | I21: =Unmet_Summary!S79 -> 0.8131962271 | K21: 0 | M21: 0 | O21: 0 | Q21: 0
D22: Total user-years | E22: =Unmet_Summary!S22 -> 10228397.46 | G22: =Unmet_Summary!S51 -> 10228397.46 | I22: =Unmet_Summary!S80 -> 10228397.46 | K22: 0 | M22: 0 | O22: 0 | Q22: 0
D23: Condom user-years | E23: =Unmet_Summary!S23 -> 1506862.126 | G23: =Unmet_Summary!S52 -> 1506862.126 | I23: =Unmet_Summary!S81 -> 1506862.126 | K23: 0 | M23: 0 | O23: 0 | Q23: 0
D24: Injectible user-years | E24: =Unmet_Summary!S24 -> 2237461.944 | G24: =Unmet_Summary!S53 -> 2237461.944 | I24: =Unmet_Summary!S82 -> 2237461.944 | K24: 0 | M24: 0 | O24: 0 | Q24: 0
D25: Pill user-years | E25: =Unmet_Summary!S25 -> 3105049.229 | G25: =Unmet_Summary!S54 -> 3105049.229 | I25: =Unmet_Summary!S83 -> 3105049.229 | K25: 0 | M25: 0 | O25: 0 | Q25: 0
D26: Male sterilization user-years | E26: =Unmet_Summary!S26 -> 0 | G26: =Unmet_Summary!S55 -> 0 | I26: =Unmet_Summary!S84 -> 0 | K26: 0 | M26: 0
D27: Female sterilization user-years | E27: =Unmet_Summary!S27 -> 821924.7959 | G27: =Unmet_Summary!S56 -> 821924.7959 | I27: =Unmet_Summary!S85 -> 821924.7959 | K27: 0 | M27: 0 | O27: 0 | Q27: 0
D28: IUD user-years | E28: =Unmet_Summary!S28 -> 639274.8413 | G28: =Unmet_Summary!S57 -> 639274.8413 | I28: =Unmet_Summary!S86 -> 639274.8413 | K28: 0 | M28: 0 | O28: 0 | Q28: 0
D29: Implant user-years | E29: =Unmet_Summary!S29 -> 91324.97732 | G29: =Unmet_Summary!S58 -> 91324.97732 | I29: =Unmet_Summary!S87 -> 91324.97732 | K29: 0 | M29: 0 | O29: 0 | Q29: 0
D30: Standard Days Method (SDM) user-years | E30: =Unmet_Summary!S30 -> 0 | G30: =Unmet_Summary!S59 -> 0 | I30: =Unmet_Summary!S88 -> 0 | K30: 0 | M30: 0
D31: Other modern user-years | E31: =Unmet_Summary!S31 -> 0 | G31: =Unmet_Summary!S60 -> 0 | I31: =Unmet_Summary!S89 -> 0 | K31: 0 | M31: 0
D32: All traditional user-years | E32: =Unmet_Summary!S32 -> 1232887.194 | G32: =Unmet_Summary!S61 -> 1232887.194 | I32: =Unmet_Summary!S90 -> 1232887.194 | K32: =IFERROR(G32-E32,"") -> 0 | M32: 0 | O32: 0 | Q32: 0
D33: =Unmet_Summary!H33 -> Male sterilization acceptors * | E33: =Unmet_Summary!S33 -> 0 | G33: =Unmet_Summary!S62 -> 0 | I33: =Unmet_Summary!S91 -> 0 | K33: 0 | M33: 0
D34: =Unmet_Summary!H34 -> Female sterilization acceptors * | E34: =Unmet_Summary!S34 -> 195939.6558 | G34: =Unmet_Summary!S63 -> 195939.6558 | I34: =Unmet_Summary!S92 -> 195939.6558 | K34: 0 | M34: =IFERROR(I34-E34,"") -> 0 | O34: =IFERROR(K34/E34,"") -> 0 | Q34: 0
D35: =Unmet_Summary!H35 -> IUD acceptors * | E35: =Unmet_Summary!S35 -> 148204.0358 | G35: =Unmet_Summary!S64 -> 148204.0358 | I35: =Unmet_Summary!S93 -> 148204.0358 | K35: 0 | M35: =IFERROR(I35-E35,"") -> 0 | O35: =IFERROR(K35/E35,"") -> 0 | Q35: 0
D36: =Unmet_Summary!H36 -> Implant acceptors * | E36: =Unmet_Summary!S36 -> 26553.67073 | G36: =Unmet_Summary!S65 -> 26553.67073 | I36: =Unmet_Summary!S94 -> 26553.67073 | K36: 0 | M36: =IFERROR(I36-E36,"") -> 0 | O36: =IFERROR(K36/E36,"") -> 0 | Q36: 0
D37: =Unmet_Summary!H37 -> SDM acceptors * | E37: =Unmet_Summary!S37 -> 0 | G37: =Unmet_Summary!S66 -> 0 | I37: =Unmet_Summary!S95 -> 0 | K37: 0 | M37: =IFERROR(I37-E37,"") -> 0 | O37: =IFERROR(K37/E37,"") -> 
D38: * Acceptor results are expressed as the average annual number of acceptors over the course of the period of analysis.

Sheet Unmet_ICER
C2: 0
D20: Outcome | E20: Unintended pregnancies averted
E21: Program | G21: FP Costs | H21: Outcome | I21: Incremental Costs | K21: Difference in X outcome | N21: ICER
E22: =inUsualName -> Usual | G22: =Unmet_Comparison!E20 -> 62119284.73 | H22: =INDEX(UnmetCompOut,MATCH($E$20,UnmetCompList,0),1) -> 2889408.126
E23: =inScen1Name -> Scen2 | G23: =Unmet_Comparison!G20 -> 62119284.73 | H23: =INDEX(UnmetCompOut,MATCH($E$20,UnmetCompList,0),3) -> 2889408.126 | I23: =G23-G22 -> 0 | K23: =H23-H22 -> 0 | N23: =IFERROR(I23/K23,"") -> 
E24: =inScen2Name -> Scen3 | G24: =Unmet_Comparison!I20 -> 62119284.73 | H24: =INDEX(UnmetCompOut,MATCH($E$20,UnmetCompList,0),5) -> 2889408.126 | I24: =G24-G22 -> 0 | K24: =H24-H22 -> 0 | N24: =IFERROR(I24/K24,"") -> 
E25: * Acceptor results are expressed as the average annual number of acceptors over the course of the period of analysis.

Sheet Hoja1
J1: No. | K1: CÓDIGO HTML | L1: DESCIPCION
J2: 2 | K2: <!DOCTYPE html> <html> <head> <title>Impact Now - Dashboard</title> <meta http-equiv="Content-Type" content="text/html; charset=utf-8_spanish_ci" /> <meta name="viewport" content="width=device-width, initial-scale=1.0"> <script type="text/javascript"> | L2: Encabezado del HTML
J3: 3 | K3: /*! jQuery v2.2.1 | (c) jQuery Foundation | jquery.org/license */
J4: 4 | L4: Librería Jquery - 2.2.1.min.js
J5: 5
J6: 6
J7: 7 | K7: </script>
J8: 8 | K8: <style type="text/css"> | L8: Bloque de estilo - Skeleton
J9: 9 | K9: /*! normalize.css v3.0.2 | MIT License | git.io/normalize */ /** * 1. Set default font family to sans-serif. * 2. Prevent iOS text size adjust after orientation change, without disabling * user zoom. */ html { font-family: sans-serif; /* 1 */ -ms-text-size-adjust: 100%; /* 2 */ -webkit-text-size-adjust: 100%; /* 2 */ } /** * Remove default margin. */ body { margin: 0; } /* HTML5 display definitions ========================================================================== */ /** * Correct `block` display not defined for any HTML5 element in IE 8/9. * Correct `block` display not defined for `details` or `summary` in IE 10/11 * and Firefox. * Correct `block` display not defined for `main` in IE 11. */ article, aside, details, figcaption, figure, footer, header, hgroup, main, menu, nav, section, summary { display: block; } /** * 1. Correct `inline-block` display not defined in IE 8/9. * 2. Normalize vertical alignment of `progress` in Chrome, Firefox, and Opera. */ audio, canvas, progress, video { display: inline-block; /* 1 */ vertical-align: baseline; /* 2 */ } /** * Prevent modern browsers from displaying `audio` without controls. * Remove excess height in iOS 5 devices. */ audio:not([controls]) { display: none; height: 0; } /** * Address `[hidden]` styling not present in IE 8/9/10. * Hide the `template` element in IE 8/9/11, Safari, and Firefox < 22. */ [hidden], template { display: none; } /* Links ========================================================================== */ /** * Remove the gray background color from active links in IE 10. */ a { background-color: transparent; } /** * Improve readability when focused and also mouse hovered in all browsers. */ a:active, a:hover { outline: 0; } /* Text-level semantics ========================================================================== */ /** * Address styling not present in IE 8/9/10/11, Safari, and Chrome. */ abbr[title] { border-bottom: 1px dotted; } /** * Address style set to `bolder` in Firefox 4+, Safari, and Chrome. */ b, strong { font-weight: bold; } /** * Address styling not present in Safari and Chrome. */ dfn { font-style: italic; } /** * Address variable `h1` font-size and margin within `section` and `article` * contexts in Firefox 4+, Safari, and Chrome. */ h1 { font-size: 2em; margin: 0.67em 0; } /** * Address styling not present in IE 8/9. */ mark { background: #ff0; color: #000; } /** * Address inconsistent and variable font size in all browsers. */ small { font-size: 80%; } /** * Prevent `sub` and `sup` affecting `line-height` in all browsers. */ sub, sup { font-size: 75%; line-height: 0; position: relative; vertical-align: baseline; } sup { top: -0.5em; } sub { bottom: -0.25em; } /* Embedded content ========================================================================== */ /** * Remove border when inside `a` element in IE 8/9/10. */ img { border: 0; } /** * Correct overflow not hidden in IE 9/10/11. */ svg:not(:root) { overflow: hidden; } /* Grouping content ========================================================================== */ /** * Address margin not present in IE 8/9 and Safari. */ figure { margin: 1em 40px; } /** * Address differences between Firefox and other browsers. */ hr { -moz-box-sizing: content-box; box-sizing: content-box; height: 0; } /** * Contain overflow in all browsers. */ pre { overflow: auto; } /** * Address odd `em`-unit font size rendering in all browsers. */ code, kbd, pre, samp { font-family: monospace, monospace; font-size: 1em; } /* Forms ========================================================================== */ /** * Known limitation: by default, Chrome and Safari on OS X allow very limited * styling of `select`, unless a `border` property is set. */ /** * 1. Correct color not being inherited. * Known issue: affects color of disabled elements. * 2. Correct font properties not being inherited. * 3. Address margins set differently in Firefox 4+, Safari, and Chrome. */ button, input, optgroup, select, textarea { color: inherit; /* 1 */ font: inherit; /* 2 */ margin: 0; /* 3 */ } /** * Address `overflow` set to `hidden` in IE 8/9/10/11. */ button { overflow: visible; } /** * Address inconsistent `text-transform` inheritance for `button` and `select`. * All other form control elements do not inherit `text-transform` values. * Correct `button` style inheritance in Firefox, IE 8/9/10/11, and Opera. * Correct `select` style inheritance in Firefox. */ button, select { text-transform: none; } /** * 1. Avoid the WebKit bug in Android 4.0.* where (2) destroys native `audio` * and `video` controls. * 2. Correct inability to style clickable `input` types in iOS. * 3. Improve usability and consistency of cursor style between image-type * `input` and others. */ button, html input[type="button"], /* 1 */ input[type="reset"], input[type="submit"] { -webkit-appearance: button; /* 2 */ cursor: pointer; /* 3 */ } /** * Re-set default cursor for disabled elements. */ button[disabled], html input[disabled] { cursor: default; } /** * Remove inner padding and border in Firefox 4+. */ button::-moz-focus-inner, input::-moz-focus-inner { border: 0; padding: 0; } /** * Address Firefox 4+ setting `line-height` on `input` using `!important` in * the UA stylesheet. */ input { line-height: normal; } /** * It's recommended that you don't attempt to style these elements. * Firefox's implementation doesn't respect box-sizing, padding, or width. * * 1. Address box sizing set to `content-box` in IE 8/9/10. * 2. Remove excess padding in IE 8/9/10. */ input[type="checkbox"], input[type="radio"] { box-sizing: border-box; /* 1 */ padding: 0; /* 2 */ } /** * Fix the cursor style for Chrome's increment/decrement buttons. For certain * `font-size` values of the `input`, it causes the cursor style of the * decrement button to change from `default` to `text`. */ input[type="number"]::-webkit-inner-spin-button, input[type="number"]::-webkit-outer-spin-button { height: auto; } /** * 1. Address `appearance` set to `searchfield` in Safari and Chrome. * 2. Address `box-sizing` set to `border-box` in Safari and Chrome * (include `-moz` to future-proof). */ input[type="search"] { -webkit-appearance: textfield; /* 1 */ -moz-box-sizing: content-box; -webkit-box-sizing: content-box; /* 2 */ box-sizing: content-box; } /** * Remove inner padding and search cancel button in Safari and Chrome on OS X. * Safari (but not Chrome) clips the cancel button when the search input has * padding (and `textfield` appearance). */ input[type="search"]::-webkit-search-cancel-button, input[type="search"]::-webkit-search-decoration { -webkit-appearance: none; } /** * Define consistent border, margin, and padding. */ fieldset { border: 1px solid #c0c0c0; margin: 0 2px; padding: 0.35em 0.625em 0.75em; } /** * 1. Correct `color` not being inherited in IE 8/9/10/11. * 2. Remove padding so people aren't caught out if they zero out fieldsets. */ legend { border: 0; /* 1 */ padding: 0; /* 2 */ } /** * Remove default vertical scrollbar in IE 8/9/10/11. */ textarea { overflow: auto; } /** * Don't inherit the `font-weight` (applied by a rule above). * NOTE: the default cannot safely be changed in Chrome and Safari on OS X. */ optgroup { font-weight: bold; } /* Tables ========================================================================== */ /** * Remove most spacing between table cells. */ table { border-collapse: collapse; border-spacing: 0; } td, th { padding: 0; } | L9: normalize.css
J10: 10 | K10: /* * Skeleton V2.0.4 * Copyright 2014, Dave Gamache * www.getskeleton.com * Free to use under the MIT license. * http://www.opensource.org/licenses/mit-license.php * 12/29/2014 */ /* Table of contents –––––––––––––––––––––––––––––––––––––––––––––––––– - Grid - Base Styles - Typography - Links - Buttons - Forms - Lists - Code - Tables - Spacing - Utilities - Clearing - Media Queries */ /* Grid –––––––––––––––––––––––––––––––––––––––––––––––––– */ .container { position: relative; width: 100%; max-width: 960px; margin: 0 auto; padding: 0 20px; box-sizing: border-box; } .column, .columns { width: 100%; float: left; box-sizing: border-box; } /* For devices larger than 400px */ @media (min-width: 400px) { .container { width: 85%; padding: 0; } } /* For devices larger than 550px */ @media (min-width: 550px) { .container { width: 80%; } .column, .columns { margin-left: 4%; } .column:first-child, .columns:first-child { margin-left: 0; } .one.column, .one.columns { width: 4.66666666667%; } .two.columns { width: 13.3333333333%; } .three.columns { width: 22%; } .four.columns { width: 30.6666666667%; } .five.columns { width: 39.3333333333%; } .six.columns { width: 48%; } .seven.columns { width: 56.6666666667%; } .eight.columns { width: 65.3333333333%; } .nine.columns { width: 74.0%; } .ten.columns { width: 82.6666666667%; } .eleven.columns { width: 91.3333333333%; } .twelve.columns { width: 100%; margin-left: 0; } .one-third.column { width: 30.6666666667%; } .two-thirds.column { width: 65.3333333333%; } .one-half.column { width: 48%; } /* Offsets */ .offset-by-one.column, .offset-by-one.columns { margin-left: 8.66666666667%; } .offset-by-two.column, .offset-by-two.columns { margin-left: 17.3333333333%; } .offset-by-three.column, .offset-by-three.columns { margin-left: 26%; } .offset-by-four.column, .offset-by-four.columns { margin-left: 34.6666666667%; } .offset-by-five.column, .offset-by-five.columns { margin-left: 43.3333333333%; } .offset-by-six.column, .offset-by-six.columns { margin-left: 52%; } .offset-by-seven.column, .offset-by-seven.columns { margin-left: 60.6666666667%; } .offset-by-eight.column, .offset-by-eight.columns { margin-left: 69.3333333333%; } .offset-by-nine.column, .offset-by-nine.columns { margin-left: 78.0%; } .offset-by-ten.column, .offset-by-ten.columns { margin-left: 86.6666666667%; } .offset-by-eleven.column, .offset-by-eleven.columns { margin-left: 95.3333333333%; } .offset-by-one-third.column, .offset-by-one-third.columns { margin-left: 34.6666666667%; } .offset-by-two-thirds.column, .offset-by-two-thirds.columns { margin-left: 69.3333333333%; } .offset-by-one-half.column, .offset-by-one-half.columns { margin-left: 52%; } } /* Base Styles –––––––––––––––––––––––––––––––––––––––––––––––––– */ /* NOTE html is set to 62.5% so that all the REM measurements throughout Skeleton are based on 10px sizing. So basically 1.5rem = 15px :) */ html { font-size: 62.5%; } body { font-size: 1.5em; /* currently ems cause chrome bug misinterpreting rems on body element */ line-height: 1.6; font-weight: 400; font-family: "Raleway", "HelveticaNeue", "Helvetica Neue", Helvetica, Arial, sans-serif; color: #222; } /* Typography –––––––––––––––––––––––––––––––––––––––––––––––––– */ h1, h2, h3, h4, h5, h6 { margin-top: 0; margin-bottom: 2rem; font-weight: 300; } h1 { font-size: 4.0rem; line-height: 1.2; letter-spacing: -.1rem;} h2 { font-size: 3.6rem; line-height: 1.25; letter-spacing: -.1rem; } h3 { font-size: 3.0rem; line-height: 1.3; letter-spacing: -.1rem; } h4 { font-size: 2.4rem; line-height: 1.35; letter-spacing: -.08rem; } h5 { font-size: 1.8rem; line-height: 1.5; letter-spacing: -.05rem; } h6 { font-size: 1.5rem; line-height: 1.6; letter-spacing: 0; } /* Larger than phablet */ @media (min-width: 550px) { h1 { font-size: 5.0rem; } h2 { font-size: 4.2rem; } h3 { font-size: 3.6rem; } h4 { font-size: 3.0rem; } h5 { font-size: 2.4rem; } h6 { font-size: 1.5rem; } } p { margin-top: 0; } /* Links –––––––––––––––––––––––––––––––––––––––––––––––––– */ a { color: #1EAEDB; } a:hover { color: #0FA0CE; } /* Buttons –––––––––––––––––––––––––––––––––––––––––––––––––– */ .button, button, input[type="submit"], input[type="reset"], input[type="button"] { display: inline-block; height: 38px; padding: 0 30px; color: #555; text-align: center; font-size: 11px; font-weight: 600; line-height: 38px; letter-spacing: .1rem; text-transform: uppercase; text-decoration: none; white-space: nowrap; background-color: transparent; border-radius: 4px; border: 1px solid #bbb; cursor: pointer; box-sizing: border-box; } .button:hover, button:hover, input[type="submit"]:hover, input[type="reset"]:hover, input[type="button"]:hover, .button:focus, button:focus, input[type="submit"]:focus, input[type="reset"]:focus, input[type="button"]:focus { color: #333; border-color: #888; outline: 0; } .button.button-primary, button.button-primary, input[type="submit"].button-primary, input[type="reset"].button-primary, input[type="button"].button-primary { color: #FFF; background-color: #33C3F0; border-color: #33C3F0; } .button.button-primary:hover, button.button-primary:hover, input[type="submit"].button-primary:hover, input[type="reset"].button-primary:hover, input[type="button"].button-primary:hover, .button.button-primary:focus, button.button-primary:focus, input[type="submit"].button-primary:focus, input[type="reset"].button-primary:focus, input[type="button"].button-primary:focus { color: #FFF; background-color: #1EAEDB; border-color: #1EAEDB; } /* Forms –––––––––––––––––––––––––––––––––––––––––––––––––– */ input[type="email"], input[type="number"], input[type="search"], input[type="text"], input[type="tel"], input[type="url"], input[type="password"], textarea, select { height: 38px; padding: 6px 10px; /* The 6px vertically centers text on FF, ignored by Webkit */ background-color: #fff; border: 1px solid #D1D1D1; border-radius: 4px; box-shadow: none; box-sizing: border-box; } /* Removes awkward default styles on some inputs for iOS */ input[type="email"], input[type="number"], input[type="search"], input[type="text"], input[type="tel"], input[type="url"], input[type="password"], textarea { -webkit-appearance: none; -moz-appearance: none; appearance: none; } textarea { min-height: 65px; padding-top: 6px; padding-bottom: 6px; } input[type="email"]:focus, input[type="number"]:focus, input[type="search"]:focus, input[type="text"]:focus, input[type="tel"]:focus, input[type="url"]:focus, input[type="password"]:focus, textarea:focus, select:focus { border: 1px solid #33C3F0; outline: 0; } label, legend { display: block; margin-bottom: .5rem; font-weight: 600; } fieldset { padding: 0; border-width: 0; } input[type="checkbox"], input[type="radio"] { display: inline; } label > .label-body { display: inline-block; margin-left: .5rem; font-weight: normal; } /* Lists –––––––––––––––––––––––––––––––––––––––––––––––––– */ ul { list-style: circle inside; } ol { list-style: decimal inside; } ol, ul { padding-left: 0; margin-top: 0; } ul ul, ul ol, ol ol, ol ul { margin: 1.5rem 0 1.5rem 3rem; font-size: 90%; } li { margin-bottom: 1rem; } /* Code –––––––––––––––––––––––––––––––––––––––––––––––––– */ code { padding: .2rem .5rem; margin: 0 .2rem; font-size: 90%; white-space: nowrap; background: #F1F1F1; border: 1px solid #E1E1E1; border-radius: 4px; } pre > code { display: block; padding: 1rem 1.5rem; white-space: pre; } /* Tables –––––––––––––––––––––––––––––––––––––––––––––––––– */ th, td { padding: 12px 15px; text-align: left; border-bottom: 1px solid #E1E1E1; } th:first-child, td:first-child { padding-left: 0; } th:last-child, td:last-child { padding-right: 0; } /* Spacing –––––––––––––––––––––––––––––––––––––––––––––––––– */ button, .button { margin-bottom: 1rem; } input, textarea, select, fieldset { margin-bottom: 1.5rem; } pre, blockquote, dl, figure, table, p, ul, ol, form { margin-bottom: 2.5rem; } /* Utilities –––––––––––––––––––––––––––––––––––––––––––––––––– */ .u-full-width { width: 100%; box-sizing: border-box; } .u-max-full-width { max-width: 100%; box-sizing: border-box; } .u-pull-right { float: right; } .u-pull-left { float: left; } /* Misc –––––––––––––––––––––––––––––––––––––––––––––––––– */ hr { margin-top: 3rem; margin-bottom: 3.5rem; border-width: 0; border-top: 1px solid #E1E1E1; } /* Clearing –––––––––––––––––––––––––––––––––––––––––––––––––– */ /* Self Clearing Goodness */ .container:after, .row:after, .u-cf { content: ""; display: table; clear: both; } /* Media Queries –––––––––––––––––––––––––––––––––––––––––––––––––– */ /* Note: The best way to structure the use of media queries is to create the queries near the relevant code. For example, if you wanted to change the styles for buttons on small devices, paste the mobile query code up in the buttons section and style it there. */ | L10: skeleton.css
J11: 11 | K11: </style>
J12: 12 | K12: <script type="text/javascript">
J13: 13 | L13: Librería de botstrap.min.js
J14: 14 | L14: v3.3.7
J15: 15 | K15: </script>
J16: 16 | K16: <style type="text/css"> | L16: Bloque de estilo de bootstrap consolidado
J17: 17 | K17: *//*! normalize.css v3.0.3 | MIT License | github.com/necolas/normalize.css */html{font-family:sans-serif;-ms-text-size-adjust:100%;-webkit-text-size-adjust:100%}body{margin:0}article,aside,details,figcaption,figure,footer,header,hgroup,main,menu,nav,section,summary{display:block}audio,canvas,progress,video{display:inline-block;vertical-align:baseline}audio:not([controls]){display:none;height:0}[hidden],template{display:none}a{background-color:transparent}a:active,a:hover{outline:0}abbr[title]{border-bottom:1px dotted}b,strong{font-weight:bold}dfn{font-style:italic}h1{font-size:2em;margin:0.67em 0}mark{background:#ff0;color:#000}small{font-size:80%}sub,sup{font-size:75%;line-height:0;position:relative;vertical-align:baseline}sup{top:-0.5em}sub{bottom:-0.25em}img{border:0}svg:not(:root){overflow:hidden}figure{margin:1em 40px}hr{-webkit-box-sizing:content-box;-moz-box-sizing:content-box;box-sizing:content-box;height:0}pre{overflow:auto}code,kbd,pre,samp{font-family:monospace, monospace;font-size:1em}button,input,optgroup,select,textarea{color:inherit;font:inherit;margin:0}button{overflow:visible}button,select{text-transform:none}button,html input[type="button"],input[type="reset"],input[type="submit"]{-webkit-appearance:button;cursor:pointer}button[disabled],html input[disabled]{cursor:default}button::-moz-focus-inner,input::-moz-focus-inner{border:0;padding:0}input{line-height:normal}input[type="checkbox"],input[type="radio"]{-webkit-box-sizing:border-box;-moz-box-sizing:border-box;box-sizing:border-box;padding:0}input[type="number"]::-webkit-inner-spin-button,input[type="number"]::-webkit-outer-spin-button{height:auto}input[type="search"]{-webkit-appearance:textfield;-webkit-box-sizing:content-box;-moz-box-sizing:content-box;box-sizing:content-box}input[type="search"]::-webkit-search-cancel-button,input[type="search"]::-webkit-search-decoration{-webkit-appearance:none}fieldset{border:1px solid #c0c0c0;margin:0 2px;padding:0.35em 0.625em 0.75em}legend{border:0;padding:0}textarea{overflow:auto}optgroup{font-weight:bold}table{border-collapse:collapse;border-spacing:0}td,th{padding:0}*{-webkit-box-sizing:border-box;-moz-box-sizing:border-box;box-sizing:border-box}*:before,*:after{-webkit-box-sizing:border-box;-moz-box-sizing:border-box;box-sizing:border-box}html{font-size:10px;-webkit-tap-highlight-color:rgba(0,0,0,0)}body{font-family:"Helvetica Neue",Helvetica,Arial,sans-serif;font-size:14px;line-height:1.42857143;color:#333;background-color:#fff}input,button,select,textarea{font-family:inherit;font-size:inherit;line-height:inherit}a{color:#337ab7;text-decoration:none}a:hover,a:focus{color:#23527c;text-decoration:underline}a:focus{outline:5px auto -webkit-focus-ring-color;outline-offset:-2px}figure{margin:0}img{vertical-align:middle}.img-responsive{display:block;max-width:100%;height:auto}.img-rounded{border-radius:6px}.img-thumbnail{padding:4px;line-height:1.42857143;background-color:#fff;border:1px solid #ddd;border-radius:4px;-webkit-transition:all .2s ease-in-out;-o-transition:all .2s ease-in-out;transition:all .2s ease-in-out;display:inline-block;max-width:100%;height:auto}.img-circle{border-radius:50%}hr{margin-top:20px;margin-bottom:20px;border:0;border-top:1px solid #eee}.sr-only{position:absolute;width:1px;height:1px;margin:-1px;padding:0;overflow:hidden;clip:rect(0, 0, 0, 0);border:0}.sr-only-focusable:active,.sr-only-focusable:focus{position:static;width:auto;height:auto;margin:0;overflow:visible;clip:auto}[role="button"]{cursor:pointer}.fade{opacity:0;-webkit-transition:opacity .15s linear;-o-transition:opacity .15s linear;transition:opacity .15s linear}.fade.in{opacity:1}.collapse{display:none}.collapse.in{display:block}tr.collapse.in{display:table-row}tbody.collapse.in{display:table-row-group}.collapsing{position:relative;height:0;overflow:hidden;-webkit-transition-property:height, visibility;-o-transition-property:height, visibility;transition-property:height, visibility;-webkit-transition-duration:.35s;-o-transition-duration:.35s;transition-duration:.35s;-webkit-transition-timing-function:ease;-o-transition-timing-function:ease;transition-timing-function:ease}.list-group{margin-bottom:20px;padding-left:0}.list-group-item{position:relative;display:block;padding:10px 15px;margin-bottom:-1px;background-color:#fff;border:1px solid #ddd}.list-group-item:first-child{border-top-right-radius:4px;border-top-left-radius:4px}.list-group-item:last-child{margin-bottom:0;border-bottom-right-radius:4px;border-bottom-left-radius:4px}a.list-group-item,button.list-group-item{color:#555}a.list-group-item .list-group-item-heading,button.list-group-item .list-group-item-heading{color:#333}a.list-group-item:hover,button.list-group-item:hover,a.list-group-item:focus,button.list-group-item:focus{text-decoration:none;color:#555;background-color:#f5f5f5}button.list-group-item{width:100%;text-align:left}.list-group-item.disabled,.list-group-item.disabled:hover,.list-group-item.disabled:focus{background-color:#eee;color:#777;cursor:not-allowed}.list-group-item.disabled .list-group-item-heading,.list-group-item.disabled:hover .list-group-item-heading,.list-group-item.disabled:focus .list-group-item-heading{color:inherit}.list-group-item.disabled .list-group-item-text,.list-group-item.disabled:hover .list-group-item-text,.list-group-item.disabled:focus .list-group-item-text{color:#777}.list-group-item.active,.list-group-item.active:hover,.list-group-item.active:focus{z-index:2;color:#fff;background-color:#337ab7;border-color:#337ab7}.list-group-item.active .list-group-item-heading,.list-group-item.active:hover .list-group-item-heading,.list-group-item.active:focus .list-group-item-heading,.list-group-item.active .list-group-item-heading>small,.list-group-item.active:hover .list-group-item-heading>small,.list-group-item.active:focus .list-group-item-heading>small,.list-group-item.active .list-group-item-heading>.small,.list-group-item.active:hover .list-group-item-heading>.small,.list-group-item.active:focus .list-group-item-heading>.small{color:inherit}.list-group-item.active .list-group-item-text,.list-group-item.active:hover .list-group-item-text,.list-group-item.active:focus .list-group-item-text{color:#c7ddef}.list-group-item-success{color:#3c763d;background-color:#dff0d8}a.list-group-item-success,button.list-group-item-success{color:#3c763d}a.list-group-item-success .list-group-item-heading,button.list-group-item-success .list-group-item-heading{color:inherit}a.list-group-item-success:hover,button.list-group-item-success:hover,a.list-group-item-success:focus,button.list-group-item-success:focus{color:#3c763d;background-color:#d0e9c6}a.list-group-item-success.active,button.list-group-item-success.active,a.list-group-item-success.active:hover,button.list-group-item-success.active:hover,a.list-group-item-success.active:focus,button.list-group-item-success.active:focus{color:#fff;background-color:#3c763d;border-color:#3c763d}.list-group-item-info{color:#31708f;background-color:#d9edf7}a.list-group-item-info,button.list-group-item-info{color:#31708f}a.list-group-item-info .list-group-item-heading,button.list-group-item-info .list-group-item-heading{color:inherit}a.list-group-item-info:hover,button.list-group-item-info:hover,a.list-group-item-info:focus,button.list-group-item-info:focus{color:#31708f;background-color:#c4e3f3}a.list-group-item-info.active,button.list-group-item-info.active,a.list-group-item-info.active:hover,button.list-group-item-info.active:hover,a.list-group-item-info.active:focus,button.list-group-item-info.active:focus{color:#fff;background-color:#31708f;border-color:#31708f}.list-group-item-warning{color:#8a6d3b;background-color:#fcf8e3}a.list-group-item-warning,button.list-group-item-warning{color:#8a6d3b}a.list-group-item-warning .list-group-item-heading,button.list-group-item-warning .list-group-item-heading{color:inherit}a.list-group-item-warning:hover,button.list-group-item-warning:hover,a.list-group-item-warning:focus,button.list-group-item-warning:focus{color:#8a6d3b;background-color:#faf2cc}a.list-group-item-warning.active,button.list-group-item-warning.active,a.list-group-item-warning.active:hover,button.list-group-item-warning.active:hover,a.list-group-item-warning.active:focus,button.list-group-item-warning.active:focus{color:#fff;background-color:#8a6d3b;border-color:#8a6d3b}.list-group-item-danger{color:#a94442;background-color:#f2dede}a.list-group-item-danger,button.list-group-item-danger{color:#a94442}a.list-group-item-danger .list-group-item-heading,button.list-group-item-danger .list-group-item-heading{color:inherit}a.list-group-item-danger:hover,button.list-group-item-danger:hover,a.list-group-item-danger:focus,button.list-group-item-danger:focus{color:#a94442;background-color:#ebcccc}a.list-group-item-danger.active,button.list-group-item-danger.active,a.list-group-item-danger.active:hover,button.list-group-item-danger.active:hover,a.list-group-item-danger.active:focus,button.list-group-item-danger.active:focus{color:#fff;background-color:#a94442;border-color:#a94442}.list-group-item-heading{margin-top:0;margin-bottom:5px}.list-group-item-text{margin-bottom:0;line-height:1.3}.close{float:right;font-size:21px;font-weight:bold;line-height:1;color:#000;text-shadow:0 1px 0 #fff;opacity:.2;filter:alpha(opacity=20)}.close:hover,.close:focus{color:#000;text-decoration:none;cursor:pointer;opacity:.5;filter:alpha(opacity=50)}button.close{padding:0;cursor:pointer;background:transparent;border:0;-webkit-appearance:none}.modal-open{overflow:hidden}.modal{display:none;overflow:hidden;position:fixed;top:0;right:0;bottom:0;left:0;z-index:1050;-webkit-overflow-scrolling:touch;outline:0}.modal.fade .modal-dialog{-webkit-transform:translate(0, -25%);-ms-transform:translate(0, -25%);-o-transform:translate(0, -25%);transform:translate(0, -25%);-webkit-transition:-webkit-transform 0.3s ease-out;-o-transition:-o-transform 0.3s ease-out;transition:transform 0.3s ease-out}.modal.in .modal-dialog{-webkit-transform:translate(0, 0);-ms-transform:translate(0, 0);-o-transform:translate(0, 0);transform:translate(0, 0)}.modal-open .modal{overflow-x:hidden;overflow-y:auto}.modal-dialog{position:relative;width:auto;margin:10px}.modal-content{position:relative;background-color:#fff;border:1px solid #999;border:1px solid rgba(0,0,0,0.2);border-radius:6px;-webkit-box-shadow:0 3px 9px rgba(0,0,0,0.5);box-shadow:0 3px 9px rgba(0,0,0,0.5);-webkit-background-clip:padding-box;background-clip:padding-box;outline:0}.modal-backdrop{position:fixed;top:0;right:0;bottom:0;left:0;z-index:1040;background-color:#000}.modal-backdrop.fade{opacity:0;filter:alpha(opacity=0)}.modal-backdrop.in{opacity:.5;filter:alpha(opacity=50)}.modal-header{padding:15px;border-bottom:1px solid #e5e5e5}.modal-header .close{margin-top:-2px}.modal-title{margin:0;line-height:1.42857143}.modal-body{position:relative;padding:15px}.modal-footer{padding:15px;text-align:right;border-top:1px solid #e5e5e5}.modal-footer .btn+.btn{margin-left:5px;margin-bottom:0}.modal-footer .btn-group .btn+.btn{margin-left:-1px}.modal-footer .btn-block+.btn-block{margin-left:0}.modal-scrollbar-measure{position:absolute;top:-9999px;width:50px;height:50px;overflow:scroll}@media (min-width:768px){.modal-dialog{width:600px;margin:30px auto}.modal-content{-webkit-box-shadow:0 5px 15px rgba(0,0,0,0.5);box-shadow:0 5px 15px rgba(0,0,0,0.5)}.modal-sm{width:300px}}@media (min-width:992px){.modal-lg{width:900px}}.tooltip{position:absolute;z-index:1070;display:block;font-family:"Helvetica Neue",Helvetica,Arial,sans-serif;font-style:normal;font-weight:normal;letter-spacing:normal;line-break:auto;line-height:1.42857143;text-align:left;text-align:start;text-decoration:none;text-shadow:none;text-transform:none;white-space:normal;word-break:normal;word-spacing:normal;word-wrap:normal;font-size:12px;opacity:0;filter:alpha(opacity=0)}.tooltip.in{opacity:.9;filter:alpha(opacity=90)}.tooltip.top{margin-top:-3px;padding:5px 0}.tooltip.right{margin-left:3px;padding:0 5px}.tooltip.bottom{margin-top:3px;padding:5px 0}.tooltip.left{margin-left:-3px;padding:0 5px}.tooltip-inner{max-width:200px;padding:3px 8px;color:#fff;text-align:center;background-color:#000;border-radius:4px}.tooltip-arrow{position:absolute;width:0;height:0;border-color:transparent;border-style:solid}.tooltip.top .tooltip-arrow{bottom:0;left:50%;margin-left:-5px;border-width:5px 5px 0;border-top-color:#000}.tooltip.top-left .tooltip-arrow{bottom:0;right:5px;margin-bottom:-5px;border-width:5px 5px 0;border-top-color:#000}.tooltip.top-right .tooltip-arrow{bottom:0;left:5px;margin-bottom:-5px;border-width:5px 5px 0;border-top-color:#000}.tooltip.right .tooltip-arrow{top:50%;left:0;margin-top:-5px;border-width:5px 5px 5px 0;border-right-color:#000}.tooltip.left .tooltip-arrow{top:50%;right:0;margin-top:-5px;border-width:5px 0 5px 5px;border-left-color:#000}.tooltip.bottom .tooltip-arrow{top:0;left:50%;margin-left:-5px;border-width:0 5px 5px;border-bottom-color:#000}.tooltip.bottom-left .tooltip-arrow{top:0;right:5px;margin-top:-5px;border-width:0 5px 5px;border-bottom-color:#000}.tooltip.bottom-right .tooltip-arrow{top:0;left:5px;margin-top:-5px;border-width:0 5px 5px;border-bottom-color:#000}.popover{position:absolute;top:0;left:0;z-index:1060;display:none;max-width:276px;padding:1px;font-family:"Helvetica Neue",Helvetica,Arial,sans-serif;font-style:normal;font-weight:normal;letter-spacing:normal;line-break:auto;line-height:1.42857143;text-align:left;text-align:start;text-decoration:none;text-shadow:none;text-transform:none;white-space:normal;word-break:normal;word-spacing:normal;word-wrap:normal;font-size:14px;background-color:#fff;-webkit-background-clip:padding-box;background-clip:padding-box;border:1px solid #ccc;border:1px solid rgba(0,0,0,0.2);border-radius:6px;-webkit-box-shadow:0 5px 10px rgba(0,0,0,0.2);box-shadow:0 5px 10px rgba(0,0,0,0.2)}.popover.top{margin-top:-10px}.popover.right{margin-left:10px}.popover.bottom{margin-top:10px}.popover.left{margin-left:-10px}.popover-title{margin:0;padding:8px 14px;font-size:14px;background-color:#f7f7f7;border-bottom:1px solid #ebebeb;border-radius:5px 5px 0 0}.popover-content{padding:9px 14px}.popover>.arrow,.popover>.arrow:after{position:absolute;display:block;width:0;height:0;border-color:transparent;border-style:solid}.popover>.arrow{border-width:11px}.popover>.arrow:after{border-width:10px;content:""}.popover.top>.arrow{left:50%;margin-left:-11px;border-bottom-width:0;border-top-color:#999;border-top-color:rgba(0,0,0,0.25);bottom:-11px}.popover.top>.arrow:after{content:" ";bottom:1px;margin-left:-10px;border-bottom-width:0;border-top-color:#fff}.popover.right>.arrow{top:50%;left:-11px;margin-top:-11px;border-left-width:0;border-right-color:#999;border-right-color:rgba(0,0,0,0.25)}.popover.right>.arrow:after{content:" ";left:1px;bottom:-10px;border-left-width:0;border-right-color:#fff}.popover.bottom>.arrow{left:50%;margin-left:-11px;border-top-width:0;border-bottom-color:#999;border-bottom-color:rgba(0,0,0,0.25);top:-11px}.popover.bottom>.arrow:after{content:" ";top:1px;margin-left:-10px;border-top-width:0;border-bottom-color:#fff}.popover.left>.arrow{top:50%;right:-11px;margin-top:-11px;border-right-width:0;border-left-color:#999;border-left-color:rgba(0,0,0,0.25)}.popover.left>.arrow:after{content:" ";right:1px;border-right-width:0;border-left-color:#fff;bottom:-10px}.clearfix:before,.clearfix:after,.modal-header:before,.modal-header:after,.modal-footer:before,.modal-footer:after{content:" ";display:table}.clearfix:after,.modal-header:after,.modal-footer:after{clear:both}.center-block{display:block;margin-left:auto;margin-right:auto}.pull-right{float:right !important}.pull-left{float:left !important}.hide{display:none !important}.show{display:block !important}.invisible{visibility:hidden}.text-hide{font:0/0 a;color:transparent;text-shadow:none;background-color:transparent;border:0}.hidden{display:none !important}.affix{position:fixed}
J18: 18 | L18: bootstrap.min.css
J19: 19 | L19: v3.3.7
J20: 20
J21: 21 | L21: bootstrap-theme.min.css
J22: 22 | K22: </style>
J23: 23 | K23: <script type="text/javascript"> var indicadores = [ | L23: Abre bloque generador de datos
J24: json | K24: Se genera el JSON dinámicamente ver módulo dashboard | L24: Este bloque lo genera el codigo sGeneraJSON
J25: 24 | K25: ]; </script> | L25: Cierre bloque de datos
J26: 25 | K26: <style> .infografias{ margin: 0 auto; } .infografia01{ background-image: url('img/app/en-infografia-01.png'); } .infografia02{ background-image: url('img/app/en-infografia-02.png'); display: none; } .infografia03{ background-image: url('img/app/en-infografia-03.png'); display: none; } .indicador-izq img, .indicador-der img{ width: 100%; } .indicador-arriba img, .indicador-abajo img{ height: 100%; } .popover-content .tr .td:first-child{ font-family: "Arial", "Arial Narrow"; font-weight: bold; color: #666666; } .popover-content .tr .td:last-child{ font-family: myriadpro-regular, "Verdana"; text-align: left; font-weight: bold; } .popover-content .tr{ border-width: 0 0 2px 0; border-style: solid; border-image-slice: 33%; border-image-repeat: stretch; } .popover-content .td{ display: inline-block; vertical-align: middle; } .popover-content .table{ margin: 0; } .sel-lang{ font-size: 24px; font-family: "Arial", "Arial Narrow"; text-decoration: underline; position: absolute; } .sel-lang img{ width: 100%; } .popover .arrow{ display: none; } .popover-content{ padding: 0px 4px 2px 4px; } .popover{ box-shadow: none; border: none; border-radius: 0px; } .flecha img{ filter: grayscale(100%); opacity: 0.3; } .indicador-izq, .indicador-der{ width: 18px; display: inline-block; vertical-align: middle; } .indicador-arriba, .indicador-abajo{ height: 12px; width: 100%; text-align: center; } .sumatoria{ font-family: "Arial", "Arial Narrow"; width: 100%; height: 30px; margin-top: 0px; text-align: center; color: white; font-weight: bold; font-size: 15px; height: calc(50% + 10px) } .radios{ display: inline-block; background-color: white; border-radius: 5px; border: 1px solid #D1D1D1; } .radios input[type="radio"]{ vertical-align: middle; } .indicador{ position: absolute; opacity: 0.5; } .form{ background-color: #f1f2f2; border: 1px solid #D1D1D1; position: absolute; } .form p{ margin: 0; text-align: center; } .list-group-item img{ height: 33px; } .list-group-item span{ padding-left: 7px; } .form label{ display: inline-block; font-family: "Arial", "Arial Narrow"; font-weight: bold; color: #666666; margin: 0; vertical-align: middle; } select{ color: #666666; } .form .toggle-indicadores{ width: 152px; white-space: normal; height: auto; padding: 9px 0; margin: 6px 0; padding: 3px 9px 3px 9px; font-size: 14px; font-family: "Arial", "Arial Narrow"; } .form .toggle-indicadores { background: #297CA6; background-image: -webkit-linear-gradient(top, #297CA6, #4ea5a6); background-image: -moz-linear-gradient(top, #297CA6, #4ea5a6); background-image: -ms-linear-gradient(top, #297CA6, #4ea5a6); background-image: -o-linear-gradient(top, #297CA6, #4ea5a6); background-image: linear-gradient(to bottom, #297CA6, #4ea5a6); -webkit-border-radius: 28; -moz-border-radius: 28; border-radius: 28px; font-family: Arial; color: #ffffff; font-size: 13px; text-decoration: none; } .form .toggle-indicadores:hover { background: #2d8dbd; background-image: -webkit-linear-gradient(top, #2d8dbd, #57b8b8); background-image: -moz-linear-gradient(top, #2d8dbd, #57b8b8); background-image: -ms-linear-gradient(top, #2d8dbd, #57b8b8); background-image: -o-linear-gradient(top, #2d8dbd, #57b8b8); background-image: linear-gradient(to bottom, #2d8dbd, #57b8b8); text-decoration: none; } .nav-arrow{ position: absolute; } .infografias .nav-arrow img{ height: 100%; } .mmaternas{ background-color: green; } .minfantiles{ background-color: greenyellow; } .nacimientose{ background-color: yellow; } .abortose{ background-color: red; } .abortosins{ background-color: blue; } .descapacidad{ background-color: violet; } .mievitado{ background-color: aqua; } .enodeseado{ background-color: pink; } .costoben{ background-color: orange; } .u-costo-total-planificacion{ background: black; } .label-compara{ width: 82px; } .popover-content .tr .td:first-child{ float: left; } .popover-content .tr .td:last-child{ float: right; } /** Tamanio minimo **/ .popover{ line-height: 0.892857; padding: 0; } .popover-content .tr{ border-width: 0 0 1px 0; height: 15px; margin: -1px 0 0 0; padding: 5px 0; min-width: 88px; } .u-totales .sumatoria{ margin-top: 30px; } .a-planificacion .sumatoria{ margin-top: 27px; } .infografias{ background-size: 750px 562px; width: 750px; height: 562px; } .radios input[type="radio"]{ width: 8px; } .popover-content .tr .td:first-child{ font-size: 10px; padding-right: 6px; } .popover-content .tr .td:last-child{ font-size: 6px; } .popover-content .td{ line-height: 8px } .sel-lang{ font-size: 15px; left: 710px; top: 12px; } .form{ width: 185px; top: 34px; left: 560px; padding: 6px 6px 0 6px; } .indicador-arriba, .indicador-abajo{ height: 7px; } .indicador-izq.flecha, .indicador-der.flecha{ width: 6px; margin-left: 3px; } .indicador-content{ width: calc(100% - 15px); } select{ height: 18px; } .form select{ margin-top: 5px; font-size: 7px; padding: 0; } .toggle-indicadores span{ font-size: 8px; } .label-escenario{ width: 51px; } .form label{ font-size: 7px; padding-right: 2px; } .label-filtro{ width: 61px; } .combo-escenario{ width: calc(100% - 65px); } .radios{ width: calc(100% - 65px); padding: 1px 1px 3px 5px; } .infografias .nav-arrow{ top: 501px; height: 36px; left: 641px; width: 71px; } .infografia01 .nav-arrow{ left: 681px; } .rango-fechas{ top: 12px; font-size: 15px; left: 561px; width: 136px; } .indicador{ width: 87px; height: 75px; } .mmaternas{ top: 63px; left: 248px; } .minfantiles{ top: 153px; left: 179px; } .nacimientose{ top: 93px; left: 478px; } .abortose{ top: 201px; left: 524px; } .abortosins{ top: 315px; left: 473px; } .descapacidad{ top: 455px; left: 337px; } .mievitado{ top: 352px; left: 229px; } .enodeseado{ top: 172px; left: 305px; width: 140px; height: 126px; } .costoben{ top: 443px; left: 12px; width: 93px; height: 107px; } .u-condones{ top: 58px; left: 383px; } .u-inyectables{ top: 138px; left: 475px; } .u-pildora{ top: 221px; left: 516px; } .u-esterilm{ top: 298px; left: 476px; } .u-esterilf{ top: 378px; left: 439px; } .u-necesidadin{ top: 465px; left: 350px; } .u-implantes{ top: 376px; left: 260px; } .u-mdf{ top: 298px; left: 210px; } .u-moderno{ top: 221px; left: 170px; } .u-tradicional{ left: 203px; top: 141px; } .u-diu{ top: 76px; left: 254px; } .u-totales{ top: 194px; left: 332px; width: 126px; height: 138px; } .u-cpr{ top: 70px; left: 11px; } .u-costo-total-planificacion { top: 455px; left: 10px; width: 93px; height: 100px; } .a-esteril-m{ top: 96px; left: 338px; } .a-esteril-f{ top: 179px; left: 184px; } .a-diu{ top: 276px; left: 151px; } .a-implantes{ top: 389px; left: 222px; } .a-mdf{ top: 183px; left: 456px; } .a-planificacion{ top: 251px; left: 312px; width: 141px; height: 126px; } /** Fin de tamanios minimos **/ | L26: Hoja de estilo 1er Bloque tamaños minimos
J27: 26 | L27: Hoja de estilo OdelaMora 1do Bloque 998lines
J28: 27 | L28: Script operación OdelaMora 1er bloque 600lines
J29: 28 | K29: if(position.top){ var top = position.top.replace('px', '') * 1; top = (top * porcentaje) + "px"; position.top = top; } $("#" + pop).css('left', position.left); $("#" + pop).css('top', position.top); if(tdTitle.width){ var titlew = tdTitle.width.replace('px', '') * 1; titlew = (tdTitle * porcentaje) + "px"; $("#" + pop + ' .td .title').css('width', tdTitle); } var padding = $(indica).attr('data-css-padding'); if(padding){ padding = padding.replace('px', '') * 1; padding = Math.floor(padding * porcentaje) + "px"; $('#' + pop).css('padding', padding); } var border = $(indica).attr('data-css-border'); if(border){ var newBorder = exp.exec(border); var widthBorder = Math.floor((newBorder[0].replace('px', '') * 1) * porcentaje) + "px"; widthBorder = border.replace(newBorder[0], widthBorder); $('#' + pop).css('border', widthBorder); } var minWidth = $(indica).attr('data-css-anios-min-width'); if($('input[name="grafica"]:checked').val() === "escenarios"){ minWidth = $(indica).attr('data-css-min-width'); } if(minWidth){ minWidth = minWidth.replace('px', '') * 1; minWidth = Math.floor(minWidth * porcentaje) + "px"; $('#' + pop + ' .tr').css('min-width', minWidth); } } }; $( window ).resize(info.resize); </script> | L29: Script operación OdelaMora 2do bloque 60lines
J30: 28 | L30: Finaliza HTML

Sheet Budget_Indicator
C2: 0
J7: =F8&" by Scenario" -> Female sterilization acceptors * by Scenario
D8: Choose Output | F8: Female sterilization acceptors *
S9: 0
P10: Budget Constraint by Year
Q11: =Configuration!F12 -> 2017 | R11: =Configuration!F14 -> 2023
P12: =D23 -> Usual | Q12: =inBudget1 -> 2000000 | R12: =inUsual413 -> 3000000
P13: =D24 -> Scen2 | Q13: =inBudget1 -> 2000000 | R13: =inScen1413 -> 4000000
P14: =D25 -> Scen3 | Q14: =inBudget1 -> 2000000 | R14: =inScen2413 -> 5000000
F22: =Configuration!F12 -> 2017 | G22: =IFERROR(IF(F22+1<=Configuration!$F$14,F22+1,""),"") -> 2018 | H22: =IFERROR(IF(G22+1<=Configuration!$F$14,G22+1,""),"") -> 2019 | I22: =IFERROR(IF(H22+1<=Configuration!$F$14,H22+1,""),"") -> 2020 | J22: =IFERROR(IF(I22+1<=Configuration!$F$14,I22+1,""),"") -> 2021 | K22: =IFERROR(IF(J22+1<=Configuration!$F$14,J22+1,""),"") -> 2022 | L22: =IFERROR(IF(K22+1<=Configuration!$F$14,K22+1,""),"") -> 2023 | M22: =IFERROR(IF(L22+1<=Configuration!$F$14,L22+1,""),"") ->  | N22: =IFERROR(IF(M22+1<=Configuration!$F$14,M22+1,""),"") ->  | O22: =IFERROR(IF(N22+1<=Configuration!$F$14,N22+1,""),"") -> 
C23: Usual | D23: =inUsualName -> Usual | F23: =IF(F$22="","",INDIRECT("'Calculations'!" & ADDRESS(ROW(Budget_List)-1 + MATCH($F$8,Budget_List,0),COLUMN(INDIRECT("calc"&$C23&"Yr1"))))) -> 27991.3794 | G23: =IF(G$22="","",INDIRECT("'Calculations'!" & ADDRESS(ROW(Budget_List)-1 + MATCH($F$8,Budget_List,0),COLUMN(INDIRECT("calc"&$C23&"Yr2"))))) -> 27991.3794 | H23: =IF(H$22="","",INDIRECT("'Calculations'!" & ADDRESS(ROW(Budget_List)-1 + MATCH($F$8,Budget_List,0),COLUMN(INDIRECT("calc"&$C23&"Yr3"))))) -> 27991.3794 | I23: =IF(I$22="","",INDIRECT("'Calculations'!" & ADDRESS(ROW(Budget_List)-1 + MATCH($F$8,Budget_List,0),COLUMN(INDIRECT("calc"&$C23&"Yr4"))))) -> 27991.3794 | J23: =IF(J$22="","",INDIRECT("'Calculations'!" & ADDRESS(ROW(Budget_List)-1 + MATCH($F$8,Budget_List,0),COLUMN(INDIRECT("calc"&$C23&"Yr5"))))) -> 27991.3794 | K23: =IF(K$22="","",INDIRECT("'Calculations'!" & ADDRESS(ROW(Budget_List)-1 + MATCH($F$8,Budget_List,0),COLUMN(INDIRECT("calc"&$C23&"Yr6"))))) -> 27991.3794 | L23: =IF(L$22="","",INDIRECT("'Calculations'!" & ADDRESS(ROW(Budget_List)-1 + MATCH($F$8,Budget_List,0),COLUMN(INDIRECT("calc"&$C23&"Yr7"))))) -> 27991.3794 | M23: =IF(M$22="","",INDIRECT("'Calculations'!" & ADDRESS(ROW(Budget_List)-1 + MATCH($F$8,Budget_List,0),COLUMN(INDIRECT("calc"&$C23&"Yr8"))))) ->  | N23: =IF(N$22="","",INDIRECT("'Calculations'!" & ADDRESS(ROW(Budget_List)-1 + MATCH($F$8,Budget_List,0),COLUMN(INDIRECT("calc"&$C23&"Yr9"))))) ->  | O23: =IF(O$22="","",INDIRECT("'Calculations'!" & ADDRESS(ROW(Budget_List)-1 + MATCH($F$8,Budget_List,0),COLUMN(INDIRECT("calc"&$C23&"Yr10"))))) ->  | V23: 0.26
C24: Scen1 | D24: =inScen1Name -> Scen2 | F24: =IF(F$22="","",INDIRECT("'Calculations'!" & ADDRESS(ROW(Budget_List)-1 + MATCH($F$8,Budget_List,0),COLUMN(INDIRECT("calc"&$C24&"Yr1"))))) -> 27991.3794 | G24: =IF(G$22="","",INDIRECT("'Calculations'!" & ADDRESS(ROW(Budget_List)-1 + MATCH($F$8,Budget_List,0),COLUMN(INDIRECT("calc"&$C24&"Yr2"))))) -> 27991.3794 | H24: =IF(H$22="","",INDIRECT("'Calculations'!" & ADDRESS(ROW(Budget_List)-1 + MATCH($F$8,Budget_List,0),COLUMN(INDIRECT("calc"&$C24&"Yr3"))))) -> 27991.3794 | I24: =IF(I$22="","",INDIRECT("'Calculations'!" & ADDRESS(ROW(Budget_List)-1 + MATCH($F$8,Budget_List,0),COLUMN(INDIRECT("calc"&$C24&"Yr4"))))) -> 27991.3794 | J24: =IF(J$22="","",INDIRECT("'Calculations'!" & ADDRESS(ROW(Budget_List)-1 + MATCH($F$8,Budget_List,0),COLUMN(INDIRECT("calc"&$C24&"Yr5"))))) -> 27991.3794 | K24: =IF(K$22="","",INDIRECT("'Calculations'!" & ADDRESS(ROW(Budget_List)-1 + MATCH($F$8,Budget_List,0),COLUMN(INDIRECT("calc"&$C24&"Yr6"))))) -> 27991.3794 | L24: =IF(L$22="","",INDIRECT("'Calculations'!" & ADDRESS(ROW(Budget_List)-1 + MATCH($F$8,Budget_List,0),COLUMN(INDIRECT("calc"&$C24&"Yr7"))))) -> 27991.3794 | M24: =IF(M$22="","",INDIRECT("'Calculations'!" & ADDRESS(ROW(Budget_List)-1 + MATCH($F$8,Budget_List,0),COLUMN(INDIRECT("calc"&$C24&"Yr8"))))) ->  | N24: =IF(N$22="","",INDIRECT("'Calculations'!" & ADDRESS(ROW(Budget_List)-1 + MATCH($F$8,Budget_List,0),COLUMN(INDIRECT("calc"&$C24&"Yr9"))))) ->  | O24: =IF(O$22="","",INDIRECT("'Calculations'!" & ADDRESS(ROW(Budget_List)-1 + MATCH($F$8,Budget_List,0),COLUMN(INDIRECT("calc"&$C24&"Yr10"))))) -> 
C25: Scen2 | D25: =inScen2Name -> Scen3 | F25: =IF(F$22="","",INDIRECT("'Calculations'!" & ADDRESS(ROW(Budget_List)-1 + MATCH($F$8,Budget_List,0),COLUMN(INDIRECT("calc"&$C25&"Yr1"))))) -> 27991.3794 | G25: =IF(G$22="","",INDIRECT("'Calculations'!" & ADDRESS(ROW(Budget_List)-1 + MATCH($F$8,Budget_List,0),COLUMN(INDIRECT("calc"&$C25&"Yr2"))))) -> 27991.3794 | H25: =IF(H$22="","",INDIRECT("'Calculations'!" & ADDRESS(ROW(Budget_List)-1 + MATCH($F$8,Budget_List,0),COLUMN(INDIRECT("calc"&$C25&"Yr3"))))) -> 27991.3794 | I25: =IF(I$22="","",INDIRECT("'Calculations'!" & ADDRESS(ROW(Budget_List)-1 + MATCH($F$8,Budget_List,0),COLUMN(INDIRECT("calc"&$C25&"Yr4"))))) -> 27991.3794 | J25: =IF(J$22="","",INDIRECT("'Calculations'!" & ADDRESS(ROW(Budget_List)-1 + MATCH($F$8,Budget_List,0),COLUMN(INDIRECT("calc"&$C25&"Yr5"))))) -> 27991.3794 | K25: =IF(K$22="","",INDIRECT("'Calculations'!" & ADDRESS(ROW(Budget_List)-1 + MATCH($F$8,Budget_List,0),COLUMN(INDIRECT("calc"&$C25&"Yr6"))))) -> 27991.3794 | L25: =IF(L$22="","",INDIRECT("'Calculations'!" & ADDRESS(ROW(Budget_List)-1 + MATCH($F$8,Budget_List,0),COLUMN(INDIRECT("calc"&$C25&"Yr7"))))) -> 27991.3794 | M25: =IF(M$22="","",INDIRECT("'Calculations'!" & ADDRESS(ROW(Budget_List)-1 + MATCH($F$8,Budget_List,0),COLUMN(INDIRECT("calc"&$C25&"Yr8"))))) ->  | N25: =IF(N$22="","",INDIRECT("'Calculations'!" & ADDRESS(ROW(Budget_List)-1 + MATCH($F$8,Budget_List,0),COLUMN(INDIRECT("calc"&$C25&"Yr9"))))) ->  | O25: =IF(O$22="","",INDIRECT("'Calculations'!" & ADDRESS(ROW(Budget_List)-1 + MATCH($F$8,Budget_List,0),COLUMN(INDIRECT("calc"&$C25&"Yr10"))))) -> 
D26: * Acceptor results are expressed as the average annual number of acceptors over the course of the period of analysis.
J30: =Configuration!F12 -> 2017 | K30: =IFERROR(IF(J30+1<=Configuration!$F$14,J30+1,""),"") -> 2018 | L30: =IFERROR(IF(K30+1<=Configuration!$F$14,K30+1,""),"") -> 2019 | M30: =IFERROR(IF(L30+1<=Configuration!$F$14,L30+1,""),"") -> 2020 | N30: =IFERROR(IF(M30+1<=Configuration!$F$14,M30+1,""),"") -> 2021 | O30: =IFERROR(IF(N30+1<=Configuration!$F$14,N30+1,""),"") -> 2022 | P30: =IFERROR(IF(O30+1<=Configuration!$F$14,O30+1,""),"") -> 2023 | Q30: =IFERROR(IF(P30+1<=Configuration!$F$14,P30+1,""),"") ->  | R30: =IFERROR(IF(Q30+1<=Configuration!$F$14,Q30+1,""),"") ->  | S30: =IFERROR(IF(R30+1<=Configuration!$F$14,R30+1,""),"") -> 
G31: Slope | H31: Intercept
F32: Usual | G32: =(R12-Q12)/(ConEndYr-ConStartYr) -> 166666.6667 | H32: =R12-G32*ConEndYr -> -334166666.7 | J32: =IFERROR(BudUsualSlope*$J$30+BudUsualInter,"") -> 2000000 | K32: =IFERROR($G$32*K30+$H$32,"") -> 2166666.667 | L32: 2333333.333 | M32: 2500000 | N32: 2666666.667 | O32: 2833333.333 | P32: 3000000 | T32: =SUM(J32:S32) -> 17500000
F33: Scen1 | G33: =(R13-Q13)/(ConEndYr-ConStartYr) -> 333333.3333 | H33: =R13-G33*ConEndYr -> -670333333.3 | J33: =IFERROR(BudScen1Slope*$J$30+BudScen1Inter,"") -> 2000000 | K33: =IFERROR($G$33*K30+$H$33,"") -> 2333333.333 | L33: =IFERROR($G$33*L30+$H$33,"") -> 2666666.667 | M33: 3000000 | N33: 3333333.333 | O33: 3666666.667 | P33: 4000000 | T33: =SUM(J33:S33) -> 21000000
F34: Scen2 | G34: =(R14-Q14)/(ConEndYr-ConStartYr) -> 500000 | H34: =R14-G34*ConEndYr -> -1006500000 | J34: =IFERROR($G$34*J30+$H$34,"") -> 2000000 | K34: =IFERROR($G$34*K30+$H$34,"") -> 2500000 | L34: 3000000 | M34: 3500000 | N34: 4000000 | O34: 4500000 | P34: 5000000 | T34: =SUM(J34:S34) -> 24500000

Sheet Budget_Summary
C2: 0
G9: Usual | H9: =inUsualName -> Usual | I9: ="usual"&I10 -> usual2017 | J9: ="usual"&J10 -> usual2018 | K9: usual2019 | L9: usual2020 | M9: usual2021 | N9: usual2022 | O9: usual2023 | P9: usual | Q9: usual | R9: usual
H10: Indicator | I10: =Configuration!$F$12 -> 2017 | J10: =IFERROR(IF(I10+1<=Configuration!$F$14,I10+1,""),"") -> 2018 | K10: =IFERROR(IF(J10+1<=Configuration!$F$14,J10+1,""),"") -> 2019 | L10: =IFERROR(IF(K10+1<=Configuration!$F$14,K10+1,""),"") -> 2020 | M10: =IFERROR(IF(L10+1<=Configuration!$F$14,L10+1,""),"") -> 2021 | N10: =IFERROR(IF(M10+1<=Configuration!$F$14,M10+1,""),"") -> 2022 | O10: =IFERROR(IF(N10+1<=Configuration!$F$14,N10+1,""),"") -> 2023 | P10: =IFERROR(IF(O10+1<=Configuration!$F$14,O10+1,""),"") ->  | Q10: =IFERROR(IF(P10+1<=Configuration!$F$14,P10+1,""),"") ->  | R10: =IFERROR(IF(Q10+1<=Configuration!$F$14,Q10+1,""),"") -> 
H11: Unintended pregnancies averted | I11: =IF(I$10="","",INDIRECT("'Calculations'!" & ADDRESS(ROW(Budget_List)-1 + MATCH($H11,Budget_List,0),COLUMN(INDIRECT("calc"&$G$9&"Yr1"))))) -> 105148.4262 | J11: =IF(J$10="","",INDIRECT("'Calculations'!" & ADDRESS(ROW(Budget_List)-1 + MATCH($H11,Budget_List,0),COLUMN(INDIRECT("calc"&$G$9&"Yr2"))))) -> 113910.7951 | K11: =IF(K$10="","",INDIRECT("'Calculations'!" & ADDRESS(ROW(Budget_List)-1 + MATCH($H11,Budget_List,0),COLUMN(INDIRECT("calc"&$G$9&"Yr3"))))) -> 122673.1639 | L11: =IF(L$10="","",INDIRECT("'Calculations'!" & ADDRESS(ROW(Budget_List)-1 + MATCH($H11,Budget_List,0),COLUMN(INDIRECT("calc"&$G$9&"Yr4"))))) -> 131435.5328 | M11: =IF(M$10="","",INDIRECT("'Calculations'!" & ADDRESS(ROW(Budget_List)-1 + MATCH($H11,Budget_List,0),COLUMN(INDIRECT("calc"&$G$9&"Yr5"))))) -> 140197.9016 | N11: =IF(N$10="","",INDIRECT("'Calculations'!" & ADDRESS(ROW(Budget_List)-1 + MATCH($H11,Budget_List,0),COLUMN(INDIRECT("calc"&$G$9&"Yr6"))))) -> 148960.2705 | O11: =IF(O$10="","",INDIRECT("'Calculations'!" & ADDRESS(ROW(Budget_List)-1 + MATCH($H11,Budget_List,0),COLUMN(INDIRECT("calc"&$G$9&"Yr7"))))) -> 157722.6394 | P11: =IF(P$10="","",INDIRECT("'Calculations'!" & ADDRESS(ROW(Budget_List)-1 + MATCH($H11,Budget_List,0),COLUMN(INDIRECT("calc"&$G$9&"Yr8"))))) ->  | Q11: =IF(Q$10="","",INDIRECT("'Calculations'!" & ADDRESS(ROW(Budget_List)-1 + MATCH($H11,Budget_List,0),COLUMN(INDIRECT("calc"&$G$9&"Yr9"))))) ->  | R11: =IF(R$10="","",INDIRECT("'Calculations'!" & ADDRESS(ROW(Budget_List)-1 + MATCH($H11,Budget_List,0),COLUMN(INDIRECT("calc"&$G$9&"Yr10"))))) ->  | S11: =SUM(I11:R11) -> 920048.7296
H12: Births averted | I12: 29978.84841 | J12: 32477.08578 | K12: 34975.32315 | L12: 37473.56052 | M12: 39971.79788 | N12: 42470.03525 | O12: 44968.27262 | S12: 262314.9236
H13: Abortions Averted | I13: 63931.31356 | J13: 69258.92303 | K13: 74586.53249 | L13: 79914.14195 | M13: 85241.75142 | N13: 90569.36088 | O13: 95896.97034 | S13: 559398.9937
H14: Unsafe Abortions Averted | I14: 36948.56594 | J14: 40027.6131 | K14: 43106.66026 | L14: 46185.70743 | M14: 49264.75459 | N14: 52343.80175 | O14: 55422.84891 | S14: 323299.952
H15: Maternal deaths averted | I15: 185.0685521 | J15: 177.0474906 | K15: 165.4197458 | L15: 150.1853178 | M15: 131.3442066 | N15: 108.8964121 | O15: 82.84193448 | S15: 1000.803659
H16: Child deaths averted | I16: 1318.482944 | J16: 1428.356523 | K16: 1538.230101 | L16: 1648.10368 | M16: 1757.977258 | N16: 1867.850837 | O16: 1977.724416 | S16: 11536.72576
H17: DALYs averted | I17: 122535.381 | J17: 131345.9422 | K17: 139941.008 | L17: 148320.5783 | M17: 156484.6531 | N17: 164433.2325 | O17: 172166.3164 | S17: =IFERROR(AVERAGE(I17:R17),"") -> 147889.5873
H18: Maternal & infant healthcare costs averted | I18: 1838297.043 | J18: 1991488.463 | K18: 2144679.883 | L18: 2297871.303 | M18: 2451062.723 | N18: 2604254.144 | O18: 2757445.564 | S18: =SUM(I18:R18) -> 16085099.12
H19: CPR | I19: 0.05923036236 | J19: 0.06180223826 | K19: 0.06419134358 | L19: 0.06641649271 | M19: 0.06849400337 | N19: 0.07043809745 | O19: 0.07226122702 | S19: =IFERROR(AVERAGE(I19:R19),"") -> 0.06611910925
H20: Unmet Need | I20: 0.2424 | J20: 0.2398 | K20: 0.2372 | L20: 0.2346 | M20: 0.232 | N20: 0.2294 | O20: 0.2268 | S20: 1.6422
H21: Cost-benefit ratio | I21: =IF(I$10="","",INDIRECT("'Calculations'!" & ADDRESS(ROW(Budget_List)-1 + MATCH($H21,Budget_List,0),COLUMN(INDIRECT("calc"&$G$9&"Yr1"))))) -> 
H22: Total users | I22: 329314.721 | J22: 356757.6144 | K22: 384200.5079 | L22: 411643.4013 | M22: 439086.2947 | N22: 466529.1881 | O22: 493972.0815 | S22: 2881503.809
H23: Condom users | I23: 48515.11515 | J23: 52558.04141 | K23: 56600.96768 | L23: 60643.89394 | M23: 64686.8202 | N23: 68729.74646 | O23: 72772.67273 | S23: 424507.2576
H24: Injectable users | I24: 72037.59522 | J24: 78040.72816 | K24: 84043.86109 | L24: 90046.99403 | M24: 96050.12696 | N24: 102053.2599 | O24: 108056.3928 | S24: 630328.9582
H25: Pill users | I25: 99970.54031 | J25: 108301.4187 | K25: 116632.297 | L25: 124963.1754 | M25: 133294.0537 | N25: 141624.9321 | O25: 149955.8105 | S25: 874742.2277
H26: Male sterilization users | I26: 0 | J26: 0 | K26: 0 | L26: 0 | M26: 0 | N26: 0 | O26: 0 | S26: 0
H27: Female sterilization users | I27: 26462.79008 | J27: 28668.02259 | K27: 30873.2551 | L27: 33078.4876 | M27: 35283.72011 | N27: 37488.95262 | O27: 39694.18512 | S27: 231549.4132
H28: IUD users | I28: 20582.17006 | J28: 22297.3509 | K28: 24012.53174 | L28: 25727.71258 | M28: 27442.89342 | N28: 29158.07426 | O28: 30873.2551 | S28: 180093.9881
H29: Implant users | I29: 2940.310009 | J29: 3185.335843 | K29: 3430.361677 | L29: 3675.387511 | M29: 3920.413345 | N29: 4165.43918 | O29: 4410.465014 | S29: 25727.71258
H30: Standard Days Method (SDM) users | I30: 0 | J30: 0 | K30: 0 | L30: 0 | M30: 0 | N30: 0 | O30: 0 | S30: 0
H31: Other modern users | I31: 0 | J31: 0 | K31: 0 | L31: 0 | M31: 0 | N31: 0 | O31: 0 | S31: 0
H32: All traditional users | I32: 39694.18512 | J32: 43002.03388 | K32: 46309.88264 | L32: 49617.7314 | M32: 52925.58016 | N32: 56233.42892 | O32: 59541.27768 | S32: 347324.1198
H33: Male sterilization acceptors * | I33: 0 | J33: 0 | K33: 0 | L33: 0 | M33: 0 | N33: 0 | O33: 0 | S33: 0
H34: Female sterilization acceptors * | I34: 27991.3794 | J34: 27991.3794 | K34: 27991.3794 | L34: 27991.3794 | M34: 27991.3794 | N34: 27991.3794 | O34: 27991.3794 | S34: 195939.6558
H35: IUD acceptors * | I35: 21172.00511 | J35: 21172.00511 | K35: 21172.00511 | L35: 21172.00511 | M35: 21172.00511 | N35: 21172.00511 | O35: 21172.00511
H36: Implant acceptors * | I36: 3793.381533 | J36: 3793.381533 | K36: 3793.381533 | L36: 3793.381533 | M36: 3793.381533 | N36: 3793.381533 | O36: 3793.381533
H37: SDM acceptors * | I37: 0 | J37: 0 | K37: 0 | L37: 0 | M37: 0 | N37: 0 | O37: 0 | S37: 0
G38: Scen1 | H38: =inScen1Name -> Scen2 | I38: ="scen1"&I39 -> scen12017 | J38: ="scen1"&J39 -> scen12018 | K38: scen12019 | L38: scen12020 | M38: scen12021 | N38: scen12022 | O38: scen12023 | P38: scen1 | Q38: scen1 | R38: scen1 | S38: =SUM(I38:R38) -> 0
H39: Indicator | I39: =Configuration!$F$12 -> 2017 | J39: =IFERROR(IF(I39+1<=Configuration!$F$14,I39+1,""),"") -> 2018 | K39: =IFERROR(IF(J39+1<=Configuration!$F$14,J39+1,""),"") -> 2019 | L39: =IFERROR(IF(K39+1<=Configuration!$F$14,K39+1,""),"") -> 2020 | M39: =IFERROR(IF(L39+1<=Configuration!$F$14,L39+1,""),"") -> 2021 | N39: =IFERROR(IF(M39+1<=Configuration!$F$14,M39+1,""),"") -> 2022 | O39: =IFERROR(IF(N39+1<=Configuration!$F$14,N39+1,""),"") -> 2023 | P39: =IFERROR(IF(O39+1<=Configuration!$F$14,O39+1,""),"") ->  | Q39: =IFERROR(IF(P39+1<=Configuration!$F$14,P39+1,""),"") ->  | R39: =IFERROR(IF(Q39+1<=Configuration!$F$14,Q39+1,""),"") ->  | S39: =SUM(I39:R39) -> 14140
H40: Unintended pregnancies averted | I40: =IF(I$10="","",INDIRECT("'Calculations'!" & ADDRESS(ROW(Budget_List)-1 + MATCH($H40,Budget_List,0),COLUMN(INDIRECT("calc"&$G$38&"Yr1"))))) -> 105148.4262 | J40: =IF(J$10="","",INDIRECT("'Calculations'!" & ADDRESS(ROW(Budget_List)-1 + MATCH($H40,Budget_List,0),COLUMN(INDIRECT("calc"&$G$38&"Yr2"))))) -> 122673.1639 | K40: =IF(K$10="","",INDIRECT("'Calculations'!" & ADDRESS(ROW(Budget_List)-1 + MATCH($H40,Budget_List,0),COLUMN(INDIRECT("calc"&$G$38&"Yr3"))))) -> 140197.9016 | L40: =IF(L$10="","",INDIRECT("'Calculations'!" & ADDRESS(ROW(Budget_List)-1 + MATCH($H40,Budget_List,0),COLUMN(INDIRECT("calc"&$G$38&"Yr4"))))) -> 157722.6394 | M40: =IF(M$10="","",INDIRECT("'Calculations'!" & ADDRESS(ROW(Budget_List)-1 + MATCH($H40,Budget_List,0),COLUMN(INDIRECT("calc"&$G$38&"Yr5"))))) -> 175247.3771 | N40: =IF(N$10="","",INDIRECT("'Calculations'!" & ADDRESS(ROW(Budget_List)-1 + MATCH($H40,Budget_List,0),COLUMN(INDIRECT("calc"&$G$38&"Yr6"))))) -> 192772.1148 | O40: =IF(O$10="","",INDIRECT("'Calculations'!" & ADDRESS(ROW(Budget_List)-1 + MATCH($H40,Budget_List,0),COLUMN(INDIRECT("calc"&$G$38&"Yr7"))))) -> 192772.1148 | P40: =IF(P$10="","",INDIRECT("'Calculations'!" & ADDRESS(ROW(Budget_List)-1 + MATCH($H40,Budget_List,0),COLUMN(INDIRECT("calc"&$G$38&"Yr8"))))) ->  | Q40: =IF(Q$10="","",INDIRECT("'Calculations'!" & ADDRESS(ROW(Budget_List)-1 + MATCH($H40,Budget_List,0),COLUMN(INDIRECT("calc"&$G$38&"Yr9"))))) ->  | R40: =IF(R$10="","",INDIRECT("'Calculations'!" & ADDRESS(ROW(Budget_List)-1 + MATCH($H40,Budget_List,0),COLUMN(INDIRECT("calc"&$G$38&"Yr10"))))) ->  | S40: =SUM(I40:R40) -> 1086533.738
H41: Births averted | I41: 29978.84841 | J41: 34975.32315 | K41: 39971.79788 | L41: 44968.27262 | M41: 49964.74735 | N41: 54961.22209 | O41: 54961.22209 | S41: =SUM(I41:R41) -> 309781.4336
H42: Abortions Averted | I42: 63931.31356 | J42: 74586.53249 | K42: 85241.75142 | L42: 95896.97034 | M42: 106552.1893 | N42: 117207.4082 | O42: 117207.4082 | S42: 660623.5735
H43: Unsafe Abortions Averted | I43: 36948.56594 | J43: 43106.66026 | K43: 49264.75459 | L43: 55422.84891 | M43: 61580.94324 | N43: 67739.03756 | O43: 67739.03756 | S43: 381801.8481
H44: Maternal deaths averted | I44: =IF(I$10="","",INDIRECT("'Calculations'!" & ADDRESS(ROW(Budget_List)-1 + MATCH($H44,Budget_List,0),COLUMN(INDIRECT("calc"&$G$38&"Yr1"))))) -> 185.0685521 | J44: 190.6665283 | K44: 189.051138 | L44: 180.2223813 | M44: 164.1802582 | N44: 140.9247686 | O44: 101.2512533 | S44: 1151.36488
H45: Child deaths averted | I45: 1318.482944 | J45: 1538.230101 | K45: 1757.977258 | L45: 1977.724416 | M45: 2197.471573 | N45: 2417.21873 | O45: 2417.21873 | S45: 13624.32375
H46: DALYs averted | I46: 122535.381 | J46: 141449.4762 | K46: 159932.5805 | L46: 177984.6939 | M46: 195605.8164 | N46: 212795.9479 | O46: 210425.4978 | S46: =IFERROR(AVERAGE(I46:R46),"") -> 174389.9134
H47: Maternal & infant healthcare costs averted | I47: 1838297.043 | J47: 2144679.883 | K47: 2451062.723 | L47: 2757445.564 | M47: 3063828.404 | N47: 3370211.245 | O47: 3370211.245 | S47: 18995736.11
H48: CPR | I48: 0.05923036236 | J48: 0.06655625658 | K48: 0.07336153552 | L48: 0.07969979125 | M48: 0.08561750421 | N48: 0.09115518493 | O48: 0.08831927747 | S48: =IFERROR(AVERAGE(I48:R48),"") -> 0.07770570176
H49: Unmet Need | I49: 0.2424 | J49: 0.2398 | K49: 0.2372 | L49: 0.2346 | M49: 0.232 | N49: 0.2294 | O49: 0.2268 | S49: 1.6422
H50: Cost-benefit ratio
H51: Total users | I51: 329314.721 | J51: 384200.5079 | K51: 439086.2947 | L51: 493972.0815 | M51: 548857.8684 | N51: 603743.6552 | O51: 603743.6552 | S51: 3402918.784
H52: Condom users | I52: 48515.11515 | J52: 56600.96768 | K52: 64686.8202 | L52: 72772.67273 | M52: 80858.52525 | N52: 88944.37778 | O52: 88944.37778 | S52: 501322.8566
H53: Injectable users | I53: 72037.59522 | J53: 84043.86109 | K53: 96050.12696 | L53: 108056.3928 | M53: 120062.6587 | N53: 132068.9246 | O53: 132068.9246 | S53: 744388.484
H54: Pill users | I54: 99970.54031 | J54: 116632.297 | K54: 133294.0537 | L54: 149955.8105 | M54: 166617.5672 | N54: 183279.3239 | O54: 183279.3239 | S54: 1033028.917
H55: Male sterilization users | I55: 0 | J55: 0 | K55: 0 | L55: 0 | M55: 0 | N55: 0 | O55: 0 | S55: 0
H56: Female sterilization users | I56: 26462.79008 | J56: 30873.2551 | K56: 35283.72011 | L56: 39694.18512 | M56: 44104.65014 | N56: 48515.11515 | O56: 48515.11515 | S56: 273448.8308
H57: IUD users | I57: 20582.17006 | J57: 24012.53174 | K57: 27442.89342 | L57: 30873.2551 | M57: 34303.61677 | N57: 37733.97845 | O57: 37733.97845 | S57: 212682.424
H58: Implant users | I58: 2940.310009 | J58: 3430.361677 | K58: 3920.413345 | L58: 4410.465014 | M58: 4900.516682 | N58: 5390.56835 | O58: 5390.56835 | S58: 30383.20343
H59: Standard Days Method (SDM) users | I59: 0 | J59: 0 | K59: 0 | L59: 0 | M59: 0 | N59: 0 | O59: 0 | S59: 0
H60: Other modern users | I60: 0 | J60: 0 | K60: 0 | L60: 0 | M60: 0 | N60: 0 | O60: 0 | S60: 0
H61: All traditional users | I61: 39694.18512 | J61: 46309.88264 | K61: 52925.58016 | L61: 59541.27768 | M61: 66156.9752 | N61: 72772.67273 | O61: 72772.67273 | S61: 410173.2463
H62: Male sterilization acceptors * | I62: 0 | J62: 0 | K62: 0 | L62: 0 | M62: 0 | N62: 0 | O62: 0 | S62: 0
H63: Female sterilization acceptors * | I63: 27991.3794 | J63: 27991.3794 | K63: 27991.3794 | L63: 27991.3794 | M63: 27991.3794 | N63: 27991.3794 | O63: 27991.3794 | S63: 195939.6558
H64: IUD acceptors * | I64: 21172.00511 | J64: 21172.00511 | K64: 21172.00511 | L64: 21172.00511 | M64: 21172.00511 | N64: 21172.00511 | O64: 21172.00511
H65: Implant acceptors * | I65: 3793.381533 | J65: 3793.381533 | K65: 3793.381533 | L65: 3793.381533 | M65: 3793.381533 | N65: 3793.381533 | O65: 3793.381533
H66: SDM acceptors * | I66: 0 | J66: 0 | K66: 0 | L66: 0 | M66: 0 | N66: 0 | O66: 0 | S66: 0
G67: Scen2 | H67: =inScen2Name -> Scen3 | I67: ="scen2"&I68 -> scen22017 | J67: ="scen2"&J68 -> scen22018 | K67: scen22019 | L67: scen22020 | M67: scen22021 | N67: scen22022 | O67: scen22023 | P67: scen2 | Q67: scen2 | R67: scen2 | S67: =SUM(I67:R67) -> 0
H68: Indicator | I68: =Configuration!$F$12 -> 2017 | J68: =IFERROR(IF(I68+1<=Configuration!$F$14,I68+1,""),"") -> 2018 | K68: =IFERROR(IF(J68+1<=Configuration!$F$14,J68+1,""),"") -> 2019 | L68: =IFERROR(IF(K68+1<=Configuration!$F$14,K68+1,""),"") -> 2020 | M68: =IFERROR(IF(L68+1<=Configuration!$F$14,L68+1,""),"") -> 2021 | N68: =IFERROR(IF(M68+1<=Configuration!$F$14,M68+1,""),"") -> 2022 | O68: =IFERROR(IF(N68+1<=Configuration!$F$14,N68+1,""),"") -> 2023 | P68: =IFERROR(IF(O68+1<=Configuration!$F$14,O68+1,""),"") ->  | Q68: =IFERROR(IF(P68+1<=Configuration!$F$14,P68+1,""),"") ->  | R68: =IFERROR(IF(Q68+1<=Configuration!$F$14,Q68+1,""),"") ->  | S68: =SUM(I68:R68) -> 14140
H69: Unintended pregnancies averted | I69: =IF(I$10="","",INDIRECT("'Calculations'!" & ADDRESS(ROW(Budget_List)-1 + MATCH($H69,Budget_List,0),COLUMN(INDIRECT("calc"&$G$67&"Yr1"))))) -> 105148.4262 | J69: =IF(J$10="","",INDIRECT("'Calculations'!" & ADDRESS(ROW(Budget_List)-1 + MATCH($H69,Budget_List,0),COLUMN(INDIRECT("calc"&$G$67&"Yr2"))))) -> 131435.5328 | K69: =IF(K$10="","",INDIRECT("'Calculations'!" & ADDRESS(ROW(Budget_List)-1 + MATCH($H69,Budget_List,0),COLUMN(INDIRECT("calc"&$G$67&"Yr3"))))) -> 157722.6394 | L69: =IF(L$10="","",INDIRECT("'Calculations'!" & ADDRESS(ROW(Budget_List)-1 + MATCH($H69,Budget_List,0),COLUMN(INDIRECT("calc"&$G$67&"Yr4"))))) -> 184009.7459 | M69: =IF(M$10="","",INDIRECT("'Calculations'!" & ADDRESS(ROW(Budget_List)-1 + MATCH($H69,Budget_List,0),COLUMN(INDIRECT("calc"&$G$67&"Yr5"))))) -> 210296.8525 | N69: =IF(N$10="","",INDIRECT("'Calculations'!" & ADDRESS(ROW(Budget_List)-1 + MATCH($H69,Budget_List,0),COLUMN(INDIRECT("calc"&$G$67&"Yr6"))))) -> 236583.959 | O69: =IF(O$10="","",INDIRECT("'Calculations'!" & ADDRESS(ROW(Budget_List)-1 + MATCH($H69,Budget_List,0),COLUMN(INDIRECT("calc"&$G$67&"Yr7"))))) -> 236583.959 | P69: =IF(P$10="","",INDIRECT("'Calculations'!" & ADDRESS(ROW(Budget_List)-1 + MATCH($H69,Budget_List,0),COLUMN(INDIRECT("calc"&$G$67&"Yr8"))))) ->  | Q69: =IF(Q$10="","",INDIRECT("'Calculations'!" & ADDRESS(ROW(Budget_List)-1 + MATCH($H69,Budget_List,0),COLUMN(INDIRECT("calc"&$G$67&"Yr9"))))) ->  | R69: =IF(R$10="","",INDIRECT("'Calculations'!" & ADDRESS(ROW(Budget_List)-1 + MATCH($H69,Budget_List,0),COLUMN(INDIRECT("calc"&$G$67&"Yr10"))))) ->  | S69: =SUM(I69:R69) -> 1261781.115
H70: Births averted | I70: 29978.84841 | J70: 37473.56052 | K70: 44968.27262 | L70: 52462.98472 | M70: 59957.69682 | N70: 67452.40893 | O70: 67452.40893 | S70: =SUM(I70:R70) -> 359746.1809
H71: Abortions Averted | I71: 63931.31356 | J71: 79914.14195 | K71: 95896.97034 | L71: 111879.7987 | M71: 127862.6271 | N71: 143845.4555 | O71: 143845.4555 | S71: 767175.7627
H72: Unsafe Abortions Averted | I72: 36948.56594 | J72: 46185.70743 | K72: 55422.84891 | L72: 64659.9904 | M72: 73897.13188 | N72: 83134.27337 | O72: 83134.27337 | S72: 443382.7913
H73: Maternal deaths averted | I73: 185.0685521 | J73: 204.285566 | K73: 212.6825303 | L73: 210.2594449 | M73: 197.0163098 | N73: 172.9531251 | O73: 124.2629017 | S73: 1306.52843
H74: Child deaths averted | I74: 1318.482944 | J74: 1648.10368 | K74: 1977.724416 | L74: 2307.345152 | M74: 2636.965888 | N74: 2966.586624 | O74: 2966.586624 | S74: 15821.79533
H75: DALYs averted | I75: 122535.381 | J75: 151553.0102 | K75: 179924.1531 | L75: 207648.8096 | M75: 234726.9796 | N75: 261158.6633 | O75: 258249.4745 | S75: =IFERROR(AVERAGE(I75:R75),"") -> 202256.6388
H76: Maternal & infant healthcare costs averted | I76: 1838297.043 | J76: 2297871.303 | K76: 2757445.564 | L76: 3217019.824 | M76: 3676594.085 | N76: 4136168.346 | O76: 4136168.346 | S76: 22059564.51
H77: CPR | I77: 0.05923036236 | J77: 0.07131027491 | K77: 0.08253172746 | L77: 0.09298308979 | M77: 0.1027410051 | N77: 0.1118722724 | O77: 0.1083918405 | S77: =IFERROR(AVERAGE(I77:R77),"") -> 0.08986579607
H78: Unmet Need | I78: 0.2424 | J78: 0.2398 | K78: 0.2372 | L78: 0.2346 | M78: 0.232 | N78: 0.2294 | O78: 0.2268 | S78: 1.6422
H79: Cost-benefit ratio
H80: Total users | I80: 329314.721 | J80: 411643.4013 | K80: 493972.0815 | L80: 576300.7618 | M80: 658629.442 | N80: 740958.1223 | O80: 740958.1223 | S80: 3951776.652
H81: Condom users | I81: 48515.11515 | J81: 60643.89394 | K81: 72772.67273 | L81: 84901.45151 | M81: 97030.2303 | N81: 109159.0091 | O81: 109159.0091 | S81: 582181.3818
H82: Injectable users | I82: 72037.59522 | J82: 90046.99403 | K82: 108056.3928 | L82: 126065.7916 | M82: 144075.1904 | N82: 162084.5893 | O82: 162084.5893 | S82: 864451.1427
H83: Pill users | I83: 99970.54031 | J83: 124963.1754 | K83: 149955.8105 | L83: 174948.4455 | M83: 199941.0806 | N83: 224933.7157 | O83: 224933.7157 | S83: 1199646.484
H84: Male sterilization users | I84: 0 | J84: 0 | K84: 0 | L84: 0 | M84: 0 | N84: 0 | O84: 0 | S84: 0
H85: Female sterilization users | I85: 26462.79008 | J85: 33078.4876 | K85: 39694.18512 | L85: 46309.88264 | M85: 52925.58016 | N85: 59541.27768 | O85: 59541.27768 | S85: 317553.481
H86: IUD users | I86: 20582.17006 | J86: 25727.71258 | K86: 30873.2551 | L86: 36018.79761 | M86: 41164.34013 | N86: 46309.88264 | O86: 46309.88264 | S86: 246986.0408
H87: Implant users | I87: 2940.310009 | J87: 3675.387511 | K87: 4410.465014 | L87: 5145.542516 | M87: 5880.620018 | N87: 6615.69752 | O87: 6615.69752 | S87: 35283.72011
H88: Standard Days Method (SDM) users | I88: 0 | J88: 0 | K88: 0 | L88: 0 | M88: 0 | N88: 0 | O88: 0 | S88: 0
H89: Other modern users | I89: 0 | J89: 0 | K89: 0 | L89: 0 | M89: 0 | N89: 0 | O89: 0 | S89: 0
H90: All traditional users | I90: 39694.18512 | J90: 49617.7314 | K90: 59541.27768 | L90: 69464.82396 | M90: 79388.37025 | N90: 89311.91653 | O90: 89311.91653 | S90: 476330.2215
H91: Male sterilization acceptors * | I91: 0 | J91: 0 | K91: 0 | L91: 0 | M91: 0 | N91: 0 | O91: 0 | S91: 0
H92: Female sterilization acceptors * | I92: 27991.3794 | J92: 27991.3794 | K92: 27991.3794 | L92: 27991.3794 | M92: 27991.3794 | N92: 27991.3794 | O92: 27991.3794 | S92: 195939.6558
H93: IUD acceptors * | I93: 21172.00511 | J93: 21172.00511 | K93: 21172.00511 | L93: 21172.00511 | M93: 21172.00511 | N93: 21172.00511 | O93: 21172.00511
H94: Implant acceptors * | I94: 3793.381533 | J94: 3793.381533 | K94: 3793.381533 | L94: 3793.381533 | M94: 3793.381533 | N94: 3793.381533 | O94: 3793.381533
H95: SDM acceptors * | I95: 0 | J95: 0 | K95: 0 | L95: 0 | M95: 0 | N95: 0 | O95: 0 | S95: 0
H96: * Acceptor results are expressed as the average annual number of acceptors over the course of the period of analysis.

Sheet Budget_Comparison
C2: 0
D3: Incremental difference compared to
D4: Percentage difference compared to
E9: =E10 -> Usual | G9: =G10 -> Scen2 | I9: =I10 -> Scen3 | K9: =D3 & inUsualName -> Incremental difference compared toUsual | O9: =D4 &inUsualName -> Percentage difference compared toUsual
E10: =inUsualName -> Usual | G10: =inScen1Name -> Scen2 | I10: =inScen2Name -> Scen3 | K10: =inScen1Name -> Scen2 | M10: =inScen2Name -> Scen3 | O10: =inScen1Name -> Scen2 | Q10: =inScen2Name -> Scen3
D11: Unintended pregnancies averted | E11: =Budget_Summary!S11 -> 920048.7296 | G11: =Budget_Summary!S40 -> 1086533.738 | I11: =Budget_Summary!S69 -> 1261781.115 | K11: =IFERROR(G11-E11,"") -> 166485.0082 | M11: =IFERROR(I11-E11,"") -> 341732.3853 | O11: =IFERROR(K11/E11,"") -> 0.180952381 | Q11: =IFERROR(M11/E11,"") -> 0.3714285714
D12: Births averted | E12: =Budget_Summary!S12 -> 262314.9236 | G12: =Budget_Summary!S41 -> 309781.4336 | I12: =Budget_Summary!S70 -> 359746.1809 | K12: =IFERROR(G12-E12,"") -> 47466.50999 | M12: =IFERROR(I12-E12,"") -> 97431.25734 | O12: 0.180952381 | Q12: =IFERROR(M12/E12,"") -> 0.3714285714
D13: Abortions Averted | E13: =Budget_Summary!S13 -> 559398.9937 | G13: =Budget_Summary!S42 -> 660623.5735 | I13: =Budget_Summary!S71 -> 767175.7627 | K13: 101224.5798 | M13: 207776.7691 | O13: 0.180952381 | Q13: 0.3714285714
D14: Unsafe Abortions Averted | E14: =Budget_Summary!S14 -> 323299.952 | G14: =Budget_Summary!S43 -> 381801.8481 | I14: =Budget_Summary!S72 -> 443382.7913 | K14: 58501.89607 | M14: 120082.8393 | O14: 0.180952381 | Q14: 0.3714285714
D15: Maternal deaths averted | E15: =Budget_Summary!S15 -> 1000.803659 | G15: =Budget_Summary!S44 -> 1151.36488 | I15: =Budget_Summary!S73 -> 1306.52843 | K15: 150.5612205 | M15: 305.7247706 | O15: 0.1504403177 | Q15: 0.3054792693
D16: Child deaths averted | E16: =Budget_Summary!S16 -> 11536.72576 | G16: =Budget_Summary!S45 -> 13624.32375 | I16: =Budget_Summary!S74 -> 15821.79533 | K16: 2087.597994 | M16: 4285.069568 | O16: 0.180952381 | Q16: 0.3714285714
D17: DALYs averted | E17: =Budget_Summary!S17 -> 147889.5873 | G17: =Budget_Summary!S46 -> 174389.9134 | I17: =Budget_Summary!S75 -> 202256.6388 | K17: 26500.32605 | M17: 54367.05144 | O17: 0.1791899384 | Q17: 0.3676191976
D18: Maternal & infant healthcare costs averted | E18: =Budget_Summary!S18 -> 16085099.12 | G18: =Budget_Summary!S47 -> 18995736.11 | I18: =Budget_Summary!S76 -> 22059564.51 | K18: 2910636.984 | M18: 5974465.388 | O18: 0.180952381 | Q18: 0.3714285714
D19: CPR | E19: =Budget_Summary!S19 -> 0.06611910925 | G19: =Budget_Summary!S48 -> 0.07770570176 | I19: =Budget_Summary!S77 -> 0.08986579607 | K19: 0.01158659251 | M19: 0.02374668683 | O19: 0.1752381822 | Q19: 0.3591501322
D20: Unmet Need | E20: =Budget_Summary!S20 -> 1.6422 | G20: =Budget_Summary!S49 -> 1.6422 | I20: =Budget_Summary!S78 -> 1.6422 | K20: 0 | M20: 0 | O20: 0 | Q20: 0
D21: Cost-benefit ratio | E21: =Budget_Summary!S21 ->  | G21: =Budget_Summary!S50 ->  | I21: =Budget_Summary!S79 -> 
D22: Total user-years | E22: =Budget_Summary!S22 -> 2881503.809 | G22: =Budget_Summary!S51 -> 3402918.784 | I22: =Budget_Summary!S80 -> 3951776.652 | K22: 521414.9749 | M22: 1070272.843 | O22: 0.180952381 | Q22: 0.3714285714
D23: Condom user-years | E23: =Budget_Summary!S23 -> 424507.2576 | G23: =Budget_Summary!S52 -> 501322.8566 | I23: =Budget_Summary!S81 -> 582181.3818 | K23: 76815.59899 | M23: 157674.1242 | O23: 0.180952381 | Q23: 0.3714285714
D24: Injectible user-years | E24: =Budget_Summary!S24 -> 630328.9582 | G24: =Budget_Summary!S53 -> 744388.484 | I24: =Budget_Summary!S82 -> 864451.1427 | K24: 114059.5258 | M24: 234122.1845 | O24: 0.180952381 | Q24: 0.3714285714
D25: Pill user-years | E25: =Budget_Summary!S25 -> 874742.2277 | G25: =Budget_Summary!S54 -> 1033028.917 | I25: =Budget_Summary!S83 -> 1199646.484 | K25: 158286.6888 | M25: 324904.256 | O25: 0.180952381 | Q25: 0.3714285714
D26: Male sterilization user-years | E26: =Budget_Summary!S26 -> 0 | G26: =Budget_Summary!S55 -> 0 | I26: =Budget_Summary!S84 -> 0 | K26: 0 | M26: 0
D27: Female sterilization user-years | E27: =Budget_Summary!S27 -> 231549.4132 | G27: =Budget_Summary!S56 -> 273448.8308 | I27: =Budget_Summary!S85 -> 317553.481 | K27: 41899.41763 | M27: 86004.06777 | O27: 0.180952381 | Q27: 0.3714285714
D28: IUD user-years | E28: =Budget_Summary!S28 -> 180093.9881 | G28: =Budget_Summary!S57 -> 212682.424 | I28: =Budget_Summary!S86 -> 246986.0408 | K28: 32588.43593 | M28: 66892.05271 | O28: 0.180952381 | Q28: 0.3714285714
D29: Implant user-years | E29: =Budget_Summary!S29 -> 25727.71258 | G29: =Budget_Summary!S58 -> 30383.20343 | I29: =Budget_Summary!S87 -> 35283.72011 | K29: 4655.490848 | M29: 9556.00753 | O29: 0.180952381 | Q29: 0.3714285714
D30: Standard Days Method (SDM) user-years | E30: =Budget_Summary!S30 -> 0 | G30: =Budget_Summary!S59 -> 0 | I30: =Budget_Summary!S88 -> 0 | K30: 0 | M30: 0
D31: Other modern user-years | E31: =Budget_Summary!S31 -> 0 | G31: =Budget_Summary!S60 -> 0 | I31: =Budget_Summary!S89 -> 0 | K31: 0 | M31: 0
D32: All traditional user-years | E32: =Budget_Summary!S32 -> 347324.1198 | G32: =Budget_Summary!S61 -> 410173.2463 | I32: =Budget_Summary!S90 -> 476330.2215 | K32: 62849.12644 | M32: 129006.1016 | O32: 0.180952381 | Q32: 0.3714285714
D33: Male sterilization acceptors * | E33: =Budget_Summary!S33 -> 0 | G33: =Budget_Summary!S62 -> 0 | I33: =Budget_Summary!S91 -> 0 | K33: 0 | M33: 0
D34: Female sterilization acceptors * | E34: =Budget_Summary!S34 -> 195939.6558 | G34: =Budget_Summary!S63 -> 195939.6558 | I34: =Budget_Summary!S92 -> 195939.6558 | K34: 0 | M34: 0 | O34: 0 | Q34: 0
D35: IUD acceptors * | E35: =Budget_Summary!S35 -> 0 | G35: =Budget_Summary!S64 -> 0 | I35: =Budget_Summary!S93 -> 0 | K35: =IFERROR(G35-E35,"") -> 0 | M35: =IFERROR(I35-E35,"") -> 0 | O35: =IFERROR(K35/E35,"") -> 
D36: Implant acceptors * | E36: =Budget_Summary!S36 -> 0 | G36: =Budget_Summary!S65 -> 0 | I36: =Budget_Summary!S94 -> 0 | K36: =IFERROR(G36-E36,"") -> 0 | M36: =IFERROR(I36-E36,"") -> 0 | O36: =IFERROR(K36/E36,"") -> 
D37: SDM acceptors * | E37: =Budget_Summary!S37 -> 0 | G37: =Budget_Summary!S66 -> 0 | I37: =Budget_Summary!S95 -> 0 | K37: =IFERROR(G37-E37,"") -> 0 | M37: =IFERROR(I37-E37,"") -> 0 | O37: =IFERROR(K37/E37,"") -> 
D38: * Acceptor results are expressed as the average annual number of acceptors over the course of the period of analysis.

Sheet Budget_ICER
C2: 0
D20: Outcome | E20: Total user-years
E21: Program | G21: FP Costs | H21: Outcome | I21: Incremental Costs | K21: Difference in X outcome | N21: ICER
E22: =Budget_Indicator!D23 -> Usual | G22: =Budget_Indicator!T32 -> 17500000 | H22: =INDEX(Budget_Comparison!$E$11:$J$37,MATCH($E$20,Budget_Comparison!$D$11:$D$37,0),1) -> 2881503.809 | I22: - | K22: - | N22: -
E23: =Budget_Indicator!D24 -> Scen2 | G23: =Budget_Indicator!T33 -> 21000000 | H23: =INDEX(Budget_Comparison!$E$11:$J$37,MATCH($E$20,Budget_Comparison!$D$11:$D$37,0),3) -> 3402918.784 | I23: =G23-G22 -> 3500000 | K23: =H23-H22 -> 521414.9749 | N23: =IFERROR(I23/K23,0) -> 6.712503799
E24: =Budget_Indicator!D25 -> Scen3 | G24: =Budget_Indicator!T34 -> 24500000 | H24: =INDEX(Budget_Comparison!$E$11:$J$37,MATCH($E$20,Budget_Comparison!$D$11:$D$37,0),5) -> 3951776.652 | I24: =G24-G22 -> 7000000 | K24: =H24-H22 -> 1070272.843 | N24: =IFERROR(I24/K24,0) -> 6.540388317
E25: * Acceptor results are expressed as the average annual number of acceptors over the course of the period of analysis.

Sheet Calculations
C1: CPR: | E1: Unmet need: | G1: Budget Constraint: | I1: All:
B2: Scenario | C2: Usual | D2: Usual | E2: Usual | F2: Usual | G2: Usual | H2: Usual | I2: Usual | J2: Usual | K2: Usual | L2: Usual | N2: Scen1 | O2: Scen1 | P2: Scen1 | Q2: Scen1 | R2: Scen1 | S2: Scen1 | T2: Scen1 | U2: Scen1 | V2: Scen1 | W2: Scen1 | Y2: Scen2 | Z2: Scen2 | AA2: Scen2 | AB2: Scen2 | AC2: Scen2 | AD2: Scen2 | AE2: Scen2 | AF2: Scen2 | AG2: Scen2 | AH2: Scen2
C3: =INDIRECT("in" & C$2 &"Yr1") -> 2017 | D3: =IF(C3="","",IF(C3+1<=ConEndYr,C3+1,"")) -> 2018 | E3: 2019 | F3: 2020 | G3: 2021 | H3: 2022 | I3: 2023 | N3: =C3 -> 2017 | O3: =D3 -> 2018 | P3: 2019 | Q3: 2020 | R3: 2021 | S3: 2022 | T3: 2023 | Y3: =N3 -> 2017 | Z3: 2018 | AA3: 2019 | AB3: 2020 | AC3: 2021 | AD3: 2022 | AE3: 2023
B4: Women Ages 15 to 49 | C4: =IF(conZ1=2,INDIRECT("in"&C$2&"40"),INDIRECT("in"&C$2&"40")*INDIRECT("in"&C$2&"1")) -> 5559897.119 | D4: =IF(conZ1=2,INDIRECT("in"&D$2&"41"),INDIRECT("in"&D$2&"41")*INDIRECT("in"&D$2&"1")) -> 5772567.863 | E4: =IF(conZ1=2,INDIRECT("in"&E$2&"42"),INDIRECT("in"&E$2&"42")*INDIRECT("in"&E$2&"1")) -> 5985238.608 | F4: =IF(conZ1=2,INDIRECT("in"&F$2&"43"),INDIRECT("in"&F$2&"43")*INDIRECT("in"&F$2&"1")) -> 6197909.352 | G4: =IF(conZ1=2,INDIRECT("in"&G$2&"44"),INDIRECT("in"&G$2&"44")*INDIRECT("in"&G$2&"1")) -> 6410580.096 | H4: =IF(conZ1=2,INDIRECT("in"&H$2&"45"),INDIRECT("in"&H$2&"45")*INDIRECT("in"&H$2&"1")) -> 6623250.841 | I4: =IF(conZ1=2,INDIRECT("in"&I$2&"46"),INDIRECT("in"&I$2&"46")*INDIRECT("in"&I$2&"1")) -> 6835921.585 | J4: =IF(conZ1=2,INDIRECT("in"&J$2&"47"),INDIRECT("in"&J$2&"47")*INDIRECT("in"&J$2&"1")) ->  | K4: =IF(conZ1=2,INDIRECT("in"&K$2&"48"),INDIRECT("in"&K$2&"48")*INDIRECT("in"&K$2&"1")) ->  | L4: =IF(conZ1=2,INDIRECT("in"&L$2&"49"),INDIRECT("in"&L$2&"49")*INDIRECT("in"&L$2&"1")) ->  | N4: =IF(conZ1=2,INDIRECT("in"&N$2&"40"),INDIRECT("in"&N$2&"40")*INDIRECT("in"&N$2&"1")) -> 5559897.119 | O4: =IF(conZ1=2,INDIRECT("in"&O$2&"41"),INDIRECT("in"&O$2&"41")*INDIRECT("in"&O$2&"1")) -> 5772567.863 | P4: =IF(conZ1=2,INDIRECT("in"&P$2&"42"),INDIRECT("in"&P$2&"42")*INDIRECT("in"&P$2&"1")) -> 5985238.608 | Q4: =IF(conZ1=2,INDIRECT("in"&Q$2&"43"),INDIRECT("in"&Q$2&"43")*INDIRECT("in"&Q$2&"1")) -> 6197909.352 | R4: =IF(conZ1=2,INDIRECT("in"&R$2&"44"),INDIRECT("in"&R$2&"44")*INDIRECT("in"&R$2&"1")) -> 6410580.096 | S4: =IF(conZ1=2,INDIRECT("in"&S$2&"45"),INDIRECT("in"&S$2&"45")*INDIRECT("in"&S$2&"1")) -> 6623250.841 | T4: =IF(conZ1=2,INDIRECT("in"&T$2&"46"),INDIRECT("in"&T$2&"46")*INDIRECT("in"&T$2&"1")) -> 6835921.585 | U4: =IF(conZ1=2,INDIRECT("in"&U$2&"47"),INDIRECT("in"&U$2&"47")*INDIRECT("in"&U$2&"1")) ->  | V4: =IF(conZ1=2,INDIRECT("in"&V$2&"48"),INDIRECT("in"&V$2&"48")*INDIRECT("in"&V$2&"1")) ->  | W4: =IF(conZ1=2,INDIRECT("in"&W$2&"49"),INDIRECT("in"&W$2&"49")*INDIRECT("in"&W$2&"1")) ->  | Y4: =IF(conZ1=2,INDIRECT("in"&Y$2&"40"),INDIRECT("in"&Y$2&"40")*INDIRECT("in"&Y$2&"1")) -> 5559897.119 | Z4: =IF(conZ1=2,INDIRECT("in"&Z$2&"41"),INDIRECT("in"&Z$2&"41")*INDIRECT("in"&Z$2&"1")) -> 5772567.863 | AA4: =IF(conZ1=2,INDIRECT("in"&AA$2&"42"),INDIRECT("in"&AA$2&"42")*INDIRECT("in"&AA$2&"1")) -> 5985238.608 | AB4: =IF(conZ1=2,INDIRECT("in"&AB$2&"43"),INDIRECT("in"&AB$2&"43")*INDIRECT("in"&AB$2&"1")) -> 6197909.352 | AC4: =IF(conZ1=2,INDIRECT("in"&AC$2&"44"),INDIRECT("in"&AC$2&"44")*INDIRECT("in"&AC$2&"1")) -> 6410580.096 | AD4: =IF(conZ1=2,INDIRECT("in"&AD$2&"45"),INDIRECT("in"&AD$2&"45")*INDIRECT("in"&AD$2&"1")) -> 6623250.841 | AE4: =IF(conZ1=2,INDIRECT("in"&AE$2&"46"),INDIRECT("in"&AE$2&"46")*INDIRECT("in"&AE$2&"1")) -> 6835921.585 | AF4: =IF(conZ1=2,INDIRECT("in"&AF$2&"47"),INDIRECT("in"&AF$2&"47")*INDIRECT("in"&AF$2&"1")) ->  | AG4: =IF(conZ1=2,INDIRECT("in"&AG$2&"48"),INDIRECT("in"&AG$2&"48")*INDIRECT("in"&AG$2&"1")) ->  | AH4: =IF(conZ1=2,INDIRECT("in"&AH$2&"49"),INDIRECT("in"&AH$2&"49")*INDIRECT("in"&AH$2&"1")) -> 
A5: Method Mix
B6: Male condom | C6: =INDIRECT("'methodmix_calc'!"&ADDRESS(ROW(mmUsers1),COLUMN(INDIRECT("mm"& C$2 &"Yr1")))) -> 0.1473214286 | D6: =INDIRECT("'methodmix_calc'!"&ADDRESS(ROW(mmUsers1),COLUMN(INDIRECT("mm"& D$2 &"Yr2")))) -> 0.1473214286 | E6: =INDIRECT("'methodmix_calc'!"&ADDRESS(ROW(mmUsers1),COLUMN(INDIRECT("mm"& E$2 &"Yr3")))) -> 0.1473214286 | F6: =INDIRECT("'methodmix_calc'!"&ADDRESS(ROW(mmUsers1),COLUMN(INDIRECT("mm"& F$2 &"Yr4")))) -> 0.1473214286 | G6: =INDIRECT("'methodmix_calc'!"&ADDRESS(ROW(mmUsers1),COLUMN(INDIRECT("mm"& G$2 &"Yr5")))) -> 0.1473214286 | H6: =INDIRECT("'methodmix_calc'!"&ADDRESS(ROW(mmUsers1),COLUMN(INDIRECT("mm"& H$2 &"Yr6")))) -> 0.1473214286 | I6: =INDIRECT("'methodmix_calc'!"&ADDRESS(ROW(mmUsers1),COLUMN(INDIRECT("mm"& I$2 &"Yr7")))) -> 0.1473214286 | J6: =INDIRECT("'methodmix_calc'!"&ADDRESS(ROW(mmUsers1),COLUMN(INDIRECT("mm"& J$2 &"Yr8")))) ->  | K6: =INDIRECT("'methodmix_calc'!"&ADDRESS(ROW(mmUsers1),COLUMN(INDIRECT("mm"& K$2 &"Yr9")))) ->  | L6: =INDIRECT("'methodmix_calc'!"&ADDRESS(ROW(mmUsers1),COLUMN(INDIRECT("mm"& L$2 &"Yr10")))) ->  | N6: =INDIRECT("'methodmix_calc'!"&ADDRESS(ROW(mmUsers1),COLUMN(INDIRECT("mm"& N$2 &"Yr1")))) -> 0.1473214286 | O6: =INDIRECT("'methodmix_calc'!"&ADDRESS(ROW(mmUsers1),COLUMN(INDIRECT("mm"& O$2 &"Yr2")))) -> 0.1473214286 | P6: =INDIRECT("'methodmix_calc'!"&ADDRESS(ROW(mmUsers1),COLUMN(INDIRECT("mm"& P$2 &"Yr3")))) -> 0.1473214286 | Q6: =INDIRECT("'methodmix_calc'!"&ADDRESS(ROW(mmUsers1),COLUMN(INDIRECT("mm"& Q$2 &"Yr4")))) -> 0.1473214286 | R6: =INDIRECT("'methodmix_calc'!"&ADDRESS(ROW(mmUsers1),COLUMN(INDIRECT("mm"& R$2 &"Yr5")))) -> 0.1473214286 | S6: =INDIRECT("'methodmix_calc'!"&ADDRESS(ROW(mmUsers1),COLUMN(INDIRECT("mm"& S$2 &"Yr6")))) -> 0.1473214286 | T6: =INDIRECT("'methodmix_calc'!"&ADDRESS(ROW(mmUsers1),COLUMN(INDIRECT("mm"& T$2 &"Yr7")))) -> 0.1473214286 | U6: =INDIRECT("'methodmix_calc'!"&ADDRESS(ROW(mmUsers1),COLUMN(INDIRECT("mm"& U$2 &"Yr8")))) ->  | V6: =INDIRECT("'methodmix_calc'!"&ADDRESS(ROW(mmUsers1),COLUMN(INDIRECT("mm"& V$2 &"Yr9")))) ->  | W6: =INDIRECT("'methodmix_calc'!"&ADDRESS(ROW(mmUsers1),COLUMN(INDIRECT("mm"& W$2 &"Yr10")))) ->  | Y6: =INDIRECT("'methodmix_calc'!"&ADDRESS(ROW(mmUsers1),COLUMN(INDIRECT("mm"& Y$2 &"Yr1")))) -> 0.1473214286 | Z6: =INDIRECT("'methodmix_calc'!"&ADDRESS(ROW(mmUsers1),COLUMN(INDIRECT("mm"& Z$2 &"Yr2")))) -> 0.1473214286 | AA6: =INDIRECT("'methodmix_calc'!"&ADDRESS(ROW(mmUsers1),COLUMN(INDIRECT("mm"& AA$2 &"Yr3")))) -> 0.1473214286 | AB6: =INDIRECT("'methodmix_calc'!"&ADDRESS(ROW(mmUsers1),COLUMN(INDIRECT("mm"& AB$2 &"Yr4")))) -> 0.1473214286 | AC6: =INDIRECT("'methodmix_calc'!"&ADDRESS(ROW(mmUsers1),COLUMN(INDIRECT("mm"& AC$2 &"Yr5")))) -> 0.1473214286 | AD6: =INDIRECT("'methodmix_calc'!"&ADDRESS(ROW(mmUsers1),COLUMN(INDIRECT("mm"& AD$2 &"Yr6")))) -> 0.1473214286 | AE6: =INDIRECT("'methodmix_calc'!"&ADDRESS(ROW(mmUsers1),COLUMN(INDIRECT("mm"& AE$2 &"Yr7")))) -> 0.1473214286 | AF6: =INDIRECT("'methodmix_calc'!"&ADDRESS(ROW(mmUsers1),COLUMN(INDIRECT("mm"& AF$2 &"Yr8")))) ->  | AG6: =INDIRECT("'methodmix_calc'!"&ADDRESS(ROW(mmUsers1),COLUMN(INDIRECT("mm"& AG$2 &"Yr9")))) ->  | AH6: =INDIRECT("'methodmix_calc'!"&ADDRESS(ROW(mmUsers1),COLUMN(INDIRECT("mm"& AH$2 &"Yr10")))) -> 
B7: Injectable | C7: =INDIRECT("'methodmix_calc'!"&ADDRESS(ROW(mmUsers2),COLUMN(INDIRECT("mm"& C$2 &"Yr1")))) -> 0.21875 | D7: =INDIRECT("'methodmix_calc'!"&ADDRESS(ROW(mmUsers2),COLUMN(INDIRECT("mm"& D$2 &"Yr2")))) -> 0.21875 | E7: =INDIRECT("'methodmix_calc'!"&ADDRESS(ROW(mmUsers2),COLUMN(INDIRECT("mm"& E$2 &"Yr3")))) -> 0.21875 | F7: =INDIRECT("'methodmix_calc'!"&ADDRESS(ROW(mmUsers2),COLUMN(INDIRECT("mm"& F$2 &"Yr4")))) -> 0.21875 | G7: =INDIRECT("'methodmix_calc'!"&ADDRESS(ROW(mmUsers2),COLUMN(INDIRECT("mm"& G$2 &"Yr5")))) -> 0.21875 | H7: =INDIRECT("'methodmix_calc'!"&ADDRESS(ROW(mmUsers2),COLUMN(INDIRECT("mm"& H$2 &"Yr6")))) -> 0.21875 | I7: =INDIRECT("'methodmix_calc'!"&ADDRESS(ROW(mmUsers2),COLUMN(INDIRECT("mm"& I$2 &"Yr7")))) -> 0.21875 | J7: =INDIRECT("'methodmix_calc'!"&ADDRESS(ROW(mmUsers2),COLUMN(INDIRECT("mm"& J$2 &"Yr8")))) ->  | K7: =INDIRECT("'methodmix_calc'!"&ADDRESS(ROW(mmUsers2),COLUMN(INDIRECT("mm"& K$2 &"Yr9")))) ->  | L7: =INDIRECT("'methodmix_calc'!"&ADDRESS(ROW(mmUsers2),COLUMN(INDIRECT("mm"& L$2 &"Yr10")))) ->  | N7: =INDIRECT("'methodmix_calc'!"&ADDRESS(ROW(mmUsers2),COLUMN(INDIRECT("mm"& N$2 &"Yr1")))) -> 0.21875 | O7: =INDIRECT("'methodmix_calc'!"&ADDRESS(ROW(mmUsers2),COLUMN(INDIRECT("mm"& O$2 &"Yr2")))) -> 0.21875 | P7: =INDIRECT("'methodmix_calc'!"&ADDRESS(ROW(mmUsers2),COLUMN(INDIRECT("mm"& P$2 &"Yr3")))) -> 0.21875 | Q7: =INDIRECT("'methodmix_calc'!"&ADDRESS(ROW(mmUsers2),COLUMN(INDIRECT("mm"& Q$2 &"Yr4")))) -> 0.21875 | R7: =INDIRECT("'methodmix_calc'!"&ADDRESS(ROW(mmUsers2),COLUMN(INDIRECT("mm"& R$2 &"Yr5")))) -> 0.21875 | S7: =INDIRECT("'methodmix_calc'!"&ADDRESS(ROW(mmUsers2),COLUMN(INDIRECT("mm"& S$2 &"Yr6")))) -> 0.21875 | T7: =INDIRECT("'methodmix_calc'!"&ADDRESS(ROW(mmUsers2),COLUMN(INDIRECT("mm"& T$2 &"Yr7")))) -> 0.21875 | U7: =INDIRECT("'methodmix_calc'!"&ADDRESS(ROW(mmUsers2),COLUMN(INDIRECT("mm"& U$2 &"Yr8")))) ->  | V7: =INDIRECT("'methodmix_calc'!"&ADDRESS(ROW(mmUsers2),COLUMN(INDIRECT("mm"& V$2 &"Yr9")))) ->  | W7: =INDIRECT("'methodmix_calc'!"&ADDRESS(ROW(mmUsers2),COLUMN(INDIRECT("mm"& W$2 &"Yr10")))) ->  | Y7: =INDIRECT("'methodmix_calc'!"&ADDRESS(ROW(mmUsers2),COLUMN(INDIRECT("mm"& Y$2 &"Yr1")))) -> 0.21875 | Z7: =INDIRECT("'methodmix_calc'!"&ADDRESS(ROW(mmUsers2),COLUMN(INDIRECT("mm"& Z$2 &"Yr2")))) -> 0.21875 | AA7: =INDIRECT("'methodmix_calc'!"&ADDRESS(ROW(mmUsers2),COLUMN(INDIRECT("mm"& AA$2 &"Yr3")))) -> 0.21875 | AB7: =INDIRECT("'methodmix_calc'!"&ADDRESS(ROW(mmUsers2),COLUMN(INDIRECT("mm"& AB$2 &"Yr4")))) -> 0.21875 | AC7: =INDIRECT("'methodmix_calc'!"&ADDRESS(ROW(mmUsers2),COLUMN(INDIRECT("mm"& AC$2 &"Yr5")))) -> 0.21875 | AD7: =INDIRECT("'methodmix_calc'!"&ADDRESS(ROW(mmUsers2),COLUMN(INDIRECT("mm"& AD$2 &"Yr6")))) -> 0.21875 | AE7: =INDIRECT("'methodmix_calc'!"&ADDRESS(ROW(mmUsers2),COLUMN(INDIRECT("mm"& AE$2 &"Yr7")))) -> 0.21875 | AF7: =INDIRECT("'methodmix_calc'!"&ADDRESS(ROW(mmUsers2),COLUMN(INDIRECT("mm"& AF$2 &"Yr8")))) ->  | AG7: =INDIRECT("'methodmix_calc'!"&ADDRESS(ROW(mmUsers2),COLUMN(INDIRECT("mm"& AG$2 &"Yr9")))) ->  | AH7: =INDIRECT("'methodmix_calc'!"&ADDRESS(ROW(mmUsers2),COLUMN(INDIRECT("mm"& AH$2 &"Yr10")))) -> 
B8: Pill | C8: =INDIRECT("'methodmix_calc'!"&ADDRESS(ROW(mmUsers3),COLUMN(INDIRECT("mm"& C$2 &"Yr1")))) -> 0.3035714286 | D8: =INDIRECT("'methodmix_calc'!"&ADDRESS(ROW(mmUsers3),COLUMN(INDIRECT("mm"& D$2 &"Yr2")))) -> 0.3035714286 | E8: =INDIRECT("'methodmix_calc'!"&ADDRESS(ROW(mmUsers3),COLUMN(INDIRECT("mm"& E$2 &"Yr3")))) -> 0.3035714286 | F8: =INDIRECT("'methodmix_calc'!"&ADDRESS(ROW(mmUsers3),COLUMN(INDIRECT("mm"& F$2 &"Yr4")))) -> 0.3035714286 | G8: =INDIRECT("'methodmix_calc'!"&ADDRESS(ROW(mmUsers3),COLUMN(INDIRECT("mm"& G$2 &"Yr5")))) -> 0.3035714286 | H8: =INDIRECT("'methodmix_calc'!"&ADDRESS(ROW(mmUsers3),COLUMN(INDIRECT("mm"& H$2 &"Yr6")))) -> 0.3035714286 | I8: =INDIRECT("'methodmix_calc'!"&ADDRESS(ROW(mmUsers3),COLUMN(INDIRECT("mm"& I$2 &"Yr7")))) -> 0.3035714286 | J8: =INDIRECT("'methodmix_calc'!"&ADDRESS(ROW(mmUsers3),COLUMN(INDIRECT("mm"& J$2 &"Yr8")))) ->  | K8: =INDIRECT("'methodmix_calc'!"&ADDRESS(ROW(mmUsers3),COLUMN(INDIRECT("mm"& K$2 &"Yr9")))) ->  | L8: =INDIRECT("'methodmix_calc'!"&ADDRESS(ROW(mmUsers3),COLUMN(INDIRECT("mm"& L$2 &"Yr10")))) ->  | N8: =INDIRECT("'methodmix_calc'!"&ADDRESS(ROW(mmUsers3),COLUMN(INDIRECT("mm"& N$2 &"Yr1")))) -> 0.3035714286 | O8: =INDIRECT("'methodmix_calc'!"&ADDRESS(ROW(mmUsers3),COLUMN(INDIRECT("mm"& O$2 &"Yr2")))) -> 0.3035714286 | P8: =INDIRECT("'methodmix_calc'!"&ADDRESS(ROW(mmUsers3),COLUMN(INDIRECT("mm"& P$2 &"Yr3")))) -> 0.3035714286 | Q8: =INDIRECT("'methodmix_calc'!"&ADDRESS(ROW(mmUsers3),COLUMN(INDIRECT("mm"& Q$2 &"Yr4")))) -> 0.3035714286 | R8: =INDIRECT("'methodmix_calc'!"&ADDRESS(ROW(mmUsers3),COLUMN(INDIRECT("mm"& R$2 &"Yr5")))) -> 0.3035714286 | S8: =INDIRECT("'methodmix_calc'!"&ADDRESS(ROW(mmUsers3),COLUMN(INDIRECT("mm"& S$2 &"Yr6")))) -> 0.3035714286 | T8: =INDIRECT("'methodmix_calc'!"&ADDRESS(ROW(mmUsers3),COLUMN(INDIRECT("mm"& T$2 &"Yr7")))) -> 0.3035714286 | U8: =INDIRECT("'methodmix_calc'!"&ADDRESS(ROW(mmUsers3),COLUMN(INDIRECT("mm"& U$2 &"Yr8")))) ->  | V8: =INDIRECT("'methodmix_calc'!"&ADDRESS(ROW(mmUsers3),COLUMN(INDIRECT("mm"& V$2 &"Yr9")))) ->  | W8: =INDIRECT("'methodmix_calc'!"&ADDRESS(ROW(mmUsers3),COLUMN(INDIRECT("mm"& W$2 &"Yr10")))) ->  | Y8: =INDIRECT("'methodmix_calc'!"&ADDRESS(ROW(mmUsers3),COLUMN(INDIRECT("mm"& Y$2 &"Yr1")))) -> 0.3035714286 | Z8: =INDIRECT("'methodmix_calc'!"&ADDRESS(ROW(mmUsers3),COLUMN(INDIRECT("mm"& Z$2 &"Yr2")))) -> 0.3035714286 | AA8: =INDIRECT("'methodmix_calc'!"&ADDRESS(ROW(mmUsers3),COLUMN(INDIRECT("mm"& AA$2 &"Yr3")))) -> 0.3035714286 | AB8: =INDIRECT("'methodmix_calc'!"&ADDRESS(ROW(mmUsers3),COLUMN(INDIRECT("mm"& AB$2 &"Yr4")))) -> 0.3035714286 | AC8: =INDIRECT("'methodmix_calc'!"&ADDRESS(ROW(mmUsers3),COLUMN(INDIRECT("mm"& AC$2 &"Yr5")))) -> 0.3035714286 | AD8: =INDIRECT("'methodmix_calc'!"&ADDRESS(ROW(mmUsers3),COLUMN(INDIRECT("mm"& AD$2 &"Yr6")))) -> 0.3035714286 | AE8: =INDIRECT("'methodmix_calc'!"&ADDRESS(ROW(mmUsers3),COLUMN(INDIRECT("mm"& AE$2 &"Yr7")))) -> 0.3035714286 | AF8: =INDIRECT("'methodmix_calc'!"&ADDRESS(ROW(mmUsers3),COLUMN(INDIRECT("mm"& AF$2 &"Yr8")))) ->  | AG8: =INDIRECT("'methodmix_calc'!"&ADDRESS(ROW(mmUsers3),COLUMN(INDIRECT("mm"& AG$2 &"Yr9")))) ->  | AH8: =INDIRECT("'methodmix_calc'!"&ADDRESS(ROW(mmUsers3),COLUMN(INDIRECT("mm"& AH$2 &"Yr10")))) -> 
B9: Male sterilization | C9: =INDIRECT("'methodmix_calc'!"&ADDRESS(ROW(mmUsers4),COLUMN(INDIRECT("mm"& C$2 &"Yr1")))) -> 0 | D9: =INDIRECT("'methodmix_calc'!"&ADDRESS(ROW(mmUsers4),COLUMN(INDIRECT("mm"& D$2 &"Yr2")))) -> 0 | E9: =INDIRECT("'methodmix_calc'!"&ADDRESS(ROW(mmUsers4),COLUMN(INDIRECT("mm"& E$2 &"Yr3")))) -> 0 | F9: =INDIRECT("'methodmix_calc'!"&ADDRESS(ROW(mmUsers4),COLUMN(INDIRECT("mm"& F$2 &"Yr4")))) -> 0 | G9: =INDIRECT("'methodmix_calc'!"&ADDRESS(ROW(mmUsers4),COLUMN(INDIRECT("mm"& G$2 &"Yr5")))) -> 0 | H9: =INDIRECT("'methodmix_calc'!"&ADDRESS(ROW(mmUsers4),COLUMN(INDIRECT("mm"& H$2 &"Yr6")))) -> 0 | I9: =INDIRECT("'methodmix_calc'!"&ADDRESS(ROW(mmUsers4),COLUMN(INDIRECT("mm"& I$2 &"Yr7")))) -> 0 | J9: =INDIRECT("'methodmix_calc'!"&ADDRESS(ROW(mmUsers4),COLUMN(INDIRECT("mm"& J$2 &"Yr8")))) ->  | K9: =INDIRECT("'methodmix_calc'!"&ADDRESS(ROW(mmUsers4),COLUMN(INDIRECT("mm"& K$2 &"Yr9")))) ->  | L9: =INDIRECT("'methodmix_calc'!"&ADDRESS(ROW(mmUsers4),COLUMN(INDIRECT("mm"& L$2 &"Yr10")))) ->  | N9: =INDIRECT("'methodmix_calc'!"&ADDRESS(ROW(mmUsers4),COLUMN(INDIRECT("mm"& N$2 &"Yr1")))) -> 0 | O9: =INDIRECT("'methodmix_calc'!"&ADDRESS(ROW(mmUsers4),COLUMN(INDIRECT("mm"& O$2 &"Yr2")))) -> 0 | P9: =INDIRECT("'methodmix_calc'!"&ADDRESS(ROW(mmUsers4),COLUMN(INDIRECT("mm"& P$2 &"Yr3")))) -> 0 | Q9: =INDIRECT("'methodmix_calc'!"&ADDRESS(ROW(mmUsers4),COLUMN(INDIRECT("mm"& Q$2 &"Yr4")))) -> 0 | R9: =INDIRECT("'methodmix_calc'!"&ADDRESS(ROW(mmUsers4),COLUMN(INDIRECT("mm"& R$2 &"Yr5")))) -> 0 | S9: =INDIRECT("'methodmix_calc'!"&ADDRESS(ROW(mmUsers4),COLUMN(INDIRECT("mm"& S$2 &"Yr6")))) -> 0 | T9: =INDIRECT("'methodmix_calc'!"&ADDRESS(ROW(mmUsers4),COLUMN(INDIRECT("mm"& T$2 &"Yr7")))) -> 0 | U9: =INDIRECT("'methodmix_calc'!"&ADDRESS(ROW(mmUsers4),COLUMN(INDIRECT("mm"& U$2 &"Yr8")))) ->  | V9: =INDIRECT("'methodmix_calc'!"&ADDRESS(ROW(mmUsers4),COLUMN(INDIRECT("mm"& V$2 &"Yr9")))) ->  | W9: =INDIRECT("'methodmix_calc'!"&ADDRESS(ROW(mmUsers4),COLUMN(INDIRECT("mm"& W$2 &"Yr10")))) ->  | Y9: =INDIRECT("'methodmix_calc'!"&ADDRESS(ROW(mmUsers4),COLUMN(INDIRECT("mm"& Y$2 &"Yr1")))) -> 0 | Z9: =INDIRECT("'methodmix_calc'!"&ADDRESS(ROW(mmUsers4),COLUMN(INDIRECT("mm"& Z$2 &"Yr2")))) -> 0 | AA9: =INDIRECT("'methodmix_calc'!"&ADDRESS(ROW(mmUsers4),COLUMN(INDIRECT("mm"& AA$2 &"Yr3")))) -> 0 | AB9: =INDIRECT("'methodmix_calc'!"&ADDRESS(ROW(mmUsers4),COLUMN(INDIRECT("mm"& AB$2 &"Yr4")))) -> 0 | AC9: =INDIRECT("'methodmix_calc'!"&ADDRESS(ROW(mmUsers4),COLUMN(INDIRECT("mm"& AC$2 &"Yr5")))) -> 0 | AD9: =INDIRECT("'methodmix_calc'!"&ADDRESS(ROW(mmUsers4),COLUMN(INDIRECT("mm"& AD$2 &"Yr6")))) -> 0 | AE9: =INDIRECT("'methodmix_calc'!"&ADDRESS(ROW(mmUsers4),COLUMN(INDIRECT("mm"& AE$2 &"Yr7")))) -> 0 | AF9: =INDIRECT("'methodmix_calc'!"&ADDRESS(ROW(mmUsers4),COLUMN(INDIRECT("mm"& AF$2 &"Yr8")))) ->  | AG9: =INDIRECT("'methodmix_calc'!"&ADDRESS(ROW(mmUsers4),COLUMN(INDIRECT("mm"& AG$2 &"Yr9")))) ->  | AH9: =INDIRECT("'methodmix_calc'!"&ADDRESS(ROW(mmUsers4),COLUMN(INDIRECT("mm"& AH$2 &"Yr10")))) -> 
B10: Female sterilization | C10: =INDIRECT("'methodmix_calc'!"&ADDRESS(ROW(mmUsers5),COLUMN(INDIRECT("mm"& C$2 &"Yr1")))) -> 0.08035714286 | D10: =INDIRECT("'methodmix_calc'!"&ADDRESS(ROW(mmUsers5),COLUMN(INDIRECT("mm"& D$2 &"Yr2")))) -> 0.08035714286 | E10: =INDIRECT("'methodmix_calc'!"&ADDRESS(ROW(mmUsers5),COLUMN(INDIRECT("mm"& E$2 &"Yr3")))) -> 0.08035714286 | F10: =INDIRECT("'methodmix_calc'!"&ADDRESS(ROW(mmUsers5),COLUMN(INDIRECT("mm"& F$2 &"Yr4")))) -> 0.08035714286 | G10: =INDIRECT("'methodmix_calc'!"&ADDRESS(ROW(mmUsers5),COLUMN(INDIRECT("mm"& G$2 &"Yr5")))) -> 0.08035714286 | H10: =INDIRECT("'methodmix_calc'!"&ADDRESS(ROW(mmUsers5),COLUMN(INDIRECT("mm"& H$2 &"Yr6")))) -> 0.08035714286 | I10: =INDIRECT("'methodmix_calc'!"&ADDRESS(ROW(mmUsers5),COLUMN(INDIRECT("mm"& I$2 &"Yr7")))) -> 0.08035714286 | J10: =INDIRECT("'methodmix_calc'!"&ADDRESS(ROW(mmUsers5),COLUMN(INDIRECT("mm"& J$2 &"Yr8")))) ->  | K10: =INDIRECT("'methodmix_calc'!"&ADDRESS(ROW(mmUsers5),COLUMN(INDIRECT("mm"& K$2 &"Yr9")))) ->  | L10: =INDIRECT("'methodmix_calc'!"&ADDRESS(ROW(mmUsers5),COLUMN(INDIRECT("mm"& L$2 &"Yr10")))) ->  | N10: =INDIRECT("'methodmix_calc'!"&ADDRESS(ROW(mmUsers5),COLUMN(INDIRECT("mm"& N$2 &"Yr1")))) -> 0.08035714286 | O10: =INDIRECT("'methodmix_calc'!"&ADDRESS(ROW(mmUsers5),COLUMN(INDIRECT("mm"& O$2 &"Yr2")))) -> 0.08035714286 | P10: =INDIRECT("'methodmix_calc'!"&ADDRESS(ROW(mmUsers5),COLUMN(INDIRECT("mm"& P$2 &"Yr3")))) -> 0.08035714286 | Q10: =INDIRECT("'methodmix_calc'!"&ADDRESS(ROW(mmUsers5),COLUMN(INDIRECT("mm"& Q$2 &"Yr4")))) -> 0.08035714286 | R10: =INDIRECT("'methodmix_calc'!"&ADDRESS(ROW(mmUsers5),COLUMN(INDIRECT("mm"& R$2 &"Yr5")))) -> 0.08035714286 | S10: =INDIRECT("'methodmix_calc'!"&ADDRESS(ROW(mmUsers5),COLUMN(INDIRECT("mm"& S$2 &"Yr6")))) -> 0.08035714286 | T10: =INDIRECT("'methodmix_calc'!"&ADDRESS(ROW(mmUsers5),COLUMN(INDIRECT("mm"& T$2 &"Yr7")))) -> 0.08035714286 | U10: =INDIRECT("'methodmix_calc'!"&ADDRESS(ROW(mmUsers5),COLUMN(INDIRECT("mm"& U$2 &"Yr8")))) ->  | V10: =INDIRECT("'methodmix_calc'!"&ADDRESS(ROW(mmUsers5),COLUMN(INDIRECT("mm"& V$2 &"Yr9")))) ->  | W10: =INDIRECT("'methodmix_calc'!"&ADDRESS(ROW(mmUsers5),COLUMN(INDIRECT("mm"& W$2 &"Yr10")))) ->  | Y10: =INDIRECT("'methodmix_calc'!"&ADDRESS(ROW(mmUsers5),COLUMN(INDIRECT("mm"& Y$2 &"Yr1")))) -> 0.08035714286 | Z10: =INDIRECT("'methodmix_calc'!"&ADDRESS(ROW(mmUsers5),COLUMN(INDIRECT("mm"& Z$2 &"Yr2")))) -> 0.08035714286 | AA10: =INDIRECT("'methodmix_calc'!"&ADDRESS(ROW(mmUsers5),COLUMN(INDIRECT("mm"& AA$2 &"Yr3")))) -> 0.08035714286 | AB10: =INDIRECT("'methodmix_calc'!"&ADDRESS(ROW(mmUsers5),COLUMN(INDIRECT("mm"& AB$2 &"Yr4")))) -> 0.08035714286 | AC10: =INDIRECT("'methodmix_calc'!"&ADDRESS(ROW(mmUsers5),COLUMN(INDIRECT("mm"& AC$2 &"Yr5")))) -> 0.08035714286 | AD10: =INDIRECT("'methodmix_calc'!"&ADDRESS(ROW(mmUsers5),COLUMN(INDIRECT("mm"& AD$2 &"Yr6")))) -> 0.08035714286 | AE10: =INDIRECT("'methodmix_calc'!"&ADDRESS(ROW(mmUsers5),COLUMN(INDIRECT("mm"& AE$2 &"Yr7")))) -> 0.08035714286 | AF10: =INDIRECT("'methodmix_calc'!"&ADDRESS(ROW(mmUsers5),COLUMN(INDIRECT("mm"& AF$2 &"Yr8")))) ->  | AG10: =INDIRECT("'methodmix_calc'!"&ADDRESS(ROW(mmUsers5),COLUMN(INDIRECT("mm"& AG$2 &"Yr9")))) ->  | AH10: =INDIRECT("'methodmix_calc'!"&ADDRESS(ROW(mmUsers5),COLUMN(INDIRECT("mm"& AH$2 &"Yr10")))) -> 
B11: IUD | C11: =INDIRECT("'methodmix_calc'!"&ADDRESS(ROW(mmUsers6),COLUMN(INDIRECT("mm"& C$2 &"Yr1")))) -> 0.0625 | D11: =INDIRECT("'methodmix_calc'!"&ADDRESS(ROW(mmUsers6),COLUMN(INDIRECT("mm"& D$2 &"Yr2")))) -> 0.0625 | E11: =INDIRECT("'methodmix_calc'!"&ADDRESS(ROW(mmUsers6),COLUMN(INDIRECT("mm"& E$2 &"Yr3")))) -> 0.0625 | F11: =INDIRECT("'methodmix_calc'!"&ADDRESS(ROW(mmUsers6),COLUMN(INDIRECT("mm"& F$2 &"Yr4")))) -> 0.0625 | G11: =INDIRECT("'methodmix_calc'!"&ADDRESS(ROW(mmUsers6),COLUMN(INDIRECT("mm"& G$2 &"Yr5")))) -> 0.0625 | H11: =INDIRECT("'methodmix_calc'!"&ADDRESS(ROW(mmUsers6),COLUMN(INDIRECT("mm"& H$2 &"Yr6")))) -> 0.0625 | I11: =INDIRECT("'methodmix_calc'!"&ADDRESS(ROW(mmUsers6),COLUMN(INDIRECT("mm"& I$2 &"Yr7")))) -> 0.0625 | J11: =INDIRECT("'methodmix_calc'!"&ADDRESS(ROW(mmUsers6),COLUMN(INDIRECT("mm"& J$2 &"Yr8")))) ->  | K11: =INDIRECT("'methodmix_calc'!"&ADDRESS(ROW(mmUsers6),COLUMN(INDIRECT("mm"& K$2 &"Yr9")))) ->  | L11: =INDIRECT("'methodmix_calc'!"&ADDRESS(ROW(mmUsers6),COLUMN(INDIRECT("mm"& L$2 &"Yr10")))) ->  | N11: =INDIRECT("'methodmix_calc'!"&ADDRESS(ROW(mmUsers6),COLUMN(INDIRECT("mm"& N$2 &"Yr1")))) -> 0.0625 | O11: =INDIRECT("'methodmix_calc'!"&ADDRESS(ROW(mmUsers6),COLUMN(INDIRECT("mm"& O$2 &"Yr2")))) -> 0.0625 | P11: =INDIRECT("'methodmix_calc'!"&ADDRESS(ROW(mmUsers6),COLUMN(INDIRECT("mm"& P$2 &"Yr3")))) -> 0.0625 | Q11: =INDIRECT("'methodmix_calc'!"&ADDRESS(ROW(mmUsers6),COLUMN(INDIRECT("mm"& Q$2 &"Yr4")))) -> 0.0625 | R11: =INDIRECT("'methodmix_calc'!"&ADDRESS(ROW(mmUsers6),COLUMN(INDIRECT("mm"& R$2 &"Yr5")))) -> 0.0625 | S11: =INDIRECT("'methodmix_calc'!"&ADDRESS(ROW(mmUsers6),COLUMN(INDIRECT("mm"& S$2 &"Yr6")))) -> 0.0625 | T11: =INDIRECT("'methodmix_calc'!"&ADDRESS(ROW(mmUsers6),COLUMN(INDIRECT("mm"& T$2 &"Yr7")))) -> 0.0625 | U11: =INDIRECT("'methodmix_calc'!"&ADDRESS(ROW(mmUsers6),COLUMN(INDIRECT("mm"& U$2 &"Yr8")))) ->  | V11: =INDIRECT("'methodmix_calc'!"&ADDRESS(ROW(mmUsers6),COLUMN(INDIRECT("mm"& V$2 &"Yr9")))) ->  | W11: =INDIRECT("'methodmix_calc'!"&ADDRESS(ROW(mmUsers6),COLUMN(INDIRECT("mm"& W$2 &"Yr10")))) ->  | Y11: =INDIRECT("'methodmix_calc'!"&ADDRESS(ROW(mmUsers6),COLUMN(INDIRECT("mm"& Y$2 &"Yr1")))) -> 0.0625 | Z11: =INDIRECT("'methodmix_calc'!"&ADDRESS(ROW(mmUsers6),COLUMN(INDIRECT("mm"& Z$2 &"Yr2")))) -> 0.0625 | AA11: =INDIRECT("'methodmix_calc'!"&ADDRESS(ROW(mmUsers6),COLUMN(INDIRECT("mm"& AA$2 &"Yr3")))) -> 0.0625 | AB11: =INDIRECT("'methodmix_calc'!"&ADDRESS(ROW(mmUsers6),COLUMN(INDIRECT("mm"& AB$2 &"Yr4")))) -> 0.0625 | AC11: =INDIRECT("'methodmix_calc'!"&ADDRESS(ROW(mmUsers6),COLUMN(INDIRECT("mm"& AC$2 &"Yr5")))) -> 0.0625 | AD11: =INDIRECT("'methodmix_calc'!"&ADDRESS(ROW(mmUsers6),COLUMN(INDIRECT("mm"& AD$2 &"Yr6")))) -> 0.0625 | AE11: =INDIRECT("'methodmix_calc'!"&ADDRESS(ROW(mmUsers6),COLUMN(INDIRECT("mm"& AE$2 &"Yr7")))) -> 0.0625 | AF11: =INDIRECT("'methodmix_calc'!"&ADDRESS(ROW(mmUsers6),COLUMN(INDIRECT("mm"& AF$2 &"Yr8")))) ->  | AG11: =INDIRECT("'methodmix_calc'!"&ADDRESS(ROW(mmUsers6),COLUMN(INDIRECT("mm"& AG$2 &"Yr9")))) ->  | AH11: =INDIRECT("'methodmix_calc'!"&ADDRESS(ROW(mmUsers6),COLUMN(INDIRECT("mm"& AH$2 &"Yr10")))) -> 
B12: Implant | C12: =INDIRECT("'methodmix_calc'!"&ADDRESS(ROW(mmUsers7),COLUMN(INDIRECT("mm"& C$2 &"Yr1")))) -> 0.008928571429 | D12: =INDIRECT("'methodmix_calc'!"&ADDRESS(ROW(mmUsers7),COLUMN(INDIRECT("mm"& D$2 &"Yr2")))) -> 0.008928571429 | E12: =INDIRECT("'methodmix_calc'!"&ADDRESS(ROW(mmUsers7),COLUMN(INDIRECT("mm"& E$2 &"Yr3")))) -> 0.008928571429 | F12: =INDIRECT("'methodmix_calc'!"&ADDRESS(ROW(mmUsers7),COLUMN(INDIRECT("mm"& F$2 &"Yr4")))) -> 0.008928571429 | G12: =INDIRECT("'methodmix_calc'!"&ADDRESS(ROW(mmUsers7),COLUMN(INDIRECT("mm"& G$2 &"Yr5")))) -> 0.008928571429 | H12: =INDIRECT("'methodmix_calc'!"&ADDRESS(ROW(mmUsers7),COLUMN(INDIRECT("mm"& H$2 &"Yr6")))) -> 0.008928571429 | I12: =INDIRECT("'methodmix_calc'!"&ADDRESS(ROW(mmUsers7),COLUMN(INDIRECT("mm"& I$2 &"Yr7")))) -> 0.008928571429 | J12: =INDIRECT("'methodmix_calc'!"&ADDRESS(ROW(mmUsers7),COLUMN(INDIRECT("mm"& J$2 &"Yr8")))) ->  | K12: =INDIRECT("'methodmix_calc'!"&ADDRESS(ROW(mmUsers7),COLUMN(INDIRECT("mm"& K$2 &"Yr9")))) ->  | L12: =INDIRECT("'methodmix_calc'!"&ADDRESS(ROW(mmUsers7),COLUMN(INDIRECT("mm"& L$2 &"Yr10")))) ->  | N12: =INDIRECT("'methodmix_calc'!"&ADDRESS(ROW(mmUsers7),COLUMN(INDIRECT("mm"& N$2 &"Yr1")))) -> 0.008928571429 | O12: =INDIRECT("'methodmix_calc'!"&ADDRESS(ROW(mmUsers7),COLUMN(INDIRECT("mm"& O$2 &"Yr2")))) -> 0.008928571429 | P12: =INDIRECT("'methodmix_calc'!"&ADDRESS(ROW(mmUsers7),COLUMN(INDIRECT("mm"& P$2 &"Yr3")))) -> 0.008928571429 | Q12: =INDIRECT("'methodmix_calc'!"&ADDRESS(ROW(mmUsers7),COLUMN(INDIRECT("mm"& Q$2 &"Yr4")))) -> 0.008928571429 | R12: =INDIRECT("'methodmix_calc'!"&ADDRESS(ROW(mmUsers7),COLUMN(INDIRECT("mm"& R$2 &"Yr5")))) -> 0.008928571429 | S12: =INDIRECT("'methodmix_calc'!"&ADDRESS(ROW(mmUsers7),COLUMN(INDIRECT("mm"& S$2 &"Yr6")))) -> 0.008928571429 | T12: =INDIRECT("'methodmix_calc'!"&ADDRESS(ROW(mmUsers7),COLUMN(INDIRECT("mm"& T$2 &"Yr7")))) -> 0.008928571429 | U12: =INDIRECT("'methodmix_calc'!"&ADDRESS(ROW(mmUsers7),COLUMN(INDIRECT("mm"& U$2 &"Yr8")))) ->  | V12: =INDIRECT("'methodmix_calc'!"&ADDRESS(ROW(mmUsers7),COLUMN(INDIRECT("mm"& V$2 &"Yr9")))) ->  | W12: =INDIRECT("'methodmix_calc'!"&ADDRESS(ROW(mmUsers7),COLUMN(INDIRECT("mm"& W$2 &"Yr10")))) ->  | Y12: =INDIRECT("'methodmix_calc'!"&ADDRESS(ROW(mmUsers7),COLUMN(INDIRECT("mm"& Y$2 &"Yr1")))) -> 0.008928571429 | Z12: =INDIRECT("'methodmix_calc'!"&ADDRESS(ROW(mmUsers7),COLUMN(INDIRECT("mm"& Z$2 &"Yr2")))) -> 0.008928571429 | AA12: =INDIRECT("'methodmix_calc'!"&ADDRESS(ROW(mmUsers7),COLUMN(INDIRECT("mm"& AA$2 &"Yr3")))) -> 0.008928571429 | AB12: =INDIRECT("'methodmix_calc'!"&ADDRESS(ROW(mmUsers7),COLUMN(INDIRECT("mm"& AB$2 &"Yr4")))) -> 0.008928571429 | AC12: =INDIRECT("'methodmix_calc'!"&ADDRESS(ROW(mmUsers7),COLUMN(INDIRECT("mm"& AC$2 &"Yr5")))) -> 0.008928571429 | AD12: =INDIRECT("'methodmix_calc'!"&ADDRESS(ROW(mmUsers7),COLUMN(INDIRECT("mm"& AD$2 &"Yr6")))) -> 0.008928571429 | AE12: =INDIRECT("'methodmix_calc'!"&ADDRESS(ROW(mmUsers7),COLUMN(INDIRECT("mm"& AE$2 &"Yr7")))) -> 0.008928571429 | AF12: =INDIRECT("'methodmix_calc'!"&ADDRESS(ROW(mmUsers7),COLUMN(INDIRECT("mm"& AF$2 &"Yr8")))) ->  | AG12: =INDIRECT("'methodmix_calc'!"&ADDRESS(ROW(mmUsers7),COLUMN(INDIRECT("mm"& AG$2 &"Yr9")))) ->  | AH12: =INDIRECT("'methodmix_calc'!"&ADDRESS(ROW(mmUsers7),COLUMN(INDIRECT("mm"& AH$2 &"Yr10")))) -> 
B13: Standard Days Method (SDM) | C13: =INDIRECT("'methodmix_calc'!"&ADDRESS(ROW(mmUsers8),COLUMN(INDIRECT("mm"& C$2 &"Yr1")))) -> 0 | D13: =INDIRECT("'methodmix_calc'!"&ADDRESS(ROW(mmUsers8),COLUMN(INDIRECT("mm"& D$2 &"Yr2")))) -> 0 | E13: =INDIRECT("'methodmix_calc'!"&ADDRESS(ROW(mmUsers8),COLUMN(INDIRECT("mm"& E$2 &"Yr3")))) -> 0 | F13: =INDIRECT("'methodmix_calc'!"&ADDRESS(ROW(mmUsers8),COLUMN(INDIRECT("mm"& F$2 &"Yr4")))) -> 0 | G13: =INDIRECT("'methodmix_calc'!"&ADDRESS(ROW(mmUsers8),COLUMN(INDIRECT("mm"& G$2 &"Yr5")))) -> 0 | H13: =INDIRECT("'methodmix_calc'!"&ADDRESS(ROW(mmUsers8),COLUMN(INDIRECT("mm"& H$2 &"Yr6")))) -> 0 | I13: =INDIRECT("'methodmix_calc'!"&ADDRESS(ROW(mmUsers8),COLUMN(INDIRECT("mm"& I$2 &"Yr7")))) -> 0 | J13: =INDIRECT("'methodmix_calc'!"&ADDRESS(ROW(mmUsers8),COLUMN(INDIRECT("mm"& J$2 &"Yr8")))) ->  | K13: =INDIRECT("'methodmix_calc'!"&ADDRESS(ROW(mmUsers8),COLUMN(INDIRECT("mm"& K$2 &"Yr9")))) ->  | L13: =INDIRECT("'methodmix_calc'!"&ADDRESS(ROW(mmUsers8),COLUMN(INDIRECT("mm"& L$2 &"Yr10")))) ->  | N13: =INDIRECT("'methodmix_calc'!"&ADDRESS(ROW(mmUsers8),COLUMN(INDIRECT("mm"& N$2 &"Yr1")))) -> 0 | O13: =INDIRECT("'methodmix_calc'!"&ADDRESS(ROW(mmUsers8),COLUMN(INDIRECT("mm"& O$2 &"Yr2")))) -> 0 | P13: =INDIRECT("'methodmix_calc'!"&ADDRESS(ROW(mmUsers8),COLUMN(INDIRECT("mm"& P$2 &"Yr3")))) -> 0 | Q13: =INDIRECT("'methodmix_calc'!"&ADDRESS(ROW(mmUsers8),COLUMN(INDIRECT("mm"& Q$2 &"Yr4")))) -> 0 | R13: =INDIRECT("'methodmix_calc'!"&ADDRESS(ROW(mmUsers8),COLUMN(INDIRECT("mm"& R$2 &"Yr5")))) -> 0 | S13: =INDIRECT("'methodmix_calc'!"&ADDRESS(ROW(mmUsers8),COLUMN(INDIRECT("mm"& S$2 &"Yr6")))) -> 0 | T13: =INDIRECT("'methodmix_calc'!"&ADDRESS(ROW(mmUsers8),COLUMN(INDIRECT("mm"& T$2 &"Yr7")))) -> 0 | U13: =INDIRECT("'methodmix_calc'!"&ADDRESS(ROW(mmUsers8),COLUMN(INDIRECT("mm"& U$2 &"Yr8")))) ->  | V13: =INDIRECT("'methodmix_calc'!"&ADDRESS(ROW(mmUsers8),COLUMN(INDIRECT("mm"& V$2 &"Yr9")))) ->  | W13: =INDIRECT("'methodmix_calc'!"&ADDRESS(ROW(mmUsers8),COLUMN(INDIRECT("mm"& W$2 &"Yr10")))) ->  | Y13: =INDIRECT("'methodmix_calc'!"&ADDRESS(ROW(mmUsers8),COLUMN(INDIRECT("mm"& Y$2 &"Yr1")))) -> 0 | Z13: =INDIRECT("'methodmix_calc'!"&ADDRESS(ROW(mmUsers8),COLUMN(INDIRECT("mm"& Z$2 &"Yr2")))) -> 0 | AA13: =INDIRECT("'methodmix_calc'!"&ADDRESS(ROW(mmUsers8),COLUMN(INDIRECT("mm"& AA$2 &"Yr3")))) -> 0 | AB13: =INDIRECT("'methodmix_calc'!"&ADDRESS(ROW(mmUsers8),COLUMN(INDIRECT("mm"& AB$2 &"Yr4")))) -> 0 | AC13: =INDIRECT("'methodmix_calc'!"&ADDRESS(ROW(mmUsers8),COLUMN(INDIRECT("mm"& AC$2 &"Yr5")))) -> 0 | AD13: =INDIRECT("'methodmix_calc'!"&ADDRESS(ROW(mmUsers8),COLUMN(INDIRECT("mm"& AD$2 &"Yr6")))) -> 0 | AE13: =INDIRECT("'methodmix_calc'!"&ADDRESS(ROW(mmUsers8),COLUMN(INDIRECT("mm"& AE$2 &"Yr7")))) -> 0 | AF13: =INDIRECT("'methodmix_calc'!"&ADDRESS(ROW(mmUsers8),COLUMN(INDIRECT("mm"& AF$2 &"Yr8")))) ->  | AG13: =INDIRECT("'methodmix_calc'!"&ADDRESS(ROW(mmUsers8),COLUMN(INDIRECT("mm"& AG$2 &"Yr9")))) ->  | AH13: =INDIRECT("'methodmix_calc'!"&ADDRESS(ROW(mmUsers8),COLUMN(INDIRECT("mm"& AH$2 &"Yr10")))) -> 
B14: Other modern | C14: =INDIRECT("'methodmix_calc'!"&ADDRESS(ROW(mmUsers9),COLUMN(INDIRECT("mm"& C$2 &"Yr1")))) -> 0 | D14: =INDIRECT("'methodmix_calc'!"&ADDRESS(ROW(mmUsers9),COLUMN(INDIRECT("mm"& D$2 &"Yr2")))) -> 0 | E14: =INDIRECT("'methodmix_calc'!"&ADDRESS(ROW(mmUsers9),COLUMN(INDIRECT("mm"& E$2 &"Yr3")))) -> 0 | F14: =INDIRECT("'methodmix_calc'!"&ADDRESS(ROW(mmUsers9),COLUMN(INDIRECT("mm"& F$2 &"Yr4")))) -> 0 | G14: =INDIRECT("'methodmix_calc'!"&ADDRESS(ROW(mmUsers9),COLUMN(INDIRECT("mm"& G$2 &"Yr5")))) -> 0 | H14: =INDIRECT("'methodmix_calc'!"&ADDRESS(ROW(mmUsers9),COLUMN(INDIRECT("mm"& H$2 &"Yr6")))) -> 0 | I14: =INDIRECT("'methodmix_calc'!"&ADDRESS(ROW(mmUsers9),COLUMN(INDIRECT("mm"& I$2 &"Yr7")))) -> 0 | J14: =INDIRECT("'methodmix_calc'!"&ADDRESS(ROW(mmUsers9),COLUMN(INDIRECT("mm"& J$2 &"Yr8")))) ->  | K14: =INDIRECT("'methodmix_calc'!"&ADDRESS(ROW(mmUsers9),COLUMN(INDIRECT("mm"& K$2 &"Yr9")))) ->  | L14: =INDIRECT("'methodmix_calc'!"&ADDRESS(ROW(mmUsers9),COLUMN(INDIRECT("mm"& L$2 &"Yr10")))) ->  | N14: =INDIRECT("'methodmix_calc'!"&ADDRESS(ROW(mmUsers9),COLUMN(INDIRECT("mm"& N$2 &"Yr1")))) -> 0 | O14: =INDIRECT("'methodmix_calc'!"&ADDRESS(ROW(mmUsers9),COLUMN(INDIRECT("mm"& O$2 &"Yr2")))) -> 0 | P14: =INDIRECT("'methodmix_calc'!"&ADDRESS(ROW(mmUsers9),COLUMN(INDIRECT("mm"& P$2 &"Yr3")))) -> 0 | Q14: =INDIRECT("'methodmix_calc'!"&ADDRESS(ROW(mmUsers9),COLUMN(INDIRECT("mm"& Q$2 &"Yr4")))) -> 0 | R14: =INDIRECT("'methodmix_calc'!"&ADDRESS(ROW(mmUsers9),COLUMN(INDIRECT("mm"& R$2 &"Yr5")))) -> 0 | S14: =INDIRECT("'methodmix_calc'!"&ADDRESS(ROW(mmUsers9),COLUMN(INDIRECT("mm"& S$2 &"Yr6")))) -> 0 | T14: =INDIRECT("'methodmix_calc'!"&ADDRESS(ROW(mmUsers9),COLUMN(INDIRECT("mm"& T$2 &"Yr7")))) -> 0 | U14: =INDIRECT("'methodmix_calc'!"&ADDRESS(ROW(mmUsers9),COLUMN(INDIRECT("mm"& U$2 &"Yr8")))) ->  | V14: =INDIRECT("'methodmix_calc'!"&ADDRESS(ROW(mmUsers9),COLUMN(INDIRECT("mm"& V$2 &"Yr9")))) ->  | W14: =INDIRECT("'methodmix_calc'!"&ADDRESS(ROW(mmUsers9),COLUMN(INDIRECT("mm"& W$2 &"Yr10")))) ->  | Y14: =INDIRECT("'methodmix_calc'!"&ADDRESS(ROW(mmUsers9),COLUMN(INDIRECT("mm"& Y$2 &"Yr1")))) -> 0 | Z14: =INDIRECT("'methodmix_calc'!"&ADDRESS(ROW(mmUsers9),COLUMN(INDIRECT("mm"& Z$2 &"Yr2")))) -> 0 | AA14: =INDIRECT("'methodmix_calc'!"&ADDRESS(ROW(mmUsers9),COLUMN(INDIRECT("mm"& AA$2 &"Yr3")))) -> 0 | AB14: =INDIRECT("'methodmix_calc'!"&ADDRESS(ROW(mmUsers9),COLUMN(INDIRECT("mm"& AB$2 &"Yr4")))) -> 0 | AC14: =INDIRECT("'methodmix_calc'!"&ADDRESS(ROW(mmUsers9),COLUMN(INDIRECT("mm"& AC$2 &"Yr5")))) -> 0 | AD14: =INDIRECT("'methodmix_calc'!"&ADDRESS(ROW(mmUsers9),COLUMN(INDIRECT("mm"& AD$2 &"Yr6")))) -> 0 | AE14: =INDIRECT("'methodmix_calc'!"&ADDRESS(ROW(mmUsers9),COLUMN(INDIRECT("mm"& AE$2 &"Yr7")))) -> 0 | AF14: =INDIRECT("'methodmix_calc'!"&ADDRESS(ROW(mmUsers9),COLUMN(INDIRECT("mm"& AF$2 &"Yr8")))) ->  | AG14: =INDIRECT("'methodmix_calc'!"&ADDRESS(ROW(mmUsers9),COLUMN(INDIRECT("mm"& AG$2 &"Yr9")))) ->  | AH14: =INDIRECT("'methodmix_calc'!"&ADDRESS(ROW(mmUsers9),COLUMN(INDIRECT("mm"& AH$2 &"Yr10")))) -> 
B15: All Traditional | C15: =INDIRECT("'methodmix_calc'!"&ADDRESS(ROW(mmUsers10),COLUMN(INDIRECT("mm"& C$2 &"Yr1")))) -> 0.1205357143 | D15: =INDIRECT("'methodmix_calc'!"&ADDRESS(ROW(mmUsers10),COLUMN(INDIRECT("mm"& D$2 &"Yr2")))) -> 0.1205357143 | E15: =INDIRECT("'methodmix_calc'!"&ADDRESS(ROW(mmUsers10),COLUMN(INDIRECT("mm"& E$2 &"Yr3")))) -> 0.1205357143 | F15: =INDIRECT("'methodmix_calc'!"&ADDRESS(ROW(mmUsers10),COLUMN(INDIRECT("mm"& F$2 &"Yr4")))) -> 0.1205357143 | G15: =INDIRECT("'methodmix_calc'!"&ADDRESS(ROW(mmUsers10),COLUMN(INDIRECT("mm"& G$2 &"Yr5")))) -> 0.1205357143 | H15: =INDIRECT("'methodmix_calc'!"&ADDRESS(ROW(mmUsers10),COLUMN(INDIRECT("mm"& H$2 &"Yr6")))) -> 0.1205357143 | I15: =INDIRECT("'methodmix_calc'!"&ADDRESS(ROW(mmUsers10),COLUMN(INDIRECT("mm"& I$2 &"Yr7")))) -> 0.1205357143 | J15: =INDIRECT("'methodmix_calc'!"&ADDRESS(ROW(mmUsers10),COLUMN(INDIRECT("mm"& J$2 &"Yr8")))) ->  | K15: =INDIRECT("'methodmix_calc'!"&ADDRESS(ROW(mmUsers10),COLUMN(INDIRECT("mm"& K$2 &"Yr9")))) ->  | L15: =INDIRECT("'methodmix_calc'!"&ADDRESS(ROW(mmUsers10),COLUMN(INDIRECT("mm"& L$2 &"Yr10")))) ->  | N15: =INDIRECT("'methodmix_calc'!"&ADDRESS(ROW(mmUsers10),COLUMN(INDIRECT("mm"& N$2 &"Yr1")))) -> 0.1205357143 | O15: =INDIRECT("'methodmix_calc'!"&ADDRESS(ROW(mmUsers10),COLUMN(INDIRECT("mm"& O$2 &"Yr2")))) -> 0.1205357143 | P15: =INDIRECT("'methodmix_calc'!"&ADDRESS(ROW(mmUsers10),COLUMN(INDIRECT("mm"& P$2 &"Yr3")))) -> 0.1205357143 | Q15: =INDIRECT("'methodmix_calc'!"&ADDRESS(ROW(mmUsers10),COLUMN(INDIRECT("mm"& Q$2 &"Yr4")))) -> 0.1205357143 | R15: =INDIRECT("'methodmix_calc'!"&ADDRESS(ROW(mmUsers10),COLUMN(INDIRECT("mm"& R$2 &"Yr5")))) -> 0.1205357143 | S15: =INDIRECT("'methodmix_calc'!"&ADDRESS(ROW(mmUsers10),COLUMN(INDIRECT("mm"& S$2 &"Yr6")))) -> 0.1205357143 | T15: =INDIRECT("'methodmix_calc'!"&ADDRESS(ROW(mmUsers10),COLUMN(INDIRECT("mm"& T$2 &"Yr7")))) -> 0.1205357143 | U15: =INDIRECT("'methodmix_calc'!"&ADDRESS(ROW(mmUsers10),COLUMN(INDIRECT("mm"& U$2 &"Yr8")))) ->  | V15: =INDIRECT("'methodmix_calc'!"&ADDRESS(ROW(mmUsers10),COLUMN(INDIRECT("mm"& V$2 &"Yr9")))) ->  | W15: =INDIRECT("'methodmix_calc'!"&ADDRESS(ROW(mmUsers10),COLUMN(INDIRECT("mm"& W$2 &"Yr10")))) ->  | Y15: =INDIRECT("'methodmix_calc'!"&ADDRESS(ROW(mmUsers10),COLUMN(INDIRECT("mm"& Y$2 &"Yr1")))) -> 0.1205357143 | Z15: =INDIRECT("'methodmix_calc'!"&ADDRESS(ROW(mmUsers10),COLUMN(INDIRECT("mm"& Z$2 &"Yr2")))) -> 0.1205357143 | AA15: =INDIRECT("'methodmix_calc'!"&ADDRESS(ROW(mmUsers10),COLUMN(INDIRECT("mm"& AA$2 &"Yr3")))) -> 0.1205357143 | AB15: =INDIRECT("'methodmix_calc'!"&ADDRESS(ROW(mmUsers10),COLUMN(INDIRECT("mm"& AB$2 &"Yr4")))) -> 0.1205357143 | AC15: =INDIRECT("'methodmix_calc'!"&ADDRESS(ROW(mmUsers10),COLUMN(INDIRECT("mm"& AC$2 &"Yr5")))) -> 0.1205357143 | AD15: =INDIRECT("'methodmix_calc'!"&ADDRESS(ROW(mmUsers10),COLUMN(INDIRECT("mm"& AD$2 &"Yr6")))) -> 0.1205357143 | AE15: =INDIRECT("'methodmix_calc'!"&ADDRESS(ROW(mmUsers10),COLUMN(INDIRECT("mm"& AE$2 &"Yr7")))) -> 0.1205357143 | AF15: =INDIRECT("'methodmix_calc'!"&ADDRESS(ROW(mmUsers10),COLUMN(INDIRECT("mm"& AF$2 &"Yr8")))) ->  | AG15: =INDIRECT("'methodmix_calc'!"&ADDRESS(ROW(mmUsers10),COLUMN(INDIRECT("mm"& AG$2 &"Yr9")))) ->  | AH15: =INDIRECT("'methodmix_calc'!"&ADDRESS(ROW(mmUsers10),COLUMN(INDIRECT("mm"& AH$2 &"Yr10")))) -> 
B16: Other country-specific | C16: =INDIRECT("'methodmix_calc'!"&ADDRESS(ROW(mmUsers12),COLUMN(INDIRECT("mm"& C$2 &"Yr1")))) -> 0.05803571429 | D16: =INDIRECT("'methodmix_calc'!"&ADDRESS(ROW(mmUsers12),COLUMN(INDIRECT("mm"& D$2 &"Yr2")))) -> 0.05803571429 | E16: =INDIRECT("'methodmix_calc'!"&ADDRESS(ROW(mmUsers12),COLUMN(INDIRECT("mm"& E$2 &"Yr3")))) -> 0.05803571429 | F16: =INDIRECT("'methodmix_calc'!"&ADDRESS(ROW(mmUsers12),COLUMN(INDIRECT("mm"& F$2 &"Yr4")))) -> 0.05803571429 | G16: =INDIRECT("'methodmix_calc'!"&ADDRESS(ROW(mmUsers12),COLUMN(INDIRECT("mm"& G$2 &"Yr5")))) -> 0.05803571429 | H16: =INDIRECT("'methodmix_calc'!"&ADDRESS(ROW(mmUsers12),COLUMN(INDIRECT("mm"& H$2 &"Yr6")))) -> 0.05803571429 | I16: =INDIRECT("'methodmix_calc'!"&ADDRESS(ROW(mmUsers12),COLUMN(INDIRECT("mm"& I$2 &"Yr7")))) -> 0.05803571429 | J16: =INDIRECT("'methodmix_calc'!"&ADDRESS(ROW(mmUsers12),COLUMN(INDIRECT("mm"& J$2 &"Yr8")))) ->  | K16: =INDIRECT("'methodmix_calc'!"&ADDRESS(ROW(mmUsers12),COLUMN(INDIRECT("mm"& K$2 &"Yr9")))) ->  | L16: =INDIRECT("'methodmix_calc'!"&ADDRESS(ROW(mmUsers12),COLUMN(INDIRECT("mm"& L$2 &"Yr10")))) ->  | N16: =INDIRECT("'methodmix_calc'!"&ADDRESS(ROW(mmUsers12),COLUMN(INDIRECT("mm"& N$2 &"Yr1")))) -> 0.05803571429 | O16: =INDIRECT("'methodmix_calc'!"&ADDRESS(ROW(mmUsers12),COLUMN(INDIRECT("mm"& O$2 &"Yr2")))) -> 0.05803571429 | P16: =INDIRECT("'methodmix_calc'!"&ADDRESS(ROW(mmUsers12),COLUMN(INDIRECT("mm"& P$2 &"Yr3")))) -> 0.05803571429 | Q16: =INDIRECT("'methodmix_calc'!"&ADDRESS(ROW(mmUsers12),COLUMN(INDIRECT("mm"& Q$2 &"Yr4")))) -> 0.05803571429 | R16: =INDIRECT("'methodmix_calc'!"&ADDRESS(ROW(mmUsers12),COLUMN(INDIRECT("mm"& R$2 &"Yr5")))) -> 0.05803571429 | S16: =INDIRECT("'methodmix_calc'!"&ADDRESS(ROW(mmUsers12),COLUMN(INDIRECT("mm"& S$2 &"Yr6")))) -> 0.05803571429 | T16: =INDIRECT("'methodmix_calc'!"&ADDRESS(ROW(mmUsers12),COLUMN(INDIRECT("mm"& T$2 &"Yr7")))) -> 0.05803571429 | U16: =INDIRECT("'methodmix_calc'!"&ADDRESS(ROW(mmUsers12),COLUMN(INDIRECT("mm"& U$2 &"Yr8")))) ->  | V16: =INDIRECT("'methodmix_calc'!"&ADDRESS(ROW(mmUsers12),COLUMN(INDIRECT("mm"& V$2 &"Yr9")))) ->  | W16: =INDIRECT("'methodmix_calc'!"&ADDRESS(ROW(mmUsers12),COLUMN(INDIRECT("mm"& W$2 &"Yr10")))) ->  | Y16: =INDIRECT("'methodmix_calc'!"&ADDRESS(ROW(mmUsers12),COLUMN(INDIRECT("mm"& Y$2 &"Yr1")))) -> 0.05803571429 | Z16: =INDIRECT("'methodmix_calc'!"&ADDRESS(ROW(mmUsers12),COLUMN(INDIRECT("mm"& Z$2 &"Yr2")))) -> 0.05803571429 | AA16: =INDIRECT("'methodmix_calc'!"&ADDRESS(ROW(mmUsers12),COLUMN(INDIRECT("mm"& AA$2 &"Yr3")))) -> 0.05803571429 | AB16: =INDIRECT("'methodmix_calc'!"&ADDRESS(ROW(mmUsers12),COLUMN(INDIRECT("mm"& AB$2 &"Yr4")))) -> 0.05803571429 | AC16: =INDIRECT("'methodmix_calc'!"&ADDRESS(ROW(mmUsers12),COLUMN(INDIRECT("mm"& AC$2 &"Yr5")))) -> 0.05803571429 | AD16: =INDIRECT("'methodmix_calc'!"&ADDRESS(ROW(mmUsers12),COLUMN(INDIRECT("mm"& AD$2 &"Yr6")))) -> 0.05803571429 | AE16: =INDIRECT("'methodmix_calc'!"&ADDRESS(ROW(mmUsers12),COLUMN(INDIRECT("mm"& AE$2 &"Yr7")))) -> 0.05803571429 | AF16: =INDIRECT("'methodmix_calc'!"&ADDRESS(ROW(mmUsers12),COLUMN(INDIRECT("mm"& AF$2 &"Yr8")))) ->  | AG16: =INDIRECT("'methodmix_calc'!"&ADDRESS(ROW(mmUsers12),COLUMN(INDIRECT("mm"& AG$2 &"Yr9")))) ->  | AH16: =INDIRECT("'methodmix_calc'!"&ADDRESS(ROW(mmUsers12),COLUMN(INDIRECT("mm"& AH$2 &"Yr10")))) -> 
A17: Acceptors
B18: Male sterilization acceptors * | C18: =IFERROR(INDIRECT("'"&C$2&"_Acceptors of LAPM'!" & ADDRESS(ROW(accmeth1),COLUMN(accyr1))),"") -> 0 | D18: =IFERROR(INDIRECT("'"&D$2&"_Acceptors of LAPM'!" & ADDRESS(ROW(accmeth1),COLUMN(accyr2))),"") -> 0 | E18: =IFERROR(INDIRECT("'"&E$2&"_Acceptors of LAPM'!" & ADDRESS(ROW(accmeth1),COLUMN(accyr3))),"") -> 0 | F18: =IFERROR(INDIRECT("'"&F$2&"_Acceptors of LAPM'!" & ADDRESS(ROW(accmeth1),COLUMN(accyr4))),"") -> 0 | G18: =IFERROR(INDIRECT("'"&G$2&"_Acceptors of LAPM'!" & ADDRESS(ROW(accmeth1),COLUMN(accyr5))),"") -> 0 | H18: =IFERROR(INDIRECT("'"&H$2&"_Acceptors of LAPM'!" & ADDRESS(ROW(accmeth1),COLUMN(accyr6))),"") -> 0 | I18: =IFERROR(INDIRECT("'"&I$2&"_Acceptors of LAPM'!" & ADDRESS(ROW(accmeth1),COLUMN(accyr7))),"") -> 0 | J18: =IFERROR(INDIRECT("'"&J$2&"_Acceptors of LAPM'!" & ADDRESS(ROW(accmeth1),COLUMN(accyr8))),"") ->  | K18: =IFERROR(INDIRECT("'"&K$2&"_Acceptors of LAPM'!" & ADDRESS(ROW(accmeth1),COLUMN(accyr9))),"") ->  | L18: =IFERROR(INDIRECT("'"&L$2&"_Acceptors of LAPM'!" & ADDRESS(ROW(accmeth1),COLUMN(accyr10))),"") ->  | N18: =IFERROR(INDIRECT("'"&N$2&"_Acceptors of LAPM'!" & ADDRESS(ROW(accmeth1),COLUMN(accyr1))),"") -> 0 | O18: =IFERROR(INDIRECT("'"&O$2&"_Acceptors of LAPM'!" & ADDRESS(ROW(accmeth1),COLUMN(accyr2))),"") -> 0 | P18: =IFERROR(INDIRECT("'"&P$2&"_Acceptors of LAPM'!" & ADDRESS(ROW(accmeth1),COLUMN(accyr3))),"") -> 0 | Q18: =IFERROR(INDIRECT("'"&Q$2&"_Acceptors of LAPM'!" & ADDRESS(ROW(accmeth1),COLUMN(accyr4))),"") -> 0 | R18: =IFERROR(INDIRECT("'"&R$2&"_Acceptors of LAPM'!" & ADDRESS(ROW(accmeth1),COLUMN(accyr5))),"") -> 0 | S18: =IFERROR(INDIRECT("'"&S$2&"_Acceptors of LAPM'!" & ADDRESS(ROW(accmeth1),COLUMN(accyr6))),"") -> 0 | T18: =IFERROR(INDIRECT("'"&T$2&"_Acceptors of LAPM'!" & ADDRESS(ROW(accmeth1),COLUMN(accyr7))),"") -> 0 | U18: =IFERROR(INDIRECT("'"&U$2&"_Acceptors of LAPM'!" & ADDRESS(ROW(accmeth1),COLUMN(accyr8))),"") ->  | V18: =IFERROR(INDIRECT("'"&V$2&"_Acceptors of LAPM'!" & ADDRESS(ROW(accmeth1),COLUMN(accyr9))),"") ->  | W18: =IFERROR(INDIRECT("'"&W$2&"_Acceptors of LAPM'!" & ADDRESS(ROW(accmeth1),COLUMN(accyr10))),"") ->  | Y18: =IFERROR(INDIRECT("'"&Y$2&"_Acceptors of LAPM'!" & ADDRESS(ROW(accmeth1),COLUMN(accyr1))),"") -> 0 | Z18: =IFERROR(INDIRECT("'"&Z$2&"_Acceptors of LAPM'!" & ADDRESS(ROW(accmeth1),COLUMN(accyr2))),"") -> 0 | AA18: =IFERROR(INDIRECT("'"&AA$2&"_Acceptors of LAPM'!" & ADDRESS(ROW(accmeth1),COLUMN(accyr3))),"") -> 0 | AB18: =IFERROR(INDIRECT("'"&AB$2&"_Acceptors of LAPM'!" & ADDRESS(ROW(accmeth1),COLUMN(accyr4))),"") -> 0 | AC18: =IFERROR(INDIRECT("'"&AC$2&"_Acceptors of LAPM'!" & ADDRESS(ROW(accmeth1),COLUMN(accyr5))),"") -> 0 | AD18: =IFERROR(INDIRECT("'"&AD$2&"_Acceptors of LAPM'!" & ADDRESS(ROW(accmeth1),COLUMN(accyr6))),"") -> 0 | AE18: =IFERROR(INDIRECT("'"&AE$2&"_Acceptors of LAPM'!" & ADDRESS(ROW(accmeth1),COLUMN(accyr7))),"") -> 0 | AF18: =IFERROR(INDIRECT("'"&AF$2&"_Acceptors of LAPM'!" & ADDRESS(ROW(accmeth1),COLUMN(accyr8))),"") ->  | AG18: =IFERROR(INDIRECT("'"&AG$2&"_Acceptors of LAPM'!" & ADDRESS(ROW(accmeth1),COLUMN(accyr9))),"") ->  | AH18: =IFERROR(INDIRECT("'"&AH$2&"_Acceptors of LAPM'!" & ADDRESS(ROW(accmeth1),COLUMN(accyr10))),"") -> 
B19: Female sterilization acceptors * | C19: =IFERROR(INDIRECT("'"&C$2&"_Acceptors of LAPM'!" & ADDRESS(ROW(accmeth2),COLUMN(accyr1))),"") -> 9897.710716 | D19: =IFERROR(INDIRECT("'"&D$2&"_Acceptors of LAPM'!" & ADDRESS(ROW(accmeth2),COLUMN(accyr2))),"") -> 7934.679091 | E19: =IFERROR(INDIRECT("'"&E$2&"_Acceptors of LAPM'!" & ADDRESS(ROW(accmeth2),COLUMN(accyr3))),"") -> 16423.61238 | F19: =IFERROR(INDIRECT("'"&F$2&"_Acceptors of LAPM'!" & ADDRESS(ROW(accmeth2),COLUMN(accyr4))),"") -> 25451.06911 | G19: =IFERROR(INDIRECT("'"&G$2&"_Acceptors of LAPM'!" & ADDRESS(ROW(accmeth2),COLUMN(accyr5))),"") -> 35060.7161 | H19: =IFERROR(INDIRECT("'"&H$2&"_Acceptors of LAPM'!" & ADDRESS(ROW(accmeth2),COLUMN(accyr6))),"") -> 45230.38448 | I19: =IFERROR(INDIRECT("'"&I$2&"_Acceptors of LAPM'!" & ADDRESS(ROW(accmeth2),COLUMN(accyr7))),"") -> 55941.48394 | J19: =IFERROR(INDIRECT("'"&J$2&"_Acceptors of LAPM'!" & ADDRESS(ROW(accmeth2),COLUMN(accyr8))),"") ->  | K19: =IFERROR(INDIRECT("'"&K$2&"_Acceptors of LAPM'!" & ADDRESS(ROW(accmeth2),COLUMN(accyr9))),"") ->  | L19: =IFERROR(INDIRECT("'"&L$2&"_Acceptors of LAPM'!" & ADDRESS(ROW(accmeth2),COLUMN(accyr10))),"") ->  | N19: =IFERROR(INDIRECT("'"&N$2&"_Acceptors of LAPM'!" & ADDRESS(ROW(accmeth2),COLUMN(accyr1))),"") -> 9897.710716 | O19: =IFERROR(INDIRECT("'"&O$2&"_Acceptors of LAPM'!" & ADDRESS(ROW(accmeth2),COLUMN(accyr2))),"") -> 7934.679091 | P19: =IFERROR(INDIRECT("'"&P$2&"_Acceptors of LAPM'!" & ADDRESS(ROW(accmeth2),COLUMN(accyr3))),"") -> 16423.61238 | Q19: =IFERROR(INDIRECT("'"&Q$2&"_Acceptors of LAPM'!" & ADDRESS(ROW(accmeth2),COLUMN(accyr4))),"") -> 25451.06911 | R19: =IFERROR(INDIRECT("'"&R$2&"_Acceptors of LAPM'!" & ADDRESS(ROW(accmeth2),COLUMN(accyr5))),"") -> 35060.7161 | S19: =IFERROR(INDIRECT("'"&S$2&"_Acceptors of LAPM'!" & ADDRESS(ROW(accmeth2),COLUMN(accyr6))),"") -> 45230.38448 | T19: =IFERROR(INDIRECT("'"&T$2&"_Acceptors of LAPM'!" & ADDRESS(ROW(accmeth2),COLUMN(accyr7))),"") -> 55941.48394 | U19: =IFERROR(INDIRECT("'"&U$2&"_Acceptors of LAPM'!" & ADDRESS(ROW(accmeth2),COLUMN(accyr8))),"") ->  | V19: =IFERROR(INDIRECT("'"&V$2&"_Acceptors of LAPM'!" & ADDRESS(ROW(accmeth2),COLUMN(accyr9))),"") ->  | W19: =IFERROR(INDIRECT("'"&W$2&"_Acceptors of LAPM'!" & ADDRESS(ROW(accmeth2),COLUMN(accyr10))),"") ->  | Y19: =IFERROR(INDIRECT("'"&Y$2&"_Acceptors of LAPM'!" & ADDRESS(ROW(accmeth2),COLUMN(accyr1))),"") -> 9897.710716 | Z19: =IFERROR(INDIRECT("'"&Z$2&"_Acceptors of LAPM'!" & ADDRESS(ROW(accmeth2),COLUMN(accyr2))),"") -> 7934.679091 | AA19: =IFERROR(INDIRECT("'"&AA$2&"_Acceptors of LAPM'!" & ADDRESS(ROW(accmeth2),COLUMN(accyr3))),"") -> 16423.61238 | AB19: =IFERROR(INDIRECT("'"&AB$2&"_Acceptors of LAPM'!" & ADDRESS(ROW(accmeth2),COLUMN(accyr4))),"") -> 25451.06911 | AC19: =IFERROR(INDIRECT("'"&AC$2&"_Acceptors of LAPM'!" & ADDRESS(ROW(accmeth2),COLUMN(accyr5))),"") -> 35060.7161 | AD19: =IFERROR(INDIRECT("'"&AD$2&"_Acceptors of LAPM'!" & ADDRESS(ROW(accmeth2),COLUMN(accyr6))),"") -> 45230.38448 | AE19: =IFERROR(INDIRECT("'"&AE$2&"_Acceptors of LAPM'!" & ADDRESS(ROW(accmeth2),COLUMN(accyr7))),"") -> 55941.48394 | AF19: =IFERROR(INDIRECT("'"&AF$2&"_Acceptors of LAPM'!" & ADDRESS(ROW(accmeth2),COLUMN(accyr8))),"") ->  | AG19: =IFERROR(INDIRECT("'"&AG$2&"_Acceptors of LAPM'!" & ADDRESS(ROW(accmeth2),COLUMN(accyr9))),"") ->  | AH19: =IFERROR(INDIRECT("'"&AH$2&"_Acceptors of LAPM'!" & ADDRESS(ROW(accmeth2),COLUMN(accyr10))),"") -> 
B20: IUD acceptors * | C20: =IFERROR(INDIRECT("'"&C$2&"_Acceptors of LAPM'!" & ADDRESS(ROW(accmeth3),COLUMN(accyr1))),"") -> 21453.08868 | D20: =IFERROR(INDIRECT("'"&D$2&"_Acceptors of LAPM'!" & ADDRESS(ROW(accmeth3),COLUMN(accyr2))),"") -> 17324.75714 | E20: =IFERROR(INDIRECT("'"&E$2&"_Acceptors of LAPM'!" & ADDRESS(ROW(accmeth3),COLUMN(accyr3))),"") -> 19535.76151 | F20: =IFERROR(INDIRECT("'"&F$2&"_Acceptors of LAPM'!" & ADDRESS(ROW(accmeth3),COLUMN(accyr4))),"") -> 20741.11056 | G20: =IFERROR(INDIRECT("'"&G$2&"_Acceptors of LAPM'!" & ADDRESS(ROW(accmeth3),COLUMN(accyr5))),"") -> 21889.88087 | H20: =IFERROR(INDIRECT("'"&H$2&"_Acceptors of LAPM'!" & ADDRESS(ROW(accmeth3),COLUMN(accyr6))),"") -> 23045.91851 | I20: =IFERROR(INDIRECT("'"&I$2&"_Acceptors of LAPM'!" & ADDRESS(ROW(accmeth3),COLUMN(accyr7))),"") -> 24213.51851 | J20: =IFERROR(INDIRECT("'"&J$2&"_Acceptors of LAPM'!" & ADDRESS(ROW(accmeth3),COLUMN(accyr8))),"") ->  | K20: =IFERROR(INDIRECT("'"&K$2&"_Acceptors of LAPM'!" & ADDRESS(ROW(accmeth3),COLUMN(accyr9))),"") ->  | L20: =IFERROR(INDIRECT("'"&L$2&"_Acceptors of LAPM'!" & ADDRESS(ROW(accmeth3),COLUMN(accyr10))),"") ->  | N20: =IFERROR(INDIRECT("'"&N$2&"_Acceptors of LAPM'!" & ADDRESS(ROW(accmeth3),COLUMN(accyr1))),"") -> 21453.08868 | O20: =IFERROR(INDIRECT("'"&O$2&"_Acceptors of LAPM'!" & ADDRESS(ROW(accmeth3),COLUMN(accyr2))),"") -> 17324.75714 | P20: =IFERROR(INDIRECT("'"&P$2&"_Acceptors of LAPM'!" & ADDRESS(ROW(accmeth3),COLUMN(accyr3))),"") -> 19535.76151 | Q20: =IFERROR(INDIRECT("'"&Q$2&"_Acceptors of LAPM'!" & ADDRESS(ROW(accmeth3),COLUMN(accyr4))),"") -> 20741.11056 | R20: =IFERROR(INDIRECT("'"&R$2&"_Acceptors of LAPM'!" & ADDRESS(ROW(accmeth3),COLUMN(accyr5))),"") -> 21889.88087 | S20: =IFERROR(INDIRECT("'"&S$2&"_Acceptors of LAPM'!" & ADDRESS(ROW(accmeth3),COLUMN(accyr6))),"") -> 23045.91851 | T20: =IFERROR(INDIRECT("'"&T$2&"_Acceptors of LAPM'!" & ADDRESS(ROW(accmeth3),COLUMN(accyr7))),"") -> 24213.51851 | U20: =IFERROR(INDIRECT("'"&U$2&"_Acceptors of LAPM'!" & ADDRESS(ROW(accmeth3),COLUMN(accyr8))),"") ->  | V20: =IFERROR(INDIRECT("'"&V$2&"_Acceptors of LAPM'!" & ADDRESS(ROW(accmeth3),COLUMN(accyr9))),"") ->  | W20: =IFERROR(INDIRECT("'"&W$2&"_Acceptors of LAPM'!" & ADDRESS(ROW(accmeth3),COLUMN(accyr10))),"") ->  | Y20: =IFERROR(INDIRECT("'"&Y$2&"_Acceptors of LAPM'!" & ADDRESS(ROW(accmeth3),COLUMN(accyr1))),"") -> 21453.08868 | Z20: =IFERROR(INDIRECT("'"&Z$2&"_Acceptors of LAPM'!" & ADDRESS(ROW(accmeth3),COLUMN(accyr2))),"") -> 17324.75714 | AA20: =IFERROR(INDIRECT("'"&AA$2&"_Acceptors of LAPM'!" & ADDRESS(ROW(accmeth3),COLUMN(accyr3))),"") -> 19535.76151 | AB20: =IFERROR(INDIRECT("'"&AB$2&"_Acceptors of LAPM'!" & ADDRESS(ROW(accmeth3),COLUMN(accyr4))),"") -> 20741.11056 | AC20: =IFERROR(INDIRECT("'"&AC$2&"_Acceptors of LAPM'!" & ADDRESS(ROW(accmeth3),COLUMN(accyr5))),"") -> 21889.88087 | AD20: =IFERROR(INDIRECT("'"&AD$2&"_Acceptors of LAPM'!" & ADDRESS(ROW(accmeth3),COLUMN(accyr6))),"") -> 23045.91851 | AE20: =IFERROR(INDIRECT("'"&AE$2&"_Acceptors of LAPM'!" & ADDRESS(ROW(accmeth3),COLUMN(accyr7))),"") -> 24213.51851 | AF20: =IFERROR(INDIRECT("'"&AF$2&"_Acceptors of LAPM'!" & ADDRESS(ROW(accmeth3),COLUMN(accyr8))),"") ->  | AG20: =IFERROR(INDIRECT("'"&AG$2&"_Acceptors of LAPM'!" & ADDRESS(ROW(accmeth3),COLUMN(accyr9))),"") ->  | AH20: =IFERROR(INDIRECT("'"&AH$2&"_Acceptors of LAPM'!" & ADDRESS(ROW(accmeth3),COLUMN(accyr10))),"") -> 
B21: Implant acceptors * | C21: =IFERROR(INDIRECT("'"&C$2&"_Acceptors of LAPM'!" & ADDRESS(ROW(accmeth4),COLUMN(accyr1))),"") -> 4089.302899 | D21: =IFERROR(INDIRECT("'"&D$2&"_Acceptors of LAPM'!" & ADDRESS(ROW(accmeth4),COLUMN(accyr2))),"") -> 2690.332505 | E21: =IFERROR(INDIRECT("'"&E$2&"_Acceptors of LAPM'!" & ADDRESS(ROW(accmeth4),COLUMN(accyr3))),"") -> 3266.957472 | F21: =IFERROR(INDIRECT("'"&F$2&"_Acceptors of LAPM'!" & ADDRESS(ROW(accmeth4),COLUMN(accyr4))),"") -> 3727.869399 | G21: =IFERROR(INDIRECT("'"&G$2&"_Acceptors of LAPM'!" & ADDRESS(ROW(accmeth4),COLUMN(accyr5))),"") -> 4183.629581 | H21: =IFERROR(INDIRECT("'"&H$2&"_Acceptors of LAPM'!" & ADDRESS(ROW(accmeth4),COLUMN(accyr6))),"") -> 4640.356054 | I21: =IFERROR(INDIRECT("'"&I$2&"_Acceptors of LAPM'!" & ADDRESS(ROW(accmeth4),COLUMN(accyr7))),"") -> 3955.222818 | J21: =IFERROR(INDIRECT("'"&J$2&"_Acceptors of LAPM'!" & ADDRESS(ROW(accmeth4),COLUMN(accyr8))),"") ->  | K21: =IFERROR(INDIRECT("'"&K$2&"_Acceptors of LAPM'!" & ADDRESS(ROW(accmeth4),COLUMN(accyr9))),"") ->  | L21: =IFERROR(INDIRECT("'"&L$2&"_Acceptors of LAPM'!" & ADDRESS(ROW(accmeth4),COLUMN(accyr10))),"") ->  | N21: =IFERROR(INDIRECT("'"&N$2&"_Acceptors of LAPM'!" & ADDRESS(ROW(accmeth4),COLUMN(accyr1))),"") -> 4089.302899 | O21: =IFERROR(INDIRECT("'"&O$2&"_Acceptors of LAPM'!" & ADDRESS(ROW(accmeth4),COLUMN(accyr2))),"") -> 2690.332505 | P21: =IFERROR(INDIRECT("'"&P$2&"_Acceptors of LAPM'!" & ADDRESS(ROW(accmeth4),COLUMN(accyr3))),"") -> 3266.957472 | Q21: =IFERROR(INDIRECT("'"&Q$2&"_Acceptors of LAPM'!" & ADDRESS(ROW(accmeth4),COLUMN(accyr4))),"") -> 3727.869399 | R21: =IFERROR(INDIRECT("'"&R$2&"_Acceptors of LAPM'!" & ADDRESS(ROW(accmeth4),COLUMN(accyr5))),"") -> 4183.629581 | S21: =IFERROR(INDIRECT("'"&S$2&"_Acceptors of LAPM'!" & ADDRESS(ROW(accmeth4),COLUMN(accyr6))),"") -> 4640.356054 | T21: =IFERROR(INDIRECT("'"&T$2&"_Acceptors of LAPM'!" & ADDRESS(ROW(accmeth4),COLUMN(accyr7))),"") -> 3955.222818 | U21: =IFERROR(INDIRECT("'"&U$2&"_Acceptors of LAPM'!" & ADDRESS(ROW(accmeth4),COLUMN(accyr8))),"") ->  | V21: =IFERROR(INDIRECT("'"&V$2&"_Acceptors of LAPM'!" & ADDRESS(ROW(accmeth4),COLUMN(accyr9))),"") ->  | W21: =IFERROR(INDIRECT("'"&W$2&"_Acceptors of LAPM'!" & ADDRESS(ROW(accmeth4),COLUMN(accyr10))),"") ->  | Y21: =IFERROR(INDIRECT("'"&Y$2&"_Acceptors of LAPM'!" & ADDRESS(ROW(accmeth4),COLUMN(accyr1))),"") -> 4089.302899 | Z21: =IFERROR(INDIRECT("'"&Z$2&"_Acceptors of LAPM'!" & ADDRESS(ROW(accmeth4),COLUMN(accyr2))),"") -> 2690.332505 | AA21: =IFERROR(INDIRECT("'"&AA$2&"_Acceptors of LAPM'!" & ADDRESS(ROW(accmeth4),COLUMN(accyr3))),"") -> 3266.957472 | AB21: =IFERROR(INDIRECT("'"&AB$2&"_Acceptors of LAPM'!" & ADDRESS(ROW(accmeth4),COLUMN(accyr4))),"") -> 3727.869399 | AC21: =IFERROR(INDIRECT("'"&AC$2&"_Acceptors of LAPM'!" & ADDRESS(ROW(accmeth4),COLUMN(accyr5))),"") -> 4183.629581 | AD21: =IFERROR(INDIRECT("'"&AD$2&"_Acceptors of LAPM'!" & ADDRESS(ROW(accmeth4),COLUMN(accyr6))),"") -> 4640.356054 | AE21: =IFERROR(INDIRECT("'"&AE$2&"_Acceptors of LAPM'!" & ADDRESS(ROW(accmeth4),COLUMN(accyr7))),"") -> 3955.222818 | AF21: =IFERROR(INDIRECT("'"&AF$2&"_Acceptors of LAPM'!" & ADDRESS(ROW(accmeth4),COLUMN(accyr8))),"") ->  | AG21: =IFERROR(INDIRECT("'"&AG$2&"_Acceptors of LAPM'!" & ADDRESS(ROW(accmeth4),COLUMN(accyr9))),"") ->  | AH21: =IFERROR(INDIRECT("'"&AH$2&"_Acceptors of LAPM'!" & ADDRESS(ROW(accmeth4),COLUMN(accyr10))),"") -> 
B22: SDM acceptors * | C22: =IFERROR(INDIRECT("'"&C$2&"_Acceptors of LAPM'!" & ADDRESS(ROW(accmeth5),COLUMN(accyr1))),"") -> 0 | D22: =IFERROR(INDIRECT("'"&D$2&"_Acceptors of LAPM'!" & ADDRESS(ROW(accmeth5),COLUMN(accyr2))),"") -> 0 | E22: =IFERROR(INDIRECT("'"&E$2&"_Acceptors of LAPM'!" & ADDRESS(ROW(accmeth5),COLUMN(accyr3))),"") -> 0 | F22: =IFERROR(INDIRECT("'"&F$2&"_Acceptors of LAPM'!" & ADDRESS(ROW(accmeth5),COLUMN(accyr4))),"") -> 0 | G22: =IFERROR(INDIRECT("'"&G$2&"_Acceptors of LAPM'!" & ADDRESS(ROW(accmeth5),COLUMN(accyr5))),"") -> 0 | H22: =IFERROR(INDIRECT("'"&H$2&"_Acceptors of LAPM'!" & ADDRESS(ROW(accmeth5),COLUMN(accyr6))),"") -> 0 | I22: =IFERROR(INDIRECT("'"&I$2&"_Acceptors of LAPM'!" & ADDRESS(ROW(accmeth5),COLUMN(accyr7))),"") -> 0 | J22: =IFERROR(INDIRECT("'"&J$2&"_Acceptors of LAPM'!" & ADDRESS(ROW(accmeth5),COLUMN(accyr8))),"") ->  | K22: =IFERROR(INDIRECT("'"&K$2&"_Acceptors of LAPM'!" & ADDRESS(ROW(accmeth5),COLUMN(accyr9))),"") ->  | L22: =IFERROR(INDIRECT("'"&L$2&"_Acceptors of LAPM'!" & ADDRESS(ROW(accmeth5),COLUMN(accyr10))),"") ->  | N22: =IFERROR(INDIRECT("'"&N$2&"_Acceptors of LAPM'!" & ADDRESS(ROW(accmeth5),COLUMN(accyr1))),"") -> 0 | O22: =IFERROR(INDIRECT("'"&O$2&"_Acceptors of LAPM'!" & ADDRESS(ROW(accmeth5),COLUMN(accyr2))),"") -> 0 | P22: =IFERROR(INDIRECT("'"&P$2&"_Acceptors of LAPM'!" & ADDRESS(ROW(accmeth5),COLUMN(accyr3))),"") -> 0 | Q22: =IFERROR(INDIRECT("'"&Q$2&"_Acceptors of LAPM'!" & ADDRESS(ROW(accmeth5),COLUMN(accyr4))),"") -> 0 | R22: =IFERROR(INDIRECT("'"&R$2&"_Acceptors of LAPM'!" & ADDRESS(ROW(accmeth5),COLUMN(accyr5))),"") -> 0 | S22: =IFERROR(INDIRECT("'"&S$2&"_Acceptors of LAPM'!" & ADDRESS(ROW(accmeth5),COLUMN(accyr6))),"") -> 0 | T22: =IFERROR(INDIRECT("'"&T$2&"_Acceptors of LAPM'!" & ADDRESS(ROW(accmeth5),COLUMN(accyr7))),"") -> 0 | U22: =IFERROR(INDIRECT("'"&U$2&"_Acceptors of LAPM'!" & ADDRESS(ROW(accmeth5),COLUMN(accyr8))),"") ->  | V22: =IFERROR(INDIRECT("'"&V$2&"_Acceptors of LAPM'!" & ADDRESS(ROW(accmeth5),COLUMN(accyr9))),"") ->  | W22: =IFERROR(INDIRECT("'"&W$2&"_Acceptors of LAPM'!" & ADDRESS(ROW(accmeth5),COLUMN(accyr10))),"") ->  | Y22: =IFERROR(INDIRECT("'"&Y$2&"_Acceptors of LAPM'!" & ADDRESS(ROW(accmeth5),COLUMN(accyr1))),"") -> 0 | Z22: =IFERROR(INDIRECT("'"&Z$2&"_Acceptors of LAPM'!" & ADDRESS(ROW(accmeth5),COLUMN(accyr2))),"") -> 0 | AA22: =IFERROR(INDIRECT("'"&AA$2&"_Acceptors of LAPM'!" & ADDRESS(ROW(accmeth5),COLUMN(accyr3))),"") -> 0 | AB22: =IFERROR(INDIRECT("'"&AB$2&"_Acceptors of LAPM'!" & ADDRESS(ROW(accmeth5),COLUMN(accyr4))),"") -> 0 | AC22: =IFERROR(INDIRECT("'"&AC$2&"_Acceptors of LAPM'!" & ADDRESS(ROW(accmeth5),COLUMN(accyr5))),"") -> 0 | AD22: =IFERROR(INDIRECT("'"&AD$2&"_Acceptors of LAPM'!" & ADDRESS(ROW(accmeth5),COLUMN(accyr6))),"") -> 0 | AE22: =IFERROR(INDIRECT("'"&AE$2&"_Acceptors of LAPM'!" & ADDRESS(ROW(accmeth5),COLUMN(accyr7))),"") -> 0 | AF22: =IFERROR(INDIRECT("'"&AF$2&"_Acceptors of LAPM'!" & ADDRESS(ROW(accmeth5),COLUMN(accyr8))),"") ->  | AG22: =IFERROR(INDIRECT("'"&AG$2&"_Acceptors of LAPM'!" & ADDRESS(ROW(accmeth5),COLUMN(accyr9))),"") ->  | AH22: =IFERROR(INDIRECT("'"&AH$2&"_Acceptors of LAPM'!" & ADDRESS(ROW(accmeth5),COLUMN(accyr10))),"") -> 
B23: Total Acceptors | C23: =SUM(C18:C22) -> 35440.10229 | D23: =SUM(D18:D22) -> 27949.76873 | E23: 39226.33136 | F23: 49920.04907 | G23: 61134.22655 | H23: 72916.65905 | I23: 84110.22527 | J23: 0 | K23: 0 | L23: 0 | N23: =SUM(N18:N22) -> 35440.10229 | O23: =SUM(O18:O22) -> 27949.76873 | P23: 39226.33136 | Q23: 49920.04907 | R23: 61134.22655 | S23: 72916.65905 | T23: 84110.22527 | U23: 0 | V23: 0 | W23: 0 | Y23: =SUM(Y18:Y22) -> 35440.10229 | Z23: =SUM(Z18:Z22) -> 27949.76873 | AA23: 39226.33136 | AB23: 49920.04907 | AC23: 61134.22655 | AD23: 72916.65905 | AE23: 84110.22527 | AF23: 0 | AG23: 0 | AH23: 0
A24: Pregnancy Rate | C24: 0.41 | D24: 0.41 | E24: 0.41 | F24: 0.41 | G24: 0.41 | H24: 0.41 | I24: 0.41 | J24: 0.41 | K24: 0.41 | L24: 0.41 | N24: 0.41 | O24: 0.41 | P24: 0.41 | Q24: 0.41 | R24: 0.41 | S24: 0.41 | T24: 0.41 | U24: 0.41 | V24: 0.41 | W24: 0.41 | Y24: 0.41 | Z24: 0.41 | AA24: 0.41 | AB24: 0.41 | AC24: 0.41 | AD24: 0.41 | AE24: 0.41 | AF24: 0.41 | AG24: 0.41 | AH24: 0.41
A25: Average Age of Users of LAPM
B26: Male sterilization | C26: =IFERROR(INDIRECT("'"&C$2&"_Acceptors of LAPM'!"&ADDRESS(ROW(accMeth1AvgAge),COLUMN(accyr1))),"") ->  | D26: =IFERROR(INDIRECT("'"&D$2&"_Acceptors of LAPM'!"&ADDRESS(ROW(accMeth1AvgAge),COLUMN(accyr2))),"") ->  | E26: =IFERROR(INDIRECT("'"&E$2&"_Acceptors of LAPM'!"&ADDRESS(ROW(accMeth1AvgAge),COLUMN(accyr3))),"") ->  | F26: =IFERROR(INDIRECT("'"&F$2&"_Acceptors of LAPM'!"&ADDRESS(ROW(accMeth1AvgAge),COLUMN(accyr4))),"") ->  | G26: =IFERROR(INDIRECT("'"&G$2&"_Acceptors of LAPM'!"&ADDRESS(ROW(accMeth1AvgAge),COLUMN(accyr5))),"") ->  | H26: =IFERROR(INDIRECT("'"&H$2&"_Acceptors of LAPM'!"&ADDRESS(ROW(accMeth1AvgAge),COLUMN(accyr6))),"") ->  | I26: =IFERROR(INDIRECT("'"&I$2&"_Acceptors of LAPM'!"&ADDRESS(ROW(accMeth1AvgAge),COLUMN(accyr7))),"") ->  | J26: =IFERROR(INDIRECT("'"&J$2&"_Acceptors of LAPM'!"&ADDRESS(ROW(accMeth1AvgAge),COLUMN(accyr8))),"") ->  | K26: =IFERROR(INDIRECT("'"&K$2&"_Acceptors of LAPM'!"&ADDRESS(ROW(accMeth1AvgAge),COLUMN(accyr9))),"") ->  | L26: =IFERROR(INDIRECT("'"&L$2&"_Acceptors of LAPM'!"&ADDRESS(ROW(accMeth1AvgAge),COLUMN(accyr10))),"") ->  | N26: =IFERROR(INDIRECT("'"&N$2&"_Acceptors of LAPM'!"&ADDRESS(ROW(accMeth1AvgAge),COLUMN(accyr1))),"") ->  | O26: =IFERROR(INDIRECT("'"&O$2&"_Acceptors of LAPM'!"&ADDRESS(ROW(accMeth1AvgAge),COLUMN(accyr2))),"") ->  | P26: =IFERROR(INDIRECT("'"&P$2&"_Acceptors of LAPM'!"&ADDRESS(ROW(accMeth1AvgAge),COLUMN(accyr3))),"") ->  | Q26: =IFERROR(INDIRECT("'"&Q$2&"_Acceptors of LAPM'!"&ADDRESS(ROW(accMeth1AvgAge),COLUMN(accyr4))),"") ->  | R26: =IFERROR(INDIRECT("'"&R$2&"_Acceptors of LAPM'!"&ADDRESS(ROW(accMeth1AvgAge),COLUMN(accyr5))),"") ->  | S26: =IFERROR(INDIRECT("'"&S$2&"_Acceptors of LAPM'!"&ADDRESS(ROW(accMeth1AvgAge),COLUMN(accyr6))),"") ->  | T26: =IFERROR(INDIRECT("'"&T$2&"_Acceptors of LAPM'!"&ADDRESS(ROW(accMeth1AvgAge),COLUMN(accyr7))),"") ->  | U26: =IFERROR(INDIRECT("'"&U$2&"_Acceptors of LAPM'!"&ADDRESS(ROW(accMeth1AvgAge),COLUMN(accyr8))),"") ->  | V26: =IFERROR(INDIRECT("'"&V$2&"_Acceptors of LAPM'!"&ADDRESS(ROW(accMeth1AvgAge),COLUMN(accyr9))),"") ->  | W26: =IFERROR(INDIRECT("'"&W$2&"_Acceptors of LAPM'!"&ADDRESS(ROW(accMeth1AvgAge),COLUMN(accyr10))),"") ->  | Y26: =IFERROR(INDIRECT("'"&Y$2&"_Acceptors of LAPM'!"&ADDRESS(ROW(accMeth1AvgAge),COLUMN(accyr1))),"") ->  | Z26: =IFERROR(INDIRECT("'"&Z$2&"_Acceptors of LAPM'!"&ADDRESS(ROW(accMeth1AvgAge),COLUMN(accyr2))),"") ->  | AA26: =IFERROR(INDIRECT("'"&AA$2&"_Acceptors of LAPM'!"&ADDRESS(ROW(accMeth1AvgAge),COLUMN(accyr3))),"") ->  | AB26: =IFERROR(INDIRECT("'"&AB$2&"_Acceptors of LAPM'!"&ADDRESS(ROW(accMeth1AvgAge),COLUMN(accyr4))),"") ->  | AC26: =IFERROR(INDIRECT("'"&AC$2&"_Acceptors of LAPM'!"&ADDRESS(ROW(accMeth1AvgAge),COLUMN(accyr5))),"") ->  | AD26: =IFERROR(INDIRECT("'"&AD$2&"_Acceptors of LAPM'!"&ADDRESS(ROW(accMeth1AvgAge),COLUMN(accyr6))),"") ->  | AE26: =IFERROR(INDIRECT("'"&AE$2&"_Acceptors of LAPM'!"&ADDRESS(ROW(accMeth1AvgAge),COLUMN(accyr7))),"") ->  | AF26: =IFERROR(INDIRECT("'"&AF$2&"_Acceptors of LAPM'!"&ADDRESS(ROW(accMeth1AvgAge),COLUMN(accyr8))),"") ->  | AG26: =IFERROR(INDIRECT("'"&AG$2&"_Acceptors of LAPM'!"&ADDRESS(ROW(accMeth1AvgAge),COLUMN(accyr9))),"") ->  | AH26: =IFERROR(INDIRECT("'"&AH$2&"_Acceptors of LAPM'!"&ADDRESS(ROW(accMeth1AvgAge),COLUMN(accyr10))),"") -> 
B27: Female sterilization | C27: =IFERROR(INDIRECT("'"&C$2&"_Acceptors of LAPM'!"&ADDRESS(ROW(accMeth2AvgAge),COLUMN(accyr1))),"") -> 39.92234758 | D27: =IFERROR(INDIRECT("'"&D$2&"_Acceptors of LAPM'!"&ADDRESS(ROW(accMeth2AvgAge),COLUMN(accyr2))),"") -> 40.1683181 | E27: =IFERROR(INDIRECT("'"&E$2&"_Acceptors of LAPM'!"&ADDRESS(ROW(accMeth2AvgAge),COLUMN(accyr3))),"") -> 40.2942541 | F27: =IFERROR(INDIRECT("'"&F$2&"_Acceptors of LAPM'!"&ADDRESS(ROW(accMeth2AvgAge),COLUMN(accyr4))),"") -> 40.31326913 | G27: =IFERROR(INDIRECT("'"&G$2&"_Acceptors of LAPM'!"&ADDRESS(ROW(accMeth2AvgAge),COLUMN(accyr5))),"") -> 40.23247039 | H27: =IFERROR(INDIRECT("'"&H$2&"_Acceptors of LAPM'!"&ADDRESS(ROW(accMeth2AvgAge),COLUMN(accyr6))),"") -> 40.06218532 | I27: =IFERROR(INDIRECT("'"&I$2&"_Acceptors of LAPM'!"&ADDRESS(ROW(accMeth2AvgAge),COLUMN(accyr7))),"") -> 39.8115846 | J27: =IFERROR(INDIRECT("'"&J$2&"_Acceptors of LAPM'!"&ADDRESS(ROW(accMeth2AvgAge),COLUMN(accyr8))),"") ->  | K27: =IFERROR(INDIRECT("'"&K$2&"_Acceptors of LAPM'!"&ADDRESS(ROW(accMeth2AvgAge),COLUMN(accyr9))),"") ->  | L27: =IFERROR(INDIRECT("'"&L$2&"_Acceptors of LAPM'!"&ADDRESS(ROW(accMeth2AvgAge),COLUMN(accyr10))),"") ->  | N27: =IFERROR(INDIRECT("'"&N$2&"_Acceptors of LAPM'!"&ADDRESS(ROW(accMeth2AvgAge),COLUMN(accyr1))),"") -> 39.92234758 | O27: =IFERROR(INDIRECT("'"&O$2&"_Acceptors of LAPM'!"&ADDRESS(ROW(accMeth2AvgAge),COLUMN(accyr2))),"") -> 40.1683181 | P27: =IFERROR(INDIRECT("'"&P$2&"_Acceptors of LAPM'!"&ADDRESS(ROW(accMeth2AvgAge),COLUMN(accyr3))),"") -> 40.2942541 | Q27: =IFERROR(INDIRECT("'"&Q$2&"_Acceptors of LAPM'!"&ADDRESS(ROW(accMeth2AvgAge),COLUMN(accyr4))),"") -> 40.31326913 | R27: =IFERROR(INDIRECT("'"&R$2&"_Acceptors of LAPM'!"&ADDRESS(ROW(accMeth2AvgAge),COLUMN(accyr5))),"") -> 40.23247039 | S27: =IFERROR(INDIRECT("'"&S$2&"_Acceptors of LAPM'!"&ADDRESS(ROW(accMeth2AvgAge),COLUMN(accyr6))),"") -> 40.06218532 | T27: =IFERROR(INDIRECT("'"&T$2&"_Acceptors of LAPM'!"&ADDRESS(ROW(accMeth2AvgAge),COLUMN(accyr7))),"") -> 39.8115846 | U27: =IFERROR(INDIRECT("'"&U$2&"_Acceptors of LAPM'!"&ADDRESS(ROW(accMeth2AvgAge),COLUMN(accyr8))),"") ->  | V27: =IFERROR(INDIRECT("'"&V$2&"_Acceptors of LAPM'!"&ADDRESS(ROW(accMeth2AvgAge),COLUMN(accyr9))),"") ->  | W27: =IFERROR(INDIRECT("'"&W$2&"_Acceptors of LAPM'!"&ADDRESS(ROW(accMeth2AvgAge),COLUMN(accyr10))),"") ->  | Y27: =IFERROR(INDIRECT("'"&Y$2&"_Acceptors of LAPM'!"&ADDRESS(ROW(accMeth2AvgAge),COLUMN(accyr1))),"") -> 39.92234758 | Z27: =IFERROR(INDIRECT("'"&Z$2&"_Acceptors of LAPM'!"&ADDRESS(ROW(accMeth2AvgAge),COLUMN(accyr2))),"") -> 40.1683181 | AA27: =IFERROR(INDIRECT("'"&AA$2&"_Acceptors of LAPM'!"&ADDRESS(ROW(accMeth2AvgAge),COLUMN(accyr3))),"") -> 40.2942541 | AB27: =IFERROR(INDIRECT("'"&AB$2&"_Acceptors of LAPM'!"&ADDRESS(ROW(accMeth2AvgAge),COLUMN(accyr4))),"") -> 40.31326913 | AC27: =IFERROR(INDIRECT("'"&AC$2&"_Acceptors of LAPM'!"&ADDRESS(ROW(accMeth2AvgAge),COLUMN(accyr5))),"") -> 40.23247039 | AD27: =IFERROR(INDIRECT("'"&AD$2&"_Acceptors of LAPM'!"&ADDRESS(ROW(accMeth2AvgAge),COLUMN(accyr6))),"") -> 40.06218532 | AE27: =IFERROR(INDIRECT("'"&AE$2&"_Acceptors of LAPM'!"&ADDRESS(ROW(accMeth2AvgAge),COLUMN(accyr7))),"") -> 39.8115846 | AF27: =IFERROR(INDIRECT("'"&AF$2&"_Acceptors of LAPM'!"&ADDRESS(ROW(accMeth2AvgAge),COLUMN(accyr8))),"") ->  | AG27: =IFERROR(INDIRECT("'"&AG$2&"_Acceptors of LAPM'!"&ADDRESS(ROW(accMeth2AvgAge),COLUMN(accyr9))),"") ->  | AH27: =IFERROR(INDIRECT("'"&AH$2&"_Acceptors of LAPM'!"&ADDRESS(ROW(accMeth2AvgAge),COLUMN(accyr10))),"") -> 
B28: IUD | C28: =IFERROR(INDIRECT("'"&C$2&"_Acceptors of LAPM'!"&ADDRESS(ROW(accMeth3AvgAge),COLUMN(accyr1))),"") -> 32.22281198 | D28: =IFERROR(INDIRECT("'"&D$2&"_Acceptors of LAPM'!"&ADDRESS(ROW(accMeth3AvgAge),COLUMN(accyr2))),"") -> 32.49446663 | E28: =IFERROR(INDIRECT("'"&E$2&"_Acceptors of LAPM'!"&ADDRESS(ROW(accMeth3AvgAge),COLUMN(accyr3))),"") -> 32.66719869 | F28: =IFERROR(INDIRECT("'"&F$2&"_Acceptors of LAPM'!"&ADDRESS(ROW(accMeth3AvgAge),COLUMN(accyr4))),"") -> 32.77654186 | G28: =IFERROR(INDIRECT("'"&G$2&"_Acceptors of LAPM'!"&ADDRESS(ROW(accMeth3AvgAge),COLUMN(accyr5))),"") -> 32.83879716 | H28: =IFERROR(INDIRECT("'"&H$2&"_Acceptors of LAPM'!"&ADDRESS(ROW(accMeth3AvgAge),COLUMN(accyr6))),"") -> 32.8658306 | I28: =IFERROR(INDIRECT("'"&I$2&"_Acceptors of LAPM'!"&ADDRESS(ROW(accMeth3AvgAge),COLUMN(accyr7))),"") -> 32.86675277 | J28: =IFERROR(INDIRECT("'"&J$2&"_Acceptors of LAPM'!"&ADDRESS(ROW(accMeth3AvgAge),COLUMN(accyr8))),"") ->  | K28: =IFERROR(INDIRECT("'"&K$2&"_Acceptors of LAPM'!"&ADDRESS(ROW(accMeth3AvgAge),COLUMN(accyr9))),"") ->  | L28: =IFERROR(INDIRECT("'"&C$2&"_Acceptors of LAPM'!"&ADDRESS(ROW(accMeth3AvgAge),COLUMN(accyr10))),"") ->  | N28: =IFERROR(INDIRECT("'"&N$2&"_Acceptors of LAPM'!"&ADDRESS(ROW(accMeth3AvgAge),COLUMN(accyr1))),"") -> 32.22281198 | O28: =IFERROR(INDIRECT("'"&O$2&"_Acceptors of LAPM'!"&ADDRESS(ROW(accMeth3AvgAge),COLUMN(accyr2))),"") -> 32.49446663 | P28: =IFERROR(INDIRECT("'"&P$2&"_Acceptors of LAPM'!"&ADDRESS(ROW(accMeth3AvgAge),COLUMN(accyr3))),"") -> 32.66719869 | Q28: =IFERROR(INDIRECT("'"&Q$2&"_Acceptors of LAPM'!"&ADDRESS(ROW(accMeth3AvgAge),COLUMN(accyr4))),"") -> 32.77654186 | R28: =IFERROR(INDIRECT("'"&R$2&"_Acceptors of LAPM'!"&ADDRESS(ROW(accMeth3AvgAge),COLUMN(accyr5))),"") -> 32.83879716 | S28: =IFERROR(INDIRECT("'"&S$2&"_Acceptors of LAPM'!"&ADDRESS(ROW(accMeth3AvgAge),COLUMN(accyr6))),"") -> 32.8658306 | T28: =IFERROR(INDIRECT("'"&T$2&"_Acceptors of LAPM'!"&ADDRESS(ROW(accMeth3AvgAge),COLUMN(accyr7))),"") -> 32.86675277 | U28: =IFERROR(INDIRECT("'"&U$2&"_Acceptors of LAPM'!"&ADDRESS(ROW(accMeth3AvgAge),COLUMN(accyr8))),"") ->  | V28: =IFERROR(INDIRECT("'"&V$2&"_Acceptors of LAPM'!"&ADDRESS(ROW(accMeth3AvgAge),COLUMN(accyr9))),"") ->  | W28: =IFERROR(INDIRECT("'"&N$2&"_Acceptors of LAPM'!"&ADDRESS(ROW(accMeth3AvgAge),COLUMN(accyr10))),"") ->  | Y28: =IFERROR(INDIRECT("'"&Y$2&"_Acceptors of LAPM'!"&ADDRESS(ROW(accMeth3AvgAge),COLUMN(accyr1))),"") -> 32.22281198 | Z28: =IFERROR(INDIRECT("'"&Z$2&"_Acceptors of LAPM'!"&ADDRESS(ROW(accMeth3AvgAge),COLUMN(accyr2))),"") -> 32.49446663 | AA28: =IFERROR(INDIRECT("'"&AA$2&"_Acceptors of LAPM'!"&ADDRESS(ROW(accMeth3AvgAge),COLUMN(accyr3))),"") -> 32.66719869 | AB28: =IFERROR(INDIRECT("'"&AB$2&"_Acceptors of LAPM'!"&ADDRESS(ROW(accMeth3AvgAge),COLUMN(accyr4))),"") -> 32.77654186 | AC28: =IFERROR(INDIRECT("'"&AC$2&"_Acceptors of LAPM'!"&ADDRESS(ROW(accMeth3AvgAge),COLUMN(accyr5))),"") -> 32.83879716 | AD28: =IFERROR(INDIRECT("'"&AD$2&"_Acceptors of LAPM'!"&ADDRESS(ROW(accMeth3AvgAge),COLUMN(accyr6))),"") -> 32.8658306 | AE28: =IFERROR(INDIRECT("'"&AE$2&"_Acceptors of LAPM'!"&ADDRESS(ROW(accMeth3AvgAge),COLUMN(accyr7))),"") -> 32.86675277 | AF28: =IFERROR(INDIRECT("'"&AF$2&"_Acceptors of LAPM'!"&ADDRESS(ROW(accMeth3AvgAge),COLUMN(accyr8))),"") ->  | AG28: =IFERROR(INDIRECT("'"&AG$2&"_Acceptors of LAPM'!"&ADDRESS(ROW(accMeth3AvgAge),COLUMN(accyr9))),"") ->  | AH28: =IFERROR(INDIRECT("'"&Y$2&"_Acceptors of LAPM'!"&ADDRESS(ROW(accMeth3AvgAge),COLUMN(accyr10))),"") -> 
B29: Implant | C29: =IFERROR(INDIRECT("'"&C$2&"_Acceptors of LAPM'!"&ADDRESS(ROW(accMeth4AvgAge),COLUMN(accyr1))),"") -> 31.2735828 | D29: =IFERROR(INDIRECT("'"&D$2&"_Acceptors of LAPM'!"&ADDRESS(ROW(accMeth4AvgAge),COLUMN(accyr2))),"") -> 31.59897178 | E29: =IFERROR(INDIRECT("'"&E$2&"_Acceptors of LAPM'!"&ADDRESS(ROW(accMeth4AvgAge),COLUMN(accyr3))),"") -> 31.73520954 | F29: =IFERROR(INDIRECT("'"&F$2&"_Acceptors of LAPM'!"&ADDRESS(ROW(accMeth4AvgAge),COLUMN(accyr4))),"") -> 31.7358447 | G29: =IFERROR(INDIRECT("'"&G$2&"_Acceptors of LAPM'!"&ADDRESS(ROW(accMeth4AvgAge),COLUMN(accyr5))),"") -> 31.63427816 | H29: =IFERROR(INDIRECT("'"&H$2&"_Acceptors of LAPM'!"&ADDRESS(ROW(accMeth4AvgAge),COLUMN(accyr6))),"") -> 31.45642821 | I29: =IFERROR(INDIRECT("'"&I$2&"_Acceptors of LAPM'!"&ADDRESS(ROW(accMeth4AvgAge),COLUMN(accyr7))),"") -> 31.60780274 | J29: =IFERROR(INDIRECT("'"&J$2&"_Acceptors of LAPM'!"&ADDRESS(ROW(accMeth4AvgAge),COLUMN(accyr8))),"") ->  | K29: =IFERROR(INDIRECT("'"&K$2&"_Acceptors of LAPM'!"&ADDRESS(ROW(accMeth4AvgAge),COLUMN(accyr9))),"") ->  | L29: =IFERROR(INDIRECT("'"&L$2&"_Acceptors of LAPM'!"&ADDRESS(ROW(accMeth4AvgAge),COLUMN(accyr10))),"") ->  | N29: =IFERROR(INDIRECT("'"&N$2&"_Acceptors of LAPM'!"&ADDRESS(ROW(accMeth4AvgAge),COLUMN(accyr1))),"") -> 31.2735828 | O29: =IFERROR(INDIRECT("'"&O$2&"_Acceptors of LAPM'!"&ADDRESS(ROW(accMeth4AvgAge),COLUMN(accyr2))),"") -> 31.59897178 | P29: =IFERROR(INDIRECT("'"&P$2&"_Acceptors of LAPM'!"&ADDRESS(ROW(accMeth4AvgAge),COLUMN(accyr3))),"") -> 31.73520954 | Q29: =IFERROR(INDIRECT("'"&Q$2&"_Acceptors of LAPM'!"&ADDRESS(ROW(accMeth4AvgAge),COLUMN(accyr4))),"") -> 31.7358447 | R29: =IFERROR(INDIRECT("'"&R$2&"_Acceptors of LAPM'!"&ADDRESS(ROW(accMeth4AvgAge),COLUMN(accyr5))),"") -> 31.63427816 | S29: =IFERROR(INDIRECT("'"&S$2&"_Acceptors of LAPM'!"&ADDRESS(ROW(accMeth4AvgAge),COLUMN(accyr6))),"") -> 31.45642821 | T29: =IFERROR(INDIRECT("'"&T$2&"_Acceptors of LAPM'!"&ADDRESS(ROW(accMeth4AvgAge),COLUMN(accyr7))),"") -> 31.60780274 | U29: =IFERROR(INDIRECT("'"&U$2&"_Acceptors of LAPM'!"&ADDRESS(ROW(accMeth4AvgAge),COLUMN(accyr8))),"") ->  | V29: =IFERROR(INDIRECT("'"&V$2&"_Acceptors of LAPM'!"&ADDRESS(ROW(accMeth4AvgAge),COLUMN(accyr9))),"") ->  | W29: =IFERROR(INDIRECT("'"&W$2&"_Acceptors of LAPM'!"&ADDRESS(ROW(accMeth4AvgAge),COLUMN(accyr10))),"") ->  | Y29: =IFERROR(INDIRECT("'"&Y$2&"_Acceptors of LAPM'!"&ADDRESS(ROW(accMeth4AvgAge),COLUMN(accyr1))),"") -> 31.2735828 | Z29: =IFERROR(INDIRECT("'"&Z$2&"_Acceptors of LAPM'!"&ADDRESS(ROW(accMeth4AvgAge),COLUMN(accyr2))),"") -> 31.59897178 | AA29: =IFERROR(INDIRECT("'"&AA$2&"_Acceptors of LAPM'!"&ADDRESS(ROW(accMeth4AvgAge),COLUMN(accyr3))),"") -> 31.73520954 | AB29: =IFERROR(INDIRECT("'"&AB$2&"_Acceptors of LAPM'!"&ADDRESS(ROW(accMeth4AvgAge),COLUMN(accyr4))),"") -> 31.7358447 | AC29: =IFERROR(INDIRECT("'"&AC$2&"_Acceptors of LAPM'!"&ADDRESS(ROW(accMeth4AvgAge),COLUMN(accyr5))),"") -> 31.63427816 | AD29: =IFERROR(INDIRECT("'"&AD$2&"_Acceptors of LAPM'!"&ADDRESS(ROW(accMeth4AvgAge),COLUMN(accyr6))),"") -> 31.45642821 | AE29: =IFERROR(INDIRECT("'"&AE$2&"_Acceptors of LAPM'!"&ADDRESS(ROW(accMeth4AvgAge),COLUMN(accyr7))),"") -> 31.60780274 | AF29: =IFERROR(INDIRECT("'"&AF$2&"_Acceptors of LAPM'!"&ADDRESS(ROW(accMeth4AvgAge),COLUMN(accyr8))),"") ->  | AG29: =IFERROR(INDIRECT("'"&AG$2&"_Acceptors of LAPM'!"&ADDRESS(ROW(accMeth4AvgAge),COLUMN(accyr9))),"") ->  | AH29: =IFERROR(INDIRECT("'"&AH$2&"_Acceptors of LAPM'!"&ADDRESS(ROW(accMeth4AvgAge),COLUMN(accyr10))),"") -> 
B30: Standard Days Method (SDM) | C30: =IFERROR(INDIRECT("'"&C$2&"_Acceptors of LAPM'!"&ADDRESS(ROW(accMeth5AvgAge),COLUMN(accyr1))),"") ->  | D30: =IFERROR(INDIRECT("'"&D$2&"_Acceptors of LAPM'!"&ADDRESS(ROW(accMeth5AvgAge),COLUMN(accyr2))),"") ->  | E30: =IFERROR(INDIRECT("'"&E$2&"_Acceptors of LAPM'!"&ADDRESS(ROW(accMeth5AvgAge),COLUMN(accyr3))),"") ->  | F30: =IFERROR(INDIRECT("'"&F$2&"_Acceptors of LAPM'!"&ADDRESS(ROW(accMeth5AvgAge),COLUMN(accyr4))),"") ->  | G30: =IFERROR(INDIRECT("'"&G$2&"_Acceptors of LAPM'!"&ADDRESS(ROW(accMeth5AvgAge),COLUMN(accyr5))),"") ->  | H30: =IFERROR(INDIRECT("'"&H$2&"_Acceptors of LAPM'!"&ADDRESS(ROW(accMeth5AvgAge),COLUMN(accyr6))),"") ->  | I30: =IFERROR(INDIRECT("'"&I$2&"_Acceptors of LAPM'!"&ADDRESS(ROW(accMeth5AvgAge),COLUMN(accyr7))),"") ->  | J30: =IFERROR(INDIRECT("'"&J$2&"_Acceptors of LAPM'!"&ADDRESS(ROW(accMeth5AvgAge),COLUMN(accyr8))),"") ->  | K30: =IFERROR(INDIRECT("'"&K$2&"_Acceptors of LAPM'!"&ADDRESS(ROW(accMeth5AvgAge),COLUMN(accyr9))),"") ->  | L30: =IFERROR(INDIRECT("'"&L$2&"_Acceptors of LAPM'!"&ADDRESS(ROW(accMeth5AvgAge),COLUMN(accyr10))),"") ->  | N30: =IFERROR(INDIRECT("'"&N$2&"_Acceptors of LAPM'!"&ADDRESS(ROW(accMeth5AvgAge),COLUMN(accyr1))),"") ->  | O30: =IFERROR(INDIRECT("'"&O$2&"_Acceptors of LAPM'!"&ADDRESS(ROW(accMeth5AvgAge),COLUMN(accyr2))),"") ->  | P30: =IFERROR(INDIRECT("'"&P$2&"_Acceptors of LAPM'!"&ADDRESS(ROW(accMeth5AvgAge),COLUMN(accyr3))),"") ->  | Q30: =IFERROR(INDIRECT("'"&Q$2&"_Acceptors of LAPM'!"&ADDRESS(ROW(accMeth5AvgAge),COLUMN(accyr4))),"") ->  | R30: =IFERROR(INDIRECT("'"&R$2&"_Acceptors of LAPM'!"&ADDRESS(ROW(accMeth5AvgAge),COLUMN(accyr5))),"") ->  | S30: =IFERROR(INDIRECT("'"&S$2&"_Acceptors of LAPM'!"&ADDRESS(ROW(accMeth5AvgAge),COLUMN(accyr6))),"") ->  | T30: =IFERROR(INDIRECT("'"&T$2&"_Acceptors of LAPM'!"&ADDRESS(ROW(accMeth5AvgAge),COLUMN(accyr7))),"") ->  | U30: =IFERROR(INDIRECT("'"&U$2&"_Acceptors of LAPM'!"&ADDRESS(ROW(accMeth5AvgAge),COLUMN(accyr8))),"") ->  | V30: =IFERROR(INDIRECT("'"&V$2&"_Acceptors of LAPM'!"&ADDRESS(ROW(accMeth5AvgAge),COLUMN(accyr9))),"") ->  | W30: =IFERROR(INDIRECT("'"&W$2&"_Acceptors of LAPM'!"&ADDRESS(ROW(accMeth5AvgAge),COLUMN(accyr10))),"") ->  | Y30: =IFERROR(INDIRECT("'"&Y$2&"_Acceptors of LAPM'!"&ADDRESS(ROW(accMeth5AvgAge),COLUMN(accyr1))),"") ->  | Z30: =IFERROR(INDIRECT("'"&Z$2&"_Acceptors of LAPM'!"&ADDRESS(ROW(accMeth5AvgAge),COLUMN(accyr2))),"") ->  | AA30: =IFERROR(INDIRECT("'"&AA$2&"_Acceptors of LAPM'!"&ADDRESS(ROW(accMeth5AvgAge),COLUMN(accyr3))),"") ->  | AB30: =IFERROR(INDIRECT("'"&AB$2&"_Acceptors of LAPM'!"&ADDRESS(ROW(accMeth5AvgAge),COLUMN(accyr4))),"") ->  | AC30: =IFERROR(INDIRECT("'"&AC$2&"_Acceptors of LAPM'!"&ADDRESS(ROW(accMeth5AvgAge),COLUMN(accyr5))),"") ->  | AD30: =IFERROR(INDIRECT("'"&AD$2&"_Acceptors of LAPM'!"&ADDRESS(ROW(accMeth5AvgAge),COLUMN(accyr6))),"") ->  | AE30: =IFERROR(INDIRECT("'"&AE$2&"_Acceptors of LAPM'!"&ADDRESS(ROW(accMeth5AvgAge),COLUMN(accyr7))),"") ->  | AF30: =IFERROR(INDIRECT("'"&AF$2&"_Acceptors of LAPM'!"&ADDRESS(ROW(accMeth5AvgAge),COLUMN(accyr8))),"") ->  | AG30: =IFERROR(INDIRECT("'"&AG$2&"_Acceptors of LAPM'!"&ADDRESS(ROW(accMeth5AvgAge),COLUMN(accyr9))),"") ->  | AH30: =IFERROR(INDIRECT("'"&AH$2&"_Acceptors of LAPM'!"&ADDRESS(ROW(accMeth5AvgAge),COLUMN(accyr10))),"") -> 
A31: Fertility Discount Rates per LAPM
B32: Male sterilization | C32: =IFERROR(INDEX(inUsualDisc,MATCH(ROUND(C26,0),inUsualDiscAge,0)),"") ->  | N32: =IFERROR(INDEX(inUsualDisc,MATCH(ROUND(N26,0),inUsualDiscAge,0)),"") ->  | Y32: =IFERROR(INDEX(inUsualDisc,MATCH(ROUND(Y26,0),inUsualDiscAge,0)),"") -> 
B33: Female sterilization | C33: =IFERROR(INDEX(inUsualDisc,MATCH(ROUND(C27,0),inUsualDiscAge,0)),"") -> 0.6 | D33: 0.6 | E33: 0.6 | F33: 0.6 | G33: 0.6 | H33: 0.6 | I33: 0.6 | N33: =IFERROR(INDEX(inUsualDisc,MATCH(ROUND(N27,0),inUsualDiscAge,0)),"") -> 0.6 | O33: 0.6 | P33: 0.6 | Q33: 0.6 | R33: 0.6 | S33: 0.6 | T33: 0.6 | Y33: =IFERROR(INDEX(inUsualDisc,MATCH(ROUND(Y27,0),inUsualDiscAge,0)),"") -> 0.6 | Z33: 0.6 | AA33: 0.6 | AB33: 0.6 | AC33: 0.6 | AD33: 0.6 | AE33: 0.6
B34: IUD | C34: =IFERROR(INDEX(inUsualDisc,MATCH(ROUND(C28,0),inUsualDiscAge,0)),"") -> 1.1 | D34: 1.1 | E34: 1.1 | F34: 1.1 | G34: 1.1 | H34: 1.1 | I34: 1.1 | N34: =IFERROR(INDEX(inUsualDisc,MATCH(ROUND(N28,0),inUsualDiscAge,0)),"") -> 1.1 | O34: 1.1 | P34: 1.1 | Q34: 1.1 | R34: 1.1 | S34: 1.1 | T34: 1.1 | Y34: =IFERROR(INDEX(inUsualDisc,MATCH(ROUND(Y28,0),inUsualDiscAge,0)),"") -> 1.1 | Z34: 1.1 | AA34: 1.1 | AB34: 1.1 | AC34: 1.1 | AD34: 1.1 | AE34: 1.1
B35: Implant | C35: =IFERROR(INDEX(inUsualDisc,MATCH(ROUND(C29,0),inUsualDiscAge,0)),"") -> 1.1 | D35: 1.1 | E35: 1.1 | F35: 1.1 | G35: 1.1 | H35: 1.1 | I35: 1.1 | N35: =IFERROR(INDEX(inUsualDisc,MATCH(ROUND(N29,0),inUsualDiscAge,0)),"") -> 1.1 | O35: 1.1 | P35: 1.1 | Q35: 1.1 | R35: 1.1 | S35: 1.1 | T35: 1.1 | Y35: =IFERROR(INDEX(inUsualDisc,MATCH(ROUND(Y29,0),inUsualDiscAge,0)),"") -> 1.1 | Z35: 1.1 | AA35: 1.1 | AB35: 1.1 | AC35: 1.1 | AD35: 1.1 | AE35: 1.1
B36: Standard Days Method (SDM) | C36: =IFERROR(INDEX(inUsualDisc,MATCH(ROUND(C30,0),inUsualDiscAge,0)),"") ->  | N36: =IFERROR(INDEX(inUsualDisc,MATCH(ROUND(N30,0),inUsualDiscAge,0)),"") ->  | Y36: =IFERROR(INDEX(inUsualDisc,MATCH(ROUND(Y30,0),inUsualDiscAge,0)),"") -> 
A37: Abortion Ratio | C37: =inUsual3 -> 40.539703 | D37: 40.539703 | E37: 40.539703 | F37: 40.539703 | G37: 40.539703 | H37: 40.539703 | I37: 40.539703 | J37: 40.539703 | K37: 40.539703 | L37: 40.539703 | N37: =inScen13 -> 40.539703 | O37: 40.539703 | P37: 40.539703 | Q37: 40.539703 | R37: 40.539703 | S37: 40.539703 | T37: 40.539703 | U37: 40.539703 | V37: 40.539703 | W37: 40.539703 | Y37: =inScen23 -> 40.539703 | Z37: 40.539703 | AA37: 40.539703 | AB37: 40.539703 | AC37: 40.539703 | AD37: 40.539703 | AE37: 40.539703 | AF37: 40.539703 | AG37: 40.539703 | AH37: 40.539703
A38: % of unintended pregnancies that end in abortion | C38: =inUsual2 -> 0.60801018 | D38: 0.60801018 | E38: 0.60801018 | F38: 0.60801018 | G38: 0.60801018 | H38: 0.60801018 | I38: 0.60801018 | J38: 0.60801018 | K38: 0.60801018 | L38: 0.60801018 | N38: =inScen12 -> 0.60801018 | O38: 0.60801018 | P38: 0.60801018 | Q38: 0.60801018 | R38: 0.60801018 | S38: 0.60801018 | T38: 0.60801018 | U38: 0.60801018 | V38: 0.60801018 | W38: 0.60801018 | Y38: =inScen22 -> 0.60801018 | Z38: 0.60801018 | AA38: 0.60801018 | AB38: 0.60801018 | AC38: 0.60801018 | AD38: 0.60801018 | AE38: 0.60801018 | AF38: 0.60801018 | AG38: 0.60801018 | AH38: 0.60801018
